Workbook

Sheet Copertina
AB2: Tipologia attività: Application Development
C5: Emesso da: | J5: Direzione Sistemi Informativi Unità Sviluppo Applicazioni | AB5: Tipo documento: Conteggio IFPUG Function Point | BD5: Versione documento: <x.y> | BM5: Data di emissione: <gg/mm/aaaa>
H31: Direzione Sistemi Informativi Unità Sviluppo Applicazioni Conteggio IFPUG Function Point (CPM v4.3.1) <<AMBITO DELL'INTERVENTO>>

Sheet Riferimenti
AB2: Tipologia Attività: Application Development
C5: =Copertina!C5 -> Emesso da: | J5: Direzione Sistemi Informativi Unità Sviluppo Applicazioni | AB5: Tipo documento: Conteggio IFPUG Function Point | BD5: =Copertina!BD5 -> Versione documento: <x.y> | BM5: =Copertina!BM5 -> Data di emissione: <gg/mm/aaaa>
C10: Riferimenti Contrattuali
C12: Contratto | AK12: Data
C13: <Inserire il contratto quadro di riferimento per lo sviluppo richieste es: LOTTO 1 - Servizi di Analisi, Sviluppo, Manutenzione Evolutiva, Correttiva e Assistenza delle applicazioni di business del cliente XYZ > | AK13: <<gg/mm/aaaa/>>
C17: Versione corrente del template
C19: N. Versione | J19: Data | P19: Data Approvazione | AH19: Approvato da
C20: 1.0 | J20: 2015-02-03 | P20: 2015-02-24 | AH20: Mario Rossi
C22: Revisione del documento
C24: Nome | V24: Direzione/Unità | BG24: Data
C25: <<Nome referente>> | V25: <<Direzione di appartenenza>> | BG25: <<gg/mm/aaaa/>>
C26: <<Nome referente>> | V26: <<Direzione di appartenenza>> | BG26: <<gg/mm/aaaa/>>
C27: <<Nome referente>> | V27: <<Direzione di appartenenza>> | BG27: <<gg/mm/aaaa/>>
C30: Convalida del documento
C32: Nome | V32: Direzione/Unità | BG32: Data
C33: <<Nome referente>> | V33: <<Direzione di appartenenza>> | BG33: <<gg/mm/aaaa/>>
C34: <<Nome referente>> | V34: <<Direzione di appartenenza>> | BG34: <<gg/mm/aaaa/>>
C35: <<Nome referente>> | V35: <<Direzione di appartenenza>> | BG35: <<gg/mm/aaaa/>>
C38: Storia del documento
C40: Versione | J40: Data | P40: Referente | AH40: Natura delle modifiche
C41: <1.0> | J41: <gg/mm/aa> | P41: <xxxx> | AH41: <Creazione del documento>
C42: <1.1> | J42: <gg/mm/aa> | P42: <xxxx> | AH42: <……………………….>
C43: <1.2> | J43: <gg/mm/aa> | P43: <xxxx> | AH43: <……………………….>
C44: <1.3> | J44: <gg/mm/aa> | P44: <xxxx> | AH44: <……………………….>

Sheet Istruzioni
AB2: Tipologia Attività: Application Development
C5: =Copertina!C5 -> Emesso da: | J5: Direzione Sistemi Informativi Unità Sviluppo Applicazioni | AB5: Tipo documento: Conteggio IFPUG Function Point | BD5: =Copertina!BD5 -> Versione documento: <x.y> | BM5: =Copertina!BM5 -> Data di emissione: <gg/mm/aaaa>
C10: Guida all’utilizzo del template A supporto della compilazione del template, si premette che: • Il testo in corsivo grigio e/o racchiuso tra parentesi angolari (<..>) fornisce le indicazioni per la compilazione del campo/sezione. • Il testo in corsivo racchiuso tra parentesi quadre illustra le finalità del paragrafo/capitolo e/o tabella. Si raccomanda, all’utilizzatore del template, di seguire le seguenti istruzioni • Cancellare le parentesi angolari e compilare in modo appropriato i relativi campi (ad esempio, <Nome Referente>); • Cancellare il testo in corsivo racchiuso tra parentesi quadre e, laddove necessario, compilare la sezione (capitolo, paragrafo, sotto-paragrafo); • Prima dell’invio della prima bozza del documento, cancellare queste istruzioni, la nota riportata sulla copertina, i foglio "Note" ed altre eventuali note riportate dall’autore del template.

Sheet Sintesi
AB2: Tipologia Attività: Application Development
C5: =Copertina!C5 -> Emesso da: | J5: Direzione Sistemi Informativi Unità Sviluppo Applicazioni | AB5: Tipo documento: Conteggio IFPUG Function Point | BD5: =Copertina!BD5 -> Versione documento: <x.y> | BM5: =Copertina!BM5 -> Data di emissione: <gg/mm/aaaa>
C13: Sistema | AK13: <Riportare l'applicazione/sistema oggetto dell'intervento>
C19: Conteggio IFPUG Function Point (CPM v4.3.1)
C21: Area applicativa | P21: Descrizione intervento
C22: <riportare l'ambito applicativo dell'interevento> | J22: 42038 | P22: <Riportare una breve descrizione dell'intervento>
C25: Responsabile del conteggio | AD25: CFPS / CFPP | BB25: Effort conteggio
C26: <<Nome del responsabile del conteggio>> | AD26: <indicare CFPS o CFPP> | BB26: <inumero di gg per il conteggio>
C28: Responsabile della validazione del conteggio | BB28: CFPS / CFPP
C29: <<Nome del responsabile della validazione del conteggio>> | BB29: <indicare CFPS o CFPP>
C32: Informazioni sul conteggio
C34: Codice tipo conteggio | M34: Descrizione tipologia conteggio | AP34: Codice fase conteggio | BF34: Descrizione fase conteggio
C35: 3 | M35: =VLOOKUP(C35,'FP-Parametri'!$AP$19:$AQ$21,2,FALSE) -> AFP - Misurazione Applicazione Esistente | AP35: 5 | BF35: =VLOOKUP(AP35,'FP-Parametri'!$AP$23:$AQ$27,2,FALSE) -> Sviluppo Completato

Sheet Requisiti
E2: Tipologia attività: Application Development
B4: Emesso da: | C4: Direzione Sistemi Informativi Unità Sviluppo Applicazioni | E4: Tipo documento: Conteggio IFPUG Function Point | I4: Versione documento: <x.y> | K4: Data di emissione: <gg/mm/aaaa>
D7: =CONCATENATE("Intervento: ",Sintesi!P22) -> Intervento: <Riportare una breve descrizione dell'intervento> | I7: Responsabile del Conteggio: | K7: =Sintesi!$C$26 -> <<Nome del responsabile del conteggio>>
I8: Tipo di Conteggio (1-3): | K8: =Sintesi!$M$35 -> AFP - Misurazione Applicazione Esistente
I9: Fase di Conteggio (1-5): | K9: =Sintesi!$BF$35 -> Sviluppo Completato
B12: Progressivo | C12: ID Requisito | D12: Descrizione | E12: Tipo requisito | F12: Unita di misura | G12: Totale FP | H12: Totale GG/U | I12: Commenti
B13: 1 | C13: REQ1 | D13: REQUISITO 1 | E13: FUR | F13: =IF(E13="FUR","FP",IF(E13="NFR","gg/u","")) -> FP | G13: =IF(F13="FP",SommaFP(C13),"") -> 
B14: 2 | C14: REQ2 | D14: REQUISITO 2 | E14: FUR | F14: =IF(E14="FUR","FP",IF(E14="NFR","gg/u","")) -> FP | G14: =IF(F14="FP",SommaFP(C14),"") -> 
B15: 3 | C15: REQ3 | D15: REQUISITO 3 | E15: NFR | F15: gg/u | H15: 10 | I15: modifiche grafiche
B16: 4 | C16: REQ4 | D16: REQUISITO 4 | E16: NFR | F16: gg/u | H16: 10
B17: 5 | C17: REQ5 | D17: REQUISITO 5 | E17: NFR | F17: gg/u | H17: 20 | I17: miglioramento performance

Sheet FP-DET
J2: Tipologia attività: Application Development
B4: Emesso da: | D4: Direzione Sistemi Informativi Unità Sviluppo Applicazioni | J4: Tipo documento: Conteggio IFPUG Function Point | N4: Versione documento: <x.y> | Q4: Data di emissione: <gg/mm/aaaa>
D7: =CONCATENATE("Intervento: ",Sintesi!P22) -> Intervento: <Riportare una breve descrizione dell'intervento> | G7: Responsabile del Conteggio: | M7: =Sintesi!$C$26 -> <<Nome del responsabile del conteggio>>
G8: Tipo di Conteggio (1-3): | M8: =Sintesi!$M$35 -> AFP - Misurazione Applicazione Esistente
G9: Fase di Conteggio (1-5): | K9: Fase di Conteggio (1-5): | M9: =Sintesi!$BF$35 -> Sviluppo Completato
B11: Progressivo | C11: Codice UR | E11: Ambito Conteggio | G11: Tipo Funzione | L11: Complessità
D12: Descrizione della funzione | E12: cod. | F12: Descrizione | G12: cod. | H12: Function type | I12: EQ | J12: numero
E13: (1-5) | G13: (1-5) | I13: I-O | J13: DET | K13: RET FTR | M13: FTR/RET
D14: Entità - Dati | I14: =IF(H14<>"",VLOOKUP(G14,'FP-Parametri'!AP$2:'FP-Parametri'!AR$8,3,FALSE),"") ->  | N14: Note | P14: Size | Q14: Count | R14: Tipo Funzione
D15: Template | E15: 1 | F15: =IF(AND(E15>0,E15<6),VLOOKUP(E15,'FP-Parametri'!AP$29:'FP-Parametri'!AQ$33,2,FALSE),"") -> ADD | G15: 1 | H15: =IF(AND(G15>0,G15<6),VLOOKUP(G15,'FP-Parametri'!AP$2:'FP-Parametri'!AQ$8,2,FALSE),"") -> ILF | I15: =IF(H15<>"",VLOOKUP(G15,'FP-Parametri'!AP$2:'FP-Parametri'!AR$8,3,FALSE),"") -> - | J15: 19 | K15: 1 | L15: =FPComplexity(H15,J15,K15) -> B | O15: =IF(L15="low","Bassa",IF(L15="avg","Media",IF(L15="high","Alta",errore))) ->  | P15: =FPSize(H15,L15) -> 7 | Q15: =IF(P15<>0,1,0) -> 1 | R15: =CONCATENATE(H15) -> ILF
D16: Testo | E16: 1 | F16: =IF(AND(E16>0,E16<6),VLOOKUP(E16,'FP-Parametri'!AP$29:'FP-Parametri'!AQ$33,2,FALSE),"") -> ADD | G16: 1 | H16: =IF(AND(G16>0,G16<6),VLOOKUP(G16,'FP-Parametri'!AP$2:'FP-Parametri'!AQ$8,2,FALSE),"") -> ILF | I16: =IF(H16<>"",VLOOKUP(G16,'FP-Parametri'!AP$2:'FP-Parametri'!AR$8,3,FALSE),"") -> - | J16: 19 | K16: 1 | L16: B | O16: =IF(L16="low","Bassa",IF(L16="avg","Media",IF(L16="high","Alta",errore))) ->  | P16: 7 | Q16: 1 | R16: ILF
D17: Impostazioni | E17: 1 | F17: =IF(AND(E17>0,E17<6),VLOOKUP(E17,'FP-Parametri'!AP$29:'FP-Parametri'!AQ$33,2,FALSE),"") -> ADD | G17: 1 | H17: =IF(AND(G17>0,G17<6),VLOOKUP(G17,'FP-Parametri'!AP$2:'FP-Parametri'!AQ$8,2,FALSE),"") -> ILF | I17: =IF(H17<>"",VLOOKUP(G17,'FP-Parametri'!AP$2:'FP-Parametri'!AR$8,3,FALSE),"") -> - | J17: 19 | K17: 3 | L17: B | M17: Font; A capo; Stampanti | O17: =IF(L17="low","Bassa",IF(L17="avg","Media",IF(L17="high","Alta",errore))) ->  | P17: 7 | Q17: 1 | R17: ILF
D18: Font | E18: 1 | F18: =IF(AND(E18>0,E18<6),VLOOKUP(E18,'FP-Parametri'!AP$29:'FP-Parametri'!AQ$33,2,FALSE),"") -> ADD | G18: 2 | H18: =IF(AND(G18>0,G18<6),VLOOKUP(G18,'FP-Parametri'!AP$2:'FP-Parametri'!AQ$8,2,FALSE),"") -> EIF | I18: =IF(H18<>"",VLOOKUP(G18,'FP-Parametri'!AP$2:'FP-Parametri'!AR$8,3,FALSE),"") -> - | J18: 19 | K18: 1 | L18: B | N18: OS_Windows | O18: =IF(L18="low","Bassa",IF(L18="avg","Media",IF(L18="high","Alta",errore))) ->  | P18: 5 | Q18: 1 | R18: EIF
D19: Stampanti | E19: 1 | F19: =IF(AND(E19>0,E19<6),VLOOKUP(E19,'FP-Parametri'!AP$29:'FP-Parametri'!AQ$33,2,FALSE),"") -> ADD | G19: 2 | H19: =IF(AND(G19>0,G19<6),VLOOKUP(G19,'FP-Parametri'!AP$2:'FP-Parametri'!AQ$8,2,FALSE),"") -> EIF | I19: =IF(H19<>"",VLOOKUP(G19,'FP-Parametri'!AP$2:'FP-Parametri'!AR$8,3,FALSE),"") -> - | J19: 19 | K19: 2 | L19: B | M19: Tipo Stampante; Location | N19: OS_Windows | O19: =IF(L19="low","Bassa",IF(L19="avg","Media",IF(L19="high","Alta",errore))) ->  | P19: 5 | Q19: 1 | R19: EIF
D20: Temp | E20: 1 | F20: =IF(AND(E20>0,E20<6),VLOOKUP(E20,'FP-Parametri'!AP$29:'FP-Parametri'!AQ$33,2,FALSE),"") -> ADD | G20: 1 | H20: =IF(AND(G20>0,G20<6),VLOOKUP(G20,'FP-Parametri'!AP$2:'FP-Parametri'!AQ$8,2,FALSE),"") -> ILF | I20: =IF(H20<>"",VLOOKUP(G20,'FP-Parametri'!AP$2:'FP-Parametri'!AR$8,3,FALSE),"") -> - | J20: 19 | K20: 1 | L20: B | O20: =IF(L20="low","Bassa",IF(L20="avg","Media",IF(L20="high","Alta",errore))) ->  | P20: 7 | Q20: 1 | R20: ILF
D21: Clock | E21: 1 | F21: =IF(AND(E21>0,E21<6),VLOOKUP(E21,'FP-Parametri'!AP$29:'FP-Parametri'!AQ$33,2,FALSE),"") -> ADD | G21: 2 | H21: =IF(AND(G21>0,G21<6),VLOOKUP(G21,'FP-Parametri'!AP$2:'FP-Parametri'!AQ$8,2,FALSE),"") -> EIF | I21: =IF(H21<>"",VLOOKUP(G21,'FP-Parametri'!AP$2:'FP-Parametri'!AR$8,3,FALSE),"") -> - | J21: 19 | K21: 1 | L21: B | N21: OS_Windows | O21: =IF(L21="low","Bassa",IF(L21="avg","Media",IF(L21="high","Alta",errore))) ->  | P21: 5 | Q21: 1 | R21: EIF
D22: Help | E22: 1 | F22: =IF(AND(E22>0,E22<6),VLOOKUP(E22,'FP-Parametri'!AP$29:'FP-Parametri'!AQ$33,2,FALSE),"") -> ADD | G22: 2 | H22: =IF(AND(G22>0,G22<6),VLOOKUP(G22,'FP-Parametri'!AP$2:'FP-Parametri'!AQ$8,2,FALSE),"") -> EIF | I22: =IF(H22<>"",VLOOKUP(G22,'FP-Parametri'!AP$2:'FP-Parametri'!AR$8,3,FALSE),"") -> - | J22: 19 | K22: 2 | L22: B | M22: Help di campo; Help di Sistema | N22: OS_Windows | O22: =IF(L22="low","Bassa",IF(L22="avg","Media",IF(L22="high","Alta",errore))) ->  | P22: 5 | Q22: 1 | R22: EIF
D23: Dati Licenza Windows | E23: 1 | F23: =IF(AND(E23>0,E23<6),VLOOKUP(E23,'FP-Parametri'!AP$29:'FP-Parametri'!AQ$33,2,FALSE),"") -> ADD | G23: 2 | H23: =IF(AND(G23>0,G23<6),VLOOKUP(G23,'FP-Parametri'!AP$2:'FP-Parametri'!AQ$8,2,FALSE),"") -> EIF | I23: =IF(H23<>"",VLOOKUP(G23,'FP-Parametri'!AP$2:'FP-Parametri'!AR$8,3,FALSE),"") -> - | J23: 19 | K23: 1 | L23: =FPComplexity(H23,J23,K23) -> B | N23: OS_Windows | O23: =IF(L23="low","Bassa",IF(L23="avg","Media",IF(L23="high","Alta",errore))) ->  | P23: =FPSize(H23,L23) -> 5 | Q23: 1 | R23: =CONCATENATE(H23) -> EIF
C24: =CONCATENATE("Entità - Funzioni") -> Entità - Funzioni | N24: =CONCATENATE("Note") -> Note | P24: =CONCATENATE("Size") -> Size | Q24: =CONCATENATE("Count") -> Count | R24: =CONCATENATE("Tipo Funzione") -> Tipo Funzione
C25: UR.001 | D25: File | Nuovo | E25: 1 | F25: =IF(AND(E25>0,E25<6),VLOOKUP(E25,'FP-Parametri'!AP$29:'FP-Parametri'!AQ$33,2,FALSE),"") -> ADD | G25: 5 | H25: =IF(AND(G25>0,G25<6),VLOOKUP(G25,'FP-Parametri'!AP$2:'FP-Parametri'!AQ$8,2,FALSE),"") -> EQ | I25: =IF(H25<>"",VLOOKUP(G25,'FP-Parametri'!AP$2:'FP-Parametri'!AR$8,3,FALSE),"") -> O | J25: 3 | K25: 1 | L25: =FPComplexity(H25,J25,K25) -> B | M25: Template | O25: =IF(L25="low","Bassa",IF(L25="avg","Media",IF(L25="high","Alta",errore))) ->  | P25: =FPSize(H25,L25) -> 3 | Q25: =IF(P25<>0,1,0) -> 1 | R25: =CONCATENATE(H25) -> EQ
D26: File | Apri | E26: 1 | F26: =IF(AND(E26>0,E26<6),VLOOKUP(E26,'FP-Parametri'!AP$29:'FP-Parametri'!AQ$33,2,FALSE),"") -> ADD | G26: 4 | H26: =IF(AND(G26>0,G26<6),VLOOKUP(G26,'FP-Parametri'!AP$2:'FP-Parametri'!AQ$8,2,FALSE),"") -> EO | I26: =IF(H26<>"",VLOOKUP(G26,'FP-Parametri'!AP$2:'FP-Parametri'!AR$8,3,FALSE),"") -> - | J26: 7 | K26: 1 | L26: =FPComplexity(H26,J26,K26) -> B | M26: Testo | O26: =IF(L26="low","Bassa",IF(L26="avg","Media",IF(L26="high","Alta",errore))) ->  | P26: 4 | Q26: 1 | R26: EO
D27: File | Salva | E27: 1 | F27: =IF(AND(E27>0,E27<6),VLOOKUP(E27,'FP-Parametri'!AP$29:'FP-Parametri'!AQ$33,2,FALSE),"") -> ADD | G27: 3 | H27: =IF(AND(G27>0,G27<6),VLOOKUP(G27,'FP-Parametri'!AP$2:'FP-Parametri'!AQ$8,2,FALSE),"") -> EI | I27: =IF(H27<>"",VLOOKUP(G27,'FP-Parametri'!AP$2:'FP-Parametri'!AR$8,3,FALSE),"") -> - | J27: 6 | K27: 1 | L27: =FPComplexity(H27,J27,K27) -> B | M27: Testo | O27: =IF(L27="low","Bassa",IF(L27="avg","Media",IF(L27="high","Alta",errore))) ->  | P27: =FPSize(H27,L27) -> 3 | Q27: =IF(P27<>0,1,0) -> 1 | R27: =CONCATENATE(H27) -> EI
D28: File | Salva con nome | E28: 1 | F28: =IF(AND(E28>0,E28<6),VLOOKUP(E28,'FP-Parametri'!AP$29:'FP-Parametri'!AQ$33,2,FALSE),"") -> ADD | G28: 3 | H28: =IF(AND(G28>0,G28<6),VLOOKUP(G28,'FP-Parametri'!AP$2:'FP-Parametri'!AQ$8,2,FALSE),"") -> EI | I28: =IF(H28<>"",VLOOKUP(G28,'FP-Parametri'!AP$2:'FP-Parametri'!AR$8,3,FALSE),"") -> - | J28: 9 | K28: 1 | L28: B | M28: Testo | O28: =IF(L28="low","Bassa",IF(L28="avg","Media",IF(L28="high","Alta",errore))) ->  | P28: 3 | Q28: 1 | R28: EI
D29: File | Imposta Pagina | Anteprima | E29: 1 | F29: =IF(AND(E29>0,E29<6),VLOOKUP(E29,'FP-Parametri'!AP$29:'FP-Parametri'!AQ$33,2,FALSE),"") -> ADD | G29: 4 | H29: =IF(AND(G29>0,G29<6),VLOOKUP(G29,'FP-Parametri'!AP$2:'FP-Parametri'!AQ$8,2,FALSE),"") -> EO | I29: =IF(H29<>"",VLOOKUP(G29,'FP-Parametri'!AP$2:'FP-Parametri'!AR$8,3,FALSE),"") -> - | J29: 10 | K29: 1 | L29: B | M29: Stampante | O29: =IF(L29="low","Bassa",IF(L29="avg","Media",IF(L29="high","Alta",errore))) ->  | P29: 4 | Q29: 1 | R29: EO
D30: File | Imposta Pagina | Combo 'Dimensioni' | E30: 1 | F30: =IF(AND(E30>0,E30<6),VLOOKUP(E30,'FP-Parametri'!AP$29:'FP-Parametri'!AQ$33,2,FALSE),"") -> ADD | G30: 5 | H30: =IF(AND(G30>0,G30<6),VLOOKUP(G30,'FP-Parametri'!AP$2:'FP-Parametri'!AQ$8,2,FALSE),"") -> EQ | I30: =IF(H30<>"",VLOOKUP(G30,'FP-Parametri'!AP$2:'FP-Parametri'!AR$8,3,FALSE),"") -> O | J30: 3 | K30: 1 | L30: =FPComplexity(H30,J30,K30) -> B | M30: Stampante | O30: =IF(L30="low","Bassa",IF(L30="avg","Media",IF(L30="high","Alta",errore))) ->  | P30: =FPSize(H30,L30) -> 3 | Q30: =IF(P30<>0,1,0) -> 1 | R30: =CONCATENATE(H30) -> EQ
D31: File | Imposta Pagina | Combo 'Alimentazione' | E31: 1 | F31: =IF(AND(E31>0,E31<6),VLOOKUP(E31,'FP-Parametri'!AP$29:'FP-Parametri'!AQ$33,2,FALSE),"") -> ADD | G31: 5 | H31: =IF(AND(G31>0,G31<6),VLOOKUP(G31,'FP-Parametri'!AP$2:'FP-Parametri'!AQ$8,2,FALSE),"") -> EQ | I31: =IF(H31<>"",VLOOKUP(G31,'FP-Parametri'!AP$2:'FP-Parametri'!AR$8,3,FALSE),"") -> O | J31: 3 | K31: 1 | L31: =FPComplexity(H31,J31,K31) -> B | M31: Stampante | O31: =IF(L31="low","Bassa",IF(L31="avg","Media",IF(L31="high","Alta",errore))) ->  | P31: =FPSize(H31,L31) -> 3 | Q31: =IF(P31<>0,1,0) -> 1 | R31: =CONCATENATE(H31) -> EQ
D32: File | Imposta Pagina | E32: 1 | F32: =IF(AND(E32>0,E32<6),VLOOKUP(E32,'FP-Parametri'!AP$29:'FP-Parametri'!AQ$33,2,FALSE),"") -> ADD | G32: 3 | H32: =IF(AND(G32>0,G32<6),VLOOKUP(G32,'FP-Parametri'!AP$2:'FP-Parametri'!AQ$8,2,FALSE),"") -> EI | I32: =IF(H32<>"",VLOOKUP(G32,'FP-Parametri'!AP$2:'FP-Parametri'!AR$8,3,FALSE),"") -> - | J32: 12 | K32: 2 | L32: =FPComplexity(H32,J32,K32) -> M | M32: Stampante; Impostazioni | O32: =IF(L32="low","Bassa",IF(L32="avg","Media",IF(L32="high","Alta",errore))) ->  | P32: =FPSize(H32,L32) -> 4 | Q32: =IF(P32<>0,1,0) -> 1 | R32: =CONCATENATE(H32) -> EI
D33: File | Stampa | Seleziona Stampante | E33: 1 | F33: =IF(AND(E33>0,E33<6),VLOOKUP(E33,'FP-Parametri'!AP$29:'FP-Parametri'!AQ$33,2,FALSE),"") -> ADD | G33: 4 | H33: =IF(AND(G33>0,G33<6),VLOOKUP(G33,'FP-Parametri'!AP$2:'FP-Parametri'!AQ$8,2,FALSE),"") -> EO | I33: =IF(H33<>"",VLOOKUP(G33,'FP-Parametri'!AP$2:'FP-Parametri'!AR$8,3,FALSE),"") -> - | J33: 6 | K33: 1 | L33: B | M33: Stampante | O33: =IF(L33="low","Bassa",IF(L33="avg","Media",IF(L33="high","Alta",errore))) ->  | P33: 4 | Q33: 1 | R33: EO
D34: File | Stampa | Applica Stampante | E34: 1 | F34: =IF(AND(E34>0,E34<6),VLOOKUP(E34,'FP-Parametri'!AP$29:'FP-Parametri'!AQ$33,2,FALSE),"") -> ADD | G34: 3 | H34: =IF(AND(G34>0,G34<6),VLOOKUP(G34,'FP-Parametri'!AP$2:'FP-Parametri'!AQ$8,2,FALSE),"") -> EI | I34: =IF(H34<>"",VLOOKUP(G34,'FP-Parametri'!AP$2:'FP-Parametri'!AR$8,3,FALSE),"") -> - | J34: 8 | K34: 2 | L34: =FPComplexity(H34,J34,K34) -> M | M34: Stampante; Impostazioni | O34: =IF(L34="low","Bassa",IF(L34="avg","Media",IF(L34="high","Alta",errore))) ->  | P34: =FPSize(H34,L34) -> 4 | Q34: =IF(P34<>0,1,0) -> 1 | R34: =CONCATENATE(H34) -> EI
D35: File | Stampa | E35: 1 | F35: =IF(AND(E35>0,E35<6),VLOOKUP(E35,'FP-Parametri'!AP$29:'FP-Parametri'!AQ$33,2,FALSE),"") -> ADD | G35: 4 | H35: =IF(AND(G35>0,G35<6),VLOOKUP(G35,'FP-Parametri'!AP$2:'FP-Parametri'!AQ$8,2,FALSE),"") -> EO | I35: =IF(H35<>"",VLOOKUP(G35,'FP-Parametri'!AP$2:'FP-Parametri'!AR$8,3,FALSE),"") -> - | J35: 8 | K35: 2 | L35: =FPComplexity(H35,J35,K35) -> M | M35: Testo; Stampante | O35: =IF(L35="low","Bassa",IF(L35="avg","Media",IF(L35="high","Alta",errore))) ->  | P35: =FPSize(H35,L35) -> 5 | Q35: =IF(P35<>0,1,0) -> 1 | R35: =CONCATENATE(H35) -> EO
D36: File | Esci | F36: =IF(AND(E36>0,E36<6),VLOOKUP(E36,'FP-Parametri'!AP$29:'FP-Parametri'!AQ$33,2,FALSE),"") ->  | H36: =IF(AND(G36>0,G36<6),VLOOKUP(G36,'FP-Parametri'!AP$2:'FP-Parametri'!AQ$8,2,FALSE),"") ->  | I36: =IF(H36<>"",VLOOKUP(G36,'FP-Parametri'!AP$2:'FP-Parametri'!AR$8,3,FALSE),"") ->  | N36: Navigazionale; da contare negli Snap Points (NFR)§2.1 | O36: =IF(L36="low","Bassa",IF(L36="avg","Media",IF(L36="high","Alta",errore))) ->  | P36: 0 | Q36: 0
D37: Modifica | Annulla (Do/Undo) | E37: 1 | F37: =IF(AND(E37>0,E37<6),VLOOKUP(E37,'FP-Parametri'!AP$29:'FP-Parametri'!AQ$33,2,FALSE),"") -> ADD | G37: 3 | H37: =IF(AND(G37>0,G37<6),VLOOKUP(G37,'FP-Parametri'!AP$2:'FP-Parametri'!AQ$8,2,FALSE),"") -> EI | I37: =IF(H37<>"",VLOOKUP(G37,'FP-Parametri'!AP$2:'FP-Parametri'!AR$8,3,FALSE),"") -> - | J37: 3 | K37: 2 | L37: B | M37: Testo; Temp | O37: =IF(L37="low","Bassa",IF(L37="avg","Media",IF(L37="high","Alta",errore))) ->  | P37: 3 | Q37: 1 | R37: EI
D38: Modifica | Taglia | E38: 1 | F38: =IF(AND(E38>0,E38<6),VLOOKUP(E38,'FP-Parametri'!AP$29:'FP-Parametri'!AQ$33,2,FALSE),"") -> ADD | G38: 3 | H38: =IF(AND(G38>0,G38<6),VLOOKUP(G38,'FP-Parametri'!AP$2:'FP-Parametri'!AQ$8,2,FALSE),"") -> EI | I38: =IF(H38<>"",VLOOKUP(G38,'FP-Parametri'!AP$2:'FP-Parametri'!AR$8,3,FALSE),"") -> - | J38: 3 | K38: 2 | L38: B | M38: Testo; Temp | O38: =IF(L38="low","Bassa",IF(L38="avg","Media",IF(L38="high","Alta",errore))) ->  | P38: 3 | Q38: 1 | R38: EI
D39: Modifica | Copia | E39: 1 | F39: =IF(AND(E39>0,E39<6),VLOOKUP(E39,'FP-Parametri'!AP$29:'FP-Parametri'!AQ$33,2,FALSE),"") -> ADD | G39: 5 | H39: =IF(AND(G39>0,G39<6),VLOOKUP(G39,'FP-Parametri'!AP$2:'FP-Parametri'!AQ$8,2,FALSE),"") -> EQ | I39: =IF(H39<>"",VLOOKUP(G39,'FP-Parametri'!AP$2:'FP-Parametri'!AR$8,3,FALSE),"") -> O | J39: 3 | K39: 2 | L39: =FPComplexity(H39,J39,K39) -> B | M39: Testo; Temp | O39: =IF(L39="low","Bassa",IF(L39="avg","Media",IF(L39="high","Alta",errore))) ->  | P39: =FPSize(H39,L39) -> 3 | Q39: =IF(P39<>0,1,0) -> 1 | R39: =CONCATENATE(H39) -> EQ
D40: Modifica | Incolla | E40: 1 | F40: =IF(AND(E40>0,E40<6),VLOOKUP(E40,'FP-Parametri'!AP$29:'FP-Parametri'!AQ$33,2,FALSE),"") -> ADD | G40: 5 | H40: =IF(AND(G40>0,G40<6),VLOOKUP(G40,'FP-Parametri'!AP$2:'FP-Parametri'!AQ$8,2,FALSE),"") -> EQ | I40: =IF(H40<>"",VLOOKUP(G40,'FP-Parametri'!AP$2:'FP-Parametri'!AR$8,3,FALSE),"") -> O | J40: 3 | K40: 2 | L40: B | M40: Testo; Temp | O40: =IF(L40="low","Bassa",IF(L40="avg","Media",IF(L40="high","Alta",errore))) ->  | P40: 3 | Q40: 1 | R40: EQ
D41: Modifica | Elimina | E41: 1 | F41: =IF(AND(E41>0,E41<6),VLOOKUP(E41,'FP-Parametri'!AP$29:'FP-Parametri'!AQ$33,2,FALSE),"") -> ADD | G41: 3 | H41: =IF(AND(G41>0,G41<6),VLOOKUP(G41,'FP-Parametri'!AP$2:'FP-Parametri'!AQ$8,2,FALSE),"") -> EI | I41: =IF(H41<>"",VLOOKUP(G41,'FP-Parametri'!AP$2:'FP-Parametri'!AR$8,3,FALSE),"") -> - | J41: 3 | K41: 2 | L41: B | M41: Testo; Temp | O41: =IF(L41="low","Bassa",IF(L41="avg","Media",IF(L41="high","Alta",errore))) ->  | P41: 3 | Q41: 1 | R41: EI
D42: Modifica | Trova | E42: 1 | F42: =IF(AND(E42>0,E42<6),VLOOKUP(E42,'FP-Parametri'!AP$29:'FP-Parametri'!AQ$33,2,FALSE),"") -> ADD | G42: 4 | H42: =IF(AND(G42>0,G42<6),VLOOKUP(G42,'FP-Parametri'!AP$2:'FP-Parametri'!AQ$8,2,FALSE),"") -> EO | J42: 5 | K42: 1 | L42: B | M42: Testo | O42: =IF(L42="low","Bassa",IF(L42="avg","Media",IF(L42="high","Alta",errore))) ->  | P42: 4 | Q42: 1 | R42: EO
D43: Modifica | Trova Successivo | E43: 1 | F43: =IF(AND(E43>0,E43<6),VLOOKUP(E43,'FP-Parametri'!AP$29:'FP-Parametri'!AQ$33,2,FALSE),"") -> ADD | G43: 4 | H43: =IF(AND(G43>0,G43<6),VLOOKUP(G43,'FP-Parametri'!AP$2:'FP-Parametri'!AQ$8,2,FALSE),"") -> EO | J43: 6 | K43: 1 | L43: B | M43: Testo | O43: =IF(L43="low","Bassa",IF(L43="avg","Media",IF(L43="high","Alta",errore))) ->  | P43: 4 | Q43: 1 | R43: EO
D44: Modifica | Vai a... | F44: =IF(AND(E44>0,E44<6),VLOOKUP(E44,'FP-Parametri'!AP$29:'FP-Parametri'!AQ$33,2,FALSE),"") ->  | H44: =IF(AND(G44>0,G44<6),VLOOKUP(G44,'FP-Parametri'!AP$2:'FP-Parametri'!AQ$8,2,FALSE),"") ->  | N44: Navigazionale; da contare negli Snap Points (NFR) | O44: =IF(L44="low","Bassa",IF(L44="avg","Media",IF(L44="high","Alta",errore))) ->  | P44: 0 | Q44: 0
D45: Modifica | Sostituisci | E45: 1 | F45: =IF(AND(E45>0,E45<6),VLOOKUP(E45,'FP-Parametri'!AP$29:'FP-Parametri'!AQ$33,2,FALSE),"") -> ADD | G45: 4 | H45: =IF(AND(G45>0,G45<6),VLOOKUP(G45,'FP-Parametri'!AP$2:'FP-Parametri'!AQ$8,2,FALSE),"") -> EO | J45: 5 | K45: 1 | L45: B | M45: Testo | O45: =IF(L45="low","Bassa",IF(L45="avg","Media",IF(L45="high","Alta",errore))) ->  | P45: 4 | Q45: 1 | R45: EO
D46: Modifica | Sostituisci tutto | E46: 1 | F46: =IF(AND(E46>0,E46<6),VLOOKUP(E46,'FP-Parametri'!AP$29:'FP-Parametri'!AQ$33,2,FALSE),"") -> ADD | G46: 4 | H46: =IF(AND(G46>0,G46<6),VLOOKUP(G46,'FP-Parametri'!AP$2:'FP-Parametri'!AQ$8,2,FALSE),"") -> EO | J46: 6 | K46: 1 | L46: B | M46: Testo | O46: =IF(L46="low","Bassa",IF(L46="avg","Media",IF(L46="high","Alta",errore))) ->  | P46: 4 | Q46: 1 | R46: EO
D47: Modifica | Seleziona tutto | E47: 1 | F47: =IF(AND(E47>0,E47<6),VLOOKUP(E47,'FP-Parametri'!AP$29:'FP-Parametri'!AQ$33,2,FALSE),"") -> ADD | G47: 4 | H47: =IF(AND(G47>0,G47<6),VLOOKUP(G47,'FP-Parametri'!AP$2:'FP-Parametri'!AQ$8,2,FALSE),"") -> EO | J47: 3 | K47: 1 | L47: B | M47: Testo | O47: =IF(L47="low","Bassa",IF(L47="avg","Media",IF(L47="high","Alta",errore))) ->  | P47: 4 | Q47: 1 | R47: EO
D48: Modifica | Ora/Data | E48: 1 | F48: =IF(AND(E48>0,E48<6),VLOOKUP(E48,'FP-Parametri'!AP$29:'FP-Parametri'!AQ$33,2,FALSE),"") -> ADD | G48: 4 | H48: =IF(AND(G48>0,G48<6),VLOOKUP(G48,'FP-Parametri'!AP$2:'FP-Parametri'!AQ$8,2,FALSE),"") -> EO | J48: 5 | K48: 2 | L48: B | M48: Clock; Testo | O48: =IF(L48="low","Bassa",IF(L48="avg","Media",IF(L48="high","Alta",errore))) ->  | P48: 4 | Q48: 1 | R48: EO
D49: Formato | A capo automatico | E49: 1 | F49: =IF(AND(E49>0,E49<6),VLOOKUP(E49,'FP-Parametri'!AP$29:'FP-Parametri'!AQ$33,2,FALSE),"") -> ADD | G49: 3 | H49: =IF(AND(G49>0,G49<6),VLOOKUP(G49,'FP-Parametri'!AP$2:'FP-Parametri'!AQ$8,2,FALSE),"") -> EI | I49: =IF(H49<>"",VLOOKUP(G49,'FP-Parametri'!AP$2:'FP-Parametri'!AR$8,3,FALSE),"") -> - | J49: 2 | K49: 1 | L49: B | M49: Impostazioni | O49: =IF(L49="low","Bassa",IF(L49="avg","Media",IF(L49="high","Alta",errore))) ->  | P49: 3 | Q49: 1 | R49: EI
D50: Formato | Carattere | E50: 1 | F50: =IF(AND(E50>0,E50<6),VLOOKUP(E50,'FP-Parametri'!AP$29:'FP-Parametri'!AQ$33,2,FALSE),"") -> ADD | G50: 3 | H50: =IF(AND(G50>0,G50<6),VLOOKUP(G50,'FP-Parametri'!AP$2:'FP-Parametri'!AQ$8,2,FALSE),"") -> EI | I50: =IF(H50<>"",VLOOKUP(G50,'FP-Parametri'!AP$2:'FP-Parametri'!AR$8,3,FALSE),"") -> - | J50: 6 | K50: 2 | L50: M | M50: Font; Impostazioni | O50: =IF(L50="low","Bassa",IF(L50="avg","Media",IF(L50="high","Alta",errore))) ->  | P50: 4 | Q50: 1 | R50: EI
D51: Formato | Carattere | Combo 'Tipo carattere' | E51: 1 | F51: =IF(AND(E51>0,E51<6),VLOOKUP(E51,'FP-Parametri'!AP$29:'FP-Parametri'!AQ$33,2,FALSE),"") -> ADD | G51: 5 | H51: =IF(AND(G51>0,G51<6),VLOOKUP(G51,'FP-Parametri'!AP$2:'FP-Parametri'!AQ$8,2,FALSE),"") -> EQ | I51: =IF(H51<>"",VLOOKUP(G51,'FP-Parametri'!AP$2:'FP-Parametri'!AR$8,3,FALSE),"") -> O | J51: 2 | K51: 1 | L51: B | M51: Font | O51: =IF(L51="low","Bassa",IF(L51="avg","Media",IF(L51="high","Alta",errore))) ->  | P51: 3 | Q51: 1 | R51: EQ
D52: Formato | Carattere | Combo 'Stile' | E52: 1 | F52: =IF(AND(E52>0,E52<6),VLOOKUP(E52,'FP-Parametri'!AP$29:'FP-Parametri'!AQ$33,2,FALSE),"") -> ADD | G52: 5 | H52: =IF(AND(G52>0,G52<6),VLOOKUP(G52,'FP-Parametri'!AP$2:'FP-Parametri'!AQ$8,2,FALSE),"") -> EQ | I52: =IF(H52<>"",VLOOKUP(G52,'FP-Parametri'!AP$2:'FP-Parametri'!AR$8,3,FALSE),"") -> O | J52: 2 | K52: 1 | L52: =FPComplexity(H52,J52,K52) -> B | M52: Font | O52: =IF(L52="low","Bassa",IF(L52="avg","Media",IF(L52="high","Alta",errore))) ->  | P52: =FPSize(H52,L52) -> 3 | Q52: =IF(P52<>0,1,0) -> 1 | R52: =CONCATENATE(H52) -> EQ
D53: Formato | Carattere | Combo 'Dimensione' | E53: 1 | F53: =IF(AND(E53>0,E53<6),VLOOKUP(E53,'FP-Parametri'!AP$29:'FP-Parametri'!AQ$33,2,FALSE),"") -> ADD | G53: 5 | H53: =IF(AND(G53>0,G53<6),VLOOKUP(G53,'FP-Parametri'!AP$2:'FP-Parametri'!AQ$8,2,FALSE),"") -> EQ | I53: =IF(H53<>"",VLOOKUP(G53,'FP-Parametri'!AP$2:'FP-Parametri'!AR$8,3,FALSE),"") -> O | J53: 2 | K53: 1 | L53: =FPComplexity(H53,J53,K53) -> B | M53: Font | O53: =IF(L53="low","Bassa",IF(L53="avg","Media",IF(L53="high","Alta",errore))) ->  | P53: =FPSize(H53,L53) -> 3 | Q53: =IF(P53<>0,1,0) -> 1 | R53: =CONCATENATE(H53) -> EQ
D54: Formato | Carattere | Combo 'Scrittura' | E54: 1 | F54: =IF(AND(E54>0,E54<6),VLOOKUP(E54,'FP-Parametri'!AP$29:'FP-Parametri'!AQ$33,2,FALSE),"") -> ADD | G54: 5 | H54: =IF(AND(G54>0,G54<6),VLOOKUP(G54,'FP-Parametri'!AP$2:'FP-Parametri'!AQ$8,2,FALSE),"") -> EQ | I54: =IF(H54<>"",VLOOKUP(G54,'FP-Parametri'!AP$2:'FP-Parametri'!AR$8,3,FALSE),"") -> O | J54: 2 | K54: 1 | L54: =FPComplexity(H54,J54,K54) -> B | M54: Font | O54: =IF(L54="low","Bassa",IF(L54="avg","Media",IF(L54="high","Alta",errore))) ->  | P54: =FPSize(H54,L54) -> 3 | Q54: =IF(P54<>0,1,0) -> 1 | R54: =CONCATENATE(H54) -> EQ
D55: Formato | Carattere | Esempio (preview) | E55: 1 | F55: =IF(AND(E55>0,E55<6),VLOOKUP(E55,'FP-Parametri'!AP$29:'FP-Parametri'!AQ$33,2,FALSE),"") -> ADD | G55: 4 | H55: =IF(AND(G55>0,G55<6),VLOOKUP(G55,'FP-Parametri'!AP$2:'FP-Parametri'!AQ$8,2,FALSE),"") -> EO | I55: =IF(H55<>"",VLOOKUP(G55,'FP-Parametri'!AP$2:'FP-Parametri'!AR$8,3,FALSE),"") -> - | J55: 5 | K55: 1 | L55: =FPComplexity(H55,J55,K55) -> B | M55: Font | O55: =IF(L55="low","Bassa",IF(L55="avg","Media",IF(L55="high","Alta",errore))) ->  | P55: =FPSize(H55,L55) -> 4 | Q55: =IF(P55<>0,1,0) -> 1 | R55: =CONCATENATE(H55) -> EO
D56: Formato | Carattere | Mostra altri tipi di carattere | F56: =IF(AND(E56>0,E56<6),VLOOKUP(E56,'FP-Parametri'!AP$29:'FP-Parametri'!AQ$33,2,FALSE),"") ->  | H56: =IF(AND(G56>0,G56<6),VLOOKUP(G56,'FP-Parametri'!AP$2:'FP-Parametri'!AQ$8,2,FALSE),"") ->  | I56: =IF(H56<>"",VLOOKUP(G56,'FP-Parametri'!AP$2:'FP-Parametri'!AR$8,3,FALSE),"") ->  | L56: =FPComplexity(H56,J56,K56) ->  | N56: Navigazionale; da contare negli Snap Points (NFR) §2.1 | O56: =IF(L56="low","Bassa",IF(L56="avg","Media",IF(L56="high","Alta",errore))) ->  | P56: =FPSize(H56,L56) -> 0 | Q56: =IF(P56<>0,1,0) -> 0 | R56: =CONCATENATE(H56) -> 
D57: ? | Guida | E57: 1 | F57: =IF(AND(E57>0,E57<6),VLOOKUP(E57,'FP-Parametri'!AP$29:'FP-Parametri'!AQ$33,2,FALSE),"") -> ADD | G57: 5 | H57: =IF(AND(G57>0,G57<6),VLOOKUP(G57,'FP-Parametri'!AP$2:'FP-Parametri'!AQ$8,2,FALSE),"") -> EQ | I57: =IF(H57<>"",VLOOKUP(G57,'FP-Parametri'!AP$2:'FP-Parametri'!AR$8,3,FALSE),"") -> O | J57: 5 | K57: 1 | L57: =FPComplexity(H57,J57,K57) -> B | M57: Help | O57: =IF(L57="low","Bassa",IF(L57="avg","Media",IF(L57="high","Alta",errore))) ->  | P57: =FPSize(H57,L57) -> 3 | Q57: =IF(P57<>0,1,0) -> 1 | R57: =CONCATENATE(H57) -> EQ
D58: ? | Informazioni su Blocco Note | E58: 1 | F58: =IF(AND(E58>0,E58<6),VLOOKUP(E58,'FP-Parametri'!AP$29:'FP-Parametri'!AQ$33,2,FALSE),"") -> ADD | G58: 5 | H58: =IF(AND(G58>0,G58<6),VLOOKUP(G58,'FP-Parametri'!AP$2:'FP-Parametri'!AQ$8,2,FALSE),"") -> EQ | I58: =IF(H58<>"",VLOOKUP(G58,'FP-Parametri'!AP$2:'FP-Parametri'!AR$8,3,FALSE),"") -> O | J58: 7 | K58: 1 | L58: B | M58: Dati Licenza Windows | O58: =IF(L58="low","Bassa",IF(L58="avg","Media",IF(L58="high","Alta",errore))) ->  | P58: 3 | Q58: 1 | R58: EQ

Sheet FP-TOT
Q2: Tipologia attività: Application Development
B4: Emesso da: | F4: Direzione Sistemi Informativi Unità Sviluppo Applicazioni | Q4: Tipo documento: Conteggio IFPUG Function Point | V4: Versione documento: <x.y> | Z4: Data di emissione: <gg/mm/aaaa>
B7: =CONCATENATE("Intervento: ",Sintesi!P22) -> Intervento: <Riportare una breve descrizione dell'intervento> | C7: =CONCATENATE("Intervento: ",#REF!) ->  | D7: =CONCATENATE("Intervento: ",#REF!) ->  | E7: =CONCATENATE("Intervento: ",#REF!) ->  | F7: =CONCATENATE("Intervento: ",#REF!) ->  | G7: =CONCATENATE("Intervento: ",#REF!) ->  | H7: =CONCATENATE("Intervento: ",#REF!) ->  | I7: =CONCATENATE("Intervento: ",#REF!) ->  | J7: =CONCATENATE("Intervento: ",#REF!) ->  | K7: =CONCATENATE("Intervento: ",#REF!) ->  | L7: =CONCATENATE("Intervento: ",#REF!) ->  | M7: =CONCATENATE("Intervento: ",#REF!) ->  | N7: =CONCATENATE("Intervento: ",#REF!) ->  | Q7: Responsabile del Conteggio | V7: =Sintesi!$C$26 -> <<Nome del responsabile del conteggio>> | W7: =Sintesi!$C$26 -> <<Nome del responsabile del conteggio>> | X7: =Sintesi!$C$26 -> <<Nome del responsabile del conteggio>> | Y7: =Sintesi!$C$26 -> <<Nome del responsabile del conteggio>> | Z7: =Sintesi!$C$26 -> <<Nome del responsabile del conteggio>> | AA7: =Sintesi!$C$26 -> <<Nome del responsabile del conteggio>> | AB7: =Sintesi!$C$26 -> <<Nome del responsabile del conteggio>>
Q8: Tipo di Conteggio | V8: =Sintesi!$M$35 -> AFP - Misurazione Applicazione Esistente | W8: =Sintesi!$M$35 -> AFP - Misurazione Applicazione Esistente | X8: =Sintesi!$M$35 -> AFP - Misurazione Applicazione Esistente | Y8: =Sintesi!$M$35 -> AFP - Misurazione Applicazione Esistente | Z8: =Sintesi!$M$35 -> AFP - Misurazione Applicazione Esistente | AA8: =Sintesi!$M$35 -> AFP - Misurazione Applicazione Esistente | AB8: =Sintesi!$M$35 -> AFP - Misurazione Applicazione Esistente
Q9: Fase di Conteggio | V9: =Sintesi!$BF$35 -> Sviluppo Completato | W9: =Sintesi!$BF$35 -> Sviluppo Completato | X9: =Sintesi!$BF$35 -> Sviluppo Completato | Y9: =Sintesi!$BF$35 -> Sviluppo Completato | Z9: =Sintesi!$BF$35 -> Sviluppo Completato | AA9: =Sintesi!$BF$35 -> Sviluppo Completato | AB9: =Sintesi!$BF$35 -> Sviluppo Completato
B12: ADD - S v i l u p p o N u o v e F u n z i o n i | P12: CFP - C o n v e r s i o n e d e i D a t i
G13: Complessità | U13: Complessità
B14: Function Types | G14: Low | I14: Avg | K14: High | M14: Function | P14: Function Types | U14: Low | W14: Avg | Y14: High | AA14: Function
G15: quantità | H15: peso | I15: quantità | J15: peso | K15: quantità | L15: peso | M15: Point | U15: quantità | V15: peso | W15: quantità | X15: peso | Y15: quantità | Z15: peso | AA15: Point
B16: External Input | G16: ='FP-Parametri'!M3 -> 6 | H16: 3 | I16: ='FP-Parametri'!M4 -> 3 | J16: 4 | K16: ='FP-Parametri'!M5 -> 0 | L16: 6 | M16: =G16*H16+I16*J16+K16*L16 -> 30 | P16: External Input | U16: ='FP-Parametri'!R3 -> 0 | V16: 3 | W16: ='FP-Parametri'!R4 -> 0 | X16: 4 | Y16: ='FP-Parametri'!R5 -> 0 | Z16: 6 | AA16: =U16*V16+W16*X16+Y16*Z16 -> 0
B17: External Output | G17: ='FP-Parametri'!N3 -> 10 | H17: 4 | I17: ='FP-Parametri'!N4 -> 1 | J17: 5 | K17: ='FP-Parametri'!N5 -> 0 | L17: 7 | M17: =G17*H17+I17*J17+K17*L17 -> 45 | P17: External Output | U17: ='FP-Parametri'!S3 -> 0 | V17: 4 | W17: ='FP-Parametri'!S4 -> 0 | X17: 5 | Y17: ='FP-Parametri'!S5 -> 0 | Z17: 7 | AA17: =U17*V17+W17*X17+Y17*Z17 -> 0
B18: External Inquiry | G18: ='FP-Parametri'!O3 -> 11 | H18: 3 | I18: ='FP-Parametri'!O4 -> 0 | J18: 4 | K18: ='FP-Parametri'!O5 -> 0 | L18: 6 | M18: =G18*H18+I18*J18+K18*L18 -> 33 | P18: External Inquiry | U18: ='FP-Parametri'!T3 -> 0 | V18: 3 | W18: ='FP-Parametri'!T4 -> 0 | X18: 4 | Y18: ='FP-Parametri'!T5 -> 0 | Z18: 6 | AA18: =U18*V18+W18*X18+Y18*Z18 -> 0
B19: Internal Logical File | G19: ='FP-Parametri'!K3 -> 4 | H19: 7 | I19: ='FP-Parametri'!K4 -> 0 | J19: 10 | K19: ='FP-Parametri'!K5 -> 0 | L19: 15 | M19: =G19*H19+I19*J19+K19*L19 -> 28 | P19: Internal Logical File | U19: ='FP-Parametri'!P3 -> 0 | V19: 7 | W19: ='FP-Parametri'!P4 -> 0 | X19: 10 | Y19: ='FP-Parametri'!P5 -> 0 | Z19: 15 | AA19: =U19*V19+W19*X19+Y19*Z19 -> 0
B20: External Interface File | G20: ='FP-Parametri'!L3 -> 5 | H20: 5 | I20: ='FP-Parametri'!L4 -> 0 | J20: 7 | K20: ='FP-Parametri'!L5 -> 0 | L20: 10 | M20: =G20*H20+I20*J20+K20*L20 -> 25 | P20: External Interface File | U20: ='FP-Parametri'!Q3 -> 0 | V20: 5 | W20: ='FP-Parametri'!Q4 -> 0 | X20: 7 | Y20: ='FP-Parametri'!Q5 -> 0 | Z20: 10 | AA20: =U20*V20+W20*X20+Y20*Z20 -> 0
L21: Totale Function Point (FP) | M21: =SUM(M16:M20) -> 161 | N21: ADD | Z21: Totale Function Point (FP) | AA21: =SUM(AA16:AA20) -> 0 | AB21: CFP
B23: CHGA - F u n z i o n i M o d i f i c a t e (After) | P23: CHGB - F u n z i o n i M o d i f i c a t e (Before)
G24: Complessità | U24: Complessità
B25: Function Types | G25: Low | I25: Avg | K25: High | M25: Function | P25: Function Types | U25: Low | W25: Avg | Y25: High | AA25: Function
G26: quantità | H26: peso | I26: quantità | J26: peso | K26: quantità | L26: peso | M26: Point | U26: quantità | V26: peso | W26: quantità | X26: peso | Y26: quantità | Z26: peso | AA26: Point
B27: External Input | G27: ='FP-Parametri'!W3 -> 0 | H27: 3 | I27: ='FP-Parametri'!W4 -> 0 | J27: 4 | K27: ='FP-Parametri'!W5 -> 0 | L27: 6 | M27: =G27*H27+I27*J27+K27*L27 -> 0 | P27: External Input | U27: ='FP-Parametri'!AB3 -> 0 | V27: 3 | W27: ='FP-Parametri'!AB4 -> 0 | X27: 4 | Y27: ='FP-Parametri'!AB5 -> 0 | Z27: 6 | AA27: =U27*V27+W27*X27+Y27*Z27 -> 0
B28: External Output | G28: ='FP-Parametri'!X3 -> 0 | H28: 4 | I28: ='FP-Parametri'!X4 -> 0 | J28: 5 | K28: ='FP-Parametri'!X5 -> 0 | L28: 7 | M28: =G28*H28+I28*J28+K28*L28 -> 0 | P28: External Output | U28: ='FP-Parametri'!AC3 -> 0 | V28: 4 | W28: ='FP-Parametri'!AC4 -> 0 | X28: 5 | Y28: ='FP-Parametri'!AC5 -> 0 | Z28: 7 | AA28: =U28*V28+W28*X28+Y28*Z28 -> 0
B29: External Inquiry | G29: ='FP-Parametri'!Y3 -> 0 | H29: 3 | I29: ='FP-Parametri'!Y4 -> 0 | J29: 4 | K29: ='FP-Parametri'!Y5 -> 0 | L29: 6 | M29: =G29*H29+I29*J29+K29*L29 -> 0 | P29: External Inquiry | U29: ='FP-Parametri'!AD3 -> 0 | V29: 3 | W29: ='FP-Parametri'!AD4 -> 0 | X29: 4 | Y29: ='FP-Parametri'!AD5 -> 0 | Z29: 6 | AA29: =U29*V29+W29*X29+Y29*Z29 -> 0
B30: Internal Logical File | G30: ='FP-Parametri'!U3 -> 0 | H30: 7 | I30: ='FP-Parametri'!U4 -> 0 | J30: 10 | K30: ='FP-Parametri'!U5 -> 0 | L30: 15 | M30: =G30*H30+I30*J30+K30*L30 -> 0 | P30: Internal Logical File | U30: ='FP-Parametri'!Z3 -> 0 | V30: 7 | W30: ='FP-Parametri'!Z4 -> 0 | X30: 10 | Y30: ='FP-Parametri'!Z5 -> 0 | Z30: 15 | AA30: =U30*V30+W30*X30+Y30*Z30 -> 0
B31: External Interface File | G31: ='FP-Parametri'!V3 -> 0 | H31: 5 | I31: ='FP-Parametri'!V4 -> 0 | J31: 7 | K31: ='FP-Parametri'!V5 -> 0 | L31: 10 | M31: =G31*H31+I31*J31+K31*L31 -> 0 | P31: External Interface File | U31: ='FP-Parametri'!AA3 -> 0 | V31: 5 | W31: ='FP-Parametri'!AA4 -> 0 | X31: 7 | Y31: ='FP-Parametri'!AA5 -> 0 | Z31: 10 | AA31: =U31*V31+W31*X31+Y31*Z31 -> 0
L32: Totale Function Point (FP) | M32: =SUM(M27:M31) -> 0 | N32: CHGA | Z32: Totale Function Point (FP) | AA32: =SUM(AA27:AA31) -> 0 | AB32: CHGB
B34: DEL - F u n z i o n i E l i m i n a t e | P34: FP - prima della Manutenzione Evolutiva
G35: Complessità | U35: Complessità
B36: Function Types | G36: Low | I36: Avg | K36: High | M36: Function | P36: Function Types | U36: Low | W36: Avg | Y36: High | AA36: Function
G37: quantità | H37: peso | I37: quantità | J37: peso | K37: quantità | L37: peso | M37: Point | U37: quantità | V37: peso | W37: quantità | X37: peso | Y37: quantità | Z37: peso | AA37: Point
B38: External Input | G38: ='FP-Parametri'!AG3 -> 0 | H38: 3 | I38: ='FP-Parametri'!AG4 -> 0 | J38: 4 | K38: ='FP-Parametri'!AG5 -> 0 | L38: 6 | M38: =G38*H38+I38*J38+K38*L38 -> 0 | P38: External Input | U38: 0 | V38: 3 | W38: 0 | X38: 4 | Y38: 0 | Z38: 6 | AA38: =U38*V38+W38*X38+Y38*Z38 -> 0
B39: External Output | G39: ='FP-Parametri'!AH3 -> 0 | H39: 4 | I39: ='FP-Parametri'!AH4 -> 0 | J39: 5 | K39: ='FP-Parametri'!AH5 -> 0 | L39: 7 | M39: =G39*H39+I39*J39+K39*L39 -> 0 | P39: External Output | U39: 0 | V39: 4 | W39: 0 | X39: 5 | Y39: 0 | Z39: 7 | AA39: =U39*V39+W39*X39+Y39*Z39 -> 0
B40: External Inquiry | G40: ='FP-Parametri'!AI3 -> 0 | H40: 3 | I40: ='FP-Parametri'!AI4 -> 0 | J40: 4 | K40: ='FP-Parametri'!AI5 -> 0 | L40: 6 | M40: =G40*H40+I40*J40+K40*L40 -> 0 | P40: External Inquiry | U40: 0 | V40: 3 | W40: 0 | X40: 4 | Y40: 0 | Z40: 6 | AA40: =U40*V40+W40*X40+Y40*Z40 -> 0
B41: Internal Logical File | G41: ='FP-Parametri'!AE3 -> 0 | H41: 7 | I41: ='FP-Parametri'!AE4 -> 0 | J41: 10 | K41: ='FP-Parametri'!AE5 -> 0 | L41: 15 | M41: =G41*H41+I41*J41+K41*L41 -> 0 | P41: Internal Logical File | U41: 0 | V41: 7 | W41: 0 | X41: 10 | Y41: 0 | Z41: 15 | AA41: =U41*V41+W41*X41+Y41*Z41 -> 0
B42: External Interface File | G42: ='FP-Parametri'!AF3 -> 0 | H42: 5 | I42: ='FP-Parametri'!AF4 -> 0 | J42: 7 | K42: ='FP-Parametri'!AF5 -> 0 | L42: 10 | M42: =G42*H42+I42*J42+K42*L42 -> 0 | P42: External Interface File | U42: 0 | V42: 5 | W42: 0 | X42: 7 | Y42: 0 | Z42: 10 | AA42: =U42*V42+W42*X42+Y42*Z42 -> 0
L43: Totale Function Point (FP) | M43: =SUM(M38:M42) -> 0 | N43: DEL | Z43: Totale Function Point (FP) | AA43: =SUM(AA38:AA42) -> 0 | AB43: FP
B66: FP | Q66: Riepilogo
G67: Complessità | Q67: tipo | R67: quantità
B68: Function Types | G68: Bassa | I68: Media | K68: Alta | M68: Function | Q68: FPs | R68: FPs | S68: descrizione
G69: quantità | H69: peso | I69: quantità | J69: peso | K69: quantità | L69: peso | M69: Point | N69: % | Q69: ADD | R69: =$M$21 -> 161 | S69: FP nuovi/aggiunti all'applicazione
B70: External Input | G70: =('FP-Parametri'!$M3 + 'FP-Parametri'!$W3 + 'FP-Parametri'!$AG3+'FP-Parametri'!$R3) -> 6 | H70: 3 | I70: =('FP-Parametri'!$M4 + 'FP-Parametri'!$W4 + 'FP-Parametri'!$AG4+'FP-Parametri'!$R4) -> 3 | J70: 4 | K70: =('FP-Parametri'!$M5 + 'FP-Parametri'!$W5 + 'FP-Parametri'!$AG5+'FP-Parametri'!$R5) -> 0 | L70: 6 | M70: =G70*H70+I70*J70+K70*L70 -> 30 | N70: =+M70/$M$75 -> 0.1863354037 | Q70: CFP | R70: =$AA$21 -> 0 | S70: FP per la conversione/migrazione dei dati
B71: External Output | G71: =('FP-Parametri'!$N3 + 'FP-Parametri'!$X3 + 'FP-Parametri'!$AH3+'FP-Parametri'!$S3) -> 10 | H71: 4 | I71: =('FP-Parametri'!$N4 + 'FP-Parametri'!$X4 + 'FP-Parametri'!$AH4+'FP-Parametri'!$S4) -> 1 | J71: 5 | K71: =('FP-Parametri'!$N5 + 'FP-Parametri'!$X5 + 'FP-Parametri'!$AH5+'FP-Parametri'!$S5) -> 0 | L71: 7 | M71: =G71*H71+I71*J71+K71*L71 -> 45 | N71: =+M71/$M$75 -> 0.2795031056 | Q71: CHGA | R71: =$M$32 -> 0 | S71: FP delle funzioni modificate (come richiesto dalla manutenzione evolutiva)
B72: External Inquiry | G72: =('FP-Parametri'!$O3 + 'FP-Parametri'!$Y3 + 'FP-Parametri'!$AI3+'FP-Parametri'!$T3) -> 11 | H72: 3 | I72: =('FP-Parametri'!$O4 + 'FP-Parametri'!$Y4 + 'FP-Parametri'!$AI4+'FP-Parametri'!$T4) -> 0 | J72: 4 | K72: =('FP-Parametri'!$O5 + 'FP-Parametri'!$Y5 + 'FP-Parametri'!$AI5+'FP-Parametri'!$T5) -> 0 | L72: 6 | M72: =G72*H72+I72*J72+K72*L72 -> 33 | N72: 0.2049689441 | Q72: CHGB | R72: =$AA$32 -> 0 | S72: FP delle funzioni modificate (prima della richiesta di manutenzione evolutiva)
B73: Internal Logical File | G73: =('FP-Parametri'!$K3 + 'FP-Parametri'!$U3 + 'FP-Parametri'!$AE3+'FP-Parametri'!$P3) -> 4 | H73: 7 | I73: =('FP-Parametri'!$K4 + 'FP-Parametri'!$U4 + 'FP-Parametri'!$AE4+'FP-Parametri'!$P4) -> 0 | J73: 10 | K73: =('FP-Parametri'!$K5 + 'FP-Parametri'!$U5 + 'FP-Parametri'!$AE5+'FP-Parametri'!$P5) -> 0 | L73: 15 | M73: =G73*H73+I73*J73+K73*L73 -> 28 | N73: 0.1739130435 | Q73: DEL | R73: =$M$43 -> 0 | S73: FP delle funzioni eliminate
B74: External Interface File | G74: =('FP-Parametri'!$L3 + 'FP-Parametri'!$V3 + 'FP-Parametri'!$AF3+'FP-Parametri'!$Q3) -> 5 | H74: 5 | I74: =('FP-Parametri'!$L4 + 'FP-Parametri'!$V4 + 'FP-Parametri'!$AF4+'FP-Parametri'!$Q4) -> 0 | J74: 7 | K74: =('FP-Parametri'!$L5 + 'FP-Parametri'!$V5 + 'FP-Parametri'!$AF5+'FP-Parametri'!$Q5) -> 0 | L74: 10 | M74: =G74*H74+I74*J74+K74*L74 -> 25 | N74: 0.1552795031 | Q74: FP | R74: =$AA$43 -> 0 | S74: FP dell'applicazione, prima della richiesta di manutenzione evolutiva
L75: Totale Function Point (FP) | M75: =SUM(M70:M74) -> 161
M77: Formula applicata per il tipo di conteggio
C78: FUR (FP) | K78: =IF(Sintesi!C35=1,(($R$69+$R$70)),IF(Sintesi!C35=2,((($R$69+$R$70+$R$71))+($R$73)),IF(AND(Sintesi!C35=3,$R$74=0,$R$72=0,$R$70=0,$R$73=0,$R$71=0),($R$69), IF(AND(Sintesi!C35=3,$R$74>0,$R$70=0,($R$73+$R$71+$R$69+$R$72)>0),((($R$74+$R$69+$R$71)-($R$72+$R$73))),"c'è un errore, leggiti il foglio 'Attenzione'")))) -> 161 | M78: =IF(Sintesi!C35=1,"DFP=ADD+CFP",IF(Sintesi!C35=2,"EFP=ADD+CHGA+CFP+DEL",IF(AND(Sintesi!C35=3,$R$74=0,$R$72=0,$R$70=0,$R$73=0,$R$71=0),"AFP=ADD", IF(AND(Sintesi!C35=3,$R$74>0,$R$70=0,($R$73+$R$71+$R$69+$R$72)>0),"AFP=UFPB+ADD+CHGA-(CHGB+DEL)","c'è un errore; leggiti il foglio 'Attenzione'")))) -> AFP=ADD
C79: NFR (gg/u) | K79: =SUM(Requisiti!H13:H45) -> 40

Sheet Statistiche
I2: Tipologia attività: Application Development
B4: Emesso da: | E4: Direzione Sistemi Informativi Unità Sviluppo Applicazioni | I4: Tipo documento: Conteggio IFPUG Function Point | K4: Versione documento: <x.y> | M4: Data di emissione: <gg/mm/aaaa>
B7: =CONCATENATE("Intervento: ",Sintesi!P22) -> Intervento: <Riportare una breve descrizione dell'intervento> | H7: Responsabile del Conteggio | K7: =Sintesi!$C$26 -> <<Nome del responsabile del conteggio>> | L7: =Sintesi!$C$26 -> <<Nome del responsabile del conteggio>>
H8: Tipo di Conteggio | K8: =Sintesi!$M$35 -> AFP - Misurazione Applicazione Esistente | L8: =Sintesi!$M$35 -> AFP - Misurazione Applicazione Esistente
H9: Fase di Conteggio | K9: =Sintesi!$BF$35 -> Sviluppo Completato | L9: =Sintesi!$BF$35 -> Sviluppo Completato
B11: Function Type | C11: Count | D11: Size | E11: Average Size | F11: Industry Profile Average Size | G11: Percentage Contribution to Size | H11: New Development Contribution to Size | I11: Enhancement Contribution to Size | J11: Relationship of Count to Total Size | K11: Relationship of Files to Total Size | L11: Ratio of Inputs to ILFs | M11: Ratio of Outputs to ILFs
B12: ILF | C12: =SUMIF('FP-DET'!R:R,"=ILF",'FP-DET'!Q:Q) -> 4 | D12: =SUMIF('FP-DET'!R:R,"=ILF",'FP-DET'!P:P) -> 28 | E12: =IF(C12>0,D12/C12,0) -> 7 | F12: 7.7 | G12: =D12/$D17 -> 0.1739130435 | H12: 0.221 | I12: 0.156 | J12: =C12/D17 -> 0.0248447205 | K12: =C12/D17 -> 0.0248447205
B13: EIF | C13: =SUMIF('FP-DET'!R:R,"=EIF",'FP-DET'!Q:Q) -> 5 | D13: =SUMIF('FP-DET'!R:R,"=EIF",'FP-DET'!P:P) -> 25 | E13: =IF(C13>0,D13/C13,0) -> 5 | F13: 5.7 | G13: =D13/$D17 -> 0.1552795031 | H13: 0.05 | I13: 0.065 | J13: =C13/D17 -> 0.03105590062
B14: EI | C14: =SUMIF('FP-DET'!R:R,"=EI",'FP-DET'!Q:Q) -> 9 | D14: =SUMIF('FP-DET'!R:R,"=EI",'FP-DET'!P:P) -> 30 | E14: =IF(C14>0,D14/C14,0) -> 3.333333333 | F14: 3.9 | G14: =D14/$D17 -> 0.1863354037 | H14: 0.335 | I14: 0.327 | J14: =C14/D17 -> 0.05590062112 | L14: =IF(C12>0,C14/C12,0) -> 2.25
B15: EO | C15: =SUMIF('FP-DET'!R:R,"=EO",'FP-DET'!Q:Q) -> 11 | D15: =SUMIF('FP-DET'!R:R,"=EO",'FP-DET'!P:P) -> 45 | E15: =IF(C15>0,D15/C15,0) -> 4.090909091 | F15: 5.3 | G15: =D15/$D17 -> 0.2795031056 | H15: 0.235 | I15: 0.32 | J15: =C15/D17 -> 0.06832298137 | M15: =IF(C12>0,(C15+C16)/C12,0) -> 5.5
B16: EQ | C16: =SUMIF('FP-DET'!R:R,"=EQ",'FP-DET'!Q:Q) -> 11 | D16: =SUMIF('FP-DET'!R:R,"=EQ",'FP-DET'!P:P) -> 33 | E16: =IF(C16>0,D16/C16,0) -> 3 | F16: 3.8 | G16: =D16/$D17 -> 0.2049689441 | H16: 0.16 | I16: 0.132 | J16: =C16/D17 -> 0.06832298137
B17: Total | C17: =SUM(C12:C16) -> 40 | D17: =SUM(D12:D16) -> 161
B18: Check Value | J18: 30.8 | K18: 22.1 | L18: 2.7 | M18: 2.4
B21: FP
G22: Complessità
B23: Function Types | G23: Bassa | I23: Media | K23: Alta | M23: Function
G24: quantità | H24: peso | I24: quantità | J24: peso | K24: quantità | L24: peso | M24: Point
B25: External Input | G25: =('FP-Parametri'!$M3 + 'FP-Parametri'!$W3 + 'FP-Parametri'!$AG3+'FP-Parametri'!$R3) -> 6 | H25: 3 | I25: =('FP-Parametri'!$M4 + 'FP-Parametri'!$W4 + 'FP-Parametri'!$AG4+'FP-Parametri'!$R4) -> 3 | J25: 4 | K25: =('FP-Parametri'!$M5 + 'FP-Parametri'!$W5 + 'FP-Parametri'!$AG5+'FP-Parametri'!$R5) -> 0 | L25: 6 | M25: =G25*H25+I25*J25+K25*L25 -> 30
B26: External Output | G26: =('FP-Parametri'!$N3 + 'FP-Parametri'!$X3 + 'FP-Parametri'!$AH3+'FP-Parametri'!$S3) -> 10 | H26: 4 | I26: =('FP-Parametri'!$N4 + 'FP-Parametri'!$X4 + 'FP-Parametri'!$AH4+'FP-Parametri'!$S4) -> 1 | J26: 5 | K26: =('FP-Parametri'!$N5 + 'FP-Parametri'!$X5 + 'FP-Parametri'!$AH5+'FP-Parametri'!$S5) -> 0 | L26: 7 | M26: =G26*H26+I26*J26+K26*L26 -> 45
B27: External Inquiry | G27: =('FP-Parametri'!$O3 + 'FP-Parametri'!$Y3 + 'FP-Parametri'!$AI3+'FP-Parametri'!$T3) -> 11 | H27: 3 | I27: =('FP-Parametri'!$O4 + 'FP-Parametri'!$Y4 + 'FP-Parametri'!$AI4+'FP-Parametri'!$T4) -> 0 | J27: 4 | K27: =('FP-Parametri'!$O5 + 'FP-Parametri'!$Y5 + 'FP-Parametri'!$AI5+'FP-Parametri'!$T5) -> 0 | L27: 6 | M27: =G27*H27+I27*J27+K27*L27 -> 33
B28: Internal Logical File | G28: =('FP-Parametri'!$K3 + 'FP-Parametri'!$U3 + 'FP-Parametri'!$AE3+'FP-Parametri'!$P3) -> 4 | H28: 7 | I28: =('FP-Parametri'!$K4 + 'FP-Parametri'!$U4 + 'FP-Parametri'!$AE4+'FP-Parametri'!$P4) -> 0 | J28: 10 | K28: =('FP-Parametri'!$K5 + 'FP-Parametri'!$U5 + 'FP-Parametri'!$AE5+'FP-Parametri'!$P5) -> 0 | L28: 15 | M28: =G28*H28+I28*J28+K28*L28 -> 28
B29: External Interface File | G29: =('FP-Parametri'!$L3 + 'FP-Parametri'!$V3 + 'FP-Parametri'!$AF3+'FP-Parametri'!$Q3) -> 5 | H29: 5 | I29: =('FP-Parametri'!$L4 + 'FP-Parametri'!$V4 + 'FP-Parametri'!$AF4+'FP-Parametri'!$Q4) -> 0 | J29: 7 | K29: =('FP-Parametri'!$L5 + 'FP-Parametri'!$V5 + 'FP-Parametri'!$AF5+'FP-Parametri'!$Q5) -> 0 | L29: 10 | M29: =G29*H29+I29*J29+K29*L29 -> 25
L30: Totale Function Point (FP) | M30: =SUM(M25:M29) -> 161

Sheet Stima
J2: Tipologia attività: Application Development
B4: Emesso da: | D4: Direzione Sistemi Informativi Unità Sviluppo Applicazioni | J4: Tipo documento: Conteggio IFPUG Function Point | N4: Versione documento: <x.y> | Q4: Data di emissione: <gg/mm/aaaa>
B7: =CONCATENATE("Intervento: ",Sintesi!P22) -> Intervento: <Riportare una breve descrizione dell'intervento> | H7: Responsabile del Conteggio | K7: =Sintesi!$C$26 -> <<Nome del responsabile del conteggio>> | L7: =Sintesi!$C$26 -> <<Nome del responsabile del conteggio>> | M7: =Sintesi!$C$26 -> <<Nome del responsabile del conteggio>>
H8: Tipo di Conteggio | K8: =Sintesi!M35 -> AFP - Misurazione Applicazione Esistente
C9: LF | D9: EP | H9: Fase di Conteggio | K9: =Sintesi!BF35 -> Sviluppo Completato
C10: =SUM(Statistiche!C12:C13) -> 9 | D10: =SUM(Statistiche!C14:C16) -> 31
D12: Pesi | H12: Valori Pesati | N12: Frequenze | Q12: FP
C13: # | D13: B | E13: M | F13: A | H13: B | I13: M | J13: A | M13: # | N13: B | O13: M | P13: A
B14: EI | C14: =Statistiche!C14 -> 9 | D14: 3 | E14: 4 | F14: 6 | H14: =+$C14*D14 -> 27 | I14: 36 | J14: 54 | L14: EI | M14: =C14 -> 9 | N14: =Statistiche!G25 -> 6 | O14: =Statistiche!I25 -> 3 | P14: =Statistiche!K25 -> 0 | Q14: =+N14*D14+O14*E14+P14*F14 -> 30
B15: EO | C15: =Statistiche!C15 -> 11 | D15: 4 | E15: 5 | F15: 7 | H15: 44 | I15: 55 | J15: 77 | L15: EO | M15: =C15 -> 11 | N15: =Statistiche!G26 -> 10 | O15: =Statistiche!I26 -> 1 | P15: =Statistiche!K26 -> 0 | Q15: =+N15*D15+O15*E15+P15*F15 -> 45
B16: EQ | C16: =Statistiche!C16 -> 11 | D16: 3 | E16: 4 | F16: 6 | H16: =+$C16*D16 -> 33 | I16: 44 | J16: 66 | L16: EQ | M16: =C16 -> 11 | N16: =Statistiche!G27 -> 11 | O16: =Statistiche!I27 -> 0 | P16: =Statistiche!K27 -> 0 | Q16: =+N16*D16+O16*E16+P16*F16 -> 33
B17: ILF | C17: =Statistiche!C12 -> 4 | D17: 7 | E17: 10 | F17: 15 | H17: =+$C17*D17 -> 28 | I17: 40 | J17: 60 | L17: ILF | M17: =C17 -> 4 | N17: =Statistiche!G28 -> 4 | O17: =Statistiche!I28 -> 0 | P17: =Statistiche!K28 -> 0 | Q17: =+N17*D17+O17*E17+P17*F17 -> 28
B18: EIF | C18: =Statistiche!C13 -> 5 | D18: 5 | E18: 7 | F18: 10 | H18: =+$C18*D18 -> 25 | I18: 35 | J18: 50 | L18: EIF | M18: =C18 -> 5 | N18: =Statistiche!G29 -> 5 | O18: =Statistiche!I29 -> 0 | P18: =Statistiche!K29 -> 0 | Q18: =+N18*D18+O18*E18+P18*F18 -> 25
B19: BFC | C19: =SUM(C14:C18) -> 40 | H19: =SUM(H14:H18) -> 157 | I19: =SUM(I14:I18) -> 210 | J19: =SUM(J14:J18) -> 307 | L19: BFC | M19: =SUM(M14:M18) -> 40 | N19: =SUM(N14:N18) -> 36 | O19: =SUM(O14:O18) -> 4 | P19: =SUM(P14:P18) -> 0 | Q19: =SUM(Q14:Q18) -> 161 | R19: Consuntivo
G22: B | H22: =+H19 -> 157 | K22: Errore relativo | L22: =(H22-Q19)/Q19 -> -0.0248447205
G23: BM | I23: =AVERAGE(H19:I19) -> 183.5 | L23: =(I23-Q19)/Q19 -> 0.1397515528
G24: M | I24: =+I19 -> 210 | L24: =(I24-Q19)/Q19 -> 0.3043478261
G25: MA | I25: =AVERAGE(I19:J19) -> 258.5 | L25: =(I25-Q19)/Q19 -> 0.6055900621
G26: A | J26: =+J19 -> 307 | L26: =(J26-Q19)/Q19 -> 0.9068322981

Sheet Note
B2: NOTE
B4: Foglio di riferimento | C4: Nota
B5: Requisiti | C5: La macro del pulsante “Svuota Dati” non gestisce l’errore quando si clicca su una cella esterna al range corretto di eliminazione dati. In questo caso riporta semplicemente “Errore 400”.
B6: FP-DET | C6: Analogo comportamento con la macro di “Svuota Dati”
B7: FP-DET | C7: Dalla riga 1000 in poi il conteggio FP non è più eseguito (cfr. foglio nascosto: “FP-Parametri”)
B8: FP-DET | C8: Inserisci riga replica la riga selezionata.
B9: FP-DET | C9: Excel considera una cella vuota come "0", quindi nel calcolo complessità con EO è sufficiente inizializzare DET per avere la complessità
B10: Foglio Stima | C10: La divisione per zero non è gestita nelle celle di “Errore relativo”

Sheet FP-Parametri (hidden)
A1: note | B1: questa cartella non bisogna stamparla mai; però attenzione: | K1: cmp | L1: cmp | M1: cmp | O1: ADD | T1: CFP | Y1: CHGA | AD1: CHGB | AI1: DEL
B2: i dati contenuti in questo foglio non devono | K2: B | L2: M | M2: A | AP2: Function Types
B3: essere assolutamente variati, altrimenti il prodotto | J3: B | K3: =DCOUNTA($K$7:$K$999,"cmp",$K$1:$K$2) -> 4 | L3: =DCOUNTA($L$7:$L$999,"cmp",$K$1:$K$2) -> 5 | M3: =DCOUNTA($M$7:$M$999,"cmp",$K$1:$K$2) -> 6 | N3: =DCOUNTA($N$7:$N$999,"cmp",$K$1:$K$2) -> 10 | O3: =DCOUNTA($O$7:$O$999,"cmp",$K$1:$K$2) -> 11 | P3: =DCOUNTA($P$7:$P$999,"cmp",$K$1:$K$2) -> 0 | Q3: =DCOUNTA($Q$7:$Q$999,"cmp",$K$1:$K$2) -> 0 | R3: =DCOUNTA($R$7:$R$999,"cmp",$K$1:$K$2) -> 0 | S3: =DCOUNTA($S$7:$S$999,"cmp",$K$1:$K$2) -> 0 | T3: =DCOUNTA($T$7:$T$999,"cmp",$K$1:$K$2) -> 0 | U3: =DCOUNTA($U$7:$U$999,"cmp",$K$1:$K$2) -> 0 | V3: =DCOUNTA($V$7:$V$999,"cmp",$K$1:$K$2) -> 0 | W3: =DCOUNTA($W$7:$W$999,"cmp",$K$1:$K$2) -> 0 | X3: =DCOUNTA($X$7:$X$999,"cmp",$K$1:$K$2) -> 0 | Y3: =DCOUNTA($Y$7:$Y$999,"cmp",$K$1:$K$2) -> 0 | Z3: =DCOUNTA($Z$7:$Z$999,"cmp",$K$1:$K$2) -> 0 | AA3: =DCOUNTA($AA$7:$AA$999,"cmp",$K$1:$K$2) -> 0 | AB3: =DCOUNTA($AB$7:$AB$999,"cmp",$K$1:$K$2) -> 0 | AC3: =DCOUNTA($AC$7:$AC$999,"cmp",$K$1:$K$2) -> 0 | AD3: =DCOUNTA($AD$7:$AD$999,"cmp",$K$1:$K$2) -> 0 | AE3: =DCOUNTA($AE$7:$AE$999,"cmp",$K$1:$K$2) -> 0 | AF3: =DCOUNTA($AF$7:$AF$999,"cmp",$K$1:$K$2) -> 0 | AG3: =DCOUNTA($AG$7:$AG$999,"cmp",$K$1:$K$2) -> 0 | AH3: =DCOUNTA($AH$7:$AH$999,"cmp",$K$1:$K$2) -> 0 | AI3: =DCOUNTA($AI$7:$AI$999,"cmp",$K$1:$K$2) -> 0 | AP3: 1 | AQ3: ILF | AR3: -
B4: non funziona più!!!!. | J4: M | K4: =DCOUNTA($K$7:$K$999,"cmp",$L$1:$L$2) -> 0 | L4: =DCOUNTA($L$7:$L$999,"cmp",$L$1:$L$2) -> 0 | M4: =DCOUNTA($M$7:$M$999,"cmp",$L$1:$L$2) -> 3 | N4: =DCOUNTA($N$7:$N$999,"cmp",$L$1:$L$2) -> 1 | O4: =DCOUNTA($O$7:$O$999,"cmp",$L$1:$L$2) -> 0 | P4: =DCOUNTA($P$7:$P$999,"cmp",$L$1:$L$2) -> 0 | Q4: =DCOUNTA($Q$7:$Q$999,"cmp",$L$1:$L$2) -> 0 | R4: =DCOUNTA($R$7:$R$999,"cmp",$L$1:$L$2) -> 0 | S4: =DCOUNTA($S$7:$S$999,"cmp",$L$1:$L$2) -> 0 | T4: =DCOUNTA($T$7:$T$999,"cmp",$L$1:$L$2) -> 0 | U4: =DCOUNTA($U$7:$U$999,"cmp",$L$1:$L$2) -> 0 | V4: =DCOUNTA($V$7:$V$999,"cmp",$L$1:$L$2) -> 0 | W4: =DCOUNTA($W$7:$W$999,"cmp",$L$1:$L$2) -> 0 | X4: =DCOUNTA($X$7:$X$999,"cmp",$L$1:$L$2) -> 0 | Y4: =DCOUNTA($Y$7:$Y$999,"cmp",$L$1:$L$2) -> 0 | Z4: =DCOUNTA($Z$7:$Z$999,"cmp",$L$1:$L$2) -> 0 | AA4: =DCOUNTA($AA$7:$AA$999,"cmp",$L$1:$L$2) -> 0 | AB4: =DCOUNTA($AB$7:$AB$999,"cmp",$L$1:$L$2) -> 0 | AC4: =DCOUNTA($AC$7:$AC$999,"cmp",$L$1:$L$2) -> 0 | AD4: =DCOUNTA($AD$7:$AD$999,"cmp",$L$1:$L$2) -> 0 | AE4: =DCOUNTA($AE$7:$AE$999,"cmp",$L$1:$L$2) -> 0 | AF4: =DCOUNTA($AF$7:$AF$999,"cmp",$L$1:$L$2) -> 0 | AG4: =DCOUNTA($AG$7:$AG$999,"cmp",$L$1:$L$2) -> 0 | AH4: =DCOUNTA($AH$7:$AH$999,"cmp",$L$1:$L$2) -> 0 | AI4: =DCOUNTA($AI$7:$AI$999,"cmp",$L$1:$L$2) -> 0 | AP4: 2 | AQ4: EIF | AR4: -
A5: Il foglio è protetto ma non ha password. Si possono variare solo le celle di questo colore | J5: A | K5: =DCOUNTA($K$7:$K$999,"cmp",$M$1:$M$2) -> 0 | L5: =DCOUNTA($L$7:$L$999,"cmp",$M$1:$M$2) -> 0 | M5: =DCOUNTA($M$7:$M$999,"cmp",$M$1:$M$2) -> 0 | N5: =DCOUNTA($N$7:$N$999,"cmp",$M$1:$M$2) -> 0 | O5: =DCOUNTA($O$7:$O$999,"cmp",$M$1:$M$2) -> 0 | P5: =DCOUNTA($P$7:$P$999,"cmp",$M$1:$M$2) -> 0 | Q5: =DCOUNTA($Q$7:$Q$999,"cmp",$M$1:$M$2) -> 0 | R5: =DCOUNTA($R$7:$R$999,"cmp",$M$1:$M$2) -> 0 | S5: =DCOUNTA($S$7:$S$999,"cmp",$M$1:$M$2) -> 0 | T5: =DCOUNTA($T$7:$T$999,"cmp",$M$1:$M$2) -> 0 | U5: =DCOUNTA($U$7:$U$999,"cmp",$M$1:$M$2) -> 0 | V5: =DCOUNTA($V$7:$V$999,"cmp",$M$1:$M$2) -> 0 | W5: =DCOUNTA($W$7:$W$999,"cmp",$M$1:$M$2) -> 0 | X5: =DCOUNTA($X$7:$X$999,"cmp",$M$1:$M$2) -> 0 | Y5: =DCOUNTA($Y$7:$Y$999,"cmp",$M$1:$M$2) -> 0 | Z5: =DCOUNTA($Z$7:$Z$999,"cmp",$M$1:$M$2) -> 0 | AA5: =DCOUNTA($AA$7:$AA$999,"cmp",$M$1:$M$2) -> 0 | AB5: =DCOUNTA($AB$7:$AB$999,"cmp",$M$1:$M$2) -> 0 | AC5: =DCOUNTA($AC$7:$AC$999,"cmp",$M$1:$M$2) -> 0 | AD5: =DCOUNTA($AD$7:$AD$999,"cmp",$M$1:$M$2) -> 0 | AE5: =DCOUNTA($AE$7:$AE$999,"cmp",$M$1:$M$2) -> 0 | AF5: =DCOUNTA($AF$7:$AF$999,"cmp",$M$1:$M$2) -> 0 | AG5: =DCOUNTA($AG$7:$AG$999,"cmp",$M$1:$M$2) -> 0 | AH5: =DCOUNTA($AH$7:$AH$999,"cmp",$M$1:$M$2) -> 0 | AI5: =DCOUNTA($AI$7:$AI$999,"cmp",$M$1:$M$2) -> 0 | AP5: 3 | AQ5: EI | AR5: -
A6: Attenzione | K6: ilf | L6: eif | M6: ei | N6: eo | O6: eq | P6: ilf | Q6: eif | R6: ei | S6: eo | T6: eq | U6: ilf | V6: eif | W6: ei | X6: eo | Y6: eq | Z6: ilf | AA6: eif | AB6: ei | AC6: eo | AD6: eq | AE6: ilf | AF6: eif | AG6: ei | AH6: eo | AI6: eq | AP6: 4 | AQ6: EO | AR6: -
B7: solo nel caso in cui le righe del foglio FP-DET oltrepassino il | K7: cmp | L7: cmp | M7: cmp | N7: cmp | O7: cmp | P7: cmp | Q7: cmp | R7: cmp | S7: cmp | T7: cmp | U7: cmp | V7: cmp | W7: cmp | X7: cmp | Y7: cmp | Z7: cmp | AA7: cmp | AB7: cmp | AC7: cmp | AD7: cmp | AE7: cmp | AF7: cmp | AG7: cmp | AH7: cmp | AI7: cmp | AP7: 5 | AQ7: EQ | AR7: O
B8: numero 1999 (più di duemila "oggetti" tra ILF, EIF, EI ecc..) | K8: =IF('FP-DET'!$E14=1,IF('FP-DET'!$H14=K$6,'FP-DET'!$L14,""),"") ->  | L8: =IF('FP-DET'!$E14=1,IF('FP-DET'!$H14=L$6,'FP-DET'!$L14,""),"") ->  | M8: =IF('FP-DET'!$E14=1,IF('FP-DET'!$H14=M$6,'FP-DET'!$L14,""),"") ->  | N8: =IF('FP-DET'!$E14=1,IF('FP-DET'!$H14=N$6,'FP-DET'!$L14,""),"") ->  | O8: =IF('FP-DET'!$E14=1,IF('FP-DET'!$H14=O$6,'FP-DET'!$L14,""),"") ->  | P8: =IF('FP-DET'!$E14=2,IF('FP-DET'!$H14=P$6,'FP-DET'!$L14,""),"") ->  | Q8: =IF('FP-DET'!$E14=2,IF('FP-DET'!$H14=Q$6,'FP-DET'!$L14,""),"") ->  | R8: =IF('FP-DET'!$E14=2,IF('FP-DET'!$H14=R$6,'FP-DET'!$L14,""),"") ->  | S8: =IF('FP-DET'!$E14=2,IF('FP-DET'!$H14=S$6,'FP-DET'!$L14,""),"") ->  | T8: =IF('FP-DET'!$E14=2,IF('FP-DET'!$H14=T$6,'FP-DET'!$L14,""),"") ->  | U8: =IF('FP-DET'!$E14=3,IF('FP-DET'!$H14=U$6,'FP-DET'!$L14,""),"") ->  | V8: =IF('FP-DET'!$E14=3,IF('FP-DET'!$H14=V$6,'FP-DET'!$L14,""),"") ->  | W8: =IF('FP-DET'!$E14=3,IF('FP-DET'!$H14=W$6,'FP-DET'!$L14,""),"") ->  | X8: =IF('FP-DET'!$E14=3,IF('FP-DET'!$H14=X$6,'FP-DET'!$L14,""),"") ->  | Y8: =IF('FP-DET'!$E14=3,IF('FP-DET'!$H14=Y$6,'FP-DET'!$L14,""),"") ->  | Z8: =IF('FP-DET'!$E14=4,IF('FP-DET'!$H14=Z$6,'FP-DET'!$L14,""),"") ->  | AA8: =IF('FP-DET'!$E14=4,IF('FP-DET'!$H14=AA$6,'FP-DET'!$L14,""),"") ->  | AB8: =IF('FP-DET'!$E14=4,IF('FP-DET'!$H14=AB$6,'FP-DET'!$L14,""),"") ->  | AC8: =IF('FP-DET'!$E14=4,IF('FP-DET'!$H14=AC$6,'FP-DET'!$L14,""),"") ->  | AD8: =IF('FP-DET'!$E14=4,IF('FP-DET'!$H14=AD$6,'FP-DET'!$L14,""),"") ->  | AE8: =IF('FP-DET'!$E14=5,IF('FP-DET'!$H14=AE$6,'FP-DET'!$L14,""),"") ->  | AF8: =IF('FP-DET'!$E14=5,IF('FP-DET'!$H14=AF$6,'FP-DET'!$L14,""),"") ->  | AG8: =IF('FP-DET'!$E14=5,IF('FP-DET'!$H14=AG$6,'FP-DET'!$L14,""),"") ->  | AH8: =IF('FP-DET'!$E14=5,IF('FP-DET'!$H14=AH$6,'FP-DET'!$L14,""),"") ->  | AI8: =IF('FP-DET'!$E14=5,IF('FP-DET'!$H14=AI$6,'FP-DET'!$L14,""),"") ->  | AP8: 6 | AQ8: EQ | AR8: -
B9: allora è necessario adeguare anche questo foglio; | K9: =IF('FP-DET'!$E15=1,IF('FP-DET'!$H15=K$6,'FP-DET'!$L15,""),"") -> B | L9: =IF('FP-DET'!$E15=1,IF('FP-DET'!$H15=L$6,'FP-DET'!$L15,""),"") ->  | M9: =IF('FP-DET'!$E15=1,IF('FP-DET'!$H15=M$6,'FP-DET'!$L15,""),"") ->  | N9: =IF('FP-DET'!$E15=1,IF('FP-DET'!$H15=N$6,'FP-DET'!$L15,""),"") ->  | O9: =IF('FP-DET'!$E15=1,IF('FP-DET'!$H15=O$6,'FP-DET'!$L15,""),"") ->  | P9: =IF('FP-DET'!$E15=2,IF('FP-DET'!$H15=P$6,'FP-DET'!$L15,""),"") ->  | Q9: =IF('FP-DET'!$E15=2,IF('FP-DET'!$H15=Q$6,'FP-DET'!$L15,""),"") ->  | R9: =IF('FP-DET'!$E15=2,IF('FP-DET'!$H15=R$6,'FP-DET'!$L15,""),"") ->  | S9: =IF('FP-DET'!$E15=2,IF('FP-DET'!$H15=S$6,'FP-DET'!$L15,""),"") ->  | T9: =IF('FP-DET'!$E15=2,IF('FP-DET'!$H15=T$6,'FP-DET'!$L15,""),"") ->  | U9: =IF('FP-DET'!$E15=3,IF('FP-DET'!$H15=U$6,'FP-DET'!$L15,""),"") ->  | V9: =IF('FP-DET'!$E15=3,IF('FP-DET'!$H15=V$6,'FP-DET'!$L15,""),"") ->  | W9: =IF('FP-DET'!$E15=3,IF('FP-DET'!$H15=W$6,'FP-DET'!$L15,""),"") ->  | X9: =IF('FP-DET'!$E15=3,IF('FP-DET'!$H15=X$6,'FP-DET'!$L15,""),"") ->  | Y9: =IF('FP-DET'!$E15=3,IF('FP-DET'!$H15=Y$6,'FP-DET'!$L15,""),"") ->  | Z9: =IF('FP-DET'!$E15=4,IF('FP-DET'!$H15=Z$6,'FP-DET'!$L15,""),"") ->  | AA9: =IF('FP-DET'!$E15=4,IF('FP-DET'!$H15=AA$6,'FP-DET'!$L15,""),"") ->  | AB9: =IF('FP-DET'!$E15=4,IF('FP-DET'!$H15=AB$6,'FP-DET'!$L15,""),"") ->  | AC9: =IF('FP-DET'!$E15=4,IF('FP-DET'!$H15=AC$6,'FP-DET'!$L15,""),"") ->  | AD9: =IF('FP-DET'!$E15=4,IF('FP-DET'!$H15=AD$6,'FP-DET'!$L15,""),"") ->  | AE9: =IF('FP-DET'!$E15=5,IF('FP-DET'!$H15=AE$6,'FP-DET'!$L15,""),"") ->  | AF9: =IF('FP-DET'!$E15=5,IF('FP-DET'!$H15=AF$6,'FP-DET'!$L15,""),"") ->  | AG9: =IF('FP-DET'!$E15=5,IF('FP-DET'!$H15=AG$6,'FP-DET'!$L15,""),"") ->  | AH9: =IF('FP-DET'!$E15=5,IF('FP-DET'!$H15=AH$6,'FP-DET'!$L15,""),"") ->  | AI9: =IF('FP-DET'!$E15=5,IF('FP-DET'!$H15=AI$6,'FP-DET'!$L15,""),"") ->  | AP9: complessità
B10: 1) | C10: modificare le formule da K3 a AI5 | K10: =IF('FP-DET'!$E16=1,IF('FP-DET'!$H16=K$6,'FP-DET'!$L16,""),"") -> B | L10: =IF('FP-DET'!$E16=1,IF('FP-DET'!$H16=L$6,'FP-DET'!$L16,""),"") ->  | M10: =IF('FP-DET'!$E16=1,IF('FP-DET'!$H16=M$6,'FP-DET'!$L16,""),"") ->  | N10: =IF('FP-DET'!$E16=1,IF('FP-DET'!$H16=N$6,'FP-DET'!$L16,""),"") ->  | O10: =IF('FP-DET'!$E16=1,IF('FP-DET'!$H16=O$6,'FP-DET'!$L16,""),"") ->  | P10: =IF('FP-DET'!$E16=2,IF('FP-DET'!$H16=P$6,'FP-DET'!$L16,""),"") ->  | Q10: =IF('FP-DET'!$E16=2,IF('FP-DET'!$H16=Q$6,'FP-DET'!$L16,""),"") ->  | R10: =IF('FP-DET'!$E16=2,IF('FP-DET'!$H16=R$6,'FP-DET'!$L16,""),"") ->  | S10: =IF('FP-DET'!$E16=2,IF('FP-DET'!$H16=S$6,'FP-DET'!$L16,""),"") ->  | T10: =IF('FP-DET'!$E16=2,IF('FP-DET'!$H16=T$6,'FP-DET'!$L16,""),"") ->  | U10: =IF('FP-DET'!$E16=3,IF('FP-DET'!$H16=U$6,'FP-DET'!$L16,""),"") ->  | V10: =IF('FP-DET'!$E16=3,IF('FP-DET'!$H16=V$6,'FP-DET'!$L16,""),"") ->  | W10: =IF('FP-DET'!$E16=3,IF('FP-DET'!$H16=W$6,'FP-DET'!$L16,""),"") ->  | X10: =IF('FP-DET'!$E16=3,IF('FP-DET'!$H16=X$6,'FP-DET'!$L16,""),"") ->  | Y10: =IF('FP-DET'!$E16=3,IF('FP-DET'!$H16=Y$6,'FP-DET'!$L16,""),"") ->  | Z10: =IF('FP-DET'!$E16=4,IF('FP-DET'!$H16=Z$6,'FP-DET'!$L16,""),"") ->  | AA10: =IF('FP-DET'!$E16=4,IF('FP-DET'!$H16=AA$6,'FP-DET'!$L16,""),"") ->  | AB10: =IF('FP-DET'!$E16=4,IF('FP-DET'!$H16=AB$6,'FP-DET'!$L16,""),"") ->  | AC10: =IF('FP-DET'!$E16=4,IF('FP-DET'!$H16=AC$6,'FP-DET'!$L16,""),"") ->  | AD10: =IF('FP-DET'!$E16=4,IF('FP-DET'!$H16=AD$6,'FP-DET'!$L16,""),"") ->  | AE10: =IF('FP-DET'!$E16=5,IF('FP-DET'!$H16=AE$6,'FP-DET'!$L16,""),"") ->  | AF10: =IF('FP-DET'!$E16=5,IF('FP-DET'!$H16=AF$6,'FP-DET'!$L16,""),"") ->  | AG10: =IF('FP-DET'!$E16=5,IF('FP-DET'!$H16=AG$6,'FP-DET'!$L16,""),"") ->  | AH10: =IF('FP-DET'!$E16=5,IF('FP-DET'!$H16=AH$6,'FP-DET'!$L16,""),"") ->  | AI10: =IF('FP-DET'!$E16=5,IF('FP-DET'!$H16=AI$6,'FP-DET'!$L16,""),"") ->  | AP10: 0 | AQ10: errrroreee
B11: 2) | C11: duplicare la riga 8 (da K ad O) per quello che | K11: =IF('FP-DET'!$E17=1,IF('FP-DET'!$H17=K$6,'FP-DET'!$L17,""),"") -> B | L11: =IF('FP-DET'!$E17=1,IF('FP-DET'!$H17=L$6,'FP-DET'!$L17,""),"") ->  | M11: =IF('FP-DET'!$E17=1,IF('FP-DET'!$H17=M$6,'FP-DET'!$L17,""),"") ->  | N11: =IF('FP-DET'!$E17=1,IF('FP-DET'!$H17=N$6,'FP-DET'!$L17,""),"") ->  | O11: =IF('FP-DET'!$E17=1,IF('FP-DET'!$H17=O$6,'FP-DET'!$L17,""),"") ->  | P11: =IF('FP-DET'!$E17=2,IF('FP-DET'!$H17=P$6,'FP-DET'!$L17,""),"") ->  | Q11: =IF('FP-DET'!$E17=2,IF('FP-DET'!$H17=Q$6,'FP-DET'!$L17,""),"") ->  | R11: =IF('FP-DET'!$E17=2,IF('FP-DET'!$H17=R$6,'FP-DET'!$L17,""),"") ->  | S11: =IF('FP-DET'!$E17=2,IF('FP-DET'!$H17=S$6,'FP-DET'!$L17,""),"") ->  | T11: =IF('FP-DET'!$E17=2,IF('FP-DET'!$H17=T$6,'FP-DET'!$L17,""),"") ->  | U11: =IF('FP-DET'!$E17=3,IF('FP-DET'!$H17=U$6,'FP-DET'!$L17,""),"") ->  | V11: =IF('FP-DET'!$E17=3,IF('FP-DET'!$H17=V$6,'FP-DET'!$L17,""),"") ->  | W11: =IF('FP-DET'!$E17=3,IF('FP-DET'!$H17=W$6,'FP-DET'!$L17,""),"") ->  | X11: =IF('FP-DET'!$E17=3,IF('FP-DET'!$H17=X$6,'FP-DET'!$L17,""),"") ->  | Y11: =IF('FP-DET'!$E17=3,IF('FP-DET'!$H17=Y$6,'FP-DET'!$L17,""),"") ->  | Z11: =IF('FP-DET'!$E17=4,IF('FP-DET'!$H17=Z$6,'FP-DET'!$L17,""),"") ->  | AA11: =IF('FP-DET'!$E17=4,IF('FP-DET'!$H17=AA$6,'FP-DET'!$L17,""),"") ->  | AB11: =IF('FP-DET'!$E17=4,IF('FP-DET'!$H17=AB$6,'FP-DET'!$L17,""),"") ->  | AC11: =IF('FP-DET'!$E17=4,IF('FP-DET'!$H17=AC$6,'FP-DET'!$L17,""),"") ->  | AD11: =IF('FP-DET'!$E17=4,IF('FP-DET'!$H17=AD$6,'FP-DET'!$L17,""),"") ->  | AE11: =IF('FP-DET'!$E17=5,IF('FP-DET'!$H17=AE$6,'FP-DET'!$L17,""),"") ->  | AF11: =IF('FP-DET'!$E17=5,IF('FP-DET'!$H17=AF$6,'FP-DET'!$L17,""),"") ->  | AG11: =IF('FP-DET'!$E17=5,IF('FP-DET'!$H17=AG$6,'FP-DET'!$L17,""),"") ->  | AH11: =IF('FP-DET'!$E17=5,IF('FP-DET'!$H17=AH$6,'FP-DET'!$L17,""),"") ->  | AI11: =IF('FP-DET'!$E17=5,IF('FP-DET'!$H17=AI$6,'FP-DET'!$L17,""),"") ->  | AP11: 1 | AQ11: Low
C12: vi serve; | K12: =IF('FP-DET'!$E18=1,IF('FP-DET'!$H18=K$6,'FP-DET'!$L18,""),"") ->  | L12: =IF('FP-DET'!$E18=1,IF('FP-DET'!$H18=L$6,'FP-DET'!$L18,""),"") -> B | M12: =IF('FP-DET'!$E18=1,IF('FP-DET'!$H18=M$6,'FP-DET'!$L18,""),"") ->  | N12: =IF('FP-DET'!$E18=1,IF('FP-DET'!$H18=N$6,'FP-DET'!$L18,""),"") ->  | O12: =IF('FP-DET'!$E18=1,IF('FP-DET'!$H18=O$6,'FP-DET'!$L18,""),"") ->  | P12: =IF('FP-DET'!$E18=2,IF('FP-DET'!$H18=P$6,'FP-DET'!$L18,""),"") ->  | Q12: =IF('FP-DET'!$E18=2,IF('FP-DET'!$H18=Q$6,'FP-DET'!$L18,""),"") ->  | R12: =IF('FP-DET'!$E18=2,IF('FP-DET'!$H18=R$6,'FP-DET'!$L18,""),"") ->  | S12: =IF('FP-DET'!$E18=2,IF('FP-DET'!$H18=S$6,'FP-DET'!$L18,""),"") ->  | T12: =IF('FP-DET'!$E18=2,IF('FP-DET'!$H18=T$6,'FP-DET'!$L18,""),"") ->  | U12: =IF('FP-DET'!$E18=3,IF('FP-DET'!$H18=U$6,'FP-DET'!$L18,""),"") ->  | V12: =IF('FP-DET'!$E18=3,IF('FP-DET'!$H18=V$6,'FP-DET'!$L18,""),"") ->  | W12: =IF('FP-DET'!$E18=3,IF('FP-DET'!$H18=W$6,'FP-DET'!$L18,""),"") ->  | X12: =IF('FP-DET'!$E18=3,IF('FP-DET'!$H18=X$6,'FP-DET'!$L18,""),"") ->  | Y12: =IF('FP-DET'!$E18=3,IF('FP-DET'!$H18=Y$6,'FP-DET'!$L18,""),"") ->  | Z12: =IF('FP-DET'!$E18=4,IF('FP-DET'!$H18=Z$6,'FP-DET'!$L18,""),"") ->  | AA12: =IF('FP-DET'!$E18=4,IF('FP-DET'!$H18=AA$6,'FP-DET'!$L18,""),"") ->  | AB12: =IF('FP-DET'!$E18=4,IF('FP-DET'!$H18=AB$6,'FP-DET'!$L18,""),"") ->  | AC12: =IF('FP-DET'!$E18=4,IF('FP-DET'!$H18=AC$6,'FP-DET'!$L18,""),"") ->  | AD12: =IF('FP-DET'!$E18=4,IF('FP-DET'!$H18=AD$6,'FP-DET'!$L18,""),"") ->  | AE12: =IF('FP-DET'!$E18=5,IF('FP-DET'!$H18=AE$6,'FP-DET'!$L18,""),"") ->  | AF12: =IF('FP-DET'!$E18=5,IF('FP-DET'!$H18=AF$6,'FP-DET'!$L18,""),"") ->  | AG12: =IF('FP-DET'!$E18=5,IF('FP-DET'!$H18=AG$6,'FP-DET'!$L18,""),"") ->  | AH12: =IF('FP-DET'!$E18=5,IF('FP-DET'!$H18=AH$6,'FP-DET'!$L18,""),"") ->  | AI12: =IF('FP-DET'!$E18=5,IF('FP-DET'!$H18=AI$6,'FP-DET'!$L18,""),"") ->  | AP12: 2 | AQ12: Low
K13: =IF('FP-DET'!$E19=1,IF('FP-DET'!$H19=K$6,'FP-DET'!$L19,""),"") ->  | L13: =IF('FP-DET'!$E19=1,IF('FP-DET'!$H19=L$6,'FP-DET'!$L19,""),"") -> B | M13: =IF('FP-DET'!$E19=1,IF('FP-DET'!$H19=M$6,'FP-DET'!$L19,""),"") ->  | N13: =IF('FP-DET'!$E19=1,IF('FP-DET'!$H19=N$6,'FP-DET'!$L19,""),"") ->  | O13: =IF('FP-DET'!$E19=1,IF('FP-DET'!$H19=O$6,'FP-DET'!$L19,""),"") ->  | P13: =IF('FP-DET'!$E19=2,IF('FP-DET'!$H19=P$6,'FP-DET'!$L19,""),"") ->  | Q13: =IF('FP-DET'!$E19=2,IF('FP-DET'!$H19=Q$6,'FP-DET'!$L19,""),"") ->  | R13: =IF('FP-DET'!$E19=2,IF('FP-DET'!$H19=R$6,'FP-DET'!$L19,""),"") ->  | S13: =IF('FP-DET'!$E19=2,IF('FP-DET'!$H19=S$6,'FP-DET'!$L19,""),"") ->  | T13: =IF('FP-DET'!$E19=2,IF('FP-DET'!$H19=T$6,'FP-DET'!$L19,""),"") ->  | U13: =IF('FP-DET'!$E19=3,IF('FP-DET'!$H19=U$6,'FP-DET'!$L19,""),"") ->  | V13: =IF('FP-DET'!$E19=3,IF('FP-DET'!$H19=V$6,'FP-DET'!$L19,""),"") ->  | W13: =IF('FP-DET'!$E19=3,IF('FP-DET'!$H19=W$6,'FP-DET'!$L19,""),"") ->  | X13: =IF('FP-DET'!$E19=3,IF('FP-DET'!$H19=X$6,'FP-DET'!$L19,""),"") ->  | Y13: =IF('FP-DET'!$E19=3,IF('FP-DET'!$H19=Y$6,'FP-DET'!$L19,""),"") ->  | Z13: =IF('FP-DET'!$E19=4,IF('FP-DET'!$H19=Z$6,'FP-DET'!$L19,""),"") ->  | AA13: =IF('FP-DET'!$E19=4,IF('FP-DET'!$H19=AA$6,'FP-DET'!$L19,""),"") ->  | AB13: =IF('FP-DET'!$E19=4,IF('FP-DET'!$H19=AB$6,'FP-DET'!$L19,""),"") ->  | AC13: =IF('FP-DET'!$E19=4,IF('FP-DET'!$H19=AC$6,'FP-DET'!$L19,""),"") ->  | AD13: =IF('FP-DET'!$E19=4,IF('FP-DET'!$H19=AD$6,'FP-DET'!$L19,""),"") ->  | AE13: =IF('FP-DET'!$E19=5,IF('FP-DET'!$H19=AE$6,'FP-DET'!$L19,""),"") ->  | AF13: =IF('FP-DET'!$E19=5,IF('FP-DET'!$H19=AF$6,'FP-DET'!$L19,""),"") ->  | AG13: =IF('FP-DET'!$E19=5,IF('FP-DET'!$H19=AG$6,'FP-DET'!$L19,""),"") ->  | AH13: =IF('FP-DET'!$E19=5,IF('FP-DET'!$H19=AH$6,'FP-DET'!$L19,""),"") ->  | AI13: =IF('FP-DET'!$E19=5,IF('FP-DET'!$H19=AI$6,'FP-DET'!$L19,""),"") ->  | AP13: 3 | AQ13: Avg
K14: =IF('FP-DET'!$E20=1,IF('FP-DET'!$H20=K$6,'FP-DET'!$L20,""),"") -> B | L14: =IF('FP-DET'!$E20=1,IF('FP-DET'!$H20=L$6,'FP-DET'!$L20,""),"") ->  | M14: =IF('FP-DET'!$E20=1,IF('FP-DET'!$H20=M$6,'FP-DET'!$L20,""),"") ->  | N14: =IF('FP-DET'!$E20=1,IF('FP-DET'!$H20=N$6,'FP-DET'!$L20,""),"") ->  | O14: =IF('FP-DET'!$E20=1,IF('FP-DET'!$H20=O$6,'FP-DET'!$L20,""),"") ->  | P14: =IF('FP-DET'!$E20=2,IF('FP-DET'!$H20=P$6,'FP-DET'!$L20,""),"") ->  | Q14: =IF('FP-DET'!$E20=2,IF('FP-DET'!$H20=Q$6,'FP-DET'!$L20,""),"") ->  | R14: =IF('FP-DET'!$E20=2,IF('FP-DET'!$H20=R$6,'FP-DET'!$L20,""),"") ->  | S14: =IF('FP-DET'!$E20=2,IF('FP-DET'!$H20=S$6,'FP-DET'!$L20,""),"") ->  | T14: =IF('FP-DET'!$E20=2,IF('FP-DET'!$H20=T$6,'FP-DET'!$L20,""),"") ->  | U14: =IF('FP-DET'!$E20=3,IF('FP-DET'!$H20=U$6,'FP-DET'!$L20,""),"") ->  | V14: =IF('FP-DET'!$E20=3,IF('FP-DET'!$H20=V$6,'FP-DET'!$L20,""),"") ->  | W14: =IF('FP-DET'!$E20=3,IF('FP-DET'!$H20=W$6,'FP-DET'!$L20,""),"") ->  | X14: =IF('FP-DET'!$E20=3,IF('FP-DET'!$H20=X$6,'FP-DET'!$L20,""),"") ->  | Y14: =IF('FP-DET'!$E20=3,IF('FP-DET'!$H20=Y$6,'FP-DET'!$L20,""),"") ->  | Z14: =IF('FP-DET'!$E20=4,IF('FP-DET'!$H20=Z$6,'FP-DET'!$L20,""),"") ->  | AA14: =IF('FP-DET'!$E20=4,IF('FP-DET'!$H20=AA$6,'FP-DET'!$L20,""),"") ->  | AB14: =IF('FP-DET'!$E20=4,IF('FP-DET'!$H20=AB$6,'FP-DET'!$L20,""),"") ->  | AC14: =IF('FP-DET'!$E20=4,IF('FP-DET'!$H20=AC$6,'FP-DET'!$L20,""),"") ->  | AD14: =IF('FP-DET'!$E20=4,IF('FP-DET'!$H20=AD$6,'FP-DET'!$L20,""),"") ->  | AE14: =IF('FP-DET'!$E20=5,IF('FP-DET'!$H20=AE$6,'FP-DET'!$L20,""),"") ->  | AF14: =IF('FP-DET'!$E20=5,IF('FP-DET'!$H20=AF$6,'FP-DET'!$L20,""),"") ->  | AG14: =IF('FP-DET'!$E20=5,IF('FP-DET'!$H20=AG$6,'FP-DET'!$L20,""),"") ->  | AH14: =IF('FP-DET'!$E20=5,IF('FP-DET'!$H20=AH$6,'FP-DET'!$L20,""),"") ->  | AI14: =IF('FP-DET'!$E20=5,IF('FP-DET'!$H20=AI$6,'FP-DET'!$L20,""),"") ->  | AP14: 4 | AQ14: Avg
K15: =IF('FP-DET'!$E21=1,IF('FP-DET'!$H21=K$6,'FP-DET'!$L21,""),"") ->  | L15: =IF('FP-DET'!$E21=1,IF('FP-DET'!$H21=L$6,'FP-DET'!$L21,""),"") -> B | M15: =IF('FP-DET'!$E21=1,IF('FP-DET'!$H21=M$6,'FP-DET'!$L21,""),"") ->  | N15: =IF('FP-DET'!$E21=1,IF('FP-DET'!$H21=N$6,'FP-DET'!$L21,""),"") ->  | O15: =IF('FP-DET'!$E21=1,IF('FP-DET'!$H21=O$6,'FP-DET'!$L21,""),"") ->  | P15: =IF('FP-DET'!$E21=2,IF('FP-DET'!$H21=P$6,'FP-DET'!$L21,""),"") ->  | Q15: =IF('FP-DET'!$E21=2,IF('FP-DET'!$H21=Q$6,'FP-DET'!$L21,""),"") ->  | R15: =IF('FP-DET'!$E21=2,IF('FP-DET'!$H21=R$6,'FP-DET'!$L21,""),"") ->  | S15: =IF('FP-DET'!$E21=2,IF('FP-DET'!$H21=S$6,'FP-DET'!$L21,""),"") ->  | T15: =IF('FP-DET'!$E21=2,IF('FP-DET'!$H21=T$6,'FP-DET'!$L21,""),"") ->  | U15: =IF('FP-DET'!$E21=3,IF('FP-DET'!$H21=U$6,'FP-DET'!$L21,""),"") ->  | V15: =IF('FP-DET'!$E21=3,IF('FP-DET'!$H21=V$6,'FP-DET'!$L21,""),"") ->  | W15: =IF('FP-DET'!$E21=3,IF('FP-DET'!$H21=W$6,'FP-DET'!$L21,""),"") ->  | X15: =IF('FP-DET'!$E21=3,IF('FP-DET'!$H21=X$6,'FP-DET'!$L21,""),"") ->  | Y15: =IF('FP-DET'!$E21=3,IF('FP-DET'!$H21=Y$6,'FP-DET'!$L21,""),"") ->  | Z15: =IF('FP-DET'!$E21=4,IF('FP-DET'!$H21=Z$6,'FP-DET'!$L21,""),"") ->  | AA15: =IF('FP-DET'!$E21=4,IF('FP-DET'!$H21=AA$6,'FP-DET'!$L21,""),"") ->  | AB15: =IF('FP-DET'!$E21=4,IF('FP-DET'!$H21=AB$6,'FP-DET'!$L21,""),"") ->  | AC15: =IF('FP-DET'!$E21=4,IF('FP-DET'!$H21=AC$6,'FP-DET'!$L21,""),"") ->  | AD15: =IF('FP-DET'!$E21=4,IF('FP-DET'!$H21=AD$6,'FP-DET'!$L21,""),"") ->  | AE15: =IF('FP-DET'!$E21=5,IF('FP-DET'!$H21=AE$6,'FP-DET'!$L21,""),"") ->  | AF15: =IF('FP-DET'!$E21=5,IF('FP-DET'!$H21=AF$6,'FP-DET'!$L21,""),"") ->  | AG15: =IF('FP-DET'!$E21=5,IF('FP-DET'!$H21=AG$6,'FP-DET'!$L21,""),"") ->  | AH15: =IF('FP-DET'!$E21=5,IF('FP-DET'!$H21=AH$6,'FP-DET'!$L21,""),"") ->  | AI15: =IF('FP-DET'!$E21=5,IF('FP-DET'!$H21=AI$6,'FP-DET'!$L21,""),"") ->  | AP15: 6 | AQ15: High
K16: =IF('FP-DET'!$E22=1,IF('FP-DET'!$H22=K$6,'FP-DET'!$L22,""),"") ->  | L16: =IF('FP-DET'!$E22=1,IF('FP-DET'!$H22=L$6,'FP-DET'!$L22,""),"") -> B | M16: =IF('FP-DET'!$E22=1,IF('FP-DET'!$H22=M$6,'FP-DET'!$L22,""),"") ->  | N16: =IF('FP-DET'!$E22=1,IF('FP-DET'!$H22=N$6,'FP-DET'!$L22,""),"") ->  | O16: =IF('FP-DET'!$E22=1,IF('FP-DET'!$H22=O$6,'FP-DET'!$L22,""),"") ->  | P16: =IF('FP-DET'!$E22=2,IF('FP-DET'!$H22=P$6,'FP-DET'!$L22,""),"") ->  | Q16: =IF('FP-DET'!$E22=2,IF('FP-DET'!$H22=Q$6,'FP-DET'!$L22,""),"") ->  | R16: =IF('FP-DET'!$E22=2,IF('FP-DET'!$H22=R$6,'FP-DET'!$L22,""),"") ->  | S16: =IF('FP-DET'!$E22=2,IF('FP-DET'!$H22=S$6,'FP-DET'!$L22,""),"") ->  | T16: =IF('FP-DET'!$E22=2,IF('FP-DET'!$H22=T$6,'FP-DET'!$L22,""),"") ->  | U16: =IF('FP-DET'!$E22=3,IF('FP-DET'!$H22=U$6,'FP-DET'!$L22,""),"") ->  | V16: =IF('FP-DET'!$E22=3,IF('FP-DET'!$H22=V$6,'FP-DET'!$L22,""),"") ->  | W16: =IF('FP-DET'!$E22=3,IF('FP-DET'!$H22=W$6,'FP-DET'!$L22,""),"") ->  | X16: =IF('FP-DET'!$E22=3,IF('FP-DET'!$H22=X$6,'FP-DET'!$L22,""),"") ->  | Y16: =IF('FP-DET'!$E22=3,IF('FP-DET'!$H22=Y$6,'FP-DET'!$L22,""),"") ->  | Z16: =IF('FP-DET'!$E22=4,IF('FP-DET'!$H22=Z$6,'FP-DET'!$L22,""),"") ->  | AA16: =IF('FP-DET'!$E22=4,IF('FP-DET'!$H22=AA$6,'FP-DET'!$L22,""),"") ->  | AB16: =IF('FP-DET'!$E22=4,IF('FP-DET'!$H22=AB$6,'FP-DET'!$L22,""),"") ->  | AC16: =IF('FP-DET'!$E22=4,IF('FP-DET'!$H22=AC$6,'FP-DET'!$L22,""),"") ->  | AD16: =IF('FP-DET'!$E22=4,IF('FP-DET'!$H22=AD$6,'FP-DET'!$L22,""),"") ->  | AE16: =IF('FP-DET'!$E22=5,IF('FP-DET'!$H22=AE$6,'FP-DET'!$L22,""),"") ->  | AF16: =IF('FP-DET'!$E22=5,IF('FP-DET'!$H22=AF$6,'FP-DET'!$L22,""),"") ->  | AG16: =IF('FP-DET'!$E22=5,IF('FP-DET'!$H22=AG$6,'FP-DET'!$L22,""),"") ->  | AH16: =IF('FP-DET'!$E22=5,IF('FP-DET'!$H22=AH$6,'FP-DET'!$L22,""),"") ->  | AI16: =IF('FP-DET'!$E22=5,IF('FP-DET'!$H22=AI$6,'FP-DET'!$L22,""),"") ->  | AP16: 9 | AQ16: High
K17: =IF('FP-DET'!$E23=1,IF('FP-DET'!$H23=K$6,'FP-DET'!$L23,""),"") ->  | L17: =IF('FP-DET'!$E23=1,IF('FP-DET'!$H23=L$6,'FP-DET'!$L23,""),"") -> B | M17: =IF('FP-DET'!$E23=1,IF('FP-DET'!$H23=M$6,'FP-DET'!$L23,""),"") ->  | N17: =IF('FP-DET'!$E23=1,IF('FP-DET'!$H23=N$6,'FP-DET'!$L23,""),"") ->  | O17: =IF('FP-DET'!$E23=1,IF('FP-DET'!$H23=O$6,'FP-DET'!$L23,""),"") ->  | P17: =IF('FP-DET'!$E23=2,IF('FP-DET'!$H23=P$6,'FP-DET'!$L23,""),"") ->  | Q17: =IF('FP-DET'!$E23=2,IF('FP-DET'!$H23=Q$6,'FP-DET'!$L23,""),"") ->  | R17: =IF('FP-DET'!$E23=2,IF('FP-DET'!$H23=R$6,'FP-DET'!$L23,""),"") ->  | S17: =IF('FP-DET'!$E23=2,IF('FP-DET'!$H23=S$6,'FP-DET'!$L23,""),"") ->  | T17: =IF('FP-DET'!$E23=2,IF('FP-DET'!$H23=T$6,'FP-DET'!$L23,""),"") ->  | U17: =IF('FP-DET'!$E23=3,IF('FP-DET'!$H23=U$6,'FP-DET'!$L23,""),"") ->  | V17: =IF('FP-DET'!$E23=3,IF('FP-DET'!$H23=V$6,'FP-DET'!$L23,""),"") ->  | W17: =IF('FP-DET'!$E23=3,IF('FP-DET'!$H23=W$6,'FP-DET'!$L23,""),"") ->  | X17: =IF('FP-DET'!$E23=3,IF('FP-DET'!$H23=X$6,'FP-DET'!$L23,""),"") ->  | Y17: =IF('FP-DET'!$E23=3,IF('FP-DET'!$H23=Y$6,'FP-DET'!$L23,""),"") ->  | Z17: =IF('FP-DET'!$E23=4,IF('FP-DET'!$H23=Z$6,'FP-DET'!$L23,""),"") ->  | AA17: =IF('FP-DET'!$E23=4,IF('FP-DET'!$H23=AA$6,'FP-DET'!$L23,""),"") ->  | AB17: =IF('FP-DET'!$E23=4,IF('FP-DET'!$H23=AB$6,'FP-DET'!$L23,""),"") ->  | AC17: =IF('FP-DET'!$E23=4,IF('FP-DET'!$H23=AC$6,'FP-DET'!$L23,""),"") ->  | AD17: =IF('FP-DET'!$E23=4,IF('FP-DET'!$H23=AD$6,'FP-DET'!$L23,""),"") ->  | AE17: =IF('FP-DET'!$E23=5,IF('FP-DET'!$H23=AE$6,'FP-DET'!$L23,""),"") ->  | AF17: =IF('FP-DET'!$E23=5,IF('FP-DET'!$H23=AF$6,'FP-DET'!$L23,""),"") ->  | AG17: =IF('FP-DET'!$E23=5,IF('FP-DET'!$H23=AG$6,'FP-DET'!$L23,""),"") ->  | AH17: =IF('FP-DET'!$E23=5,IF('FP-DET'!$H23=AH$6,'FP-DET'!$L23,""),"") ->  | AI17: =IF('FP-DET'!$E23=5,IF('FP-DET'!$H23=AI$6,'FP-DET'!$L23,""),"") -> 
K18: =IF('FP-DET'!$E24=1,IF('FP-DET'!$H24=K$6,'FP-DET'!$L24,""),"") ->  | L18: =IF('FP-DET'!$E24=1,IF('FP-DET'!$H24=L$6,'FP-DET'!$L24,""),"") ->  | M18: =IF('FP-DET'!$E24=1,IF('FP-DET'!$H24=M$6,'FP-DET'!$L24,""),"") ->  | N18: =IF('FP-DET'!$E24=1,IF('FP-DET'!$H24=N$6,'FP-DET'!$L24,""),"") ->  | O18: =IF('FP-DET'!$E24=1,IF('FP-DET'!$H24=O$6,'FP-DET'!$L24,""),"") ->  | P18: =IF('FP-DET'!$E24=2,IF('FP-DET'!$H24=P$6,'FP-DET'!$L24,""),"") ->  | Q18: =IF('FP-DET'!$E24=2,IF('FP-DET'!$H24=Q$6,'FP-DET'!$L24,""),"") ->  | R18: =IF('FP-DET'!$E24=2,IF('FP-DET'!$H24=R$6,'FP-DET'!$L24,""),"") ->  | S18: =IF('FP-DET'!$E24=2,IF('FP-DET'!$H24=S$6,'FP-DET'!$L24,""),"") ->  | T18: =IF('FP-DET'!$E24=2,IF('FP-DET'!$H24=T$6,'FP-DET'!$L24,""),"") ->  | U18: =IF('FP-DET'!$E24=3,IF('FP-DET'!$H24=U$6,'FP-DET'!$L24,""),"") ->  | V18: =IF('FP-DET'!$E24=3,IF('FP-DET'!$H24=V$6,'FP-DET'!$L24,""),"") ->  | W18: =IF('FP-DET'!$E24=3,IF('FP-DET'!$H24=W$6,'FP-DET'!$L24,""),"") ->  | X18: =IF('FP-DET'!$E24=3,IF('FP-DET'!$H24=X$6,'FP-DET'!$L24,""),"") ->  | Y18: =IF('FP-DET'!$E24=3,IF('FP-DET'!$H24=Y$6,'FP-DET'!$L24,""),"") ->  | Z18: =IF('FP-DET'!$E24=4,IF('FP-DET'!$H24=Z$6,'FP-DET'!$L24,""),"") ->  | AA18: =IF('FP-DET'!$E24=4,IF('FP-DET'!$H24=AA$6,'FP-DET'!$L24,""),"") ->  | AB18: =IF('FP-DET'!$E24=4,IF('FP-DET'!$H24=AB$6,'FP-DET'!$L24,""),"") ->  | AC18: =IF('FP-DET'!$E24=4,IF('FP-DET'!$H24=AC$6,'FP-DET'!$L24,""),"") ->  | AD18: =IF('FP-DET'!$E24=4,IF('FP-DET'!$H24=AD$6,'FP-DET'!$L24,""),"") ->  | AE18: =IF('FP-DET'!$E24=5,IF('FP-DET'!$H24=AE$6,'FP-DET'!$L24,""),"") ->  | AF18: =IF('FP-DET'!$E24=5,IF('FP-DET'!$H24=AF$6,'FP-DET'!$L24,""),"") ->  | AG18: =IF('FP-DET'!$E24=5,IF('FP-DET'!$H24=AG$6,'FP-DET'!$L24,""),"") ->  | AH18: =IF('FP-DET'!$E24=5,IF('FP-DET'!$H24=AH$6,'FP-DET'!$L24,""),"") ->  | AI18: =IF('FP-DET'!$E24=5,IF('FP-DET'!$H24=AI$6,'FP-DET'!$L24,""),"") ->  | AP18: Tipo Conteggio
K19: =IF('FP-DET'!$E25=1,IF('FP-DET'!$H25=K$6,'FP-DET'!$L25,""),"") ->  | L19: =IF('FP-DET'!$E25=1,IF('FP-DET'!$H25=L$6,'FP-DET'!$L25,""),"") ->  | M19: =IF('FP-DET'!$E25=1,IF('FP-DET'!$H25=M$6,'FP-DET'!$L25,""),"") ->  | N19: =IF('FP-DET'!$E25=1,IF('FP-DET'!$H25=N$6,'FP-DET'!$L25,""),"") ->  | O19: =IF('FP-DET'!$E25=1,IF('FP-DET'!$H25=O$6,'FP-DET'!$L25,""),"") -> B | P19: =IF('FP-DET'!$E25=2,IF('FP-DET'!$H25=P$6,'FP-DET'!$L25,""),"") ->  | Q19: =IF('FP-DET'!$E25=2,IF('FP-DET'!$H25=Q$6,'FP-DET'!$L25,""),"") ->  | R19: =IF('FP-DET'!$E25=2,IF('FP-DET'!$H25=R$6,'FP-DET'!$L25,""),"") ->  | S19: =IF('FP-DET'!$E25=2,IF('FP-DET'!$H25=S$6,'FP-DET'!$L25,""),"") ->  | T19: =IF('FP-DET'!$E25=2,IF('FP-DET'!$H25=T$6,'FP-DET'!$L25,""),"") ->  | U19: =IF('FP-DET'!$E25=3,IF('FP-DET'!$H25=U$6,'FP-DET'!$L25,""),"") ->  | V19: =IF('FP-DET'!$E25=3,IF('FP-DET'!$H25=V$6,'FP-DET'!$L25,""),"") ->  | W19: =IF('FP-DET'!$E25=3,IF('FP-DET'!$H25=W$6,'FP-DET'!$L25,""),"") ->  | X19: =IF('FP-DET'!$E25=3,IF('FP-DET'!$H25=X$6,'FP-DET'!$L25,""),"") ->  | Y19: =IF('FP-DET'!$E25=3,IF('FP-DET'!$H25=Y$6,'FP-DET'!$L25,""),"") ->  | Z19: =IF('FP-DET'!$E25=4,IF('FP-DET'!$H25=Z$6,'FP-DET'!$L25,""),"") ->  | AA19: =IF('FP-DET'!$E25=4,IF('FP-DET'!$H25=AA$6,'FP-DET'!$L25,""),"") ->  | AB19: =IF('FP-DET'!$E25=4,IF('FP-DET'!$H25=AB$6,'FP-DET'!$L25,""),"") ->  | AC19: =IF('FP-DET'!$E25=4,IF('FP-DET'!$H25=AC$6,'FP-DET'!$L25,""),"") ->  | AD19: =IF('FP-DET'!$E25=4,IF('FP-DET'!$H25=AD$6,'FP-DET'!$L25,""),"") ->  | AE19: =IF('FP-DET'!$E25=5,IF('FP-DET'!$H25=AE$6,'FP-DET'!$L25,""),"") ->  | AF19: =IF('FP-DET'!$E25=5,IF('FP-DET'!$H25=AF$6,'FP-DET'!$L25,""),"") ->  | AG19: =IF('FP-DET'!$E25=5,IF('FP-DET'!$H25=AG$6,'FP-DET'!$L25,""),"") ->  | AH19: =IF('FP-DET'!$E25=5,IF('FP-DET'!$H25=AH$6,'FP-DET'!$L25,""),"") ->  | AI19: =IF('FP-DET'!$E25=5,IF('FP-DET'!$H25=AI$6,'FP-DET'!$L25,""),"") ->  | AP19: 1 | AQ19: DFP - Sviluppo Progetto
K20: =IF('FP-DET'!$E26=1,IF('FP-DET'!$H26=K$6,'FP-DET'!$L26,""),"") ->  | L20: =IF('FP-DET'!$E26=1,IF('FP-DET'!$H26=L$6,'FP-DET'!$L26,""),"") ->  | M20: =IF('FP-DET'!$E26=1,IF('FP-DET'!$H26=M$6,'FP-DET'!$L26,""),"") ->  | N20: =IF('FP-DET'!$E26=1,IF('FP-DET'!$H26=N$6,'FP-DET'!$L26,""),"") -> B | O20: =IF('FP-DET'!$E26=1,IF('FP-DET'!$H26=O$6,'FP-DET'!$L26,""),"") ->  | P20: =IF('FP-DET'!$E26=2,IF('FP-DET'!$H26=P$6,'FP-DET'!$L26,""),"") ->  | Q20: =IF('FP-DET'!$E26=2,IF('FP-DET'!$H26=Q$6,'FP-DET'!$L26,""),"") ->  | R20: =IF('FP-DET'!$E26=2,IF('FP-DET'!$H26=R$6,'FP-DET'!$L26,""),"") ->  | S20: =IF('FP-DET'!$E26=2,IF('FP-DET'!$H26=S$6,'FP-DET'!$L26,""),"") ->  | T20: =IF('FP-DET'!$E26=2,IF('FP-DET'!$H26=T$6,'FP-DET'!$L26,""),"") ->  | U20: =IF('FP-DET'!$E26=3,IF('FP-DET'!$H26=U$6,'FP-DET'!$L26,""),"") ->  | V20: =IF('FP-DET'!$E26=3,IF('FP-DET'!$H26=V$6,'FP-DET'!$L26,""),"") ->  | W20: =IF('FP-DET'!$E26=3,IF('FP-DET'!$H26=W$6,'FP-DET'!$L26,""),"") ->  | X20: =IF('FP-DET'!$E26=3,IF('FP-DET'!$H26=X$6,'FP-DET'!$L26,""),"") ->  | Y20: =IF('FP-DET'!$E26=3,IF('FP-DET'!$H26=Y$6,'FP-DET'!$L26,""),"") ->  | Z20: =IF('FP-DET'!$E26=4,IF('FP-DET'!$H26=Z$6,'FP-DET'!$L26,""),"") ->  | AA20: =IF('FP-DET'!$E26=4,IF('FP-DET'!$H26=AA$6,'FP-DET'!$L26,""),"") ->  | AB20: =IF('FP-DET'!$E26=4,IF('FP-DET'!$H26=AB$6,'FP-DET'!$L26,""),"") ->  | AC20: =IF('FP-DET'!$E26=4,IF('FP-DET'!$H26=AC$6,'FP-DET'!$L26,""),"") ->  | AD20: =IF('FP-DET'!$E26=4,IF('FP-DET'!$H26=AD$6,'FP-DET'!$L26,""),"") ->  | AE20: =IF('FP-DET'!$E26=5,IF('FP-DET'!$H26=AE$6,'FP-DET'!$L26,""),"") ->  | AF20: =IF('FP-DET'!$E26=5,IF('FP-DET'!$H26=AF$6,'FP-DET'!$L26,""),"") ->  | AG20: =IF('FP-DET'!$E26=5,IF('FP-DET'!$H26=AG$6,'FP-DET'!$L26,""),"") ->  | AH20: =IF('FP-DET'!$E26=5,IF('FP-DET'!$H26=AH$6,'FP-DET'!$L26,""),"") ->  | AI20: =IF('FP-DET'!$E26=5,IF('FP-DET'!$H26=AI$6,'FP-DET'!$L26,""),"") ->  | AP20: 2 | AQ20: EFP - Manutenzione Evolutiva-Adeguativa
K21: =IF('FP-DET'!$E27=1,IF('FP-DET'!$H27=K$6,'FP-DET'!$L27,""),"") ->  | L21: =IF('FP-DET'!$E27=1,IF('FP-DET'!$H27=L$6,'FP-DET'!$L27,""),"") ->  | M21: =IF('FP-DET'!$E27=1,IF('FP-DET'!$H27=M$6,'FP-DET'!$L27,""),"") -> B | N21: =IF('FP-DET'!$E27=1,IF('FP-DET'!$H27=N$6,'FP-DET'!$L27,""),"") ->  | O21: =IF('FP-DET'!$E27=1,IF('FP-DET'!$H27=O$6,'FP-DET'!$L27,""),"") ->  | P21: =IF('FP-DET'!$E27=2,IF('FP-DET'!$H27=P$6,'FP-DET'!$L27,""),"") ->  | Q21: =IF('FP-DET'!$E27=2,IF('FP-DET'!$H27=Q$6,'FP-DET'!$L27,""),"") ->  | R21: =IF('FP-DET'!$E27=2,IF('FP-DET'!$H27=R$6,'FP-DET'!$L27,""),"") ->  | S21: =IF('FP-DET'!$E27=2,IF('FP-DET'!$H27=S$6,'FP-DET'!$L27,""),"") ->  | T21: =IF('FP-DET'!$E27=2,IF('FP-DET'!$H27=T$6,'FP-DET'!$L27,""),"") ->  | U21: =IF('FP-DET'!$E27=3,IF('FP-DET'!$H27=U$6,'FP-DET'!$L27,""),"") ->  | V21: =IF('FP-DET'!$E27=3,IF('FP-DET'!$H27=V$6,'FP-DET'!$L27,""),"") ->  | W21: =IF('FP-DET'!$E27=3,IF('FP-DET'!$H27=W$6,'FP-DET'!$L27,""),"") ->  | X21: =IF('FP-DET'!$E27=3,IF('FP-DET'!$H27=X$6,'FP-DET'!$L27,""),"") ->  | Y21: =IF('FP-DET'!$E27=3,IF('FP-DET'!$H27=Y$6,'FP-DET'!$L27,""),"") ->  | Z21: =IF('FP-DET'!$E27=4,IF('FP-DET'!$H27=Z$6,'FP-DET'!$L27,""),"") ->  | AA21: =IF('FP-DET'!$E27=4,IF('FP-DET'!$H27=AA$6,'FP-DET'!$L27,""),"") ->  | AB21: =IF('FP-DET'!$E27=4,IF('FP-DET'!$H27=AB$6,'FP-DET'!$L27,""),"") ->  | AC21: =IF('FP-DET'!$E27=4,IF('FP-DET'!$H27=AC$6,'FP-DET'!$L27,""),"") ->  | AD21: =IF('FP-DET'!$E27=4,IF('FP-DET'!$H27=AD$6,'FP-DET'!$L27,""),"") ->  | AE21: =IF('FP-DET'!$E27=5,IF('FP-DET'!$H27=AE$6,'FP-DET'!$L27,""),"") ->  | AF21: =IF('FP-DET'!$E27=5,IF('FP-DET'!$H27=AF$6,'FP-DET'!$L27,""),"") ->  | AG21: =IF('FP-DET'!$E27=5,IF('FP-DET'!$H27=AG$6,'FP-DET'!$L27,""),"") ->  | AH21: =IF('FP-DET'!$E27=5,IF('FP-DET'!$H27=AH$6,'FP-DET'!$L27,""),"") ->  | AI21: =IF('FP-DET'!$E27=5,IF('FP-DET'!$H27=AI$6,'FP-DET'!$L27,""),"") ->  | AP21: 3 | AQ21: AFP - Misurazione Applicazione Esistente
K22: =IF('FP-DET'!$E28=1,IF('FP-DET'!$H28=K$6,'FP-DET'!$L28,""),"") ->  | L22: =IF('FP-DET'!$E28=1,IF('FP-DET'!$H28=L$6,'FP-DET'!$L28,""),"") ->  | M22: =IF('FP-DET'!$E28=1,IF('FP-DET'!$H28=M$6,'FP-DET'!$L28,""),"") -> B | N22: =IF('FP-DET'!$E28=1,IF('FP-DET'!$H28=N$6,'FP-DET'!$L28,""),"") ->  | O22: =IF('FP-DET'!$E28=1,IF('FP-DET'!$H28=O$6,'FP-DET'!$L28,""),"") ->  | P22: =IF('FP-DET'!$E28=2,IF('FP-DET'!$H28=P$6,'FP-DET'!$L28,""),"") ->  | Q22: =IF('FP-DET'!$E28=2,IF('FP-DET'!$H28=Q$6,'FP-DET'!$L28,""),"") ->  | R22: =IF('FP-DET'!$E28=2,IF('FP-DET'!$H28=R$6,'FP-DET'!$L28,""),"") ->  | S22: =IF('FP-DET'!$E28=2,IF('FP-DET'!$H28=S$6,'FP-DET'!$L28,""),"") ->  | T22: =IF('FP-DET'!$E28=2,IF('FP-DET'!$H28=T$6,'FP-DET'!$L28,""),"") ->  | U22: =IF('FP-DET'!$E28=3,IF('FP-DET'!$H28=U$6,'FP-DET'!$L28,""),"") ->  | V22: =IF('FP-DET'!$E28=3,IF('FP-DET'!$H28=V$6,'FP-DET'!$L28,""),"") ->  | W22: =IF('FP-DET'!$E28=3,IF('FP-DET'!$H28=W$6,'FP-DET'!$L28,""),"") ->  | X22: =IF('FP-DET'!$E28=3,IF('FP-DET'!$H28=X$6,'FP-DET'!$L28,""),"") ->  | Y22: =IF('FP-DET'!$E28=3,IF('FP-DET'!$H28=Y$6,'FP-DET'!$L28,""),"") ->  | Z22: =IF('FP-DET'!$E28=4,IF('FP-DET'!$H28=Z$6,'FP-DET'!$L28,""),"") ->  | AA22: =IF('FP-DET'!$E28=4,IF('FP-DET'!$H28=AA$6,'FP-DET'!$L28,""),"") ->  | AB22: =IF('FP-DET'!$E28=4,IF('FP-DET'!$H28=AB$6,'FP-DET'!$L28,""),"") ->  | AC22: =IF('FP-DET'!$E28=4,IF('FP-DET'!$H28=AC$6,'FP-DET'!$L28,""),"") ->  | AD22: =IF('FP-DET'!$E28=4,IF('FP-DET'!$H28=AD$6,'FP-DET'!$L28,""),"") ->  | AE22: =IF('FP-DET'!$E28=5,IF('FP-DET'!$H28=AE$6,'FP-DET'!$L28,""),"") ->  | AF22: =IF('FP-DET'!$E28=5,IF('FP-DET'!$H28=AF$6,'FP-DET'!$L28,""),"") ->  | AG22: =IF('FP-DET'!$E28=5,IF('FP-DET'!$H28=AG$6,'FP-DET'!$L28,""),"") ->  | AH22: =IF('FP-DET'!$E28=5,IF('FP-DET'!$H28=AH$6,'FP-DET'!$L28,""),"") ->  | AI22: =IF('FP-DET'!$E28=5,IF('FP-DET'!$H28=AI$6,'FP-DET'!$L28,""),"") ->  | AP22: Fase di Conteggio
K23: =IF('FP-DET'!$E29=1,IF('FP-DET'!$H29=K$6,'FP-DET'!$L29,""),"") ->  | L23: =IF('FP-DET'!$E29=1,IF('FP-DET'!$H29=L$6,'FP-DET'!$L29,""),"") ->  | M23: =IF('FP-DET'!$E29=1,IF('FP-DET'!$H29=M$6,'FP-DET'!$L29,""),"") ->  | N23: =IF('FP-DET'!$E29=1,IF('FP-DET'!$H29=N$6,'FP-DET'!$L29,""),"") -> B | O23: =IF('FP-DET'!$E29=1,IF('FP-DET'!$H29=O$6,'FP-DET'!$L29,""),"") ->  | P23: =IF('FP-DET'!$E29=2,IF('FP-DET'!$H29=P$6,'FP-DET'!$L29,""),"") ->  | Q23: =IF('FP-DET'!$E29=2,IF('FP-DET'!$H29=Q$6,'FP-DET'!$L29,""),"") ->  | R23: =IF('FP-DET'!$E29=2,IF('FP-DET'!$H29=R$6,'FP-DET'!$L29,""),"") ->  | S23: =IF('FP-DET'!$E29=2,IF('FP-DET'!$H29=S$6,'FP-DET'!$L29,""),"") ->  | T23: =IF('FP-DET'!$E29=2,IF('FP-DET'!$H29=T$6,'FP-DET'!$L29,""),"") ->  | U23: =IF('FP-DET'!$E29=3,IF('FP-DET'!$H29=U$6,'FP-DET'!$L29,""),"") ->  | V23: =IF('FP-DET'!$E29=3,IF('FP-DET'!$H29=V$6,'FP-DET'!$L29,""),"") ->  | W23: =IF('FP-DET'!$E29=3,IF('FP-DET'!$H29=W$6,'FP-DET'!$L29,""),"") ->  | X23: =IF('FP-DET'!$E29=3,IF('FP-DET'!$H29=X$6,'FP-DET'!$L29,""),"") ->  | Y23: =IF('FP-DET'!$E29=3,IF('FP-DET'!$H29=Y$6,'FP-DET'!$L29,""),"") ->  | Z23: =IF('FP-DET'!$E29=4,IF('FP-DET'!$H29=Z$6,'FP-DET'!$L29,""),"") ->  | AA23: =IF('FP-DET'!$E29=4,IF('FP-DET'!$H29=AA$6,'FP-DET'!$L29,""),"") ->  | AB23: =IF('FP-DET'!$E29=4,IF('FP-DET'!$H29=AB$6,'FP-DET'!$L29,""),"") ->  | AC23: =IF('FP-DET'!$E29=4,IF('FP-DET'!$H29=AC$6,'FP-DET'!$L29,""),"") ->  | AD23: =IF('FP-DET'!$E29=4,IF('FP-DET'!$H29=AD$6,'FP-DET'!$L29,""),"") ->  | AE23: =IF('FP-DET'!$E29=5,IF('FP-DET'!$H29=AE$6,'FP-DET'!$L29,""),"") ->  | AF23: =IF('FP-DET'!$E29=5,IF('FP-DET'!$H29=AF$6,'FP-DET'!$L29,""),"") ->  | AG23: =IF('FP-DET'!$E29=5,IF('FP-DET'!$H29=AG$6,'FP-DET'!$L29,""),"") ->  | AH23: =IF('FP-DET'!$E29=5,IF('FP-DET'!$H29=AH$6,'FP-DET'!$L29,""),"") ->  | AI23: =IF('FP-DET'!$E29=5,IF('FP-DET'!$H29=AI$6,'FP-DET'!$L29,""),"") ->  | AP23: 1 | AQ23: Studio di fattibilità
K24: =IF('FP-DET'!$E30=1,IF('FP-DET'!$H30=K$6,'FP-DET'!$L30,""),"") ->  | L24: =IF('FP-DET'!$E30=1,IF('FP-DET'!$H30=L$6,'FP-DET'!$L30,""),"") ->  | M24: =IF('FP-DET'!$E30=1,IF('FP-DET'!$H30=M$6,'FP-DET'!$L30,""),"") ->  | N24: =IF('FP-DET'!$E30=1,IF('FP-DET'!$H30=N$6,'FP-DET'!$L30,""),"") ->  | O24: =IF('FP-DET'!$E30=1,IF('FP-DET'!$H30=O$6,'FP-DET'!$L30,""),"") -> B | P24: =IF('FP-DET'!$E30=2,IF('FP-DET'!$H30=P$6,'FP-DET'!$L30,""),"") ->  | Q24: =IF('FP-DET'!$E30=2,IF('FP-DET'!$H30=Q$6,'FP-DET'!$L30,""),"") ->  | R24: =IF('FP-DET'!$E30=2,IF('FP-DET'!$H30=R$6,'FP-DET'!$L30,""),"") ->  | S24: =IF('FP-DET'!$E30=2,IF('FP-DET'!$H30=S$6,'FP-DET'!$L30,""),"") ->  | T24: =IF('FP-DET'!$E30=2,IF('FP-DET'!$H30=T$6,'FP-DET'!$L30,""),"") ->  | U24: =IF('FP-DET'!$E30=3,IF('FP-DET'!$H30=U$6,'FP-DET'!$L30,""),"") ->  | V24: =IF('FP-DET'!$E30=3,IF('FP-DET'!$H30=V$6,'FP-DET'!$L30,""),"") ->  | W24: =IF('FP-DET'!$E30=3,IF('FP-DET'!$H30=W$6,'FP-DET'!$L30,""),"") ->  | X24: =IF('FP-DET'!$E30=3,IF('FP-DET'!$H30=X$6,'FP-DET'!$L30,""),"") ->  | Y24: =IF('FP-DET'!$E30=3,IF('FP-DET'!$H30=Y$6,'FP-DET'!$L30,""),"") ->  | Z24: =IF('FP-DET'!$E30=4,IF('FP-DET'!$H30=Z$6,'FP-DET'!$L30,""),"") ->  | AA24: =IF('FP-DET'!$E30=4,IF('FP-DET'!$H30=AA$6,'FP-DET'!$L30,""),"") ->  | AB24: =IF('FP-DET'!$E30=4,IF('FP-DET'!$H30=AB$6,'FP-DET'!$L30,""),"") ->  | AC24: =IF('FP-DET'!$E30=4,IF('FP-DET'!$H30=AC$6,'FP-DET'!$L30,""),"") ->  | AD24: =IF('FP-DET'!$E30=4,IF('FP-DET'!$H30=AD$6,'FP-DET'!$L30,""),"") ->  | AE24: =IF('FP-DET'!$E30=5,IF('FP-DET'!$H30=AE$6,'FP-DET'!$L30,""),"") ->  | AF24: =IF('FP-DET'!$E30=5,IF('FP-DET'!$H30=AF$6,'FP-DET'!$L30,""),"") ->  | AG24: =IF('FP-DET'!$E30=5,IF('FP-DET'!$H30=AG$6,'FP-DET'!$L30,""),"") ->  | AH24: =IF('FP-DET'!$E30=5,IF('FP-DET'!$H30=AH$6,'FP-DET'!$L30,""),"") ->  | AI24: =IF('FP-DET'!$E30=5,IF('FP-DET'!$H30=AI$6,'FP-DET'!$L30,""),"") ->  | AP24: 2 | AQ24: Requisiti Utente
K25: =IF('FP-DET'!$E31=1,IF('FP-DET'!$H31=K$6,'FP-DET'!$L31,""),"") ->  | L25: =IF('FP-DET'!$E31=1,IF('FP-DET'!$H31=L$6,'FP-DET'!$L31,""),"") ->  | M25: =IF('FP-DET'!$E31=1,IF('FP-DET'!$H31=M$6,'FP-DET'!$L31,""),"") ->  | N25: =IF('FP-DET'!$E31=1,IF('FP-DET'!$H31=N$6,'FP-DET'!$L31,""),"") ->  | O25: =IF('FP-DET'!$E31=1,IF('FP-DET'!$H31=O$6,'FP-DET'!$L31,""),"") -> B | P25: =IF('FP-DET'!$E31=2,IF('FP-DET'!$H31=P$6,'FP-DET'!$L31,""),"") ->  | Q25: =IF('FP-DET'!$E31=2,IF('FP-DET'!$H31=Q$6,'FP-DET'!$L31,""),"") ->  | R25: =IF('FP-DET'!$E31=2,IF('FP-DET'!$H31=R$6,'FP-DET'!$L31,""),"") ->  | S25: =IF('FP-DET'!$E31=2,IF('FP-DET'!$H31=S$6,'FP-DET'!$L31,""),"") ->  | T25: =IF('FP-DET'!$E31=2,IF('FP-DET'!$H31=T$6,'FP-DET'!$L31,""),"") ->  | U25: =IF('FP-DET'!$E31=3,IF('FP-DET'!$H31=U$6,'FP-DET'!$L31,""),"") ->  | V25: =IF('FP-DET'!$E31=3,IF('FP-DET'!$H31=V$6,'FP-DET'!$L31,""),"") ->  | W25: =IF('FP-DET'!$E31=3,IF('FP-DET'!$H31=W$6,'FP-DET'!$L31,""),"") ->  | X25: =IF('FP-DET'!$E31=3,IF('FP-DET'!$H31=X$6,'FP-DET'!$L31,""),"") ->  | Y25: =IF('FP-DET'!$E31=3,IF('FP-DET'!$H31=Y$6,'FP-DET'!$L31,""),"") ->  | Z25: =IF('FP-DET'!$E31=4,IF('FP-DET'!$H31=Z$6,'FP-DET'!$L31,""),"") ->  | AA25: =IF('FP-DET'!$E31=4,IF('FP-DET'!$H31=AA$6,'FP-DET'!$L31,""),"") ->  | AB25: =IF('FP-DET'!$E31=4,IF('FP-DET'!$H31=AB$6,'FP-DET'!$L31,""),"") ->  | AC25: =IF('FP-DET'!$E31=4,IF('FP-DET'!$H31=AC$6,'FP-DET'!$L31,""),"") ->  | AD25: =IF('FP-DET'!$E31=4,IF('FP-DET'!$H31=AD$6,'FP-DET'!$L31,""),"") ->  | AE25: =IF('FP-DET'!$E31=5,IF('FP-DET'!$H31=AE$6,'FP-DET'!$L31,""),"") ->  | AF25: =IF('FP-DET'!$E31=5,IF('FP-DET'!$H31=AF$6,'FP-DET'!$L31,""),"") ->  | AG25: =IF('FP-DET'!$E31=5,IF('FP-DET'!$H31=AG$6,'FP-DET'!$L31,""),"") ->  | AH25: =IF('FP-DET'!$E31=5,IF('FP-DET'!$H31=AH$6,'FP-DET'!$L31,""),"") ->  | AI25: =IF('FP-DET'!$E31=5,IF('FP-DET'!$H31=AI$6,'FP-DET'!$L31,""),"") ->  | AP25: 3 | AQ25: Specifiche Funzionali
K26: =IF('FP-DET'!$E32=1,IF('FP-DET'!$H32=K$6,'FP-DET'!$L32,""),"") ->  | L26: =IF('FP-DET'!$E32=1,IF('FP-DET'!$H32=L$6,'FP-DET'!$L32,""),"") ->  | M26: =IF('FP-DET'!$E32=1,IF('FP-DET'!$H32=M$6,'FP-DET'!$L32,""),"") -> M | N26: =IF('FP-DET'!$E32=1,IF('FP-DET'!$H32=N$6,'FP-DET'!$L32,""),"") ->  | O26: =IF('FP-DET'!$E32=1,IF('FP-DET'!$H32=O$6,'FP-DET'!$L32,""),"") ->  | P26: =IF('FP-DET'!$E32=2,IF('FP-DET'!$H32=P$6,'FP-DET'!$L32,""),"") ->  | Q26: =IF('FP-DET'!$E32=2,IF('FP-DET'!$H32=Q$6,'FP-DET'!$L32,""),"") ->  | R26: =IF('FP-DET'!$E32=2,IF('FP-DET'!$H32=R$6,'FP-DET'!$L32,""),"") ->  | S26: =IF('FP-DET'!$E32=2,IF('FP-DET'!$H32=S$6,'FP-DET'!$L32,""),"") ->  | T26: =IF('FP-DET'!$E32=2,IF('FP-DET'!$H32=T$6,'FP-DET'!$L32,""),"") ->  | U26: =IF('FP-DET'!$E32=3,IF('FP-DET'!$H32=U$6,'FP-DET'!$L32,""),"") ->  | V26: =IF('FP-DET'!$E32=3,IF('FP-DET'!$H32=V$6,'FP-DET'!$L32,""),"") ->  | W26: =IF('FP-DET'!$E32=3,IF('FP-DET'!$H32=W$6,'FP-DET'!$L32,""),"") ->  | X26: =IF('FP-DET'!$E32=3,IF('FP-DET'!$H32=X$6,'FP-DET'!$L32,""),"") ->  | Y26: =IF('FP-DET'!$E32=3,IF('FP-DET'!$H32=Y$6,'FP-DET'!$L32,""),"") ->  | Z26: =IF('FP-DET'!$E32=4,IF('FP-DET'!$H32=Z$6,'FP-DET'!$L32,""),"") ->  | AA26: =IF('FP-DET'!$E32=4,IF('FP-DET'!$H32=AA$6,'FP-DET'!$L32,""),"") ->  | AB26: =IF('FP-DET'!$E32=4,IF('FP-DET'!$H32=AB$6,'FP-DET'!$L32,""),"") ->  | AC26: =IF('FP-DET'!$E32=4,IF('FP-DET'!$H32=AC$6,'FP-DET'!$L32,""),"") ->  | AD26: =IF('FP-DET'!$E32=4,IF('FP-DET'!$H32=AD$6,'FP-DET'!$L32,""),"") ->  | AE26: =IF('FP-DET'!$E32=5,IF('FP-DET'!$H32=AE$6,'FP-DET'!$L32,""),"") ->  | AF26: =IF('FP-DET'!$E32=5,IF('FP-DET'!$H32=AF$6,'FP-DET'!$L32,""),"") ->  | AG26: =IF('FP-DET'!$E32=5,IF('FP-DET'!$H32=AG$6,'FP-DET'!$L32,""),"") ->  | AH26: =IF('FP-DET'!$E32=5,IF('FP-DET'!$H32=AH$6,'FP-DET'!$L32,""),"") ->  | AI26: =IF('FP-DET'!$E32=5,IF('FP-DET'!$H32=AI$6,'FP-DET'!$L32,""),"") ->  | AP26: 4 | AQ26: Specifiche Tecniche
K27: =IF('FP-DET'!$E33=1,IF('FP-DET'!$H33=K$6,'FP-DET'!$L33,""),"") ->  | L27: =IF('FP-DET'!$E33=1,IF('FP-DET'!$H33=L$6,'FP-DET'!$L33,""),"") ->  | M27: =IF('FP-DET'!$E33=1,IF('FP-DET'!$H33=M$6,'FP-DET'!$L33,""),"") ->  | N27: =IF('FP-DET'!$E33=1,IF('FP-DET'!$H33=N$6,'FP-DET'!$L33,""),"") -> B | O27: =IF('FP-DET'!$E33=1,IF('FP-DET'!$H33=O$6,'FP-DET'!$L33,""),"") ->  | P27: =IF('FP-DET'!$E33=2,IF('FP-DET'!$H33=P$6,'FP-DET'!$L33,""),"") ->  | Q27: =IF('FP-DET'!$E33=2,IF('FP-DET'!$H33=Q$6,'FP-DET'!$L33,""),"") ->  | R27: =IF('FP-DET'!$E33=2,IF('FP-DET'!$H33=R$6,'FP-DET'!$L33,""),"") ->  | S27: =IF('FP-DET'!$E33=2,IF('FP-DET'!$H33=S$6,'FP-DET'!$L33,""),"") ->  | T27: =IF('FP-DET'!$E33=2,IF('FP-DET'!$H33=T$6,'FP-DET'!$L33,""),"") ->  | U27: =IF('FP-DET'!$E33=3,IF('FP-DET'!$H33=U$6,'FP-DET'!$L33,""),"") ->  | V27: =IF('FP-DET'!$E33=3,IF('FP-DET'!$H33=V$6,'FP-DET'!$L33,""),"") ->  | W27: =IF('FP-DET'!$E33=3,IF('FP-DET'!$H33=W$6,'FP-DET'!$L33,""),"") ->  | X27: =IF('FP-DET'!$E33=3,IF('FP-DET'!$H33=X$6,'FP-DET'!$L33,""),"") ->  | Y27: =IF('FP-DET'!$E33=3,IF('FP-DET'!$H33=Y$6,'FP-DET'!$L33,""),"") ->  | Z27: =IF('FP-DET'!$E33=4,IF('FP-DET'!$H33=Z$6,'FP-DET'!$L33,""),"") ->  | AA27: =IF('FP-DET'!$E33=4,IF('FP-DET'!$H33=AA$6,'FP-DET'!$L33,""),"") ->  | AB27: =IF('FP-DET'!$E33=4,IF('FP-DET'!$H33=AB$6,'FP-DET'!$L33,""),"") ->  | AC27: =IF('FP-DET'!$E33=4,IF('FP-DET'!$H33=AC$6,'FP-DET'!$L33,""),"") ->  | AD27: =IF('FP-DET'!$E33=4,IF('FP-DET'!$H33=AD$6,'FP-DET'!$L33,""),"") ->  | AE27: =IF('FP-DET'!$E33=5,IF('FP-DET'!$H33=AE$6,'FP-DET'!$L33,""),"") ->  | AF27: =IF('FP-DET'!$E33=5,IF('FP-DET'!$H33=AF$6,'FP-DET'!$L33,""),"") ->  | AG27: =IF('FP-DET'!$E33=5,IF('FP-DET'!$H33=AG$6,'FP-DET'!$L33,""),"") ->  | AH27: =IF('FP-DET'!$E33=5,IF('FP-DET'!$H33=AH$6,'FP-DET'!$L33,""),"") ->  | AI27: =IF('FP-DET'!$E33=5,IF('FP-DET'!$H33=AI$6,'FP-DET'!$L33,""),"") ->  | AP27: 5 | AQ27: Sviluppo Completato
K28: =IF('FP-DET'!$E34=1,IF('FP-DET'!$H34=K$6,'FP-DET'!$L34,""),"") ->  | L28: =IF('FP-DET'!$E34=1,IF('FP-DET'!$H34=L$6,'FP-DET'!$L34,""),"") ->  | M28: =IF('FP-DET'!$E34=1,IF('FP-DET'!$H34=M$6,'FP-DET'!$L34,""),"") -> M | N28: =IF('FP-DET'!$E34=1,IF('FP-DET'!$H34=N$6,'FP-DET'!$L34,""),"") ->  | O28: =IF('FP-DET'!$E34=1,IF('FP-DET'!$H34=O$6,'FP-DET'!$L34,""),"") ->  | P28: =IF('FP-DET'!$E34=2,IF('FP-DET'!$H34=P$6,'FP-DET'!$L34,""),"") ->  | Q28: =IF('FP-DET'!$E34=2,IF('FP-DET'!$H34=Q$6,'FP-DET'!$L34,""),"") ->  | R28: =IF('FP-DET'!$E34=2,IF('FP-DET'!$H34=R$6,'FP-DET'!$L34,""),"") ->  | S28: =IF('FP-DET'!$E34=2,IF('FP-DET'!$H34=S$6,'FP-DET'!$L34,""),"") ->  | T28: =IF('FP-DET'!$E34=2,IF('FP-DET'!$H34=T$6,'FP-DET'!$L34,""),"") ->  | U28: =IF('FP-DET'!$E34=3,IF('FP-DET'!$H34=U$6,'FP-DET'!$L34,""),"") ->  | V28: =IF('FP-DET'!$E34=3,IF('FP-DET'!$H34=V$6,'FP-DET'!$L34,""),"") ->  | W28: =IF('FP-DET'!$E34=3,IF('FP-DET'!$H34=W$6,'FP-DET'!$L34,""),"") ->  | X28: =IF('FP-DET'!$E34=3,IF('FP-DET'!$H34=X$6,'FP-DET'!$L34,""),"") ->  | Y28: =IF('FP-DET'!$E34=3,IF('FP-DET'!$H34=Y$6,'FP-DET'!$L34,""),"") ->  | Z28: =IF('FP-DET'!$E34=4,IF('FP-DET'!$H34=Z$6,'FP-DET'!$L34,""),"") ->  | AA28: =IF('FP-DET'!$E34=4,IF('FP-DET'!$H34=AA$6,'FP-DET'!$L34,""),"") ->  | AB28: =IF('FP-DET'!$E34=4,IF('FP-DET'!$H34=AB$6,'FP-DET'!$L34,""),"") ->  | AC28: =IF('FP-DET'!$E34=4,IF('FP-DET'!$H34=AC$6,'FP-DET'!$L34,""),"") ->  | AD28: =IF('FP-DET'!$E34=4,IF('FP-DET'!$H34=AD$6,'FP-DET'!$L34,""),"") ->  | AE28: =IF('FP-DET'!$E34=5,IF('FP-DET'!$H34=AE$6,'FP-DET'!$L34,""),"") ->  | AF28: =IF('FP-DET'!$E34=5,IF('FP-DET'!$H34=AF$6,'FP-DET'!$L34,""),"") ->  | AG28: =IF('FP-DET'!$E34=5,IF('FP-DET'!$H34=AG$6,'FP-DET'!$L34,""),"") ->  | AH28: =IF('FP-DET'!$E34=5,IF('FP-DET'!$H34=AH$6,'FP-DET'!$L34,""),"") ->  | AI28: =IF('FP-DET'!$E34=5,IF('FP-DET'!$H34=AI$6,'FP-DET'!$L34,""),"") ->  | AP28: Ambito del Conteggio
K29: =IF('FP-DET'!$E35=1,IF('FP-DET'!$H35=K$6,'FP-DET'!$L35,""),"") ->  | L29: =IF('FP-DET'!$E35=1,IF('FP-DET'!$H35=L$6,'FP-DET'!$L35,""),"") ->  | M29: =IF('FP-DET'!$E35=1,IF('FP-DET'!$H35=M$6,'FP-DET'!$L35,""),"") ->  | N29: =IF('FP-DET'!$E35=1,IF('FP-DET'!$H35=N$6,'FP-DET'!$L35,""),"") -> M | O29: =IF('FP-DET'!$E35=1,IF('FP-DET'!$H35=O$6,'FP-DET'!$L35,""),"") ->  | P29: =IF('FP-DET'!$E35=2,IF('FP-DET'!$H35=P$6,'FP-DET'!$L35,""),"") ->  | Q29: =IF('FP-DET'!$E35=2,IF('FP-DET'!$H35=Q$6,'FP-DET'!$L35,""),"") ->  | R29: =IF('FP-DET'!$E35=2,IF('FP-DET'!$H35=R$6,'FP-DET'!$L35,""),"") ->  | S29: =IF('FP-DET'!$E35=2,IF('FP-DET'!$H35=S$6,'FP-DET'!$L35,""),"") ->  | T29: =IF('FP-DET'!$E35=2,IF('FP-DET'!$H35=T$6,'FP-DET'!$L35,""),"") ->  | U29: =IF('FP-DET'!$E35=3,IF('FP-DET'!$H35=U$6,'FP-DET'!$L35,""),"") ->  | V29: =IF('FP-DET'!$E35=3,IF('FP-DET'!$H35=V$6,'FP-DET'!$L35,""),"") ->  | W29: =IF('FP-DET'!$E35=3,IF('FP-DET'!$H35=W$6,'FP-DET'!$L35,""),"") ->  | X29: =IF('FP-DET'!$E35=3,IF('FP-DET'!$H35=X$6,'FP-DET'!$L35,""),"") ->  | Y29: =IF('FP-DET'!$E35=3,IF('FP-DET'!$H35=Y$6,'FP-DET'!$L35,""),"") ->  | Z29: =IF('FP-DET'!$E35=4,IF('FP-DET'!$H35=Z$6,'FP-DET'!$L35,""),"") ->  | AA29: =IF('FP-DET'!$E35=4,IF('FP-DET'!$H35=AA$6,'FP-DET'!$L35,""),"") ->  | AB29: =IF('FP-DET'!$E35=4,IF('FP-DET'!$H35=AB$6,'FP-DET'!$L35,""),"") ->  | AC29: =IF('FP-DET'!$E35=4,IF('FP-DET'!$H35=AC$6,'FP-DET'!$L35,""),"") ->  | AD29: =IF('FP-DET'!$E35=4,IF('FP-DET'!$H35=AD$6,'FP-DET'!$L35,""),"") ->  | AE29: =IF('FP-DET'!$E35=5,IF('FP-DET'!$H35=AE$6,'FP-DET'!$L35,""),"") ->  | AF29: =IF('FP-DET'!$E35=5,IF('FP-DET'!$H35=AF$6,'FP-DET'!$L35,""),"") ->  | AG29: =IF('FP-DET'!$E35=5,IF('FP-DET'!$H35=AG$6,'FP-DET'!$L35,""),"") ->  | AH29: =IF('FP-DET'!$E35=5,IF('FP-DET'!$H35=AH$6,'FP-DET'!$L35,""),"") ->  | AI29: =IF('FP-DET'!$E35=5,IF('FP-DET'!$H35=AI$6,'FP-DET'!$L35,""),"") ->  | AP29: 1 | AQ29: ADD | AR29: fun.nuove/aggiunte
K30: =IF('FP-DET'!$E36=1,IF('FP-DET'!$H36=K$6,'FP-DET'!$L36,""),"") ->  | L30: =IF('FP-DET'!$E36=1,IF('FP-DET'!$H36=L$6,'FP-DET'!$L36,""),"") ->  | M30: =IF('FP-DET'!$E36=1,IF('FP-DET'!$H36=M$6,'FP-DET'!$L36,""),"") ->  | N30: =IF('FP-DET'!$E36=1,IF('FP-DET'!$H36=N$6,'FP-DET'!$L36,""),"") ->  | O30: =IF('FP-DET'!$E36=1,IF('FP-DET'!$H36=O$6,'FP-DET'!$L36,""),"") ->  | P30: =IF('FP-DET'!$E36=2,IF('FP-DET'!$H36=P$6,'FP-DET'!$L36,""),"") ->  | Q30: =IF('FP-DET'!$E36=2,IF('FP-DET'!$H36=Q$6,'FP-DET'!$L36,""),"") ->  | R30: =IF('FP-DET'!$E36=2,IF('FP-DET'!$H36=R$6,'FP-DET'!$L36,""),"") ->  | S30: =IF('FP-DET'!$E36=2,IF('FP-DET'!$H36=S$6,'FP-DET'!$L36,""),"") ->  | T30: =IF('FP-DET'!$E36=2,IF('FP-DET'!$H36=T$6,'FP-DET'!$L36,""),"") ->  | U30: =IF('FP-DET'!$E36=3,IF('FP-DET'!$H36=U$6,'FP-DET'!$L36,""),"") ->  | V30: =IF('FP-DET'!$E36=3,IF('FP-DET'!$H36=V$6,'FP-DET'!$L36,""),"") ->  | W30: =IF('FP-DET'!$E36=3,IF('FP-DET'!$H36=W$6,'FP-DET'!$L36,""),"") ->  | X30: =IF('FP-DET'!$E36=3,IF('FP-DET'!$H36=X$6,'FP-DET'!$L36,""),"") ->  | Y30: =IF('FP-DET'!$E36=3,IF('FP-DET'!$H36=Y$6,'FP-DET'!$L36,""),"") ->  | Z30: =IF('FP-DET'!$E36=4,IF('FP-DET'!$H36=Z$6,'FP-DET'!$L36,""),"") ->  | AA30: =IF('FP-DET'!$E36=4,IF('FP-DET'!$H36=AA$6,'FP-DET'!$L36,""),"") ->  | AB30: =IF('FP-DET'!$E36=4,IF('FP-DET'!$H36=AB$6,'FP-DET'!$L36,""),"") ->  | AC30: =IF('FP-DET'!$E36=4,IF('FP-DET'!$H36=AC$6,'FP-DET'!$L36,""),"") ->  | AD30: =IF('FP-DET'!$E36=4,IF('FP-DET'!$H36=AD$6,'FP-DET'!$L36,""),"") ->  | AE30: =IF('FP-DET'!$E36=5,IF('FP-DET'!$H36=AE$6,'FP-DET'!$L36,""),"") ->  | AF30: =IF('FP-DET'!$E36=5,IF('FP-DET'!$H36=AF$6,'FP-DET'!$L36,""),"") ->  | AG30: =IF('FP-DET'!$E36=5,IF('FP-DET'!$H36=AG$6,'FP-DET'!$L36,""),"") ->  | AH30: =IF('FP-DET'!$E36=5,IF('FP-DET'!$H36=AH$6,'FP-DET'!$L36,""),"") ->  | AI30: =IF('FP-DET'!$E36=5,IF('FP-DET'!$H36=AI$6,'FP-DET'!$L36,""),"") ->  | AP30: 2 | AQ30: CFP | AR30: conversione/migrazione dati
K31: =IF('FP-DET'!$E37=1,IF('FP-DET'!$H37=K$6,'FP-DET'!$L37,""),"") ->  | L31: =IF('FP-DET'!$E37=1,IF('FP-DET'!$H37=L$6,'FP-DET'!$L37,""),"") ->  | M31: =IF('FP-DET'!$E37=1,IF('FP-DET'!$H37=M$6,'FP-DET'!$L37,""),"") -> B | N31: =IF('FP-DET'!$E37=1,IF('FP-DET'!$H37=N$6,'FP-DET'!$L37,""),"") ->  | O31: =IF('FP-DET'!$E37=1,IF('FP-DET'!$H37=O$6,'FP-DET'!$L37,""),"") ->  | P31: =IF('FP-DET'!$E37=2,IF('FP-DET'!$H37=P$6,'FP-DET'!$L37,""),"") ->  | Q31: =IF('FP-DET'!$E37=2,IF('FP-DET'!$H37=Q$6,'FP-DET'!$L37,""),"") ->  | R31: =IF('FP-DET'!$E37=2,IF('FP-DET'!$H37=R$6,'FP-DET'!$L37,""),"") ->  | S31: =IF('FP-DET'!$E37=2,IF('FP-DET'!$H37=S$6,'FP-DET'!$L37,""),"") ->  | T31: =IF('FP-DET'!$E37=2,IF('FP-DET'!$H37=T$6,'FP-DET'!$L37,""),"") ->  | U31: =IF('FP-DET'!$E37=3,IF('FP-DET'!$H37=U$6,'FP-DET'!$L37,""),"") ->  | V31: =IF('FP-DET'!$E37=3,IF('FP-DET'!$H37=V$6,'FP-DET'!$L37,""),"") ->  | W31: =IF('FP-DET'!$E37=3,IF('FP-DET'!$H37=W$6,'FP-DET'!$L37,""),"") ->  | X31: =IF('FP-DET'!$E37=3,IF('FP-DET'!$H37=X$6,'FP-DET'!$L37,""),"") ->  | Y31: =IF('FP-DET'!$E37=3,IF('FP-DET'!$H37=Y$6,'FP-DET'!$L37,""),"") ->  | Z31: =IF('FP-DET'!$E37=4,IF('FP-DET'!$H37=Z$6,'FP-DET'!$L37,""),"") ->  | AA31: =IF('FP-DET'!$E37=4,IF('FP-DET'!$H37=AA$6,'FP-DET'!$L37,""),"") ->  | AB31: =IF('FP-DET'!$E37=4,IF('FP-DET'!$H37=AB$6,'FP-DET'!$L37,""),"") ->  | AC31: =IF('FP-DET'!$E37=4,IF('FP-DET'!$H37=AC$6,'FP-DET'!$L37,""),"") ->  | AD31: =IF('FP-DET'!$E37=4,IF('FP-DET'!$H37=AD$6,'FP-DET'!$L37,""),"") ->  | AE31: =IF('FP-DET'!$E37=5,IF('FP-DET'!$H37=AE$6,'FP-DET'!$L37,""),"") ->  | AF31: =IF('FP-DET'!$E37=5,IF('FP-DET'!$H37=AF$6,'FP-DET'!$L37,""),"") ->  | AG31: =IF('FP-DET'!$E37=5,IF('FP-DET'!$H37=AG$6,'FP-DET'!$L37,""),"") ->  | AH31: =IF('FP-DET'!$E37=5,IF('FP-DET'!$H37=AH$6,'FP-DET'!$L37,""),"") ->  | AI31: =IF('FP-DET'!$E37=5,IF('FP-DET'!$H37=AI$6,'FP-DET'!$L37,""),"") ->  | AP31: 3 | AQ31: CHGA | AR31: Funz. modificate (nuovo valore)
K32: =IF('FP-DET'!$E38=1,IF('FP-DET'!$H38=K$6,'FP-DET'!$L38,""),"") ->  | L32: =IF('FP-DET'!$E38=1,IF('FP-DET'!$H38=L$6,'FP-DET'!$L38,""),"") ->  | M32: =IF('FP-DET'!$E38=1,IF('FP-DET'!$H38=M$6,'FP-DET'!$L38,""),"") -> B | N32: =IF('FP-DET'!$E38=1,IF('FP-DET'!$H38=N$6,'FP-DET'!$L38,""),"") ->  | O32: =IF('FP-DET'!$E38=1,IF('FP-DET'!$H38=O$6,'FP-DET'!$L38,""),"") ->  | P32: =IF('FP-DET'!$E38=2,IF('FP-DET'!$H38=P$6,'FP-DET'!$L38,""),"") ->  | Q32: =IF('FP-DET'!$E38=2,IF('FP-DET'!$H38=Q$6,'FP-DET'!$L38,""),"") ->  | R32: =IF('FP-DET'!$E38=2,IF('FP-DET'!$H38=R$6,'FP-DET'!$L38,""),"") ->  | S32: =IF('FP-DET'!$E38=2,IF('FP-DET'!$H38=S$6,'FP-DET'!$L38,""),"") ->  | T32: =IF('FP-DET'!$E38=2,IF('FP-DET'!$H38=T$6,'FP-DET'!$L38,""),"") ->  | U32: =IF('FP-DET'!$E38=3,IF('FP-DET'!$H38=U$6,'FP-DET'!$L38,""),"") ->  | V32: =IF('FP-DET'!$E38=3,IF('FP-DET'!$H38=V$6,'FP-DET'!$L38,""),"") ->  | W32: =IF('FP-DET'!$E38=3,IF('FP-DET'!$H38=W$6,'FP-DET'!$L38,""),"") ->  | X32: =IF('FP-DET'!$E38=3,IF('FP-DET'!$H38=X$6,'FP-DET'!$L38,""),"") ->  | Y32: =IF('FP-DET'!$E38=3,IF('FP-DET'!$H38=Y$6,'FP-DET'!$L38,""),"") ->  | Z32: =IF('FP-DET'!$E38=4,IF('FP-DET'!$H38=Z$6,'FP-DET'!$L38,""),"") ->  | AA32: =IF('FP-DET'!$E38=4,IF('FP-DET'!$H38=AA$6,'FP-DET'!$L38,""),"") ->  | AB32: =IF('FP-DET'!$E38=4,IF('FP-DET'!$H38=AB$6,'FP-DET'!$L38,""),"") ->  | AC32: =IF('FP-DET'!$E38=4,IF('FP-DET'!$H38=AC$6,'FP-DET'!$L38,""),"") ->  | AD32: =IF('FP-DET'!$E38=4,IF('FP-DET'!$H38=AD$6,'FP-DET'!$L38,""),"") ->  | AE32: =IF('FP-DET'!$E38=5,IF('FP-DET'!$H38=AE$6,'FP-DET'!$L38,""),"") ->  | AF32: =IF('FP-DET'!$E38=5,IF('FP-DET'!$H38=AF$6,'FP-DET'!$L38,""),"") ->  | AG32: =IF('FP-DET'!$E38=5,IF('FP-DET'!$H38=AG$6,'FP-DET'!$L38,""),"") ->  | AH32: =IF('FP-DET'!$E38=5,IF('FP-DET'!$H38=AH$6,'FP-DET'!$L38,""),"") ->  | AI32: =IF('FP-DET'!$E38=5,IF('FP-DET'!$H38=AI$6,'FP-DET'!$L38,""),"") ->  | AP32: 4 | AQ32: CHGB | AR32: funz. modificate (vecchio valore)
K33: =IF('FP-DET'!$E39=1,IF('FP-DET'!$H39=K$6,'FP-DET'!$L39,""),"") ->  | L33: =IF('FP-DET'!$E39=1,IF('FP-DET'!$H39=L$6,'FP-DET'!$L39,""),"") ->  | M33: =IF('FP-DET'!$E39=1,IF('FP-DET'!$H39=M$6,'FP-DET'!$L39,""),"") ->  | N33: =IF('FP-DET'!$E39=1,IF('FP-DET'!$H39=N$6,'FP-DET'!$L39,""),"") ->  | O33: =IF('FP-DET'!$E39=1,IF('FP-DET'!$H39=O$6,'FP-DET'!$L39,""),"") -> B | P33: =IF('FP-DET'!$E39=2,IF('FP-DET'!$H39=P$6,'FP-DET'!$L39,""),"") ->  | Q33: =IF('FP-DET'!$E39=2,IF('FP-DET'!$H39=Q$6,'FP-DET'!$L39,""),"") ->  | R33: =IF('FP-DET'!$E39=2,IF('FP-DET'!$H39=R$6,'FP-DET'!$L39,""),"") ->  | S33: =IF('FP-DET'!$E39=2,IF('FP-DET'!$H39=S$6,'FP-DET'!$L39,""),"") ->  | T33: =IF('FP-DET'!$E39=2,IF('FP-DET'!$H39=T$6,'FP-DET'!$L39,""),"") ->  | U33: =IF('FP-DET'!$E39=3,IF('FP-DET'!$H39=U$6,'FP-DET'!$L39,""),"") ->  | V33: =IF('FP-DET'!$E39=3,IF('FP-DET'!$H39=V$6,'FP-DET'!$L39,""),"") ->  | W33: =IF('FP-DET'!$E39=3,IF('FP-DET'!$H39=W$6,'FP-DET'!$L39,""),"") ->  | X33: =IF('FP-DET'!$E39=3,IF('FP-DET'!$H39=X$6,'FP-DET'!$L39,""),"") ->  | Y33: =IF('FP-DET'!$E39=3,IF('FP-DET'!$H39=Y$6,'FP-DET'!$L39,""),"") ->  | Z33: =IF('FP-DET'!$E39=4,IF('FP-DET'!$H39=Z$6,'FP-DET'!$L39,""),"") ->  | AA33: =IF('FP-DET'!$E39=4,IF('FP-DET'!$H39=AA$6,'FP-DET'!$L39,""),"") ->  | AB33: =IF('FP-DET'!$E39=4,IF('FP-DET'!$H39=AB$6,'FP-DET'!$L39,""),"") ->  | AC33: =IF('FP-DET'!$E39=4,IF('FP-DET'!$H39=AC$6,'FP-DET'!$L39,""),"") ->  | AD33: =IF('FP-DET'!$E39=4,IF('FP-DET'!$H39=AD$6,'FP-DET'!$L39,""),"") ->  | AE33: =IF('FP-DET'!$E39=5,IF('FP-DET'!$H39=AE$6,'FP-DET'!$L39,""),"") ->  | AF33: =IF('FP-DET'!$E39=5,IF('FP-DET'!$H39=AF$6,'FP-DET'!$L39,""),"") ->  | AG33: =IF('FP-DET'!$E39=5,IF('FP-DET'!$H39=AG$6,'FP-DET'!$L39,""),"") ->  | AH33: =IF('FP-DET'!$E39=5,IF('FP-DET'!$H39=AH$6,'FP-DET'!$L39,""),"") ->  | AI33: =IF('FP-DET'!$E39=5,IF('FP-DET'!$H39=AI$6,'FP-DET'!$L39,""),"") ->  | AP33: 5 | AQ33: DEL | AR33: funzioni eliminate
K34: =IF('FP-DET'!$E40=1,IF('FP-DET'!$H40=K$6,'FP-DET'!$L40,""),"") ->  | L34: =IF('FP-DET'!$E40=1,IF('FP-DET'!$H40=L$6,'FP-DET'!$L40,""),"") ->  | M34: =IF('FP-DET'!$E40=1,IF('FP-DET'!$H40=M$6,'FP-DET'!$L40,""),"") ->  | N34: =IF('FP-DET'!$E40=1,IF('FP-DET'!$H40=N$6,'FP-DET'!$L40,""),"") ->  | O34: =IF('FP-DET'!$E40=1,IF('FP-DET'!$H40=O$6,'FP-DET'!$L40,""),"") -> B | P34: =IF('FP-DET'!$E40=2,IF('FP-DET'!$H40=P$6,'FP-DET'!$L40,""),"") ->  | Q34: =IF('FP-DET'!$E40=2,IF('FP-DET'!$H40=Q$6,'FP-DET'!$L40,""),"") ->  | R34: =IF('FP-DET'!$E40=2,IF('FP-DET'!$H40=R$6,'FP-DET'!$L40,""),"") ->  | S34: =IF('FP-DET'!$E40=2,IF('FP-DET'!$H40=S$6,'FP-DET'!$L40,""),"") ->  | T34: =IF('FP-DET'!$E40=2,IF('FP-DET'!$H40=T$6,'FP-DET'!$L40,""),"") ->  | U34: =IF('FP-DET'!$E40=3,IF('FP-DET'!$H40=U$6,'FP-DET'!$L40,""),"") ->  | V34: =IF('FP-DET'!$E40=3,IF('FP-DET'!$H40=V$6,'FP-DET'!$L40,""),"") ->  | W34: =IF('FP-DET'!$E40=3,IF('FP-DET'!$H40=W$6,'FP-DET'!$L40,""),"") ->  | X34: =IF('FP-DET'!$E40=3,IF('FP-DET'!$H40=X$6,'FP-DET'!$L40,""),"") ->  | Y34: =IF('FP-DET'!$E40=3,IF('FP-DET'!$H40=Y$6,'FP-DET'!$L40,""),"") ->  | Z34: =IF('FP-DET'!$E40=4,IF('FP-DET'!$H40=Z$6,'FP-DET'!$L40,""),"") ->  | AA34: =IF('FP-DET'!$E40=4,IF('FP-DET'!$H40=AA$6,'FP-DET'!$L40,""),"") ->  | AB34: =IF('FP-DET'!$E40=4,IF('FP-DET'!$H40=AB$6,'FP-DET'!$L40,""),"") ->  | AC34: =IF('FP-DET'!$E40=4,IF('FP-DET'!$H40=AC$6,'FP-DET'!$L40,""),"") ->  | AD34: =IF('FP-DET'!$E40=4,IF('FP-DET'!$H40=AD$6,'FP-DET'!$L40,""),"") ->  | AE34: =IF('FP-DET'!$E40=5,IF('FP-DET'!$H40=AE$6,'FP-DET'!$L40,""),"") ->  | AF34: =IF('FP-DET'!$E40=5,IF('FP-DET'!$H40=AF$6,'FP-DET'!$L40,""),"") ->  | AG34: =IF('FP-DET'!$E40=5,IF('FP-DET'!$H40=AG$6,'FP-DET'!$L40,""),"") ->  | AH34: =IF('FP-DET'!$E40=5,IF('FP-DET'!$H40=AH$6,'FP-DET'!$L40,""),"") ->  | AI34: =IF('FP-DET'!$E40=5,IF('FP-DET'!$H40=AI$6,'FP-DET'!$L40,""),"") ->  | AP34: 6 | AQ34: UFPB | AR34: funzioni iniziali
K35: =IF('FP-DET'!$E41=1,IF('FP-DET'!$H41=K$6,'FP-DET'!$L41,""),"") ->  | L35: =IF('FP-DET'!$E41=1,IF('FP-DET'!$H41=L$6,'FP-DET'!$L41,""),"") ->  | M35: =IF('FP-DET'!$E41=1,IF('FP-DET'!$H41=M$6,'FP-DET'!$L41,""),"") -> B | N35: =IF('FP-DET'!$E41=1,IF('FP-DET'!$H41=N$6,'FP-DET'!$L41,""),"") ->  | O35: =IF('FP-DET'!$E41=1,IF('FP-DET'!$H41=O$6,'FP-DET'!$L41,""),"") ->  | P35: =IF('FP-DET'!$E41=2,IF('FP-DET'!$H41=P$6,'FP-DET'!$L41,""),"") ->  | Q35: =IF('FP-DET'!$E41=2,IF('FP-DET'!$H41=Q$6,'FP-DET'!$L41,""),"") ->  | R35: =IF('FP-DET'!$E41=2,IF('FP-DET'!$H41=R$6,'FP-DET'!$L41,""),"") ->  | S35: =IF('FP-DET'!$E41=2,IF('FP-DET'!$H41=S$6,'FP-DET'!$L41,""),"") ->  | T35: =IF('FP-DET'!$E41=2,IF('FP-DET'!$H41=T$6,'FP-DET'!$L41,""),"") ->  | U35: =IF('FP-DET'!$E41=3,IF('FP-DET'!$H41=U$6,'FP-DET'!$L41,""),"") ->  | V35: =IF('FP-DET'!$E41=3,IF('FP-DET'!$H41=V$6,'FP-DET'!$L41,""),"") ->  | W35: =IF('FP-DET'!$E41=3,IF('FP-DET'!$H41=W$6,'FP-DET'!$L41,""),"") ->  | X35: =IF('FP-DET'!$E41=3,IF('FP-DET'!$H41=X$6,'FP-DET'!$L41,""),"") ->  | Y35: =IF('FP-DET'!$E41=3,IF('FP-DET'!$H41=Y$6,'FP-DET'!$L41,""),"") ->  | Z35: =IF('FP-DET'!$E41=4,IF('FP-DET'!$H41=Z$6,'FP-DET'!$L41,""),"") ->  | AA35: =IF('FP-DET'!$E41=4,IF('FP-DET'!$H41=AA$6,'FP-DET'!$L41,""),"") ->  | AB35: =IF('FP-DET'!$E41=4,IF('FP-DET'!$H41=AB$6,'FP-DET'!$L41,""),"") ->  | AC35: =IF('FP-DET'!$E41=4,IF('FP-DET'!$H41=AC$6,'FP-DET'!$L41,""),"") ->  | AD35: =IF('FP-DET'!$E41=4,IF('FP-DET'!$H41=AD$6,'FP-DET'!$L41,""),"") ->  | AE35: =IF('FP-DET'!$E41=5,IF('FP-DET'!$H41=AE$6,'FP-DET'!$L41,""),"") ->  | AF35: =IF('FP-DET'!$E41=5,IF('FP-DET'!$H41=AF$6,'FP-DET'!$L41,""),"") ->  | AG35: =IF('FP-DET'!$E41=5,IF('FP-DET'!$H41=AG$6,'FP-DET'!$L41,""),"") ->  | AH35: =IF('FP-DET'!$E41=5,IF('FP-DET'!$H41=AH$6,'FP-DET'!$L41,""),"") ->  | AI35: =IF('FP-DET'!$E41=5,IF('FP-DET'!$H41=AI$6,'FP-DET'!$L41,""),"") ->  | AP35: Tipo Requisito
K36: =IF('FP-DET'!$E42=1,IF('FP-DET'!$H42=K$6,'FP-DET'!$L42,""),"") ->  | L36: =IF('FP-DET'!$E42=1,IF('FP-DET'!$H42=L$6,'FP-DET'!$L42,""),"") ->  | M36: =IF('FP-DET'!$E42=1,IF('FP-DET'!$H42=M$6,'FP-DET'!$L42,""),"") ->  | N36: =IF('FP-DET'!$E42=1,IF('FP-DET'!$H42=N$6,'FP-DET'!$L42,""),"") -> B | O36: =IF('FP-DET'!$E42=1,IF('FP-DET'!$H42=O$6,'FP-DET'!$L42,""),"") ->  | P36: =IF('FP-DET'!$E42=2,IF('FP-DET'!$H42=P$6,'FP-DET'!$L42,""),"") ->  | Q36: =IF('FP-DET'!$E42=2,IF('FP-DET'!$H42=Q$6,'FP-DET'!$L42,""),"") ->  | R36: =IF('FP-DET'!$E42=2,IF('FP-DET'!$H42=R$6,'FP-DET'!$L42,""),"") ->  | S36: =IF('FP-DET'!$E42=2,IF('FP-DET'!$H42=S$6,'FP-DET'!$L42,""),"") ->  | T36: =IF('FP-DET'!$E42=2,IF('FP-DET'!$H42=T$6,'FP-DET'!$L42,""),"") ->  | U36: =IF('FP-DET'!$E42=3,IF('FP-DET'!$H42=U$6,'FP-DET'!$L42,""),"") ->  | V36: =IF('FP-DET'!$E42=3,IF('FP-DET'!$H42=V$6,'FP-DET'!$L42,""),"") ->  | W36: =IF('FP-DET'!$E42=3,IF('FP-DET'!$H42=W$6,'FP-DET'!$L42,""),"") ->  | X36: =IF('FP-DET'!$E42=3,IF('FP-DET'!$H42=X$6,'FP-DET'!$L42,""),"") ->  | Y36: =IF('FP-DET'!$E42=3,IF('FP-DET'!$H42=Y$6,'FP-DET'!$L42,""),"") ->  | Z36: =IF('FP-DET'!$E42=4,IF('FP-DET'!$H42=Z$6,'FP-DET'!$L42,""),"") ->  | AA36: =IF('FP-DET'!$E42=4,IF('FP-DET'!$H42=AA$6,'FP-DET'!$L42,""),"") ->  | AB36: =IF('FP-DET'!$E42=4,IF('FP-DET'!$H42=AB$6,'FP-DET'!$L42,""),"") ->  | AC36: =IF('FP-DET'!$E42=4,IF('FP-DET'!$H42=AC$6,'FP-DET'!$L42,""),"") ->  | AD36: =IF('FP-DET'!$E42=4,IF('FP-DET'!$H42=AD$6,'FP-DET'!$L42,""),"") ->  | AE36: =IF('FP-DET'!$E42=5,IF('FP-DET'!$H42=AE$6,'FP-DET'!$L42,""),"") ->  | AF36: =IF('FP-DET'!$E42=5,IF('FP-DET'!$H42=AF$6,'FP-DET'!$L42,""),"") ->  | AG36: =IF('FP-DET'!$E42=5,IF('FP-DET'!$H42=AG$6,'FP-DET'!$L42,""),"") ->  | AH36: =IF('FP-DET'!$E42=5,IF('FP-DET'!$H42=AH$6,'FP-DET'!$L42,""),"") ->  | AI36: =IF('FP-DET'!$E42=5,IF('FP-DET'!$H42=AI$6,'FP-DET'!$L42,""),"") -> 
K37: =IF('FP-DET'!$E43=1,IF('FP-DET'!$H43=K$6,'FP-DET'!$L43,""),"") ->  | L37: =IF('FP-DET'!$E43=1,IF('FP-DET'!$H43=L$6,'FP-DET'!$L43,""),"") ->  | M37: =IF('FP-DET'!$E43=1,IF('FP-DET'!$H43=M$6,'FP-DET'!$L43,""),"") ->  | N37: =IF('FP-DET'!$E43=1,IF('FP-DET'!$H43=N$6,'FP-DET'!$L43,""),"") -> B | O37: =IF('FP-DET'!$E43=1,IF('FP-DET'!$H43=O$6,'FP-DET'!$L43,""),"") ->  | P37: =IF('FP-DET'!$E43=2,IF('FP-DET'!$H43=P$6,'FP-DET'!$L43,""),"") ->  | Q37: =IF('FP-DET'!$E43=2,IF('FP-DET'!$H43=Q$6,'FP-DET'!$L43,""),"") ->  | R37: =IF('FP-DET'!$E43=2,IF('FP-DET'!$H43=R$6,'FP-DET'!$L43,""),"") ->  | S37: =IF('FP-DET'!$E43=2,IF('FP-DET'!$H43=S$6,'FP-DET'!$L43,""),"") ->  | T37: =IF('FP-DET'!$E43=2,IF('FP-DET'!$H43=T$6,'FP-DET'!$L43,""),"") ->  | U37: =IF('FP-DET'!$E43=3,IF('FP-DET'!$H43=U$6,'FP-DET'!$L43,""),"") ->  | V37: =IF('FP-DET'!$E43=3,IF('FP-DET'!$H43=V$6,'FP-DET'!$L43,""),"") ->  | W37: =IF('FP-DET'!$E43=3,IF('FP-DET'!$H43=W$6,'FP-DET'!$L43,""),"") ->  | X37: =IF('FP-DET'!$E43=3,IF('FP-DET'!$H43=X$6,'FP-DET'!$L43,""),"") ->  | Y37: =IF('FP-DET'!$E43=3,IF('FP-DET'!$H43=Y$6,'FP-DET'!$L43,""),"") ->  | Z37: =IF('FP-DET'!$E43=4,IF('FP-DET'!$H43=Z$6,'FP-DET'!$L43,""),"") ->  | AA37: =IF('FP-DET'!$E43=4,IF('FP-DET'!$H43=AA$6,'FP-DET'!$L43,""),"") ->  | AB37: =IF('FP-DET'!$E43=4,IF('FP-DET'!$H43=AB$6,'FP-DET'!$L43,""),"") ->  | AC37: =IF('FP-DET'!$E43=4,IF('FP-DET'!$H43=AC$6,'FP-DET'!$L43,""),"") ->  | AD37: =IF('FP-DET'!$E43=4,IF('FP-DET'!$H43=AD$6,'FP-DET'!$L43,""),"") ->  | AE37: =IF('FP-DET'!$E43=5,IF('FP-DET'!$H43=AE$6,'FP-DET'!$L43,""),"") ->  | AF37: =IF('FP-DET'!$E43=5,IF('FP-DET'!$H43=AF$6,'FP-DET'!$L43,""),"") ->  | AG37: =IF('FP-DET'!$E43=5,IF('FP-DET'!$H43=AG$6,'FP-DET'!$L43,""),"") ->  | AH37: =IF('FP-DET'!$E43=5,IF('FP-DET'!$H43=AH$6,'FP-DET'!$L43,""),"") ->  | AI37: =IF('FP-DET'!$E43=5,IF('FP-DET'!$H43=AI$6,'FP-DET'!$L43,""),"") ->  | AP37: 1 | AQ37: FUR
K38: =IF('FP-DET'!$E44=1,IF('FP-DET'!$H44=K$6,'FP-DET'!$L44,""),"") ->  | L38: =IF('FP-DET'!$E44=1,IF('FP-DET'!$H44=L$6,'FP-DET'!$L44,""),"") ->  | M38: =IF('FP-DET'!$E44=1,IF('FP-DET'!$H44=M$6,'FP-DET'!$L44,""),"") ->  | N38: =IF('FP-DET'!$E44=1,IF('FP-DET'!$H44=N$6,'FP-DET'!$L44,""),"") ->  | O38: =IF('FP-DET'!$E44=1,IF('FP-DET'!$H44=O$6,'FP-DET'!$L44,""),"") ->  | P38: =IF('FP-DET'!$E44=2,IF('FP-DET'!$H44=P$6,'FP-DET'!$L44,""),"") ->  | Q38: =IF('FP-DET'!$E44=2,IF('FP-DET'!$H44=Q$6,'FP-DET'!$L44,""),"") ->  | R38: =IF('FP-DET'!$E44=2,IF('FP-DET'!$H44=R$6,'FP-DET'!$L44,""),"") ->  | S38: =IF('FP-DET'!$E44=2,IF('FP-DET'!$H44=S$6,'FP-DET'!$L44,""),"") ->  | T38: =IF('FP-DET'!$E44=2,IF('FP-DET'!$H44=T$6,'FP-DET'!$L44,""),"") ->  | U38: =IF('FP-DET'!$E44=3,IF('FP-DET'!$H44=U$6,'FP-DET'!$L44,""),"") ->  | V38: =IF('FP-DET'!$E44=3,IF('FP-DET'!$H44=V$6,'FP-DET'!$L44,""),"") ->  | W38: =IF('FP-DET'!$E44=3,IF('FP-DET'!$H44=W$6,'FP-DET'!$L44,""),"") ->  | X38: =IF('FP-DET'!$E44=3,IF('FP-DET'!$H44=X$6,'FP-DET'!$L44,""),"") ->  | Y38: =IF('FP-DET'!$E44=3,IF('FP-DET'!$H44=Y$6,'FP-DET'!$L44,""),"") ->  | Z38: =IF('FP-DET'!$E44=4,IF('FP-DET'!$H44=Z$6,'FP-DET'!$L44,""),"") ->  | AA38: =IF('FP-DET'!$E44=4,IF('FP-DET'!$H44=AA$6,'FP-DET'!$L44,""),"") ->  | AB38: =IF('FP-DET'!$E44=4,IF('FP-DET'!$H44=AB$6,'FP-DET'!$L44,""),"") ->  | AC38: =IF('FP-DET'!$E44=4,IF('FP-DET'!$H44=AC$6,'FP-DET'!$L44,""),"") ->  | AD38: =IF('FP-DET'!$E44=4,IF('FP-DET'!$H44=AD$6,'FP-DET'!$L44,""),"") ->  | AE38: =IF('FP-DET'!$E44=5,IF('FP-DET'!$H44=AE$6,'FP-DET'!$L44,""),"") ->  | AF38: =IF('FP-DET'!$E44=5,IF('FP-DET'!$H44=AF$6,'FP-DET'!$L44,""),"") ->  | AG38: =IF('FP-DET'!$E44=5,IF('FP-DET'!$H44=AG$6,'FP-DET'!$L44,""),"") ->  | AH38: =IF('FP-DET'!$E44=5,IF('FP-DET'!$H44=AH$6,'FP-DET'!$L44,""),"") ->  | AI38: =IF('FP-DET'!$E44=5,IF('FP-DET'!$H44=AI$6,'FP-DET'!$L44,""),"") ->  | AP38: 2 | AQ38: NFR
K39: =IF('FP-DET'!$E45=1,IF('FP-DET'!$H45=K$6,'FP-DET'!$L45,""),"") ->  | L39: =IF('FP-DET'!$E45=1,IF('FP-DET'!$H45=L$6,'FP-DET'!$L45,""),"") ->  | M39: =IF('FP-DET'!$E45=1,IF('FP-DET'!$H45=M$6,'FP-DET'!$L45,""),"") ->  | N39: =IF('FP-DET'!$E45=1,IF('FP-DET'!$H45=N$6,'FP-DET'!$L45,""),"") -> B | O39: =IF('FP-DET'!$E45=1,IF('FP-DET'!$H45=O$6,'FP-DET'!$L45,""),"") ->  | P39: =IF('FP-DET'!$E45=2,IF('FP-DET'!$H45=P$6,'FP-DET'!$L45,""),"") ->  | Q39: =IF('FP-DET'!$E45=2,IF('FP-DET'!$H45=Q$6,'FP-DET'!$L45,""),"") ->  | R39: =IF('FP-DET'!$E45=2,IF('FP-DET'!$H45=R$6,'FP-DET'!$L45,""),"") ->  | S39: =IF('FP-DET'!$E45=2,IF('FP-DET'!$H45=S$6,'FP-DET'!$L45,""),"") ->  | T39: =IF('FP-DET'!$E45=2,IF('FP-DET'!$H45=T$6,'FP-DET'!$L45,""),"") ->  | U39: =IF('FP-DET'!$E45=3,IF('FP-DET'!$H45=U$6,'FP-DET'!$L45,""),"") ->  | V39: =IF('FP-DET'!$E45=3,IF('FP-DET'!$H45=V$6,'FP-DET'!$L45,""),"") ->  | W39: =IF('FP-DET'!$E45=3,IF('FP-DET'!$H45=W$6,'FP-DET'!$L45,""),"") ->  | X39: =IF('FP-DET'!$E45=3,IF('FP-DET'!$H45=X$6,'FP-DET'!$L45,""),"") ->  | Y39: =IF('FP-DET'!$E45=3,IF('FP-DET'!$H45=Y$6,'FP-DET'!$L45,""),"") ->  | Z39: =IF('FP-DET'!$E45=4,IF('FP-DET'!$H45=Z$6,'FP-DET'!$L45,""),"") ->  | AA39: =IF('FP-DET'!$E45=4,IF('FP-DET'!$H45=AA$6,'FP-DET'!$L45,""),"") ->  | AB39: =IF('FP-DET'!$E45=4,IF('FP-DET'!$H45=AB$6,'FP-DET'!$L45,""),"") ->  | AC39: =IF('FP-DET'!$E45=4,IF('FP-DET'!$H45=AC$6,'FP-DET'!$L45,""),"") ->  | AD39: =IF('FP-DET'!$E45=4,IF('FP-DET'!$H45=AD$6,'FP-DET'!$L45,""),"") ->  | AE39: =IF('FP-DET'!$E45=5,IF('FP-DET'!$H45=AE$6,'FP-DET'!$L45,""),"") ->  | AF39: =IF('FP-DET'!$E45=5,IF('FP-DET'!$H45=AF$6,'FP-DET'!$L45,""),"") ->  | AG39: =IF('FP-DET'!$E45=5,IF('FP-DET'!$H45=AG$6,'FP-DET'!$L45,""),"") ->  | AH39: =IF('FP-DET'!$E45=5,IF('FP-DET'!$H45=AH$6,'FP-DET'!$L45,""),"") ->  | AI39: =IF('FP-DET'!$E45=5,IF('FP-DET'!$H45=AI$6,'FP-DET'!$L45,""),"") -> 
K40: =IF('FP-DET'!$E46=1,IF('FP-DET'!$H46=K$6,'FP-DET'!$L46,""),"") ->  | L40: =IF('FP-DET'!$E46=1,IF('FP-DET'!$H46=L$6,'FP-DET'!$L46,""),"") ->  | M40: =IF('FP-DET'!$E46=1,IF('FP-DET'!$H46=M$6,'FP-DET'!$L46,""),"") ->  | N40: =IF('FP-DET'!$E46=1,IF('FP-DET'!$H46=N$6,'FP-DET'!$L46,""),"") -> B | O40: =IF('FP-DET'!$E46=1,IF('FP-DET'!$H46=O$6,'FP-DET'!$L46,""),"") ->  | P40: =IF('FP-DET'!$E46=2,IF('FP-DET'!$H46=P$6,'FP-DET'!$L46,""),"") ->  | Q40: =IF('FP-DET'!$E46=2,IF('FP-DET'!$H46=Q$6,'FP-DET'!$L46,""),"") ->  | R40: =IF('FP-DET'!$E46=2,IF('FP-DET'!$H46=R$6,'FP-DET'!$L46,""),"") ->  | S40: =IF('FP-DET'!$E46=2,IF('FP-DET'!$H46=S$6,'FP-DET'!$L46,""),"") ->  | T40: =IF('FP-DET'!$E46=2,IF('FP-DET'!$H46=T$6,'FP-DET'!$L46,""),"") ->  | U40: =IF('FP-DET'!$E46=3,IF('FP-DET'!$H46=U$6,'FP-DET'!$L46,""),"") ->  | V40: =IF('FP-DET'!$E46=3,IF('FP-DET'!$H46=V$6,'FP-DET'!$L46,""),"") ->  | W40: =IF('FP-DET'!$E46=3,IF('FP-DET'!$H46=W$6,'FP-DET'!$L46,""),"") ->  | X40: =IF('FP-DET'!$E46=3,IF('FP-DET'!$H46=X$6,'FP-DET'!$L46,""),"") ->  | Y40: =IF('FP-DET'!$E46=3,IF('FP-DET'!$H46=Y$6,'FP-DET'!$L46,""),"") ->  | Z40: =IF('FP-DET'!$E46=4,IF('FP-DET'!$H46=Z$6,'FP-DET'!$L46,""),"") ->  | AA40: =IF('FP-DET'!$E46=4,IF('FP-DET'!$H46=AA$6,'FP-DET'!$L46,""),"") ->  | AB40: =IF('FP-DET'!$E46=4,IF('FP-DET'!$H46=AB$6,'FP-DET'!$L46,""),"") ->  | AC40: =IF('FP-DET'!$E46=4,IF('FP-DET'!$H46=AC$6,'FP-DET'!$L46,""),"") ->  | AD40: =IF('FP-DET'!$E46=4,IF('FP-DET'!$H46=AD$6,'FP-DET'!$L46,""),"") ->  | AE40: =IF('FP-DET'!$E46=5,IF('FP-DET'!$H46=AE$6,'FP-DET'!$L46,""),"") ->  | AF40: =IF('FP-DET'!$E46=5,IF('FP-DET'!$H46=AF$6,'FP-DET'!$L46,""),"") ->  | AG40: =IF('FP-DET'!$E46=5,IF('FP-DET'!$H46=AG$6,'FP-DET'!$L46,""),"") ->  | AH40: =IF('FP-DET'!$E46=5,IF('FP-DET'!$H46=AH$6,'FP-DET'!$L46,""),"") ->  | AI40: =IF('FP-DET'!$E46=5,IF('FP-DET'!$H46=AI$6,'FP-DET'!$L46,""),"") -> 
K41: =IF('FP-DET'!$E47=1,IF('FP-DET'!$H47=K$6,'FP-DET'!$L47,""),"") ->  | L41: =IF('FP-DET'!$E47=1,IF('FP-DET'!$H47=L$6,'FP-DET'!$L47,""),"") ->  | M41: =IF('FP-DET'!$E47=1,IF('FP-DET'!$H47=M$6,'FP-DET'!$L47,""),"") ->  | N41: =IF('FP-DET'!$E47=1,IF('FP-DET'!$H47=N$6,'FP-DET'!$L47,""),"") -> B | O41: =IF('FP-DET'!$E47=1,IF('FP-DET'!$H47=O$6,'FP-DET'!$L47,""),"") ->  | P41: =IF('FP-DET'!$E47=2,IF('FP-DET'!$H47=P$6,'FP-DET'!$L47,""),"") ->  | Q41: =IF('FP-DET'!$E47=2,IF('FP-DET'!$H47=Q$6,'FP-DET'!$L47,""),"") ->  | R41: =IF('FP-DET'!$E47=2,IF('FP-DET'!$H47=R$6,'FP-DET'!$L47,""),"") ->  | S41: =IF('FP-DET'!$E47=2,IF('FP-DET'!$H47=S$6,'FP-DET'!$L47,""),"") ->  | T41: =IF('FP-DET'!$E47=2,IF('FP-DET'!$H47=T$6,'FP-DET'!$L47,""),"") ->  | U41: =IF('FP-DET'!$E47=3,IF('FP-DET'!$H47=U$6,'FP-DET'!$L47,""),"") ->  | V41: =IF('FP-DET'!$E47=3,IF('FP-DET'!$H47=V$6,'FP-DET'!$L47,""),"") ->  | W41: =IF('FP-DET'!$E47=3,IF('FP-DET'!$H47=W$6,'FP-DET'!$L47,""),"") ->  | X41: =IF('FP-DET'!$E47=3,IF('FP-DET'!$H47=X$6,'FP-DET'!$L47,""),"") ->  | Y41: =IF('FP-DET'!$E47=3,IF('FP-DET'!$H47=Y$6,'FP-DET'!$L47,""),"") ->  | Z41: =IF('FP-DET'!$E47=4,IF('FP-DET'!$H47=Z$6,'FP-DET'!$L47,""),"") ->  | AA41: =IF('FP-DET'!$E47=4,IF('FP-DET'!$H47=AA$6,'FP-DET'!$L47,""),"") ->  | AB41: =IF('FP-DET'!$E47=4,IF('FP-DET'!$H47=AB$6,'FP-DET'!$L47,""),"") ->  | AC41: =IF('FP-DET'!$E47=4,IF('FP-DET'!$H47=AC$6,'FP-DET'!$L47,""),"") ->  | AD41: =IF('FP-DET'!$E47=4,IF('FP-DET'!$H47=AD$6,'FP-DET'!$L47,""),"") ->  | AE41: =IF('FP-DET'!$E47=5,IF('FP-DET'!$H47=AE$6,'FP-DET'!$L47,""),"") ->  | AF41: =IF('FP-DET'!$E47=5,IF('FP-DET'!$H47=AF$6,'FP-DET'!$L47,""),"") ->  | AG41: =IF('FP-DET'!$E47=5,IF('FP-DET'!$H47=AG$6,'FP-DET'!$L47,""),"") ->  | AH41: =IF('FP-DET'!$E47=5,IF('FP-DET'!$H47=AH$6,'FP-DET'!$L47,""),"") ->  | AI41: =IF('FP-DET'!$E47=5,IF('FP-DET'!$H47=AI$6,'FP-DET'!$L47,""),"") -> 
K42: =IF('FP-DET'!$E48=1,IF('FP-DET'!$H48=K$6,'FP-DET'!$L48,""),"") ->  | L42: =IF('FP-DET'!$E48=1,IF('FP-DET'!$H48=L$6,'FP-DET'!$L48,""),"") ->  | M42: =IF('FP-DET'!$E48=1,IF('FP-DET'!$H48=M$6,'FP-DET'!$L48,""),"") ->  | N42: =IF('FP-DET'!$E48=1,IF('FP-DET'!$H48=N$6,'FP-DET'!$L48,""),"") -> B | O42: =IF('FP-DET'!$E48=1,IF('FP-DET'!$H48=O$6,'FP-DET'!$L48,""),"") ->  | P42: =IF('FP-DET'!$E48=2,IF('FP-DET'!$H48=P$6,'FP-DET'!$L48,""),"") ->  | Q42: =IF('FP-DET'!$E48=2,IF('FP-DET'!$H48=Q$6,'FP-DET'!$L48,""),"") ->  | R42: =IF('FP-DET'!$E48=2,IF('FP-DET'!$H48=R$6,'FP-DET'!$L48,""),"") ->  | S42: =IF('FP-DET'!$E48=2,IF('FP-DET'!$H48=S$6,'FP-DET'!$L48,""),"") ->  | T42: =IF('FP-DET'!$E48=2,IF('FP-DET'!$H48=T$6,'FP-DET'!$L48,""),"") ->  | U42: =IF('FP-DET'!$E48=3,IF('FP-DET'!$H48=U$6,'FP-DET'!$L48,""),"") ->  | V42: =IF('FP-DET'!$E48=3,IF('FP-DET'!$H48=V$6,'FP-DET'!$L48,""),"") ->  | W42: =IF('FP-DET'!$E48=3,IF('FP-DET'!$H48=W$6,'FP-DET'!$L48,""),"") ->  | X42: =IF('FP-DET'!$E48=3,IF('FP-DET'!$H48=X$6,'FP-DET'!$L48,""),"") ->  | Y42: =IF('FP-DET'!$E48=3,IF('FP-DET'!$H48=Y$6,'FP-DET'!$L48,""),"") ->  | Z42: =IF('FP-DET'!$E48=4,IF('FP-DET'!$H48=Z$6,'FP-DET'!$L48,""),"") ->  | AA42: =IF('FP-DET'!$E48=4,IF('FP-DET'!$H48=AA$6,'FP-DET'!$L48,""),"") ->  | AB42: =IF('FP-DET'!$E48=4,IF('FP-DET'!$H48=AB$6,'FP-DET'!$L48,""),"") ->  | AC42: =IF('FP-DET'!$E48=4,IF('FP-DET'!$H48=AC$6,'FP-DET'!$L48,""),"") ->  | AD42: =IF('FP-DET'!$E48=4,IF('FP-DET'!$H48=AD$6,'FP-DET'!$L48,""),"") ->  | AE42: =IF('FP-DET'!$E48=5,IF('FP-DET'!$H48=AE$6,'FP-DET'!$L48,""),"") ->  | AF42: =IF('FP-DET'!$E48=5,IF('FP-DET'!$H48=AF$6,'FP-DET'!$L48,""),"") ->  | AG42: =IF('FP-DET'!$E48=5,IF('FP-DET'!$H48=AG$6,'FP-DET'!$L48,""),"") ->  | AH42: =IF('FP-DET'!$E48=5,IF('FP-DET'!$H48=AH$6,'FP-DET'!$L48,""),"") ->  | AI42: =IF('FP-DET'!$E48=5,IF('FP-DET'!$H48=AI$6,'FP-DET'!$L48,""),"") -> 
K43: =IF('FP-DET'!$E49=1,IF('FP-DET'!$H49=K$6,'FP-DET'!$L49,""),"") ->  | L43: =IF('FP-DET'!$E49=1,IF('FP-DET'!$H49=L$6,'FP-DET'!$L49,""),"") ->  | M43: =IF('FP-DET'!$E49=1,IF('FP-DET'!$H49=M$6,'FP-DET'!$L49,""),"") -> B | N43: =IF('FP-DET'!$E49=1,IF('FP-DET'!$H49=N$6,'FP-DET'!$L49,""),"") ->  | O43: =IF('FP-DET'!$E49=1,IF('FP-DET'!$H49=O$6,'FP-DET'!$L49,""),"") ->  | P43: =IF('FP-DET'!$E49=2,IF('FP-DET'!$H49=P$6,'FP-DET'!$L49,""),"") ->  | Q43: =IF('FP-DET'!$E49=2,IF('FP-DET'!$H49=Q$6,'FP-DET'!$L49,""),"") ->  | R43: =IF('FP-DET'!$E49=2,IF('FP-DET'!$H49=R$6,'FP-DET'!$L49,""),"") ->  | S43: =IF('FP-DET'!$E49=2,IF('FP-DET'!$H49=S$6,'FP-DET'!$L49,""),"") ->  | T43: =IF('FP-DET'!$E49=2,IF('FP-DET'!$H49=T$6,'FP-DET'!$L49,""),"") ->  | U43: =IF('FP-DET'!$E49=3,IF('FP-DET'!$H49=U$6,'FP-DET'!$L49,""),"") ->  | V43: =IF('FP-DET'!$E49=3,IF('FP-DET'!$H49=V$6,'FP-DET'!$L49,""),"") ->  | W43: =IF('FP-DET'!$E49=3,IF('FP-DET'!$H49=W$6,'FP-DET'!$L49,""),"") ->  | X43: =IF('FP-DET'!$E49=3,IF('FP-DET'!$H49=X$6,'FP-DET'!$L49,""),"") ->  | Y43: =IF('FP-DET'!$E49=3,IF('FP-DET'!$H49=Y$6,'FP-DET'!$L49,""),"") ->  | Z43: =IF('FP-DET'!$E49=4,IF('FP-DET'!$H49=Z$6,'FP-DET'!$L49,""),"") ->  | AA43: =IF('FP-DET'!$E49=4,IF('FP-DET'!$H49=AA$6,'FP-DET'!$L49,""),"") ->  | AB43: =IF('FP-DET'!$E49=4,IF('FP-DET'!$H49=AB$6,'FP-DET'!$L49,""),"") ->  | AC43: =IF('FP-DET'!$E49=4,IF('FP-DET'!$H49=AC$6,'FP-DET'!$L49,""),"") ->  | AD43: =IF('FP-DET'!$E49=4,IF('FP-DET'!$H49=AD$6,'FP-DET'!$L49,""),"") ->  | AE43: =IF('FP-DET'!$E49=5,IF('FP-DET'!$H49=AE$6,'FP-DET'!$L49,""),"") ->  | AF43: =IF('FP-DET'!$E49=5,IF('FP-DET'!$H49=AF$6,'FP-DET'!$L49,""),"") ->  | AG43: =IF('FP-DET'!$E49=5,IF('FP-DET'!$H49=AG$6,'FP-DET'!$L49,""),"") ->  | AH43: =IF('FP-DET'!$E49=5,IF('FP-DET'!$H49=AH$6,'FP-DET'!$L49,""),"") ->  | AI43: =IF('FP-DET'!$E49=5,IF('FP-DET'!$H49=AI$6,'FP-DET'!$L49,""),"") -> 
K44: =IF('FP-DET'!$E50=1,IF('FP-DET'!$H50=K$6,'FP-DET'!$L50,""),"") ->  | L44: =IF('FP-DET'!$E50=1,IF('FP-DET'!$H50=L$6,'FP-DET'!$L50,""),"") ->  | M44: =IF('FP-DET'!$E50=1,IF('FP-DET'!$H50=M$6,'FP-DET'!$L50,""),"") -> M | N44: =IF('FP-DET'!$E50=1,IF('FP-DET'!$H50=N$6,'FP-DET'!$L50,""),"") ->  | O44: =IF('FP-DET'!$E50=1,IF('FP-DET'!$H50=O$6,'FP-DET'!$L50,""),"") ->  | P44: =IF('FP-DET'!$E50=2,IF('FP-DET'!$H50=P$6,'FP-DET'!$L50,""),"") ->  | Q44: =IF('FP-DET'!$E50=2,IF('FP-DET'!$H50=Q$6,'FP-DET'!$L50,""),"") ->  | R44: =IF('FP-DET'!$E50=2,IF('FP-DET'!$H50=R$6,'FP-DET'!$L50,""),"") ->  | S44: =IF('FP-DET'!$E50=2,IF('FP-DET'!$H50=S$6,'FP-DET'!$L50,""),"") ->  | T44: =IF('FP-DET'!$E50=2,IF('FP-DET'!$H50=T$6,'FP-DET'!$L50,""),"") ->  | U44: =IF('FP-DET'!$E50=3,IF('FP-DET'!$H50=U$6,'FP-DET'!$L50,""),"") ->  | V44: =IF('FP-DET'!$E50=3,IF('FP-DET'!$H50=V$6,'FP-DET'!$L50,""),"") ->  | W44: =IF('FP-DET'!$E50=3,IF('FP-DET'!$H50=W$6,'FP-DET'!$L50,""),"") ->  | X44: =IF('FP-DET'!$E50=3,IF('FP-DET'!$H50=X$6,'FP-DET'!$L50,""),"") ->  | Y44: =IF('FP-DET'!$E50=3,IF('FP-DET'!$H50=Y$6,'FP-DET'!$L50,""),"") ->  | Z44: =IF('FP-DET'!$E50=4,IF('FP-DET'!$H50=Z$6,'FP-DET'!$L50,""),"") ->  | AA44: =IF('FP-DET'!$E50=4,IF('FP-DET'!$H50=AA$6,'FP-DET'!$L50,""),"") ->  | AB44: =IF('FP-DET'!$E50=4,IF('FP-DET'!$H50=AB$6,'FP-DET'!$L50,""),"") ->  | AC44: =IF('FP-DET'!$E50=4,IF('FP-DET'!$H50=AC$6,'FP-DET'!$L50,""),"") ->  | AD44: =IF('FP-DET'!$E50=4,IF('FP-DET'!$H50=AD$6,'FP-DET'!$L50,""),"") ->  | AE44: =IF('FP-DET'!$E50=5,IF('FP-DET'!$H50=AE$6,'FP-DET'!$L50,""),"") ->  | AF44: =IF('FP-DET'!$E50=5,IF('FP-DET'!$H50=AF$6,'FP-DET'!$L50,""),"") ->  | AG44: =IF('FP-DET'!$E50=5,IF('FP-DET'!$H50=AG$6,'FP-DET'!$L50,""),"") ->  | AH44: =IF('FP-DET'!$E50=5,IF('FP-DET'!$H50=AH$6,'FP-DET'!$L50,""),"") ->  | AI44: =IF('FP-DET'!$E50=5,IF('FP-DET'!$H50=AI$6,'FP-DET'!$L50,""),"") -> 
K45: =IF('FP-DET'!$E51=1,IF('FP-DET'!$H51=K$6,'FP-DET'!$L51,""),"") ->  | L45: =IF('FP-DET'!$E51=1,IF('FP-DET'!$H51=L$6,'FP-DET'!$L51,""),"") ->  | M45: =IF('FP-DET'!$E51=1,IF('FP-DET'!$H51=M$6,'FP-DET'!$L51,""),"") ->  | N45: =IF('FP-DET'!$E51=1,IF('FP-DET'!$H51=N$6,'FP-DET'!$L51,""),"") ->  | O45: =IF('FP-DET'!$E51=1,IF('FP-DET'!$H51=O$6,'FP-DET'!$L51,""),"") -> B | P45: =IF('FP-DET'!$E51=2,IF('FP-DET'!$H51=P$6,'FP-DET'!$L51,""),"") ->  | Q45: =IF('FP-DET'!$E51=2,IF('FP-DET'!$H51=Q$6,'FP-DET'!$L51,""),"") ->  | R45: =IF('FP-DET'!$E51=2,IF('FP-DET'!$H51=R$6,'FP-DET'!$L51,""),"") ->  | S45: =IF('FP-DET'!$E51=2,IF('FP-DET'!$H51=S$6,'FP-DET'!$L51,""),"") ->  | T45: =IF('FP-DET'!$E51=2,IF('FP-DET'!$H51=T$6,'FP-DET'!$L51,""),"") ->  | U45: =IF('FP-DET'!$E51=3,IF('FP-DET'!$H51=U$6,'FP-DET'!$L51,""),"") ->  | V45: =IF('FP-DET'!$E51=3,IF('FP-DET'!$H51=V$6,'FP-DET'!$L51,""),"") ->  | W45: =IF('FP-DET'!$E51=3,IF('FP-DET'!$H51=W$6,'FP-DET'!$L51,""),"") ->  | X45: =IF('FP-DET'!$E51=3,IF('FP-DET'!$H51=X$6,'FP-DET'!$L51,""),"") ->  | Y45: =IF('FP-DET'!$E51=3,IF('FP-DET'!$H51=Y$6,'FP-DET'!$L51,""),"") ->  | Z45: =IF('FP-DET'!$E51=4,IF('FP-DET'!$H51=Z$6,'FP-DET'!$L51,""),"") ->  | AA45: =IF('FP-DET'!$E51=4,IF('FP-DET'!$H51=AA$6,'FP-DET'!$L51,""),"") ->  | AB45: =IF('FP-DET'!$E51=4,IF('FP-DET'!$H51=AB$6,'FP-DET'!$L51,""),"") ->  | AC45: =IF('FP-DET'!$E51=4,IF('FP-DET'!$H51=AC$6,'FP-DET'!$L51,""),"") ->  | AD45: =IF('FP-DET'!$E51=4,IF('FP-DET'!$H51=AD$6,'FP-DET'!$L51,""),"") ->  | AE45: =IF('FP-DET'!$E51=5,IF('FP-DET'!$H51=AE$6,'FP-DET'!$L51,""),"") ->  | AF45: =IF('FP-DET'!$E51=5,IF('FP-DET'!$H51=AF$6,'FP-DET'!$L51,""),"") ->  | AG45: =IF('FP-DET'!$E51=5,IF('FP-DET'!$H51=AG$6,'FP-DET'!$L51,""),"") ->  | AH45: =IF('FP-DET'!$E51=5,IF('FP-DET'!$H51=AH$6,'FP-DET'!$L51,""),"") ->  | AI45: =IF('FP-DET'!$E51=5,IF('FP-DET'!$H51=AI$6,'FP-DET'!$L51,""),"") -> 
K46: =IF('FP-DET'!$E52=1,IF('FP-DET'!$H52=K$6,'FP-DET'!$L52,""),"") ->  | L46: =IF('FP-DET'!$E52=1,IF('FP-DET'!$H52=L$6,'FP-DET'!$L52,""),"") ->  | M46: =IF('FP-DET'!$E52=1,IF('FP-DET'!$H52=M$6,'FP-DET'!$L52,""),"") ->  | N46: =IF('FP-DET'!$E52=1,IF('FP-DET'!$H52=N$6,'FP-DET'!$L52,""),"") ->  | O46: =IF('FP-DET'!$E52=1,IF('FP-DET'!$H52=O$6,'FP-DET'!$L52,""),"") -> B | P46: =IF('FP-DET'!$E52=2,IF('FP-DET'!$H52=P$6,'FP-DET'!$L52,""),"") ->  | Q46: =IF('FP-DET'!$E52=2,IF('FP-DET'!$H52=Q$6,'FP-DET'!$L52,""),"") ->  | R46: =IF('FP-DET'!$E52=2,IF('FP-DET'!$H52=R$6,'FP-DET'!$L52,""),"") ->  | S46: =IF('FP-DET'!$E52=2,IF('FP-DET'!$H52=S$6,'FP-DET'!$L52,""),"") ->  | T46: =IF('FP-DET'!$E52=2,IF('FP-DET'!$H52=T$6,'FP-DET'!$L52,""),"") ->  | U46: =IF('FP-DET'!$E52=3,IF('FP-DET'!$H52=U$6,'FP-DET'!$L52,""),"") ->  | V46: =IF('FP-DET'!$E52=3,IF('FP-DET'!$H52=V$6,'FP-DET'!$L52,""),"") ->  | W46: =IF('FP-DET'!$E52=3,IF('FP-DET'!$H52=W$6,'FP-DET'!$L52,""),"") ->  | X46: =IF('FP-DET'!$E52=3,IF('FP-DET'!$H52=X$6,'FP-DET'!$L52,""),"") ->  | Y46: =IF('FP-DET'!$E52=3,IF('FP-DET'!$H52=Y$6,'FP-DET'!$L52,""),"") ->  | Z46: =IF('FP-DET'!$E52=4,IF('FP-DET'!$H52=Z$6,'FP-DET'!$L52,""),"") ->  | AA46: =IF('FP-DET'!$E52=4,IF('FP-DET'!$H52=AA$6,'FP-DET'!$L52,""),"") ->  | AB46: =IF('FP-DET'!$E52=4,IF('FP-DET'!$H52=AB$6,'FP-DET'!$L52,""),"") ->  | AC46: =IF('FP-DET'!$E52=4,IF('FP-DET'!$H52=AC$6,'FP-DET'!$L52,""),"") ->  | AD46: =IF('FP-DET'!$E52=4,IF('FP-DET'!$H52=AD$6,'FP-DET'!$L52,""),"") ->  | AE46: =IF('FP-DET'!$E52=5,IF('FP-DET'!$H52=AE$6,'FP-DET'!$L52,""),"") ->  | AF46: =IF('FP-DET'!$E52=5,IF('FP-DET'!$H52=AF$6,'FP-DET'!$L52,""),"") ->  | AG46: =IF('FP-DET'!$E52=5,IF('FP-DET'!$H52=AG$6,'FP-DET'!$L52,""),"") ->  | AH46: =IF('FP-DET'!$E52=5,IF('FP-DET'!$H52=AH$6,'FP-DET'!$L52,""),"") ->  | AI46: =IF('FP-DET'!$E52=5,IF('FP-DET'!$H52=AI$6,'FP-DET'!$L52,""),"") -> 
K47: =IF('FP-DET'!$E53=1,IF('FP-DET'!$H53=K$6,'FP-DET'!$L53,""),"") ->  | L47: =IF('FP-DET'!$E53=1,IF('FP-DET'!$H53=L$6,'FP-DET'!$L53,""),"") ->  | M47: =IF('FP-DET'!$E53=1,IF('FP-DET'!$H53=M$6,'FP-DET'!$L53,""),"") ->  | N47: =IF('FP-DET'!$E53=1,IF('FP-DET'!$H53=N$6,'FP-DET'!$L53,""),"") ->  | O47: =IF('FP-DET'!$E53=1,IF('FP-DET'!$H53=O$6,'FP-DET'!$L53,""),"") -> B | P47: =IF('FP-DET'!$E53=2,IF('FP-DET'!$H53=P$6,'FP-DET'!$L53,""),"") ->  | Q47: =IF('FP-DET'!$E53=2,IF('FP-DET'!$H53=Q$6,'FP-DET'!$L53,""),"") ->  | R47: =IF('FP-DET'!$E53=2,IF('FP-DET'!$H53=R$6,'FP-DET'!$L53,""),"") ->  | S47: =IF('FP-DET'!$E53=2,IF('FP-DET'!$H53=S$6,'FP-DET'!$L53,""),"") ->  | T47: =IF('FP-DET'!$E53=2,IF('FP-DET'!$H53=T$6,'FP-DET'!$L53,""),"") ->  | U47: =IF('FP-DET'!$E53=3,IF('FP-DET'!$H53=U$6,'FP-DET'!$L53,""),"") ->  | V47: =IF('FP-DET'!$E53=3,IF('FP-DET'!$H53=V$6,'FP-DET'!$L53,""),"") ->  | W47: =IF('FP-DET'!$E53=3,IF('FP-DET'!$H53=W$6,'FP-DET'!$L53,""),"") ->  | X47: =IF('FP-DET'!$E53=3,IF('FP-DET'!$H53=X$6,'FP-DET'!$L53,""),"") ->  | Y47: =IF('FP-DET'!$E53=3,IF('FP-DET'!$H53=Y$6,'FP-DET'!$L53,""),"") ->  | Z47: =IF('FP-DET'!$E53=4,IF('FP-DET'!$H53=Z$6,'FP-DET'!$L53,""),"") ->  | AA47: =IF('FP-DET'!$E53=4,IF('FP-DET'!$H53=AA$6,'FP-DET'!$L53,""),"") ->  | AB47: =IF('FP-DET'!$E53=4,IF('FP-DET'!$H53=AB$6,'FP-DET'!$L53,""),"") ->  | AC47: =IF('FP-DET'!$E53=4,IF('FP-DET'!$H53=AC$6,'FP-DET'!$L53,""),"") ->  | AD47: =IF('FP-DET'!$E53=4,IF('FP-DET'!$H53=AD$6,'FP-DET'!$L53,""),"") ->  | AE47: =IF('FP-DET'!$E53=5,IF('FP-DET'!$H53=AE$6,'FP-DET'!$L53,""),"") ->  | AF47: =IF('FP-DET'!$E53=5,IF('FP-DET'!$H53=AF$6,'FP-DET'!$L53,""),"") ->  | AG47: =IF('FP-DET'!$E53=5,IF('FP-DET'!$H53=AG$6,'FP-DET'!$L53,""),"") ->  | AH47: =IF('FP-DET'!$E53=5,IF('FP-DET'!$H53=AH$6,'FP-DET'!$L53,""),"") ->  | AI47: =IF('FP-DET'!$E53=5,IF('FP-DET'!$H53=AI$6,'FP-DET'!$L53,""),"") -> 
K48: =IF('FP-DET'!$E54=1,IF('FP-DET'!$H54=K$6,'FP-DET'!$L54,""),"") ->  | L48: =IF('FP-DET'!$E54=1,IF('FP-DET'!$H54=L$6,'FP-DET'!$L54,""),"") ->  | M48: =IF('FP-DET'!$E54=1,IF('FP-DET'!$H54=M$6,'FP-DET'!$L54,""),"") ->  | N48: =IF('FP-DET'!$E54=1,IF('FP-DET'!$H54=N$6,'FP-DET'!$L54,""),"") ->  | O48: =IF('FP-DET'!$E54=1,IF('FP-DET'!$H54=O$6,'FP-DET'!$L54,""),"") -> B | P48: =IF('FP-DET'!$E54=2,IF('FP-DET'!$H54=P$6,'FP-DET'!$L54,""),"") ->  | Q48: =IF('FP-DET'!$E54=2,IF('FP-DET'!$H54=Q$6,'FP-DET'!$L54,""),"") ->  | R48: =IF('FP-DET'!$E54=2,IF('FP-DET'!$H54=R$6,'FP-DET'!$L54,""),"") ->  | S48: =IF('FP-DET'!$E54=2,IF('FP-DET'!$H54=S$6,'FP-DET'!$L54,""),"") ->  | T48: =IF('FP-DET'!$E54=2,IF('FP-DET'!$H54=T$6,'FP-DET'!$L54,""),"") ->  | U48: =IF('FP-DET'!$E54=3,IF('FP-DET'!$H54=U$6,'FP-DET'!$L54,""),"") ->  | V48: =IF('FP-DET'!$E54=3,IF('FP-DET'!$H54=V$6,'FP-DET'!$L54,""),"") ->  | W48: =IF('FP-DET'!$E54=3,IF('FP-DET'!$H54=W$6,'FP-DET'!$L54,""),"") ->  | X48: =IF('FP-DET'!$E54=3,IF('FP-DET'!$H54=X$6,'FP-DET'!$L54,""),"") ->  | Y48: =IF('FP-DET'!$E54=3,IF('FP-DET'!$H54=Y$6,'FP-DET'!$L54,""),"") ->  | Z48: =IF('FP-DET'!$E54=4,IF('FP-DET'!$H54=Z$6,'FP-DET'!$L54,""),"") ->  | AA48: =IF('FP-DET'!$E54=4,IF('FP-DET'!$H54=AA$6,'FP-DET'!$L54,""),"") ->  | AB48: =IF('FP-DET'!$E54=4,IF('FP-DET'!$H54=AB$6,'FP-DET'!$L54,""),"") ->  | AC48: =IF('FP-DET'!$E54=4,IF('FP-DET'!$H54=AC$6,'FP-DET'!$L54,""),"") ->  | AD48: =IF('FP-DET'!$E54=4,IF('FP-DET'!$H54=AD$6,'FP-DET'!$L54,""),"") ->  | AE48: =IF('FP-DET'!$E54=5,IF('FP-DET'!$H54=AE$6,'FP-DET'!$L54,""),"") ->  | AF48: =IF('FP-DET'!$E54=5,IF('FP-DET'!$H54=AF$6,'FP-DET'!$L54,""),"") ->  | AG48: =IF('FP-DET'!$E54=5,IF('FP-DET'!$H54=AG$6,'FP-DET'!$L54,""),"") ->  | AH48: =IF('FP-DET'!$E54=5,IF('FP-DET'!$H54=AH$6,'FP-DET'!$L54,""),"") ->  | AI48: =IF('FP-DET'!$E54=5,IF('FP-DET'!$H54=AI$6,'FP-DET'!$L54,""),"") -> 
K49: =IF('FP-DET'!$E55=1,IF('FP-DET'!$H55=K$6,'FP-DET'!$L55,""),"") ->  | L49: =IF('FP-DET'!$E55=1,IF('FP-DET'!$H55=L$6,'FP-DET'!$L55,""),"") ->  | M49: =IF('FP-DET'!$E55=1,IF('FP-DET'!$H55=M$6,'FP-DET'!$L55,""),"") ->  | N49: =IF('FP-DET'!$E55=1,IF('FP-DET'!$H55=N$6,'FP-DET'!$L55,""),"") -> B | O49: =IF('FP-DET'!$E55=1,IF('FP-DET'!$H55=O$6,'FP-DET'!$L55,""),"") ->  | P49: =IF('FP-DET'!$E55=2,IF('FP-DET'!$H55=P$6,'FP-DET'!$L55,""),"") ->  | Q49: =IF('FP-DET'!$E55=2,IF('FP-DET'!$H55=Q$6,'FP-DET'!$L55,""),"") ->  | R49: =IF('FP-DET'!$E55=2,IF('FP-DET'!$H55=R$6,'FP-DET'!$L55,""),"") ->  | S49: =IF('FP-DET'!$E55=2,IF('FP-DET'!$H55=S$6,'FP-DET'!$L55,""),"") ->  | T49: =IF('FP-DET'!$E55=2,IF('FP-DET'!$H55=T$6,'FP-DET'!$L55,""),"") ->  | U49: =IF('FP-DET'!$E55=3,IF('FP-DET'!$H55=U$6,'FP-DET'!$L55,""),"") ->  | V49: =IF('FP-DET'!$E55=3,IF('FP-DET'!$H55=V$6,'FP-DET'!$L55,""),"") ->  | W49: =IF('FP-DET'!$E55=3,IF('FP-DET'!$H55=W$6,'FP-DET'!$L55,""),"") ->  | X49: =IF('FP-DET'!$E55=3,IF('FP-DET'!$H55=X$6,'FP-DET'!$L55,""),"") ->  | Y49: =IF('FP-DET'!$E55=3,IF('FP-DET'!$H55=Y$6,'FP-DET'!$L55,""),"") ->  | Z49: =IF('FP-DET'!$E55=4,IF('FP-DET'!$H55=Z$6,'FP-DET'!$L55,""),"") ->  | AA49: =IF('FP-DET'!$E55=4,IF('FP-DET'!$H55=AA$6,'FP-DET'!$L55,""),"") ->  | AB49: =IF('FP-DET'!$E55=4,IF('FP-DET'!$H55=AB$6,'FP-DET'!$L55,""),"") ->  | AC49: =IF('FP-DET'!$E55=4,IF('FP-DET'!$H55=AC$6,'FP-DET'!$L55,""),"") ->  | AD49: =IF('FP-DET'!$E55=4,IF('FP-DET'!$H55=AD$6,'FP-DET'!$L55,""),"") ->  | AE49: =IF('FP-DET'!$E55=5,IF('FP-DET'!$H55=AE$6,'FP-DET'!$L55,""),"") ->  | AF49: =IF('FP-DET'!$E55=5,IF('FP-DET'!$H55=AF$6,'FP-DET'!$L55,""),"") ->  | AG49: =IF('FP-DET'!$E55=5,IF('FP-DET'!$H55=AG$6,'FP-DET'!$L55,""),"") ->  | AH49: =IF('FP-DET'!$E55=5,IF('FP-DET'!$H55=AH$6,'FP-DET'!$L55,""),"") ->  | AI49: =IF('FP-DET'!$E55=5,IF('FP-DET'!$H55=AI$6,'FP-DET'!$L55,""),"") -> 
K50: =IF('FP-DET'!$E56=1,IF('FP-DET'!$H56=K$6,'FP-DET'!$L56,""),"") ->  | L50: =IF('FP-DET'!$E56=1,IF('FP-DET'!$H56=L$6,'FP-DET'!$L56,""),"") ->  | M50: =IF('FP-DET'!$E56=1,IF('FP-DET'!$H56=M$6,'FP-DET'!$L56,""),"") ->  | N50: =IF('FP-DET'!$E56=1,IF('FP-DET'!$H56=N$6,'FP-DET'!$L56,""),"") ->  | O50: =IF('FP-DET'!$E56=1,IF('FP-DET'!$H56=O$6,'FP-DET'!$L56,""),"") ->  | P50: =IF('FP-DET'!$E56=2,IF('FP-DET'!$H56=P$6,'FP-DET'!$L56,""),"") ->  | Q50: =IF('FP-DET'!$E56=2,IF('FP-DET'!$H56=Q$6,'FP-DET'!$L56,""),"") ->  | R50: =IF('FP-DET'!$E56=2,IF('FP-DET'!$H56=R$6,'FP-DET'!$L56,""),"") ->  | S50: =IF('FP-DET'!$E56=2,IF('FP-DET'!$H56=S$6,'FP-DET'!$L56,""),"") ->  | T50: =IF('FP-DET'!$E56=2,IF('FP-DET'!$H56=T$6,'FP-DET'!$L56,""),"") ->  | U50: =IF('FP-DET'!$E56=3,IF('FP-DET'!$H56=U$6,'FP-DET'!$L56,""),"") ->  | V50: =IF('FP-DET'!$E56=3,IF('FP-DET'!$H56=V$6,'FP-DET'!$L56,""),"") ->  | W50: =IF('FP-DET'!$E56=3,IF('FP-DET'!$H56=W$6,'FP-DET'!$L56,""),"") ->  | X50: =IF('FP-DET'!$E56=3,IF('FP-DET'!$H56=X$6,'FP-DET'!$L56,""),"") ->  | Y50: =IF('FP-DET'!$E56=3,IF('FP-DET'!$H56=Y$6,'FP-DET'!$L56,""),"") ->  | Z50: =IF('FP-DET'!$E56=4,IF('FP-DET'!$H56=Z$6,'FP-DET'!$L56,""),"") ->  | AA50: =IF('FP-DET'!$E56=4,IF('FP-DET'!$H56=AA$6,'FP-DET'!$L56,""),"") ->  | AB50: =IF('FP-DET'!$E56=4,IF('FP-DET'!$H56=AB$6,'FP-DET'!$L56,""),"") ->  | AC50: =IF('FP-DET'!$E56=4,IF('FP-DET'!$H56=AC$6,'FP-DET'!$L56,""),"") ->  | AD50: =IF('FP-DET'!$E56=4,IF('FP-DET'!$H56=AD$6,'FP-DET'!$L56,""),"") ->  | AE50: =IF('FP-DET'!$E56=5,IF('FP-DET'!$H56=AE$6,'FP-DET'!$L56,""),"") ->  | AF50: =IF('FP-DET'!$E56=5,IF('FP-DET'!$H56=AF$6,'FP-DET'!$L56,""),"") ->  | AG50: =IF('FP-DET'!$E56=5,IF('FP-DET'!$H56=AG$6,'FP-DET'!$L56,""),"") ->  | AH50: =IF('FP-DET'!$E56=5,IF('FP-DET'!$H56=AH$6,'FP-DET'!$L56,""),"") ->  | AI50: =IF('FP-DET'!$E56=5,IF('FP-DET'!$H56=AI$6,'FP-DET'!$L56,""),"") -> 
K51: =IF('FP-DET'!$E57=1,IF('FP-DET'!$H57=K$6,'FP-DET'!$L57,""),"") ->  | L51: =IF('FP-DET'!$E57=1,IF('FP-DET'!$H57=L$6,'FP-DET'!$L57,""),"") ->  | M51: =IF('FP-DET'!$E57=1,IF('FP-DET'!$H57=M$6,'FP-DET'!$L57,""),"") ->  | N51: =IF('FP-DET'!$E57=1,IF('FP-DET'!$H57=N$6,'FP-DET'!$L57,""),"") ->  | O51: =IF('FP-DET'!$E57=1,IF('FP-DET'!$H57=O$6,'FP-DET'!$L57,""),"") -> B | P51: =IF('FP-DET'!$E57=2,IF('FP-DET'!$H57=P$6,'FP-DET'!$L57,""),"") ->  | Q51: =IF('FP-DET'!$E57=2,IF('FP-DET'!$H57=Q$6,'FP-DET'!$L57,""),"") ->  | R51: =IF('FP-DET'!$E57=2,IF('FP-DET'!$H57=R$6,'FP-DET'!$L57,""),"") ->  | S51: =IF('FP-DET'!$E57=2,IF('FP-DET'!$H57=S$6,'FP-DET'!$L57,""),"") ->  | T51: =IF('FP-DET'!$E57=2,IF('FP-DET'!$H57=T$6,'FP-DET'!$L57,""),"") ->  | U51: =IF('FP-DET'!$E57=3,IF('FP-DET'!$H57=U$6,'FP-DET'!$L57,""),"") ->  | V51: =IF('FP-DET'!$E57=3,IF('FP-DET'!$H57=V$6,'FP-DET'!$L57,""),"") ->  | W51: =IF('FP-DET'!$E57=3,IF('FP-DET'!$H57=W$6,'FP-DET'!$L57,""),"") ->  | X51: =IF('FP-DET'!$E57=3,IF('FP-DET'!$H57=X$6,'FP-DET'!$L57,""),"") ->  | Y51: =IF('FP-DET'!$E57=3,IF('FP-DET'!$H57=Y$6,'FP-DET'!$L57,""),"") ->  | Z51: =IF('FP-DET'!$E57=4,IF('FP-DET'!$H57=Z$6,'FP-DET'!$L57,""),"") ->  | AA51: =IF('FP-DET'!$E57=4,IF('FP-DET'!$H57=AA$6,'FP-DET'!$L57,""),"") ->  | AB51: =IF('FP-DET'!$E57=4,IF('FP-DET'!$H57=AB$6,'FP-DET'!$L57,""),"") ->  | AC51: =IF('FP-DET'!$E57=4,IF('FP-DET'!$H57=AC$6,'FP-DET'!$L57,""),"") ->  | AD51: =IF('FP-DET'!$E57=4,IF('FP-DET'!$H57=AD$6,'FP-DET'!$L57,""),"") ->  | AE51: =IF('FP-DET'!$E57=5,IF('FP-DET'!$H57=AE$6,'FP-DET'!$L57,""),"") ->  | AF51: =IF('FP-DET'!$E57=5,IF('FP-DET'!$H57=AF$6,'FP-DET'!$L57,""),"") ->  | AG51: =IF('FP-DET'!$E57=5,IF('FP-DET'!$H57=AG$6,'FP-DET'!$L57,""),"") ->  | AH51: =IF('FP-DET'!$E57=5,IF('FP-DET'!$H57=AH$6,'FP-DET'!$L57,""),"") ->  | AI51: =IF('FP-DET'!$E57=5,IF('FP-DET'!$H57=AI$6,'FP-DET'!$L57,""),"") -> 
K52: =IF('FP-DET'!$E58=1,IF('FP-DET'!$H58=K$6,'FP-DET'!$L58,""),"") ->  | L52: =IF('FP-DET'!$E58=1,IF('FP-DET'!$H58=L$6,'FP-DET'!$L58,""),"") ->  | M52: =IF('FP-DET'!$E58=1,IF('FP-DET'!$H58=M$6,'FP-DET'!$L58,""),"") ->  | N52: =IF('FP-DET'!$E58=1,IF('FP-DET'!$H58=N$6,'FP-DET'!$L58,""),"") ->  | O52: =IF('FP-DET'!$E58=1,IF('FP-DET'!$H58=O$6,'FP-DET'!$L58,""),"") -> B | P52: =IF('FP-DET'!$E58=2,IF('FP-DET'!$H58=P$6,'FP-DET'!$L58,""),"") ->  | Q52: =IF('FP-DET'!$E58=2,IF('FP-DET'!$H58=Q$6,'FP-DET'!$L58,""),"") ->  | R52: =IF('FP-DET'!$E58=2,IF('FP-DET'!$H58=R$6,'FP-DET'!$L58,""),"") ->  | S52: =IF('FP-DET'!$E58=2,IF('FP-DET'!$H58=S$6,'FP-DET'!$L58,""),"") ->  | T52: =IF('FP-DET'!$E58=2,IF('FP-DET'!$H58=T$6,'FP-DET'!$L58,""),"") ->  | U52: =IF('FP-DET'!$E58=3,IF('FP-DET'!$H58=U$6,'FP-DET'!$L58,""),"") ->  | V52: =IF('FP-DET'!$E58=3,IF('FP-DET'!$H58=V$6,'FP-DET'!$L58,""),"") ->  | W52: =IF('FP-DET'!$E58=3,IF('FP-DET'!$H58=W$6,'FP-DET'!$L58,""),"") ->  | X52: =IF('FP-DET'!$E58=3,IF('FP-DET'!$H58=X$6,'FP-DET'!$L58,""),"") ->  | Y52: =IF('FP-DET'!$E58=3,IF('FP-DET'!$H58=Y$6,'FP-DET'!$L58,""),"") ->  | Z52: =IF('FP-DET'!$E58=4,IF('FP-DET'!$H58=Z$6,'FP-DET'!$L58,""),"") ->  | AA52: =IF('FP-DET'!$E58=4,IF('FP-DET'!$H58=AA$6,'FP-DET'!$L58,""),"") ->  | AB52: =IF('FP-DET'!$E58=4,IF('FP-DET'!$H58=AB$6,'FP-DET'!$L58,""),"") ->  | AC52: =IF('FP-DET'!$E58=4,IF('FP-DET'!$H58=AC$6,'FP-DET'!$L58,""),"") ->  | AD52: =IF('FP-DET'!$E58=4,IF('FP-DET'!$H58=AD$6,'FP-DET'!$L58,""),"") ->  | AE52: =IF('FP-DET'!$E58=5,IF('FP-DET'!$H58=AE$6,'FP-DET'!$L58,""),"") ->  | AF52: =IF('FP-DET'!$E58=5,IF('FP-DET'!$H58=AF$6,'FP-DET'!$L58,""),"") ->  | AG52: =IF('FP-DET'!$E58=5,IF('FP-DET'!$H58=AG$6,'FP-DET'!$L58,""),"") ->  | AH52: =IF('FP-DET'!$E58=5,IF('FP-DET'!$H58=AH$6,'FP-DET'!$L58,""),"") ->  | AI52: =IF('FP-DET'!$E58=5,IF('FP-DET'!$H58=AI$6,'FP-DET'!$L58,""),"") -> 
K53: =IF('FP-DET'!$E59=1,IF('FP-DET'!$H59=K$6,'FP-DET'!$L59,""),"") ->  | L53: =IF('FP-DET'!$E59=1,IF('FP-DET'!$H59=L$6,'FP-DET'!$L59,""),"") ->  | M53: =IF('FP-DET'!$E59=1,IF('FP-DET'!$H59=M$6,'FP-DET'!$L59,""),"") ->  | N53: =IF('FP-DET'!$E59=1,IF('FP-DET'!$H59=N$6,'FP-DET'!$L59,""),"") ->  | O53: =IF('FP-DET'!$E59=1,IF('FP-DET'!$H59=O$6,'FP-DET'!$L59,""),"") ->  | P53: =IF('FP-DET'!$E59=2,IF('FP-DET'!$H59=P$6,'FP-DET'!$L59,""),"") ->  | Q53: =IF('FP-DET'!$E59=2,IF('FP-DET'!$H59=Q$6,'FP-DET'!$L59,""),"") ->  | R53: =IF('FP-DET'!$E59=2,IF('FP-DET'!$H59=R$6,'FP-DET'!$L59,""),"") ->  | S53: =IF('FP-DET'!$E59=2,IF('FP-DET'!$H59=S$6,'FP-DET'!$L59,""),"") ->  | T53: =IF('FP-DET'!$E59=2,IF('FP-DET'!$H59=T$6,'FP-DET'!$L59,""),"") ->  | U53: =IF('FP-DET'!$E59=3,IF('FP-DET'!$H59=U$6,'FP-DET'!$L59,""),"") ->  | V53: =IF('FP-DET'!$E59=3,IF('FP-DET'!$H59=V$6,'FP-DET'!$L59,""),"") ->  | W53: =IF('FP-DET'!$E59=3,IF('FP-DET'!$H59=W$6,'FP-DET'!$L59,""),"") ->  | X53: =IF('FP-DET'!$E59=3,IF('FP-DET'!$H59=X$6,'FP-DET'!$L59,""),"") ->  | Y53: =IF('FP-DET'!$E59=3,IF('FP-DET'!$H59=Y$6,'FP-DET'!$L59,""),"") ->  | Z53: =IF('FP-DET'!$E59=4,IF('FP-DET'!$H59=Z$6,'FP-DET'!$L59,""),"") ->  | AA53: =IF('FP-DET'!$E59=4,IF('FP-DET'!$H59=AA$6,'FP-DET'!$L59,""),"") ->  | AB53: =IF('FP-DET'!$E59=4,IF('FP-DET'!$H59=AB$6,'FP-DET'!$L59,""),"") ->  | AC53: =IF('FP-DET'!$E59=4,IF('FP-DET'!$H59=AC$6,'FP-DET'!$L59,""),"") ->  | AD53: =IF('FP-DET'!$E59=4,IF('FP-DET'!$H59=AD$6,'FP-DET'!$L59,""),"") ->  | AE53: =IF('FP-DET'!$E59=5,IF('FP-DET'!$H59=AE$6,'FP-DET'!$L59,""),"") ->  | AF53: =IF('FP-DET'!$E59=5,IF('FP-DET'!$H59=AF$6,'FP-DET'!$L59,""),"") ->  | AG53: =IF('FP-DET'!$E59=5,IF('FP-DET'!$H59=AG$6,'FP-DET'!$L59,""),"") ->  | AH53: =IF('FP-DET'!$E59=5,IF('FP-DET'!$H59=AH$6,'FP-DET'!$L59,""),"") ->  | AI53: =IF('FP-DET'!$E59=5,IF('FP-DET'!$H59=AI$6,'FP-DET'!$L59,""),"") -> 
K54: =IF('FP-DET'!$E60=1,IF('FP-DET'!$H60=K$6,'FP-DET'!$L60,""),"") ->  | L54: =IF('FP-DET'!$E60=1,IF('FP-DET'!$H60=L$6,'FP-DET'!$L60,""),"") ->  | M54: =IF('FP-DET'!$E60=1,IF('FP-DET'!$H60=M$6,'FP-DET'!$L60,""),"") ->  | N54: =IF('FP-DET'!$E60=1,IF('FP-DET'!$H60=N$6,'FP-DET'!$L60,""),"") ->  | O54: =IF('FP-DET'!$E60=1,IF('FP-DET'!$H60=O$6,'FP-DET'!$L60,""),"") ->  | P54: =IF('FP-DET'!$E60=2,IF('FP-DET'!$H60=P$6,'FP-DET'!$L60,""),"") ->  | Q54: =IF('FP-DET'!$E60=2,IF('FP-DET'!$H60=Q$6,'FP-DET'!$L60,""),"") ->  | R54: =IF('FP-DET'!$E60=2,IF('FP-DET'!$H60=R$6,'FP-DET'!$L60,""),"") ->  | S54: =IF('FP-DET'!$E60=2,IF('FP-DET'!$H60=S$6,'FP-DET'!$L60,""),"") ->  | T54: =IF('FP-DET'!$E60=2,IF('FP-DET'!$H60=T$6,'FP-DET'!$L60,""),"") ->  | U54: =IF('FP-DET'!$E60=3,IF('FP-DET'!$H60=U$6,'FP-DET'!$L60,""),"") ->  | V54: =IF('FP-DET'!$E60=3,IF('FP-DET'!$H60=V$6,'FP-DET'!$L60,""),"") ->  | W54: =IF('FP-DET'!$E60=3,IF('FP-DET'!$H60=W$6,'FP-DET'!$L60,""),"") ->  | X54: =IF('FP-DET'!$E60=3,IF('FP-DET'!$H60=X$6,'FP-DET'!$L60,""),"") ->  | Y54: =IF('FP-DET'!$E60=3,IF('FP-DET'!$H60=Y$6,'FP-DET'!$L60,""),"") ->  | Z54: =IF('FP-DET'!$E60=4,IF('FP-DET'!$H60=Z$6,'FP-DET'!$L60,""),"") ->  | AA54: =IF('FP-DET'!$E60=4,IF('FP-DET'!$H60=AA$6,'FP-DET'!$L60,""),"") ->  | AB54: =IF('FP-DET'!$E60=4,IF('FP-DET'!$H60=AB$6,'FP-DET'!$L60,""),"") ->  | AC54: =IF('FP-DET'!$E60=4,IF('FP-DET'!$H60=AC$6,'FP-DET'!$L60,""),"") ->  | AD54: =IF('FP-DET'!$E60=4,IF('FP-DET'!$H60=AD$6,'FP-DET'!$L60,""),"") ->  | AE54: =IF('FP-DET'!$E60=5,IF('FP-DET'!$H60=AE$6,'FP-DET'!$L60,""),"") ->  | AF54: =IF('FP-DET'!$E60=5,IF('FP-DET'!$H60=AF$6,'FP-DET'!$L60,""),"") ->  | AG54: =IF('FP-DET'!$E60=5,IF('FP-DET'!$H60=AG$6,'FP-DET'!$L60,""),"") ->  | AH54: =IF('FP-DET'!$E60=5,IF('FP-DET'!$H60=AH$6,'FP-DET'!$L60,""),"") ->  | AI54: =IF('FP-DET'!$E60=5,IF('FP-DET'!$H60=AI$6,'FP-DET'!$L60,""),"") -> 
K55: =IF('FP-DET'!$E61=1,IF('FP-DET'!$H61=K$6,'FP-DET'!$L61,""),"") ->  | L55: =IF('FP-DET'!$E61=1,IF('FP-DET'!$H61=L$6,'FP-DET'!$L61,""),"") ->  | M55: =IF('FP-DET'!$E61=1,IF('FP-DET'!$H61=M$6,'FP-DET'!$L61,""),"") ->  | N55: =IF('FP-DET'!$E61=1,IF('FP-DET'!$H61=N$6,'FP-DET'!$L61,""),"") ->  | O55: =IF('FP-DET'!$E61=1,IF('FP-DET'!$H61=O$6,'FP-DET'!$L61,""),"") ->  | P55: =IF('FP-DET'!$E61=2,IF('FP-DET'!$H61=P$6,'FP-DET'!$L61,""),"") ->  | Q55: =IF('FP-DET'!$E61=2,IF('FP-DET'!$H61=Q$6,'FP-DET'!$L61,""),"") ->  | R55: =IF('FP-DET'!$E61=2,IF('FP-DET'!$H61=R$6,'FP-DET'!$L61,""),"") ->  | S55: =IF('FP-DET'!$E61=2,IF('FP-DET'!$H61=S$6,'FP-DET'!$L61,""),"") ->  | T55: =IF('FP-DET'!$E61=2,IF('FP-DET'!$H61=T$6,'FP-DET'!$L61,""),"") ->  | U55: =IF('FP-DET'!$E61=3,IF('FP-DET'!$H61=U$6,'FP-DET'!$L61,""),"") ->  | V55: =IF('FP-DET'!$E61=3,IF('FP-DET'!$H61=V$6,'FP-DET'!$L61,""),"") ->  | W55: =IF('FP-DET'!$E61=3,IF('FP-DET'!$H61=W$6,'FP-DET'!$L61,""),"") ->  | X55: =IF('FP-DET'!$E61=3,IF('FP-DET'!$H61=X$6,'FP-DET'!$L61,""),"") ->  | Y55: =IF('FP-DET'!$E61=3,IF('FP-DET'!$H61=Y$6,'FP-DET'!$L61,""),"") ->  | Z55: =IF('FP-DET'!$E61=4,IF('FP-DET'!$H61=Z$6,'FP-DET'!$L61,""),"") ->  | AA55: =IF('FP-DET'!$E61=4,IF('FP-DET'!$H61=AA$6,'FP-DET'!$L61,""),"") ->  | AB55: =IF('FP-DET'!$E61=4,IF('FP-DET'!$H61=AB$6,'FP-DET'!$L61,""),"") ->  | AC55: =IF('FP-DET'!$E61=4,IF('FP-DET'!$H61=AC$6,'FP-DET'!$L61,""),"") ->  | AD55: =IF('FP-DET'!$E61=4,IF('FP-DET'!$H61=AD$6,'FP-DET'!$L61,""),"") ->  | AE55: =IF('FP-DET'!$E61=5,IF('FP-DET'!$H61=AE$6,'FP-DET'!$L61,""),"") ->  | AF55: =IF('FP-DET'!$E61=5,IF('FP-DET'!$H61=AF$6,'FP-DET'!$L61,""),"") ->  | AG55: =IF('FP-DET'!$E61=5,IF('FP-DET'!$H61=AG$6,'FP-DET'!$L61,""),"") ->  | AH55: =IF('FP-DET'!$E61=5,IF('FP-DET'!$H61=AH$6,'FP-DET'!$L61,""),"") ->  | AI55: =IF('FP-DET'!$E61=5,IF('FP-DET'!$H61=AI$6,'FP-DET'!$L61,""),"") -> 
K56: =IF('FP-DET'!$E62=1,IF('FP-DET'!$H62=K$6,'FP-DET'!$L62,""),"") ->  | L56: =IF('FP-DET'!$E62=1,IF('FP-DET'!$H62=L$6,'FP-DET'!$L62,""),"") ->  | M56: =IF('FP-DET'!$E62=1,IF('FP-DET'!$H62=M$6,'FP-DET'!$L62,""),"") ->  | N56: =IF('FP-DET'!$E62=1,IF('FP-DET'!$H62=N$6,'FP-DET'!$L62,""),"") ->  | O56: =IF('FP-DET'!$E62=1,IF('FP-DET'!$H62=O$6,'FP-DET'!$L62,""),"") ->  | P56: =IF('FP-DET'!$E62=2,IF('FP-DET'!$H62=P$6,'FP-DET'!$L62,""),"") ->  | Q56: =IF('FP-DET'!$E62=2,IF('FP-DET'!$H62=Q$6,'FP-DET'!$L62,""),"") ->  | R56: =IF('FP-DET'!$E62=2,IF('FP-DET'!$H62=R$6,'FP-DET'!$L62,""),"") ->  | S56: =IF('FP-DET'!$E62=2,IF('FP-DET'!$H62=S$6,'FP-DET'!$L62,""),"") ->  | T56: =IF('FP-DET'!$E62=2,IF('FP-DET'!$H62=T$6,'FP-DET'!$L62,""),"") ->  | U56: =IF('FP-DET'!$E62=3,IF('FP-DET'!$H62=U$6,'FP-DET'!$L62,""),"") ->  | V56: =IF('FP-DET'!$E62=3,IF('FP-DET'!$H62=V$6,'FP-DET'!$L62,""),"") ->  | W56: =IF('FP-DET'!$E62=3,IF('FP-DET'!$H62=W$6,'FP-DET'!$L62,""),"") ->  | X56: =IF('FP-DET'!$E62=3,IF('FP-DET'!$H62=X$6,'FP-DET'!$L62,""),"") ->  | Y56: =IF('FP-DET'!$E62=3,IF('FP-DET'!$H62=Y$6,'FP-DET'!$L62,""),"") ->  | Z56: =IF('FP-DET'!$E62=4,IF('FP-DET'!$H62=Z$6,'FP-DET'!$L62,""),"") ->  | AA56: =IF('FP-DET'!$E62=4,IF('FP-DET'!$H62=AA$6,'FP-DET'!$L62,""),"") ->  | AB56: =IF('FP-DET'!$E62=4,IF('FP-DET'!$H62=AB$6,'FP-DET'!$L62,""),"") ->  | AC56: =IF('FP-DET'!$E62=4,IF('FP-DET'!$H62=AC$6,'FP-DET'!$L62,""),"") ->  | AD56: =IF('FP-DET'!$E62=4,IF('FP-DET'!$H62=AD$6,'FP-DET'!$L62,""),"") ->  | AE56: =IF('FP-DET'!$E62=5,IF('FP-DET'!$H62=AE$6,'FP-DET'!$L62,""),"") ->  | AF56: =IF('FP-DET'!$E62=5,IF('FP-DET'!$H62=AF$6,'FP-DET'!$L62,""),"") ->  | AG56: =IF('FP-DET'!$E62=5,IF('FP-DET'!$H62=AG$6,'FP-DET'!$L62,""),"") ->  | AH56: =IF('FP-DET'!$E62=5,IF('FP-DET'!$H62=AH$6,'FP-DET'!$L62,""),"") ->  | AI56: =IF('FP-DET'!$E62=5,IF('FP-DET'!$H62=AI$6,'FP-DET'!$L62,""),"") -> 
K57: =IF('FP-DET'!$E63=1,IF('FP-DET'!$H63=K$6,'FP-DET'!$L63,""),"") ->  | L57: =IF('FP-DET'!$E63=1,IF('FP-DET'!$H63=L$6,'FP-DET'!$L63,""),"") ->  | M57: =IF('FP-DET'!$E63=1,IF('FP-DET'!$H63=M$6,'FP-DET'!$L63,""),"") ->  | N57: =IF('FP-DET'!$E63=1,IF('FP-DET'!$H63=N$6,'FP-DET'!$L63,""),"") ->  | O57: =IF('FP-DET'!$E63=1,IF('FP-DET'!$H63=O$6,'FP-DET'!$L63,""),"") ->  | P57: =IF('FP-DET'!$E63=2,IF('FP-DET'!$H63=P$6,'FP-DET'!$L63,""),"") ->  | Q57: =IF('FP-DET'!$E63=2,IF('FP-DET'!$H63=Q$6,'FP-DET'!$L63,""),"") ->  | R57: =IF('FP-DET'!$E63=2,IF('FP-DET'!$H63=R$6,'FP-DET'!$L63,""),"") ->  | S57: =IF('FP-DET'!$E63=2,IF('FP-DET'!$H63=S$6,'FP-DET'!$L63,""),"") ->  | T57: =IF('FP-DET'!$E63=2,IF('FP-DET'!$H63=T$6,'FP-DET'!$L63,""),"") ->  | U57: =IF('FP-DET'!$E63=3,IF('FP-DET'!$H63=U$6,'FP-DET'!$L63,""),"") ->  | V57: =IF('FP-DET'!$E63=3,IF('FP-DET'!$H63=V$6,'FP-DET'!$L63,""),"") ->  | W57: =IF('FP-DET'!$E63=3,IF('FP-DET'!$H63=W$6,'FP-DET'!$L63,""),"") ->  | X57: =IF('FP-DET'!$E63=3,IF('FP-DET'!$H63=X$6,'FP-DET'!$L63,""),"") ->  | Y57: =IF('FP-DET'!$E63=3,IF('FP-DET'!$H63=Y$6,'FP-DET'!$L63,""),"") ->  | Z57: =IF('FP-DET'!$E63=4,IF('FP-DET'!$H63=Z$6,'FP-DET'!$L63,""),"") ->  | AA57: =IF('FP-DET'!$E63=4,IF('FP-DET'!$H63=AA$6,'FP-DET'!$L63,""),"") ->  | AB57: =IF('FP-DET'!$E63=4,IF('FP-DET'!$H63=AB$6,'FP-DET'!$L63,""),"") ->  | AC57: =IF('FP-DET'!$E63=4,IF('FP-DET'!$H63=AC$6,'FP-DET'!$L63,""),"") ->  | AD57: =IF('FP-DET'!$E63=4,IF('FP-DET'!$H63=AD$6,'FP-DET'!$L63,""),"") ->  | AE57: =IF('FP-DET'!$E63=5,IF('FP-DET'!$H63=AE$6,'FP-DET'!$L63,""),"") ->  | AF57: =IF('FP-DET'!$E63=5,IF('FP-DET'!$H63=AF$6,'FP-DET'!$L63,""),"") ->  | AG57: =IF('FP-DET'!$E63=5,IF('FP-DET'!$H63=AG$6,'FP-DET'!$L63,""),"") ->  | AH57: =IF('FP-DET'!$E63=5,IF('FP-DET'!$H63=AH$6,'FP-DET'!$L63,""),"") ->  | AI57: =IF('FP-DET'!$E63=5,IF('FP-DET'!$H63=AI$6,'FP-DET'!$L63,""),"") -> 
K58: =IF('FP-DET'!$E64=1,IF('FP-DET'!$H64=K$6,'FP-DET'!$L64,""),"") ->  | L58: =IF('FP-DET'!$E64=1,IF('FP-DET'!$H64=L$6,'FP-DET'!$L64,""),"") ->  | M58: =IF('FP-DET'!$E64=1,IF('FP-DET'!$H64=M$6,'FP-DET'!$L64,""),"") ->  | N58: =IF('FP-DET'!$E64=1,IF('FP-DET'!$H64=N$6,'FP-DET'!$L64,""),"") ->  | O58: =IF('FP-DET'!$E64=1,IF('FP-DET'!$H64=O$6,'FP-DET'!$L64,""),"") ->  | P58: =IF('FP-DET'!$E64=2,IF('FP-DET'!$H64=P$6,'FP-DET'!$L64,""),"") ->  | Q58: =IF('FP-DET'!$E64=2,IF('FP-DET'!$H64=Q$6,'FP-DET'!$L64,""),"") ->  | R58: =IF('FP-DET'!$E64=2,IF('FP-DET'!$H64=R$6,'FP-DET'!$L64,""),"") ->  | S58: =IF('FP-DET'!$E64=2,IF('FP-DET'!$H64=S$6,'FP-DET'!$L64,""),"") ->  | T58: =IF('FP-DET'!$E64=2,IF('FP-DET'!$H64=T$6,'FP-DET'!$L64,""),"") ->  | U58: =IF('FP-DET'!$E64=3,IF('FP-DET'!$H64=U$6,'FP-DET'!$L64,""),"") ->  | V58: =IF('FP-DET'!$E64=3,IF('FP-DET'!$H64=V$6,'FP-DET'!$L64,""),"") ->  | W58: =IF('FP-DET'!$E64=3,IF('FP-DET'!$H64=W$6,'FP-DET'!$L64,""),"") ->  | X58: =IF('FP-DET'!$E64=3,IF('FP-DET'!$H64=X$6,'FP-DET'!$L64,""),"") ->  | Y58: =IF('FP-DET'!$E64=3,IF('FP-DET'!$H64=Y$6,'FP-DET'!$L64,""),"") ->  | Z58: =IF('FP-DET'!$E64=4,IF('FP-DET'!$H64=Z$6,'FP-DET'!$L64,""),"") ->  | AA58: =IF('FP-DET'!$E64=4,IF('FP-DET'!$H64=AA$6,'FP-DET'!$L64,""),"") ->  | AB58: =IF('FP-DET'!$E64=4,IF('FP-DET'!$H64=AB$6,'FP-DET'!$L64,""),"") ->  | AC58: =IF('FP-DET'!$E64=4,IF('FP-DET'!$H64=AC$6,'FP-DET'!$L64,""),"") ->  | AD58: =IF('FP-DET'!$E64=4,IF('FP-DET'!$H64=AD$6,'FP-DET'!$L64,""),"") ->  | AE58: =IF('FP-DET'!$E64=5,IF('FP-DET'!$H64=AE$6,'FP-DET'!$L64,""),"") ->  | AF58: =IF('FP-DET'!$E64=5,IF('FP-DET'!$H64=AF$6,'FP-DET'!$L64,""),"") ->  | AG58: =IF('FP-DET'!$E64=5,IF('FP-DET'!$H64=AG$6,'FP-DET'!$L64,""),"") ->  | AH58: =IF('FP-DET'!$E64=5,IF('FP-DET'!$H64=AH$6,'FP-DET'!$L64,""),"") ->  | AI58: =IF('FP-DET'!$E64=5,IF('FP-DET'!$H64=AI$6,'FP-DET'!$L64,""),"") -> 
K59: =IF('FP-DET'!$E65=1,IF('FP-DET'!$H65=K$6,'FP-DET'!$L65,""),"") ->  | L59: =IF('FP-DET'!$E65=1,IF('FP-DET'!$H65=L$6,'FP-DET'!$L65,""),"") ->  | M59: =IF('FP-DET'!$E65=1,IF('FP-DET'!$H65=M$6,'FP-DET'!$L65,""),"") ->  | N59: =IF('FP-DET'!$E65=1,IF('FP-DET'!$H65=N$6,'FP-DET'!$L65,""),"") ->  | O59: =IF('FP-DET'!$E65=1,IF('FP-DET'!$H65=O$6,'FP-DET'!$L65,""),"") ->  | P59: =IF('FP-DET'!$E65=2,IF('FP-DET'!$H65=P$6,'FP-DET'!$L65,""),"") ->  | Q59: =IF('FP-DET'!$E65=2,IF('FP-DET'!$H65=Q$6,'FP-DET'!$L65,""),"") ->  | R59: =IF('FP-DET'!$E65=2,IF('FP-DET'!$H65=R$6,'FP-DET'!$L65,""),"") ->  | S59: =IF('FP-DET'!$E65=2,IF('FP-DET'!$H65=S$6,'FP-DET'!$L65,""),"") ->  | T59: =IF('FP-DET'!$E65=2,IF('FP-DET'!$H65=T$6,'FP-DET'!$L65,""),"") ->  | U59: =IF('FP-DET'!$E65=3,IF('FP-DET'!$H65=U$6,'FP-DET'!$L65,""),"") ->  | V59: =IF('FP-DET'!$E65=3,IF('FP-DET'!$H65=V$6,'FP-DET'!$L65,""),"") ->  | W59: =IF('FP-DET'!$E65=3,IF('FP-DET'!$H65=W$6,'FP-DET'!$L65,""),"") ->  | X59: =IF('FP-DET'!$E65=3,IF('FP-DET'!$H65=X$6,'FP-DET'!$L65,""),"") ->  | Y59: =IF('FP-DET'!$E65=3,IF('FP-DET'!$H65=Y$6,'FP-DET'!$L65,""),"") ->  | Z59: =IF('FP-DET'!$E65=4,IF('FP-DET'!$H65=Z$6,'FP-DET'!$L65,""),"") ->  | AA59: =IF('FP-DET'!$E65=4,IF('FP-DET'!$H65=AA$6,'FP-DET'!$L65,""),"") ->  | AB59: =IF('FP-DET'!$E65=4,IF('FP-DET'!$H65=AB$6,'FP-DET'!$L65,""),"") ->  | AC59: =IF('FP-DET'!$E65=4,IF('FP-DET'!$H65=AC$6,'FP-DET'!$L65,""),"") ->  | AD59: =IF('FP-DET'!$E65=4,IF('FP-DET'!$H65=AD$6,'FP-DET'!$L65,""),"") ->  | AE59: =IF('FP-DET'!$E65=5,IF('FP-DET'!$H65=AE$6,'FP-DET'!$L65,""),"") ->  | AF59: =IF('FP-DET'!$E65=5,IF('FP-DET'!$H65=AF$6,'FP-DET'!$L65,""),"") ->  | AG59: =IF('FP-DET'!$E65=5,IF('FP-DET'!$H65=AG$6,'FP-DET'!$L65,""),"") ->  | AH59: =IF('FP-DET'!$E65=5,IF('FP-DET'!$H65=AH$6,'FP-DET'!$L65,""),"") ->  | AI59: =IF('FP-DET'!$E65=5,IF('FP-DET'!$H65=AI$6,'FP-DET'!$L65,""),"") -> 
K60: =IF('FP-DET'!$E66=1,IF('FP-DET'!$H66=K$6,'FP-DET'!$L66,""),"") ->  | L60: =IF('FP-DET'!$E66=1,IF('FP-DET'!$H66=L$6,'FP-DET'!$L66,""),"") ->  | M60: =IF('FP-DET'!$E66=1,IF('FP-DET'!$H66=M$6,'FP-DET'!$L66,""),"") ->  | N60: =IF('FP-DET'!$E66=1,IF('FP-DET'!$H66=N$6,'FP-DET'!$L66,""),"") ->  | O60: =IF('FP-DET'!$E66=1,IF('FP-DET'!$H66=O$6,'FP-DET'!$L66,""),"") ->  | P60: =IF('FP-DET'!$E66=2,IF('FP-DET'!$H66=P$6,'FP-DET'!$L66,""),"") ->  | Q60: =IF('FP-DET'!$E66=2,IF('FP-DET'!$H66=Q$6,'FP-DET'!$L66,""),"") ->  | R60: =IF('FP-DET'!$E66=2,IF('FP-DET'!$H66=R$6,'FP-DET'!$L66,""),"") ->  | S60: =IF('FP-DET'!$E66=2,IF('FP-DET'!$H66=S$6,'FP-DET'!$L66,""),"") ->  | T60: =IF('FP-DET'!$E66=2,IF('FP-DET'!$H66=T$6,'FP-DET'!$L66,""),"") ->  | U60: =IF('FP-DET'!$E66=3,IF('FP-DET'!$H66=U$6,'FP-DET'!$L66,""),"") ->  | V60: =IF('FP-DET'!$E66=3,IF('FP-DET'!$H66=V$6,'FP-DET'!$L66,""),"") ->  | W60: =IF('FP-DET'!$E66=3,IF('FP-DET'!$H66=W$6,'FP-DET'!$L66,""),"") ->  | X60: =IF('FP-DET'!$E66=3,IF('FP-DET'!$H66=X$6,'FP-DET'!$L66,""),"") ->  | Y60: =IF('FP-DET'!$E66=3,IF('FP-DET'!$H66=Y$6,'FP-DET'!$L66,""),"") ->  | Z60: =IF('FP-DET'!$E66=4,IF('FP-DET'!$H66=Z$6,'FP-DET'!$L66,""),"") ->  | AA60: =IF('FP-DET'!$E66=4,IF('FP-DET'!$H66=AA$6,'FP-DET'!$L66,""),"") ->  | AB60: =IF('FP-DET'!$E66=4,IF('FP-DET'!$H66=AB$6,'FP-DET'!$L66,""),"") ->  | AC60: =IF('FP-DET'!$E66=4,IF('FP-DET'!$H66=AC$6,'FP-DET'!$L66,""),"") ->  | AD60: =IF('FP-DET'!$E66=4,IF('FP-DET'!$H66=AD$6,'FP-DET'!$L66,""),"") ->  | AE60: =IF('FP-DET'!$E66=5,IF('FP-DET'!$H66=AE$6,'FP-DET'!$L66,""),"") ->  | AF60: =IF('FP-DET'!$E66=5,IF('FP-DET'!$H66=AF$6,'FP-DET'!$L66,""),"") ->  | AG60: =IF('FP-DET'!$E66=5,IF('FP-DET'!$H66=AG$6,'FP-DET'!$L66,""),"") ->  | AH60: =IF('FP-DET'!$E66=5,IF('FP-DET'!$H66=AH$6,'FP-DET'!$L66,""),"") ->  | AI60: =IF('FP-DET'!$E66=5,IF('FP-DET'!$H66=AI$6,'FP-DET'!$L66,""),"") -> 
K61: =IF('FP-DET'!$E67=1,IF('FP-DET'!$H67=K$6,'FP-DET'!$L67,""),"") ->  | L61: =IF('FP-DET'!$E67=1,IF('FP-DET'!$H67=L$6,'FP-DET'!$L67,""),"") ->  | M61: =IF('FP-DET'!$E67=1,IF('FP-DET'!$H67=M$6,'FP-DET'!$L67,""),"") ->  | N61: =IF('FP-DET'!$E67=1,IF('FP-DET'!$H67=N$6,'FP-DET'!$L67,""),"") ->  | O61: =IF('FP-DET'!$E67=1,IF('FP-DET'!$H67=O$6,'FP-DET'!$L67,""),"") ->  | P61: =IF('FP-DET'!$E67=2,IF('FP-DET'!$H67=P$6,'FP-DET'!$L67,""),"") ->  | Q61: =IF('FP-DET'!$E67=2,IF('FP-DET'!$H67=Q$6,'FP-DET'!$L67,""),"") ->  | R61: =IF('FP-DET'!$E67=2,IF('FP-DET'!$H67=R$6,'FP-DET'!$L67,""),"") ->  | S61: =IF('FP-DET'!$E67=2,IF('FP-DET'!$H67=S$6,'FP-DET'!$L67,""),"") ->  | T61: =IF('FP-DET'!$E67=2,IF('FP-DET'!$H67=T$6,'FP-DET'!$L67,""),"") ->  | U61: =IF('FP-DET'!$E67=3,IF('FP-DET'!$H67=U$6,'FP-DET'!$L67,""),"") ->  | V61: =IF('FP-DET'!$E67=3,IF('FP-DET'!$H67=V$6,'FP-DET'!$L67,""),"") ->  | W61: =IF('FP-DET'!$E67=3,IF('FP-DET'!$H67=W$6,'FP-DET'!$L67,""),"") ->  | X61: =IF('FP-DET'!$E67=3,IF('FP-DET'!$H67=X$6,'FP-DET'!$L67,""),"") ->  | Y61: =IF('FP-DET'!$E67=3,IF('FP-DET'!$H67=Y$6,'FP-DET'!$L67,""),"") ->  | Z61: =IF('FP-DET'!$E67=4,IF('FP-DET'!$H67=Z$6,'FP-DET'!$L67,""),"") ->  | AA61: =IF('FP-DET'!$E67=4,IF('FP-DET'!$H67=AA$6,'FP-DET'!$L67,""),"") ->  | AB61: =IF('FP-DET'!$E67=4,IF('FP-DET'!$H67=AB$6,'FP-DET'!$L67,""),"") ->  | AC61: =IF('FP-DET'!$E67=4,IF('FP-DET'!$H67=AC$6,'FP-DET'!$L67,""),"") ->  | AD61: =IF('FP-DET'!$E67=4,IF('FP-DET'!$H67=AD$6,'FP-DET'!$L67,""),"") ->  | AE61: =IF('FP-DET'!$E67=5,IF('FP-DET'!$H67=AE$6,'FP-DET'!$L67,""),"") ->  | AF61: =IF('FP-DET'!$E67=5,IF('FP-DET'!$H67=AF$6,'FP-DET'!$L67,""),"") ->  | AG61: =IF('FP-DET'!$E67=5,IF('FP-DET'!$H67=AG$6,'FP-DET'!$L67,""),"") ->  | AH61: =IF('FP-DET'!$E67=5,IF('FP-DET'!$H67=AH$6,'FP-DET'!$L67,""),"") ->  | AI61: =IF('FP-DET'!$E67=5,IF('FP-DET'!$H67=AI$6,'FP-DET'!$L67,""),"") -> 
K62: =IF('FP-DET'!$E68=1,IF('FP-DET'!$H68=K$6,'FP-DET'!$L68,""),"") ->  | L62: =IF('FP-DET'!$E68=1,IF('FP-DET'!$H68=L$6,'FP-DET'!$L68,""),"") ->  | M62: =IF('FP-DET'!$E68=1,IF('FP-DET'!$H68=M$6,'FP-DET'!$L68,""),"") ->  | N62: =IF('FP-DET'!$E68=1,IF('FP-DET'!$H68=N$6,'FP-DET'!$L68,""),"") ->  | O62: =IF('FP-DET'!$E68=1,IF('FP-DET'!$H68=O$6,'FP-DET'!$L68,""),"") ->  | P62: =IF('FP-DET'!$E68=2,IF('FP-DET'!$H68=P$6,'FP-DET'!$L68,""),"") ->  | Q62: =IF('FP-DET'!$E68=2,IF('FP-DET'!$H68=Q$6,'FP-DET'!$L68,""),"") ->  | R62: =IF('FP-DET'!$E68=2,IF('FP-DET'!$H68=R$6,'FP-DET'!$L68,""),"") ->  | S62: =IF('FP-DET'!$E68=2,IF('FP-DET'!$H68=S$6,'FP-DET'!$L68,""),"") ->  | T62: =IF('FP-DET'!$E68=2,IF('FP-DET'!$H68=T$6,'FP-DET'!$L68,""),"") ->  | U62: =IF('FP-DET'!$E68=3,IF('FP-DET'!$H68=U$6,'FP-DET'!$L68,""),"") ->  | V62: =IF('FP-DET'!$E68=3,IF('FP-DET'!$H68=V$6,'FP-DET'!$L68,""),"") ->  | W62: =IF('FP-DET'!$E68=3,IF('FP-DET'!$H68=W$6,'FP-DET'!$L68,""),"") ->  | X62: =IF('FP-DET'!$E68=3,IF('FP-DET'!$H68=X$6,'FP-DET'!$L68,""),"") ->  | Y62: =IF('FP-DET'!$E68=3,IF('FP-DET'!$H68=Y$6,'FP-DET'!$L68,""),"") ->  | Z62: =IF('FP-DET'!$E68=4,IF('FP-DET'!$H68=Z$6,'FP-DET'!$L68,""),"") ->  | AA62: =IF('FP-DET'!$E68=4,IF('FP-DET'!$H68=AA$6,'FP-DET'!$L68,""),"") ->  | AB62: =IF('FP-DET'!$E68=4,IF('FP-DET'!$H68=AB$6,'FP-DET'!$L68,""),"") ->  | AC62: =IF('FP-DET'!$E68=4,IF('FP-DET'!$H68=AC$6,'FP-DET'!$L68,""),"") ->  | AD62: =IF('FP-DET'!$E68=4,IF('FP-DET'!$H68=AD$6,'FP-DET'!$L68,""),"") ->  | AE62: =IF('FP-DET'!$E68=5,IF('FP-DET'!$H68=AE$6,'FP-DET'!$L68,""),"") ->  | AF62: =IF('FP-DET'!$E68=5,IF('FP-DET'!$H68=AF$6,'FP-DET'!$L68,""),"") ->  | AG62: =IF('FP-DET'!$E68=5,IF('FP-DET'!$H68=AG$6,'FP-DET'!$L68,""),"") ->  | AH62: =IF('FP-DET'!$E68=5,IF('FP-DET'!$H68=AH$6,'FP-DET'!$L68,""),"") ->  | AI62: =IF('FP-DET'!$E68=5,IF('FP-DET'!$H68=AI$6,'FP-DET'!$L68,""),"") -> 
K63: =IF('FP-DET'!$E69=1,IF('FP-DET'!$H69=K$6,'FP-DET'!$L69,""),"") ->  | L63: =IF('FP-DET'!$E69=1,IF('FP-DET'!$H69=L$6,'FP-DET'!$L69,""),"") ->  | M63: =IF('FP-DET'!$E69=1,IF('FP-DET'!$H69=M$6,'FP-DET'!$L69,""),"") ->  | N63: =IF('FP-DET'!$E69=1,IF('FP-DET'!$H69=N$6,'FP-DET'!$L69,""),"") ->  | O63: =IF('FP-DET'!$E69=1,IF('FP-DET'!$H69=O$6,'FP-DET'!$L69,""),"") ->  | P63: =IF('FP-DET'!$E69=2,IF('FP-DET'!$H69=P$6,'FP-DET'!$L69,""),"") ->  | Q63: =IF('FP-DET'!$E69=2,IF('FP-DET'!$H69=Q$6,'FP-DET'!$L69,""),"") ->  | R63: =IF('FP-DET'!$E69=2,IF('FP-DET'!$H69=R$6,'FP-DET'!$L69,""),"") ->  | S63: =IF('FP-DET'!$E69=2,IF('FP-DET'!$H69=S$6,'FP-DET'!$L69,""),"") ->  | T63: =IF('FP-DET'!$E69=2,IF('FP-DET'!$H69=T$6,'FP-DET'!$L69,""),"") ->  | U63: =IF('FP-DET'!$E69=3,IF('FP-DET'!$H69=U$6,'FP-DET'!$L69,""),"") ->  | V63: =IF('FP-DET'!$E69=3,IF('FP-DET'!$H69=V$6,'FP-DET'!$L69,""),"") ->  | W63: =IF('FP-DET'!$E69=3,IF('FP-DET'!$H69=W$6,'FP-DET'!$L69,""),"") ->  | X63: =IF('FP-DET'!$E69=3,IF('FP-DET'!$H69=X$6,'FP-DET'!$L69,""),"") ->  | Y63: =IF('FP-DET'!$E69=3,IF('FP-DET'!$H69=Y$6,'FP-DET'!$L69,""),"") ->  | Z63: =IF('FP-DET'!$E69=4,IF('FP-DET'!$H69=Z$6,'FP-DET'!$L69,""),"") ->  | AA63: =IF('FP-DET'!$E69=4,IF('FP-DET'!$H69=AA$6,'FP-DET'!$L69,""),"") ->  | AB63: =IF('FP-DET'!$E69=4,IF('FP-DET'!$H69=AB$6,'FP-DET'!$L69,""),"") ->  | AC63: =IF('FP-DET'!$E69=4,IF('FP-DET'!$H69=AC$6,'FP-DET'!$L69,""),"") ->  | AD63: =IF('FP-DET'!$E69=4,IF('FP-DET'!$H69=AD$6,'FP-DET'!$L69,""),"") ->  | AE63: =IF('FP-DET'!$E69=5,IF('FP-DET'!$H69=AE$6,'FP-DET'!$L69,""),"") ->  | AF63: =IF('FP-DET'!$E69=5,IF('FP-DET'!$H69=AF$6,'FP-DET'!$L69,""),"") ->  | AG63: =IF('FP-DET'!$E69=5,IF('FP-DET'!$H69=AG$6,'FP-DET'!$L69,""),"") ->  | AH63: =IF('FP-DET'!$E69=5,IF('FP-DET'!$H69=AH$6,'FP-DET'!$L69,""),"") ->  | AI63: =IF('FP-DET'!$E69=5,IF('FP-DET'!$H69=AI$6,'FP-DET'!$L69,""),"") -> 
K64: =IF('FP-DET'!$E70=1,IF('FP-DET'!$H70=K$6,'FP-DET'!$L70,""),"") ->  | L64: =IF('FP-DET'!$E70=1,IF('FP-DET'!$H70=L$6,'FP-DET'!$L70,""),"") ->  | M64: =IF('FP-DET'!$E70=1,IF('FP-DET'!$H70=M$6,'FP-DET'!$L70,""),"") ->  | N64: =IF('FP-DET'!$E70=1,IF('FP-DET'!$H70=N$6,'FP-DET'!$L70,""),"") ->  | O64: =IF('FP-DET'!$E70=1,IF('FP-DET'!$H70=O$6,'FP-DET'!$L70,""),"") ->  | P64: =IF('FP-DET'!$E70=2,IF('FP-DET'!$H70=P$6,'FP-DET'!$L70,""),"") ->  | Q64: =IF('FP-DET'!$E70=2,IF('FP-DET'!$H70=Q$6,'FP-DET'!$L70,""),"") ->  | R64: =IF('FP-DET'!$E70=2,IF('FP-DET'!$H70=R$6,'FP-DET'!$L70,""),"") ->  | S64: =IF('FP-DET'!$E70=2,IF('FP-DET'!$H70=S$6,'FP-DET'!$L70,""),"") ->  | T64: =IF('FP-DET'!$E70=2,IF('FP-DET'!$H70=T$6,'FP-DET'!$L70,""),"") ->  | U64: =IF('FP-DET'!$E70=3,IF('FP-DET'!$H70=U$6,'FP-DET'!$L70,""),"") ->  | V64: =IF('FP-DET'!$E70=3,IF('FP-DET'!$H70=V$6,'FP-DET'!$L70,""),"") ->  | W64: =IF('FP-DET'!$E70=3,IF('FP-DET'!$H70=W$6,'FP-DET'!$L70,""),"") ->  | X64: =IF('FP-DET'!$E70=3,IF('FP-DET'!$H70=X$6,'FP-DET'!$L70,""),"") ->  | Y64: =IF('FP-DET'!$E70=3,IF('FP-DET'!$H70=Y$6,'FP-DET'!$L70,""),"") ->  | Z64: =IF('FP-DET'!$E70=4,IF('FP-DET'!$H70=Z$6,'FP-DET'!$L70,""),"") ->  | AA64: =IF('FP-DET'!$E70=4,IF('FP-DET'!$H70=AA$6,'FP-DET'!$L70,""),"") ->  | AB64: =IF('FP-DET'!$E70=4,IF('FP-DET'!$H70=AB$6,'FP-DET'!$L70,""),"") ->  | AC64: =IF('FP-DET'!$E70=4,IF('FP-DET'!$H70=AC$6,'FP-DET'!$L70,""),"") ->  | AD64: =IF('FP-DET'!$E70=4,IF('FP-DET'!$H70=AD$6,'FP-DET'!$L70,""),"") ->  | AE64: =IF('FP-DET'!$E70=5,IF('FP-DET'!$H70=AE$6,'FP-DET'!$L70,""),"") ->  | AF64: =IF('FP-DET'!$E70=5,IF('FP-DET'!$H70=AF$6,'FP-DET'!$L70,""),"") ->  | AG64: =IF('FP-DET'!$E70=5,IF('FP-DET'!$H70=AG$6,'FP-DET'!$L70,""),"") ->  | AH64: =IF('FP-DET'!$E70=5,IF('FP-DET'!$H70=AH$6,'FP-DET'!$L70,""),"") ->  | AI64: =IF('FP-DET'!$E70=5,IF('FP-DET'!$H70=AI$6,'FP-DET'!$L70,""),"") -> 
K65: =IF('FP-DET'!$E71=1,IF('FP-DET'!$H71=K$6,'FP-DET'!$L71,""),"") ->  | L65: =IF('FP-DET'!$E71=1,IF('FP-DET'!$H71=L$6,'FP-DET'!$L71,""),"") ->  | M65: =IF('FP-DET'!$E71=1,IF('FP-DET'!$H71=M$6,'FP-DET'!$L71,""),"") ->  | N65: =IF('FP-DET'!$E71=1,IF('FP-DET'!$H71=N$6,'FP-DET'!$L71,""),"") ->  | O65: =IF('FP-DET'!$E71=1,IF('FP-DET'!$H71=O$6,'FP-DET'!$L71,""),"") ->  | P65: =IF('FP-DET'!$E71=2,IF('FP-DET'!$H71=P$6,'FP-DET'!$L71,""),"") ->  | Q65: =IF('FP-DET'!$E71=2,IF('FP-DET'!$H71=Q$6,'FP-DET'!$L71,""),"") ->  | R65: =IF('FP-DET'!$E71=2,IF('FP-DET'!$H71=R$6,'FP-DET'!$L71,""),"") ->  | S65: =IF('FP-DET'!$E71=2,IF('FP-DET'!$H71=S$6,'FP-DET'!$L71,""),"") ->  | T65: =IF('FP-DET'!$E71=2,IF('FP-DET'!$H71=T$6,'FP-DET'!$L71,""),"") ->  | U65: =IF('FP-DET'!$E71=3,IF('FP-DET'!$H71=U$6,'FP-DET'!$L71,""),"") ->  | V65: =IF('FP-DET'!$E71=3,IF('FP-DET'!$H71=V$6,'FP-DET'!$L71,""),"") ->  | W65: =IF('FP-DET'!$E71=3,IF('FP-DET'!$H71=W$6,'FP-DET'!$L71,""),"") ->  | X65: =IF('FP-DET'!$E71=3,IF('FP-DET'!$H71=X$6,'FP-DET'!$L71,""),"") ->  | Y65: =IF('FP-DET'!$E71=3,IF('FP-DET'!$H71=Y$6,'FP-DET'!$L71,""),"") ->  | Z65: =IF('FP-DET'!$E71=4,IF('FP-DET'!$H71=Z$6,'FP-DET'!$L71,""),"") ->  | AA65: =IF('FP-DET'!$E71=4,IF('FP-DET'!$H71=AA$6,'FP-DET'!$L71,""),"") ->  | AB65: =IF('FP-DET'!$E71=4,IF('FP-DET'!$H71=AB$6,'FP-DET'!$L71,""),"") ->  | AC65: =IF('FP-DET'!$E71=4,IF('FP-DET'!$H71=AC$6,'FP-DET'!$L71,""),"") ->  | AD65: =IF('FP-DET'!$E71=4,IF('FP-DET'!$H71=AD$6,'FP-DET'!$L71,""),"") ->  | AE65: =IF('FP-DET'!$E71=5,IF('FP-DET'!$H71=AE$6,'FP-DET'!$L71,""),"") ->  | AF65: =IF('FP-DET'!$E71=5,IF('FP-DET'!$H71=AF$6,'FP-DET'!$L71,""),"") ->  | AG65: =IF('FP-DET'!$E71=5,IF('FP-DET'!$H71=AG$6,'FP-DET'!$L71,""),"") ->  | AH65: =IF('FP-DET'!$E71=5,IF('FP-DET'!$H71=AH$6,'FP-DET'!$L71,""),"") ->  | AI65: =IF('FP-DET'!$E71=5,IF('FP-DET'!$H71=AI$6,'FP-DET'!$L71,""),"") -> 
K66: =IF('FP-DET'!$E72=1,IF('FP-DET'!$H72=K$6,'FP-DET'!$L72,""),"") ->  | L66: =IF('FP-DET'!$E72=1,IF('FP-DET'!$H72=L$6,'FP-DET'!$L72,""),"") ->  | M66: =IF('FP-DET'!$E72=1,IF('FP-DET'!$H72=M$6,'FP-DET'!$L72,""),"") ->  | N66: =IF('FP-DET'!$E72=1,IF('FP-DET'!$H72=N$6,'FP-DET'!$L72,""),"") ->  | O66: =IF('FP-DET'!$E72=1,IF('FP-DET'!$H72=O$6,'FP-DET'!$L72,""),"") ->  | P66: =IF('FP-DET'!$E72=2,IF('FP-DET'!$H72=P$6,'FP-DET'!$L72,""),"") ->  | Q66: =IF('FP-DET'!$E72=2,IF('FP-DET'!$H72=Q$6,'FP-DET'!$L72,""),"") ->  | R66: =IF('FP-DET'!$E72=2,IF('FP-DET'!$H72=R$6,'FP-DET'!$L72,""),"") ->  | S66: =IF('FP-DET'!$E72=2,IF('FP-DET'!$H72=S$6,'FP-DET'!$L72,""),"") ->  | T66: =IF('FP-DET'!$E72=2,IF('FP-DET'!$H72=T$6,'FP-DET'!$L72,""),"") ->  | U66: =IF('FP-DET'!$E72=3,IF('FP-DET'!$H72=U$6,'FP-DET'!$L72,""),"") ->  | V66: =IF('FP-DET'!$E72=3,IF('FP-DET'!$H72=V$6,'FP-DET'!$L72,""),"") ->  | W66: =IF('FP-DET'!$E72=3,IF('FP-DET'!$H72=W$6,'FP-DET'!$L72,""),"") ->  | X66: =IF('FP-DET'!$E72=3,IF('FP-DET'!$H72=X$6,'FP-DET'!$L72,""),"") ->  | Y66: =IF('FP-DET'!$E72=3,IF('FP-DET'!$H72=Y$6,'FP-DET'!$L72,""),"") ->  | Z66: =IF('FP-DET'!$E72=4,IF('FP-DET'!$H72=Z$6,'FP-DET'!$L72,""),"") ->  | AA66: =IF('FP-DET'!$E72=4,IF('FP-DET'!$H72=AA$6,'FP-DET'!$L72,""),"") ->  | AB66: =IF('FP-DET'!$E72=4,IF('FP-DET'!$H72=AB$6,'FP-DET'!$L72,""),"") ->  | AC66: =IF('FP-DET'!$E72=4,IF('FP-DET'!$H72=AC$6,'FP-DET'!$L72,""),"") ->  | AD66: =IF('FP-DET'!$E72=4,IF('FP-DET'!$H72=AD$6,'FP-DET'!$L72,""),"") ->  | AE66: =IF('FP-DET'!$E72=5,IF('FP-DET'!$H72=AE$6,'FP-DET'!$L72,""),"") ->  | AF66: =IF('FP-DET'!$E72=5,IF('FP-DET'!$H72=AF$6,'FP-DET'!$L72,""),"") ->  | AG66: =IF('FP-DET'!$E72=5,IF('FP-DET'!$H72=AG$6,'FP-DET'!$L72,""),"") ->  | AH66: =IF('FP-DET'!$E72=5,IF('FP-DET'!$H72=AH$6,'FP-DET'!$L72,""),"") ->  | AI66: =IF('FP-DET'!$E72=5,IF('FP-DET'!$H72=AI$6,'FP-DET'!$L72,""),"") -> 
K67: =IF('FP-DET'!$E73=1,IF('FP-DET'!$H73=K$6,'FP-DET'!$L73,""),"") ->  | L67: =IF('FP-DET'!$E73=1,IF('FP-DET'!$H73=L$6,'FP-DET'!$L73,""),"") ->  | M67: =IF('FP-DET'!$E73=1,IF('FP-DET'!$H73=M$6,'FP-DET'!$L73,""),"") ->  | N67: =IF('FP-DET'!$E73=1,IF('FP-DET'!$H73=N$6,'FP-DET'!$L73,""),"") ->  | O67: =IF('FP-DET'!$E73=1,IF('FP-DET'!$H73=O$6,'FP-DET'!$L73,""),"") ->  | P67: =IF('FP-DET'!$E73=2,IF('FP-DET'!$H73=P$6,'FP-DET'!$L73,""),"") ->  | Q67: =IF('FP-DET'!$E73=2,IF('FP-DET'!$H73=Q$6,'FP-DET'!$L73,""),"") ->  | R67: =IF('FP-DET'!$E73=2,IF('FP-DET'!$H73=R$6,'FP-DET'!$L73,""),"") ->  | S67: =IF('FP-DET'!$E73=2,IF('FP-DET'!$H73=S$6,'FP-DET'!$L73,""),"") ->  | T67: =IF('FP-DET'!$E73=2,IF('FP-DET'!$H73=T$6,'FP-DET'!$L73,""),"") ->  | U67: =IF('FP-DET'!$E73=3,IF('FP-DET'!$H73=U$6,'FP-DET'!$L73,""),"") ->  | V67: =IF('FP-DET'!$E73=3,IF('FP-DET'!$H73=V$6,'FP-DET'!$L73,""),"") ->  | W67: =IF('FP-DET'!$E73=3,IF('FP-DET'!$H73=W$6,'FP-DET'!$L73,""),"") ->  | X67: =IF('FP-DET'!$E73=3,IF('FP-DET'!$H73=X$6,'FP-DET'!$L73,""),"") ->  | Y67: =IF('FP-DET'!$E73=3,IF('FP-DET'!$H73=Y$6,'FP-DET'!$L73,""),"") ->  | Z67: =IF('FP-DET'!$E73=4,IF('FP-DET'!$H73=Z$6,'FP-DET'!$L73,""),"") ->  | AA67: =IF('FP-DET'!$E73=4,IF('FP-DET'!$H73=AA$6,'FP-DET'!$L73,""),"") ->  | AB67: =IF('FP-DET'!$E73=4,IF('FP-DET'!$H73=AB$6,'FP-DET'!$L73,""),"") ->  | AC67: =IF('FP-DET'!$E73=4,IF('FP-DET'!$H73=AC$6,'FP-DET'!$L73,""),"") ->  | AD67: =IF('FP-DET'!$E73=4,IF('FP-DET'!$H73=AD$6,'FP-DET'!$L73,""),"") ->  | AE67: =IF('FP-DET'!$E73=5,IF('FP-DET'!$H73=AE$6,'FP-DET'!$L73,""),"") ->  | AF67: =IF('FP-DET'!$E73=5,IF('FP-DET'!$H73=AF$6,'FP-DET'!$L73,""),"") ->  | AG67: =IF('FP-DET'!$E73=5,IF('FP-DET'!$H73=AG$6,'FP-DET'!$L73,""),"") ->  | AH67: =IF('FP-DET'!$E73=5,IF('FP-DET'!$H73=AH$6,'FP-DET'!$L73,""),"") ->  | AI67: =IF('FP-DET'!$E73=5,IF('FP-DET'!$H73=AI$6,'FP-DET'!$L73,""),"") -> 
K68: =IF('FP-DET'!$E74=1,IF('FP-DET'!$H74=K$6,'FP-DET'!$L74,""),"") ->  | L68: =IF('FP-DET'!$E74=1,IF('FP-DET'!$H74=L$6,'FP-DET'!$L74,""),"") ->  | M68: =IF('FP-DET'!$E74=1,IF('FP-DET'!$H74=M$6,'FP-DET'!$L74,""),"") ->  | N68: =IF('FP-DET'!$E74=1,IF('FP-DET'!$H74=N$6,'FP-DET'!$L74,""),"") ->  | O68: =IF('FP-DET'!$E74=1,IF('FP-DET'!$H74=O$6,'FP-DET'!$L74,""),"") ->  | P68: =IF('FP-DET'!$E74=2,IF('FP-DET'!$H74=P$6,'FP-DET'!$L74,""),"") ->  | Q68: =IF('FP-DET'!$E74=2,IF('FP-DET'!$H74=Q$6,'FP-DET'!$L74,""),"") ->  | R68: =IF('FP-DET'!$E74=2,IF('FP-DET'!$H74=R$6,'FP-DET'!$L74,""),"") ->  | S68: =IF('FP-DET'!$E74=2,IF('FP-DET'!$H74=S$6,'FP-DET'!$L74,""),"") ->  | T68: =IF('FP-DET'!$E74=2,IF('FP-DET'!$H74=T$6,'FP-DET'!$L74,""),"") ->  | U68: =IF('FP-DET'!$E74=3,IF('FP-DET'!$H74=U$6,'FP-DET'!$L74,""),"") ->  | V68: =IF('FP-DET'!$E74=3,IF('FP-DET'!$H74=V$6,'FP-DET'!$L74,""),"") ->  | W68: =IF('FP-DET'!$E74=3,IF('FP-DET'!$H74=W$6,'FP-DET'!$L74,""),"") ->  | X68: =IF('FP-DET'!$E74=3,IF('FP-DET'!$H74=X$6,'FP-DET'!$L74,""),"") ->  | Y68: =IF('FP-DET'!$E74=3,IF('FP-DET'!$H74=Y$6,'FP-DET'!$L74,""),"") ->  | Z68: =IF('FP-DET'!$E74=4,IF('FP-DET'!$H74=Z$6,'FP-DET'!$L74,""),"") ->  | AA68: =IF('FP-DET'!$E74=4,IF('FP-DET'!$H74=AA$6,'FP-DET'!$L74,""),"") ->  | AB68: =IF('FP-DET'!$E74=4,IF('FP-DET'!$H74=AB$6,'FP-DET'!$L74,""),"") ->  | AC68: =IF('FP-DET'!$E74=4,IF('FP-DET'!$H74=AC$6,'FP-DET'!$L74,""),"") ->  | AD68: =IF('FP-DET'!$E74=4,IF('FP-DET'!$H74=AD$6,'FP-DET'!$L74,""),"") ->  | AE68: =IF('FP-DET'!$E74=5,IF('FP-DET'!$H74=AE$6,'FP-DET'!$L74,""),"") ->  | AF68: =IF('FP-DET'!$E74=5,IF('FP-DET'!$H74=AF$6,'FP-DET'!$L74,""),"") ->  | AG68: =IF('FP-DET'!$E74=5,IF('FP-DET'!$H74=AG$6,'FP-DET'!$L74,""),"") ->  | AH68: =IF('FP-DET'!$E74=5,IF('FP-DET'!$H74=AH$6,'FP-DET'!$L74,""),"") ->  | AI68: =IF('FP-DET'!$E74=5,IF('FP-DET'!$H74=AI$6,'FP-DET'!$L74,""),"") -> 
K69: =IF('FP-DET'!$E75=1,IF('FP-DET'!$H75=K$6,'FP-DET'!$L75,""),"") ->  | L69: =IF('FP-DET'!$E75=1,IF('FP-DET'!$H75=L$6,'FP-DET'!$L75,""),"") ->  | M69: =IF('FP-DET'!$E75=1,IF('FP-DET'!$H75=M$6,'FP-DET'!$L75,""),"") ->  | N69: =IF('FP-DET'!$E75=1,IF('FP-DET'!$H75=N$6,'FP-DET'!$L75,""),"") ->  | O69: =IF('FP-DET'!$E75=1,IF('FP-DET'!$H75=O$6,'FP-DET'!$L75,""),"") ->  | P69: =IF('FP-DET'!$E75=2,IF('FP-DET'!$H75=P$6,'FP-DET'!$L75,""),"") ->  | Q69: =IF('FP-DET'!$E75=2,IF('FP-DET'!$H75=Q$6,'FP-DET'!$L75,""),"") ->  | R69: =IF('FP-DET'!$E75=2,IF('FP-DET'!$H75=R$6,'FP-DET'!$L75,""),"") ->  | S69: =IF('FP-DET'!$E75=2,IF('FP-DET'!$H75=S$6,'FP-DET'!$L75,""),"") ->  | T69: =IF('FP-DET'!$E75=2,IF('FP-DET'!$H75=T$6,'FP-DET'!$L75,""),"") ->  | U69: =IF('FP-DET'!$E75=3,IF('FP-DET'!$H75=U$6,'FP-DET'!$L75,""),"") ->  | V69: =IF('FP-DET'!$E75=3,IF('FP-DET'!$H75=V$6,'FP-DET'!$L75,""),"") ->  | W69: =IF('FP-DET'!$E75=3,IF('FP-DET'!$H75=W$6,'FP-DET'!$L75,""),"") ->  | X69: =IF('FP-DET'!$E75=3,IF('FP-DET'!$H75=X$6,'FP-DET'!$L75,""),"") ->  | Y69: =IF('FP-DET'!$E75=3,IF('FP-DET'!$H75=Y$6,'FP-DET'!$L75,""),"") ->  | Z69: =IF('FP-DET'!$E75=4,IF('FP-DET'!$H75=Z$6,'FP-DET'!$L75,""),"") ->  | AA69: =IF('FP-DET'!$E75=4,IF('FP-DET'!$H75=AA$6,'FP-DET'!$L75,""),"") ->  | AB69: =IF('FP-DET'!$E75=4,IF('FP-DET'!$H75=AB$6,'FP-DET'!$L75,""),"") ->  | AC69: =IF('FP-DET'!$E75=4,IF('FP-DET'!$H75=AC$6,'FP-DET'!$L75,""),"") ->  | AD69: =IF('FP-DET'!$E75=4,IF('FP-DET'!$H75=AD$6,'FP-DET'!$L75,""),"") ->  | AE69: =IF('FP-DET'!$E75=5,IF('FP-DET'!$H75=AE$6,'FP-DET'!$L75,""),"") ->  | AF69: =IF('FP-DET'!$E75=5,IF('FP-DET'!$H75=AF$6,'FP-DET'!$L75,""),"") ->  | AG69: =IF('FP-DET'!$E75=5,IF('FP-DET'!$H75=AG$6,'FP-DET'!$L75,""),"") ->  | AH69: =IF('FP-DET'!$E75=5,IF('FP-DET'!$H75=AH$6,'FP-DET'!$L75,""),"") ->  | AI69: =IF('FP-DET'!$E75=5,IF('FP-DET'!$H75=AI$6,'FP-DET'!$L75,""),"") -> 
K70: =IF('FP-DET'!$E76=1,IF('FP-DET'!$H76=K$6,'FP-DET'!$L76,""),"") ->  | L70: =IF('FP-DET'!$E76=1,IF('FP-DET'!$H76=L$6,'FP-DET'!$L76,""),"") ->  | M70: =IF('FP-DET'!$E76=1,IF('FP-DET'!$H76=M$6,'FP-DET'!$L76,""),"") ->  | N70: =IF('FP-DET'!$E76=1,IF('FP-DET'!$H76=N$6,'FP-DET'!$L76,""),"") ->  | O70: =IF('FP-DET'!$E76=1,IF('FP-DET'!$H76=O$6,'FP-DET'!$L76,""),"") ->  | P70: =IF('FP-DET'!$E76=2,IF('FP-DET'!$H76=P$6,'FP-DET'!$L76,""),"") ->  | Q70: =IF('FP-DET'!$E76=2,IF('FP-DET'!$H76=Q$6,'FP-DET'!$L76,""),"") ->  | R70: =IF('FP-DET'!$E76=2,IF('FP-DET'!$H76=R$6,'FP-DET'!$L76,""),"") ->  | S70: =IF('FP-DET'!$E76=2,IF('FP-DET'!$H76=S$6,'FP-DET'!$L76,""),"") ->  | T70: =IF('FP-DET'!$E76=2,IF('FP-DET'!$H76=T$6,'FP-DET'!$L76,""),"") ->  | U70: =IF('FP-DET'!$E76=3,IF('FP-DET'!$H76=U$6,'FP-DET'!$L76,""),"") ->  | V70: =IF('FP-DET'!$E76=3,IF('FP-DET'!$H76=V$6,'FP-DET'!$L76,""),"") ->  | W70: =IF('FP-DET'!$E76=3,IF('FP-DET'!$H76=W$6,'FP-DET'!$L76,""),"") ->  | X70: =IF('FP-DET'!$E76=3,IF('FP-DET'!$H76=X$6,'FP-DET'!$L76,""),"") ->  | Y70: =IF('FP-DET'!$E76=3,IF('FP-DET'!$H76=Y$6,'FP-DET'!$L76,""),"") ->  | Z70: =IF('FP-DET'!$E76=4,IF('FP-DET'!$H76=Z$6,'FP-DET'!$L76,""),"") ->  | AA70: =IF('FP-DET'!$E76=4,IF('FP-DET'!$H76=AA$6,'FP-DET'!$L76,""),"") ->  | AB70: =IF('FP-DET'!$E76=4,IF('FP-DET'!$H76=AB$6,'FP-DET'!$L76,""),"") ->  | AC70: =IF('FP-DET'!$E76=4,IF('FP-DET'!$H76=AC$6,'FP-DET'!$L76,""),"") ->  | AD70: =IF('FP-DET'!$E76=4,IF('FP-DET'!$H76=AD$6,'FP-DET'!$L76,""),"") ->  | AE70: =IF('FP-DET'!$E76=5,IF('FP-DET'!$H76=AE$6,'FP-DET'!$L76,""),"") ->  | AF70: =IF('FP-DET'!$E76=5,IF('FP-DET'!$H76=AF$6,'FP-DET'!$L76,""),"") ->  | AG70: =IF('FP-DET'!$E76=5,IF('FP-DET'!$H76=AG$6,'FP-DET'!$L76,""),"") ->  | AH70: =IF('FP-DET'!$E76=5,IF('FP-DET'!$H76=AH$6,'FP-DET'!$L76,""),"") ->  | AI70: =IF('FP-DET'!$E76=5,IF('FP-DET'!$H76=AI$6,'FP-DET'!$L76,""),"") -> 
K71: =IF('FP-DET'!$E77=1,IF('FP-DET'!$H77=K$6,'FP-DET'!$L77,""),"") ->  | L71: =IF('FP-DET'!$E77=1,IF('FP-DET'!$H77=L$6,'FP-DET'!$L77,""),"") ->  | M71: =IF('FP-DET'!$E77=1,IF('FP-DET'!$H77=M$6,'FP-DET'!$L77,""),"") ->  | N71: =IF('FP-DET'!$E77=1,IF('FP-DET'!$H77=N$6,'FP-DET'!$L77,""),"") ->  | O71: =IF('FP-DET'!$E77=1,IF('FP-DET'!$H77=O$6,'FP-DET'!$L77,""),"") ->  | P71: =IF('FP-DET'!$E77=2,IF('FP-DET'!$H77=P$6,'FP-DET'!$L77,""),"") ->  | Q71: =IF('FP-DET'!$E77=2,IF('FP-DET'!$H77=Q$6,'FP-DET'!$L77,""),"") ->  | R71: =IF('FP-DET'!$E77=2,IF('FP-DET'!$H77=R$6,'FP-DET'!$L77,""),"") ->  | S71: =IF('FP-DET'!$E77=2,IF('FP-DET'!$H77=S$6,'FP-DET'!$L77,""),"") ->  | T71: =IF('FP-DET'!$E77=2,IF('FP-DET'!$H77=T$6,'FP-DET'!$L77,""),"") ->  | U71: =IF('FP-DET'!$E77=3,IF('FP-DET'!$H77=U$6,'FP-DET'!$L77,""),"") ->  | V71: =IF('FP-DET'!$E77=3,IF('FP-DET'!$H77=V$6,'FP-DET'!$L77,""),"") ->  | W71: =IF('FP-DET'!$E77=3,IF('FP-DET'!$H77=W$6,'FP-DET'!$L77,""),"") ->  | X71: =IF('FP-DET'!$E77=3,IF('FP-DET'!$H77=X$6,'FP-DET'!$L77,""),"") ->  | Y71: =IF('FP-DET'!$E77=3,IF('FP-DET'!$H77=Y$6,'FP-DET'!$L77,""),"") ->  | Z71: =IF('FP-DET'!$E77=4,IF('FP-DET'!$H77=Z$6,'FP-DET'!$L77,""),"") ->  | AA71: =IF('FP-DET'!$E77=4,IF('FP-DET'!$H77=AA$6,'FP-DET'!$L77,""),"") ->  | AB71: =IF('FP-DET'!$E77=4,IF('FP-DET'!$H77=AB$6,'FP-DET'!$L77,""),"") ->  | AC71: =IF('FP-DET'!$E77=4,IF('FP-DET'!$H77=AC$6,'FP-DET'!$L77,""),"") ->  | AD71: =IF('FP-DET'!$E77=4,IF('FP-DET'!$H77=AD$6,'FP-DET'!$L77,""),"") ->  | AE71: =IF('FP-DET'!$E77=5,IF('FP-DET'!$H77=AE$6,'FP-DET'!$L77,""),"") ->  | AF71: =IF('FP-DET'!$E77=5,IF('FP-DET'!$H77=AF$6,'FP-DET'!$L77,""),"") ->  | AG71: =IF('FP-DET'!$E77=5,IF('FP-DET'!$H77=AG$6,'FP-DET'!$L77,""),"") ->  | AH71: =IF('FP-DET'!$E77=5,IF('FP-DET'!$H77=AH$6,'FP-DET'!$L77,""),"") ->  | AI71: =IF('FP-DET'!$E77=5,IF('FP-DET'!$H77=AI$6,'FP-DET'!$L77,""),"") -> 
K72: =IF('FP-DET'!$E78=1,IF('FP-DET'!$H78=K$6,'FP-DET'!$L78,""),"") ->  | L72: =IF('FP-DET'!$E78=1,IF('FP-DET'!$H78=L$6,'FP-DET'!$L78,""),"") ->  | M72: =IF('FP-DET'!$E78=1,IF('FP-DET'!$H78=M$6,'FP-DET'!$L78,""),"") ->  | N72: =IF('FP-DET'!$E78=1,IF('FP-DET'!$H78=N$6,'FP-DET'!$L78,""),"") ->  | O72: =IF('FP-DET'!$E78=1,IF('FP-DET'!$H78=O$6,'FP-DET'!$L78,""),"") ->  | P72: =IF('FP-DET'!$E78=2,IF('FP-DET'!$H78=P$6,'FP-DET'!$L78,""),"") ->  | Q72: =IF('FP-DET'!$E78=2,IF('FP-DET'!$H78=Q$6,'FP-DET'!$L78,""),"") ->  | R72: =IF('FP-DET'!$E78=2,IF('FP-DET'!$H78=R$6,'FP-DET'!$L78,""),"") ->  | S72: =IF('FP-DET'!$E78=2,IF('FP-DET'!$H78=S$6,'FP-DET'!$L78,""),"") ->  | T72: =IF('FP-DET'!$E78=2,IF('FP-DET'!$H78=T$6,'FP-DET'!$L78,""),"") ->  | U72: =IF('FP-DET'!$E78=3,IF('FP-DET'!$H78=U$6,'FP-DET'!$L78,""),"") ->  | V72: =IF('FP-DET'!$E78=3,IF('FP-DET'!$H78=V$6,'FP-DET'!$L78,""),"") ->  | W72: =IF('FP-DET'!$E78=3,IF('FP-DET'!$H78=W$6,'FP-DET'!$L78,""),"") ->  | X72: =IF('FP-DET'!$E78=3,IF('FP-DET'!$H78=X$6,'FP-DET'!$L78,""),"") ->  | Y72: =IF('FP-DET'!$E78=3,IF('FP-DET'!$H78=Y$6,'FP-DET'!$L78,""),"") ->  | Z72: =IF('FP-DET'!$E78=4,IF('FP-DET'!$H78=Z$6,'FP-DET'!$L78,""),"") ->  | AA72: =IF('FP-DET'!$E78=4,IF('FP-DET'!$H78=AA$6,'FP-DET'!$L78,""),"") ->  | AB72: =IF('FP-DET'!$E78=4,IF('FP-DET'!$H78=AB$6,'FP-DET'!$L78,""),"") ->  | AC72: =IF('FP-DET'!$E78=4,IF('FP-DET'!$H78=AC$6,'FP-DET'!$L78,""),"") ->  | AD72: =IF('FP-DET'!$E78=4,IF('FP-DET'!$H78=AD$6,'FP-DET'!$L78,""),"") ->  | AE72: =IF('FP-DET'!$E78=5,IF('FP-DET'!$H78=AE$6,'FP-DET'!$L78,""),"") ->  | AF72: =IF('FP-DET'!$E78=5,IF('FP-DET'!$H78=AF$6,'FP-DET'!$L78,""),"") ->  | AG72: =IF('FP-DET'!$E78=5,IF('FP-DET'!$H78=AG$6,'FP-DET'!$L78,""),"") ->  | AH72: =IF('FP-DET'!$E78=5,IF('FP-DET'!$H78=AH$6,'FP-DET'!$L78,""),"") ->  | AI72: =IF('FP-DET'!$E78=5,IF('FP-DET'!$H78=AI$6,'FP-DET'!$L78,""),"") -> 
K73: =IF('FP-DET'!$E79=1,IF('FP-DET'!$H79=K$6,'FP-DET'!$L79,""),"") ->  | L73: =IF('FP-DET'!$E79=1,IF('FP-DET'!$H79=L$6,'FP-DET'!$L79,""),"") ->  | M73: =IF('FP-DET'!$E79=1,IF('FP-DET'!$H79=M$6,'FP-DET'!$L79,""),"") ->  | N73: =IF('FP-DET'!$E79=1,IF('FP-DET'!$H79=N$6,'FP-DET'!$L79,""),"") ->  | O73: =IF('FP-DET'!$E79=1,IF('FP-DET'!$H79=O$6,'FP-DET'!$L79,""),"") ->  | P73: =IF('FP-DET'!$E79=2,IF('FP-DET'!$H79=P$6,'FP-DET'!$L79,""),"") ->  | Q73: =IF('FP-DET'!$E79=2,IF('FP-DET'!$H79=Q$6,'FP-DET'!$L79,""),"") ->  | R73: =IF('FP-DET'!$E79=2,IF('FP-DET'!$H79=R$6,'FP-DET'!$L79,""),"") ->  | S73: =IF('FP-DET'!$E79=2,IF('FP-DET'!$H79=S$6,'FP-DET'!$L79,""),"") ->  | T73: =IF('FP-DET'!$E79=2,IF('FP-DET'!$H79=T$6,'FP-DET'!$L79,""),"") ->  | U73: =IF('FP-DET'!$E79=3,IF('FP-DET'!$H79=U$6,'FP-DET'!$L79,""),"") ->  | V73: =IF('FP-DET'!$E79=3,IF('FP-DET'!$H79=V$6,'FP-DET'!$L79,""),"") ->  | W73: =IF('FP-DET'!$E79=3,IF('FP-DET'!$H79=W$6,'FP-DET'!$L79,""),"") ->  | X73: =IF('FP-DET'!$E79=3,IF('FP-DET'!$H79=X$6,'FP-DET'!$L79,""),"") ->  | Y73: =IF('FP-DET'!$E79=3,IF('FP-DET'!$H79=Y$6,'FP-DET'!$L79,""),"") ->  | Z73: =IF('FP-DET'!$E79=4,IF('FP-DET'!$H79=Z$6,'FP-DET'!$L79,""),"") ->  | AA73: =IF('FP-DET'!$E79=4,IF('FP-DET'!$H79=AA$6,'FP-DET'!$L79,""),"") ->  | AB73: =IF('FP-DET'!$E79=4,IF('FP-DET'!$H79=AB$6,'FP-DET'!$L79,""),"") ->  | AC73: =IF('FP-DET'!$E79=4,IF('FP-DET'!$H79=AC$6,'FP-DET'!$L79,""),"") ->  | AD73: =IF('FP-DET'!$E79=4,IF('FP-DET'!$H79=AD$6,'FP-DET'!$L79,""),"") ->  | AE73: =IF('FP-DET'!$E79=5,IF('FP-DET'!$H79=AE$6,'FP-DET'!$L79,""),"") ->  | AF73: =IF('FP-DET'!$E79=5,IF('FP-DET'!$H79=AF$6,'FP-DET'!$L79,""),"") ->  | AG73: =IF('FP-DET'!$E79=5,IF('FP-DET'!$H79=AG$6,'FP-DET'!$L79,""),"") ->  | AH73: =IF('FP-DET'!$E79=5,IF('FP-DET'!$H79=AH$6,'FP-DET'!$L79,""),"") ->  | AI73: =IF('FP-DET'!$E79=5,IF('FP-DET'!$H79=AI$6,'FP-DET'!$L79,""),"") -> 
K74: =IF('FP-DET'!$E80=1,IF('FP-DET'!$H80=K$6,'FP-DET'!$L80,""),"") ->  | L74: =IF('FP-DET'!$E80=1,IF('FP-DET'!$H80=L$6,'FP-DET'!$L80,""),"") ->  | M74: =IF('FP-DET'!$E80=1,IF('FP-DET'!$H80=M$6,'FP-DET'!$L80,""),"") ->  | N74: =IF('FP-DET'!$E80=1,IF('FP-DET'!$H80=N$6,'FP-DET'!$L80,""),"") ->  | O74: =IF('FP-DET'!$E80=1,IF('FP-DET'!$H80=O$6,'FP-DET'!$L80,""),"") ->  | P74: =IF('FP-DET'!$E80=2,IF('FP-DET'!$H80=P$6,'FP-DET'!$L80,""),"") ->  | Q74: =IF('FP-DET'!$E80=2,IF('FP-DET'!$H80=Q$6,'FP-DET'!$L80,""),"") ->  | R74: =IF('FP-DET'!$E80=2,IF('FP-DET'!$H80=R$6,'FP-DET'!$L80,""),"") ->  | S74: =IF('FP-DET'!$E80=2,IF('FP-DET'!$H80=S$6,'FP-DET'!$L80,""),"") ->  | T74: =IF('FP-DET'!$E80=2,IF('FP-DET'!$H80=T$6,'FP-DET'!$L80,""),"") ->  | U74: =IF('FP-DET'!$E80=3,IF('FP-DET'!$H80=U$6,'FP-DET'!$L80,""),"") ->  | V74: =IF('FP-DET'!$E80=3,IF('FP-DET'!$H80=V$6,'FP-DET'!$L80,""),"") ->  | W74: =IF('FP-DET'!$E80=3,IF('FP-DET'!$H80=W$6,'FP-DET'!$L80,""),"") ->  | X74: =IF('FP-DET'!$E80=3,IF('FP-DET'!$H80=X$6,'FP-DET'!$L80,""),"") ->  | Y74: =IF('FP-DET'!$E80=3,IF('FP-DET'!$H80=Y$6,'FP-DET'!$L80,""),"") ->  | Z74: =IF('FP-DET'!$E80=4,IF('FP-DET'!$H80=Z$6,'FP-DET'!$L80,""),"") ->  | AA74: =IF('FP-DET'!$E80=4,IF('FP-DET'!$H80=AA$6,'FP-DET'!$L80,""),"") ->  | AB74: =IF('FP-DET'!$E80=4,IF('FP-DET'!$H80=AB$6,'FP-DET'!$L80,""),"") ->  | AC74: =IF('FP-DET'!$E80=4,IF('FP-DET'!$H80=AC$6,'FP-DET'!$L80,""),"") ->  | AD74: =IF('FP-DET'!$E80=4,IF('FP-DET'!$H80=AD$6,'FP-DET'!$L80,""),"") ->  | AE74: =IF('FP-DET'!$E80=5,IF('FP-DET'!$H80=AE$6,'FP-DET'!$L80,""),"") ->  | AF74: =IF('FP-DET'!$E80=5,IF('FP-DET'!$H80=AF$6,'FP-DET'!$L80,""),"") ->  | AG74: =IF('FP-DET'!$E80=5,IF('FP-DET'!$H80=AG$6,'FP-DET'!$L80,""),"") ->  | AH74: =IF('FP-DET'!$E80=5,IF('FP-DET'!$H80=AH$6,'FP-DET'!$L80,""),"") ->  | AI74: =IF('FP-DET'!$E80=5,IF('FP-DET'!$H80=AI$6,'FP-DET'!$L80,""),"") -> 
K75: =IF('FP-DET'!$E81=1,IF('FP-DET'!$H81=K$6,'FP-DET'!$L81,""),"") ->  | L75: =IF('FP-DET'!$E81=1,IF('FP-DET'!$H81=L$6,'FP-DET'!$L81,""),"") ->  | M75: =IF('FP-DET'!$E81=1,IF('FP-DET'!$H81=M$6,'FP-DET'!$L81,""),"") ->  | N75: =IF('FP-DET'!$E81=1,IF('FP-DET'!$H81=N$6,'FP-DET'!$L81,""),"") ->  | O75: =IF('FP-DET'!$E81=1,IF('FP-DET'!$H81=O$6,'FP-DET'!$L81,""),"") ->  | P75: =IF('FP-DET'!$E81=2,IF('FP-DET'!$H81=P$6,'FP-DET'!$L81,""),"") ->  | Q75: =IF('FP-DET'!$E81=2,IF('FP-DET'!$H81=Q$6,'FP-DET'!$L81,""),"") ->  | R75: =IF('FP-DET'!$E81=2,IF('FP-DET'!$H81=R$6,'FP-DET'!$L81,""),"") ->  | S75: =IF('FP-DET'!$E81=2,IF('FP-DET'!$H81=S$6,'FP-DET'!$L81,""),"") ->  | T75: =IF('FP-DET'!$E81=2,IF('FP-DET'!$H81=T$6,'FP-DET'!$L81,""),"") ->  | U75: =IF('FP-DET'!$E81=3,IF('FP-DET'!$H81=U$6,'FP-DET'!$L81,""),"") ->  | V75: =IF('FP-DET'!$E81=3,IF('FP-DET'!$H81=V$6,'FP-DET'!$L81,""),"") ->  | W75: =IF('FP-DET'!$E81=3,IF('FP-DET'!$H81=W$6,'FP-DET'!$L81,""),"") ->  | X75: =IF('FP-DET'!$E81=3,IF('FP-DET'!$H81=X$6,'FP-DET'!$L81,""),"") ->  | Y75: =IF('FP-DET'!$E81=3,IF('FP-DET'!$H81=Y$6,'FP-DET'!$L81,""),"") ->  | Z75: =IF('FP-DET'!$E81=4,IF('FP-DET'!$H81=Z$6,'FP-DET'!$L81,""),"") ->  | AA75: =IF('FP-DET'!$E81=4,IF('FP-DET'!$H81=AA$6,'FP-DET'!$L81,""),"") ->  | AB75: =IF('FP-DET'!$E81=4,IF('FP-DET'!$H81=AB$6,'FP-DET'!$L81,""),"") ->  | AC75: =IF('FP-DET'!$E81=4,IF('FP-DET'!$H81=AC$6,'FP-DET'!$L81,""),"") ->  | AD75: =IF('FP-DET'!$E81=4,IF('FP-DET'!$H81=AD$6,'FP-DET'!$L81,""),"") ->  | AE75: =IF('FP-DET'!$E81=5,IF('FP-DET'!$H81=AE$6,'FP-DET'!$L81,""),"") ->  | AF75: =IF('FP-DET'!$E81=5,IF('FP-DET'!$H81=AF$6,'FP-DET'!$L81,""),"") ->  | AG75: =IF('FP-DET'!$E81=5,IF('FP-DET'!$H81=AG$6,'FP-DET'!$L81,""),"") ->  | AH75: =IF('FP-DET'!$E81=5,IF('FP-DET'!$H81=AH$6,'FP-DET'!$L81,""),"") ->  | AI75: =IF('FP-DET'!$E81=5,IF('FP-DET'!$H81=AI$6,'FP-DET'!$L81,""),"") -> 
K76: =IF('FP-DET'!$E82=1,IF('FP-DET'!$H82=K$6,'FP-DET'!$L82,""),"") ->  | L76: =IF('FP-DET'!$E82=1,IF('FP-DET'!$H82=L$6,'FP-DET'!$L82,""),"") ->  | M76: =IF('FP-DET'!$E82=1,IF('FP-DET'!$H82=M$6,'FP-DET'!$L82,""),"") ->  | N76: =IF('FP-DET'!$E82=1,IF('FP-DET'!$H82=N$6,'FP-DET'!$L82,""),"") ->  | O76: =IF('FP-DET'!$E82=1,IF('FP-DET'!$H82=O$6,'FP-DET'!$L82,""),"") ->  | P76: =IF('FP-DET'!$E82=2,IF('FP-DET'!$H82=P$6,'FP-DET'!$L82,""),"") ->  | Q76: =IF('FP-DET'!$E82=2,IF('FP-DET'!$H82=Q$6,'FP-DET'!$L82,""),"") ->  | R76: =IF('FP-DET'!$E82=2,IF('FP-DET'!$H82=R$6,'FP-DET'!$L82,""),"") ->  | S76: =IF('FP-DET'!$E82=2,IF('FP-DET'!$H82=S$6,'FP-DET'!$L82,""),"") ->  | T76: =IF('FP-DET'!$E82=2,IF('FP-DET'!$H82=T$6,'FP-DET'!$L82,""),"") ->  | U76: =IF('FP-DET'!$E82=3,IF('FP-DET'!$H82=U$6,'FP-DET'!$L82,""),"") ->  | V76: =IF('FP-DET'!$E82=3,IF('FP-DET'!$H82=V$6,'FP-DET'!$L82,""),"") ->  | W76: =IF('FP-DET'!$E82=3,IF('FP-DET'!$H82=W$6,'FP-DET'!$L82,""),"") ->  | X76: =IF('FP-DET'!$E82=3,IF('FP-DET'!$H82=X$6,'FP-DET'!$L82,""),"") ->  | Y76: =IF('FP-DET'!$E82=3,IF('FP-DET'!$H82=Y$6,'FP-DET'!$L82,""),"") ->  | Z76: =IF('FP-DET'!$E82=4,IF('FP-DET'!$H82=Z$6,'FP-DET'!$L82,""),"") ->  | AA76: =IF('FP-DET'!$E82=4,IF('FP-DET'!$H82=AA$6,'FP-DET'!$L82,""),"") ->  | AB76: =IF('FP-DET'!$E82=4,IF('FP-DET'!$H82=AB$6,'FP-DET'!$L82,""),"") ->  | AC76: =IF('FP-DET'!$E82=4,IF('FP-DET'!$H82=AC$6,'FP-DET'!$L82,""),"") ->  | AD76: =IF('FP-DET'!$E82=4,IF('FP-DET'!$H82=AD$6,'FP-DET'!$L82,""),"") ->  | AE76: =IF('FP-DET'!$E82=5,IF('FP-DET'!$H82=AE$6,'FP-DET'!$L82,""),"") ->  | AF76: =IF('FP-DET'!$E82=5,IF('FP-DET'!$H82=AF$6,'FP-DET'!$L82,""),"") ->  | AG76: =IF('FP-DET'!$E82=5,IF('FP-DET'!$H82=AG$6,'FP-DET'!$L82,""),"") ->  | AH76: =IF('FP-DET'!$E82=5,IF('FP-DET'!$H82=AH$6,'FP-DET'!$L82,""),"") ->  | AI76: =IF('FP-DET'!$E82=5,IF('FP-DET'!$H82=AI$6,'FP-DET'!$L82,""),"") -> 
K77: =IF('FP-DET'!$E83=1,IF('FP-DET'!$H83=K$6,'FP-DET'!$L83,""),"") ->  | L77: =IF('FP-DET'!$E83=1,IF('FP-DET'!$H83=L$6,'FP-DET'!$L83,""),"") ->  | M77: =IF('FP-DET'!$E83=1,IF('FP-DET'!$H83=M$6,'FP-DET'!$L83,""),"") ->  | N77: =IF('FP-DET'!$E83=1,IF('FP-DET'!$H83=N$6,'FP-DET'!$L83,""),"") ->  | O77: =IF('FP-DET'!$E83=1,IF('FP-DET'!$H83=O$6,'FP-DET'!$L83,""),"") ->  | P77: =IF('FP-DET'!$E83=2,IF('FP-DET'!$H83=P$6,'FP-DET'!$L83,""),"") ->  | Q77: =IF('FP-DET'!$E83=2,IF('FP-DET'!$H83=Q$6,'FP-DET'!$L83,""),"") ->  | R77: =IF('FP-DET'!$E83=2,IF('FP-DET'!$H83=R$6,'FP-DET'!$L83,""),"") ->  | S77: =IF('FP-DET'!$E83=2,IF('FP-DET'!$H83=S$6,'FP-DET'!$L83,""),"") ->  | T77: =IF('FP-DET'!$E83=2,IF('FP-DET'!$H83=T$6,'FP-DET'!$L83,""),"") ->  | U77: =IF('FP-DET'!$E83=3,IF('FP-DET'!$H83=U$6,'FP-DET'!$L83,""),"") ->  | V77: =IF('FP-DET'!$E83=3,IF('FP-DET'!$H83=V$6,'FP-DET'!$L83,""),"") ->  | W77: =IF('FP-DET'!$E83=3,IF('FP-DET'!$H83=W$6,'FP-DET'!$L83,""),"") ->  | X77: =IF('FP-DET'!$E83=3,IF('FP-DET'!$H83=X$6,'FP-DET'!$L83,""),"") ->  | Y77: =IF('FP-DET'!$E83=3,IF('FP-DET'!$H83=Y$6,'FP-DET'!$L83,""),"") ->  | Z77: =IF('FP-DET'!$E83=4,IF('FP-DET'!$H83=Z$6,'FP-DET'!$L83,""),"") ->  | AA77: =IF('FP-DET'!$E83=4,IF('FP-DET'!$H83=AA$6,'FP-DET'!$L83,""),"") ->  | AB77: =IF('FP-DET'!$E83=4,IF('FP-DET'!$H83=AB$6,'FP-DET'!$L83,""),"") ->  | AC77: =IF('FP-DET'!$E83=4,IF('FP-DET'!$H83=AC$6,'FP-DET'!$L83,""),"") ->  | AD77: =IF('FP-DET'!$E83=4,IF('FP-DET'!$H83=AD$6,'FP-DET'!$L83,""),"") ->  | AE77: =IF('FP-DET'!$E83=5,IF('FP-DET'!$H83=AE$6,'FP-DET'!$L83,""),"") ->  | AF77: =IF('FP-DET'!$E83=5,IF('FP-DET'!$H83=AF$6,'FP-DET'!$L83,""),"") ->  | AG77: =IF('FP-DET'!$E83=5,IF('FP-DET'!$H83=AG$6,'FP-DET'!$L83,""),"") ->  | AH77: =IF('FP-DET'!$E83=5,IF('FP-DET'!$H83=AH$6,'FP-DET'!$L83,""),"") ->  | AI77: =IF('FP-DET'!$E83=5,IF('FP-DET'!$H83=AI$6,'FP-DET'!$L83,""),"") -> 
K78: =IF('FP-DET'!$E84=1,IF('FP-DET'!$H84=K$6,'FP-DET'!$L84,""),"") ->  | L78: =IF('FP-DET'!$E84=1,IF('FP-DET'!$H84=L$6,'FP-DET'!$L84,""),"") ->  | M78: =IF('FP-DET'!$E84=1,IF('FP-DET'!$H84=M$6,'FP-DET'!$L84,""),"") ->  | N78: =IF('FP-DET'!$E84=1,IF('FP-DET'!$H84=N$6,'FP-DET'!$L84,""),"") ->  | O78: =IF('FP-DET'!$E84=1,IF('FP-DET'!$H84=O$6,'FP-DET'!$L84,""),"") ->  | P78: =IF('FP-DET'!$E84=2,IF('FP-DET'!$H84=P$6,'FP-DET'!$L84,""),"") ->  | Q78: =IF('FP-DET'!$E84=2,IF('FP-DET'!$H84=Q$6,'FP-DET'!$L84,""),"") ->  | R78: =IF('FP-DET'!$E84=2,IF('FP-DET'!$H84=R$6,'FP-DET'!$L84,""),"") ->  | S78: =IF('FP-DET'!$E84=2,IF('FP-DET'!$H84=S$6,'FP-DET'!$L84,""),"") ->  | T78: =IF('FP-DET'!$E84=2,IF('FP-DET'!$H84=T$6,'FP-DET'!$L84,""),"") ->  | U78: =IF('FP-DET'!$E84=3,IF('FP-DET'!$H84=U$6,'FP-DET'!$L84,""),"") ->  | V78: =IF('FP-DET'!$E84=3,IF('FP-DET'!$H84=V$6,'FP-DET'!$L84,""),"") ->  | W78: =IF('FP-DET'!$E84=3,IF('FP-DET'!$H84=W$6,'FP-DET'!$L84,""),"") ->  | X78: =IF('FP-DET'!$E84=3,IF('FP-DET'!$H84=X$6,'FP-DET'!$L84,""),"") ->  | Y78: =IF('FP-DET'!$E84=3,IF('FP-DET'!$H84=Y$6,'FP-DET'!$L84,""),"") ->  | Z78: =IF('FP-DET'!$E84=4,IF('FP-DET'!$H84=Z$6,'FP-DET'!$L84,""),"") ->  | AA78: =IF('FP-DET'!$E84=4,IF('FP-DET'!$H84=AA$6,'FP-DET'!$L84,""),"") ->  | AB78: =IF('FP-DET'!$E84=4,IF('FP-DET'!$H84=AB$6,'FP-DET'!$L84,""),"") ->  | AC78: =IF('FP-DET'!$E84=4,IF('FP-DET'!$H84=AC$6,'FP-DET'!$L84,""),"") ->  | AD78: =IF('FP-DET'!$E84=4,IF('FP-DET'!$H84=AD$6,'FP-DET'!$L84,""),"") ->  | AE78: =IF('FP-DET'!$E84=5,IF('FP-DET'!$H84=AE$6,'FP-DET'!$L84,""),"") ->  | AF78: =IF('FP-DET'!$E84=5,IF('FP-DET'!$H84=AF$6,'FP-DET'!$L84,""),"") ->  | AG78: =IF('FP-DET'!$E84=5,IF('FP-DET'!$H84=AG$6,'FP-DET'!$L84,""),"") ->  | AH78: =IF('FP-DET'!$E84=5,IF('FP-DET'!$H84=AH$6,'FP-DET'!$L84,""),"") ->  | AI78: =IF('FP-DET'!$E84=5,IF('FP-DET'!$H84=AI$6,'FP-DET'!$L84,""),"") -> 
K79: =IF('FP-DET'!$E85=1,IF('FP-DET'!$H85=K$6,'FP-DET'!$L85,""),"") ->  | L79: =IF('FP-DET'!$E85=1,IF('FP-DET'!$H85=L$6,'FP-DET'!$L85,""),"") ->  | M79: =IF('FP-DET'!$E85=1,IF('FP-DET'!$H85=M$6,'FP-DET'!$L85,""),"") ->  | N79: =IF('FP-DET'!$E85=1,IF('FP-DET'!$H85=N$6,'FP-DET'!$L85,""),"") ->  | O79: =IF('FP-DET'!$E85=1,IF('FP-DET'!$H85=O$6,'FP-DET'!$L85,""),"") ->  | P79: =IF('FP-DET'!$E85=2,IF('FP-DET'!$H85=P$6,'FP-DET'!$L85,""),"") ->  | Q79: =IF('FP-DET'!$E85=2,IF('FP-DET'!$H85=Q$6,'FP-DET'!$L85,""),"") ->  | R79: =IF('FP-DET'!$E85=2,IF('FP-DET'!$H85=R$6,'FP-DET'!$L85,""),"") ->  | S79: =IF('FP-DET'!$E85=2,IF('FP-DET'!$H85=S$6,'FP-DET'!$L85,""),"") ->  | T79: =IF('FP-DET'!$E85=2,IF('FP-DET'!$H85=T$6,'FP-DET'!$L85,""),"") ->  | U79: =IF('FP-DET'!$E85=3,IF('FP-DET'!$H85=U$6,'FP-DET'!$L85,""),"") ->  | V79: =IF('FP-DET'!$E85=3,IF('FP-DET'!$H85=V$6,'FP-DET'!$L85,""),"") ->  | W79: =IF('FP-DET'!$E85=3,IF('FP-DET'!$H85=W$6,'FP-DET'!$L85,""),"") ->  | X79: =IF('FP-DET'!$E85=3,IF('FP-DET'!$H85=X$6,'FP-DET'!$L85,""),"") ->  | Y79: =IF('FP-DET'!$E85=3,IF('FP-DET'!$H85=Y$6,'FP-DET'!$L85,""),"") ->  | Z79: =IF('FP-DET'!$E85=4,IF('FP-DET'!$H85=Z$6,'FP-DET'!$L85,""),"") ->  | AA79: =IF('FP-DET'!$E85=4,IF('FP-DET'!$H85=AA$6,'FP-DET'!$L85,""),"") ->  | AB79: =IF('FP-DET'!$E85=4,IF('FP-DET'!$H85=AB$6,'FP-DET'!$L85,""),"") ->  | AC79: =IF('FP-DET'!$E85=4,IF('FP-DET'!$H85=AC$6,'FP-DET'!$L85,""),"") ->  | AD79: =IF('FP-DET'!$E85=4,IF('FP-DET'!$H85=AD$6,'FP-DET'!$L85,""),"") ->  | AE79: =IF('FP-DET'!$E85=5,IF('FP-DET'!$H85=AE$6,'FP-DET'!$L85,""),"") ->  | AF79: =IF('FP-DET'!$E85=5,IF('FP-DET'!$H85=AF$6,'FP-DET'!$L85,""),"") ->  | AG79: =IF('FP-DET'!$E85=5,IF('FP-DET'!$H85=AG$6,'FP-DET'!$L85,""),"") ->  | AH79: =IF('FP-DET'!$E85=5,IF('FP-DET'!$H85=AH$6,'FP-DET'!$L85,""),"") ->  | AI79: =IF('FP-DET'!$E85=5,IF('FP-DET'!$H85=AI$6,'FP-DET'!$L85,""),"") -> 
K80: =IF('FP-DET'!$E86=1,IF('FP-DET'!$H86=K$6,'FP-DET'!$L86,""),"") ->  | L80: =IF('FP-DET'!$E86=1,IF('FP-DET'!$H86=L$6,'FP-DET'!$L86,""),"") ->  | M80: =IF('FP-DET'!$E86=1,IF('FP-DET'!$H86=M$6,'FP-DET'!$L86,""),"") ->  | N80: =IF('FP-DET'!$E86=1,IF('FP-DET'!$H86=N$6,'FP-DET'!$L86,""),"") ->  | O80: =IF('FP-DET'!$E86=1,IF('FP-DET'!$H86=O$6,'FP-DET'!$L86,""),"") ->  | P80: =IF('FP-DET'!$E86=2,IF('FP-DET'!$H86=P$6,'FP-DET'!$L86,""),"") ->  | Q80: =IF('FP-DET'!$E86=2,IF('FP-DET'!$H86=Q$6,'FP-DET'!$L86,""),"") ->  | R80: =IF('FP-DET'!$E86=2,IF('FP-DET'!$H86=R$6,'FP-DET'!$L86,""),"") ->  | S80: =IF('FP-DET'!$E86=2,IF('FP-DET'!$H86=S$6,'FP-DET'!$L86,""),"") ->  | T80: =IF('FP-DET'!$E86=2,IF('FP-DET'!$H86=T$6,'FP-DET'!$L86,""),"") ->  | U80: =IF('FP-DET'!$E86=3,IF('FP-DET'!$H86=U$6,'FP-DET'!$L86,""),"") ->  | V80: =IF('FP-DET'!$E86=3,IF('FP-DET'!$H86=V$6,'FP-DET'!$L86,""),"") ->  | W80: =IF('FP-DET'!$E86=3,IF('FP-DET'!$H86=W$6,'FP-DET'!$L86,""),"") ->  | X80: =IF('FP-DET'!$E86=3,IF('FP-DET'!$H86=X$6,'FP-DET'!$L86,""),"") ->  | Y80: =IF('FP-DET'!$E86=3,IF('FP-DET'!$H86=Y$6,'FP-DET'!$L86,""),"") ->  | Z80: =IF('FP-DET'!$E86=4,IF('FP-DET'!$H86=Z$6,'FP-DET'!$L86,""),"") ->  | AA80: =IF('FP-DET'!$E86=4,IF('FP-DET'!$H86=AA$6,'FP-DET'!$L86,""),"") ->  | AB80: =IF('FP-DET'!$E86=4,IF('FP-DET'!$H86=AB$6,'FP-DET'!$L86,""),"") ->  | AC80: =IF('FP-DET'!$E86=4,IF('FP-DET'!$H86=AC$6,'FP-DET'!$L86,""),"") ->  | AD80: =IF('FP-DET'!$E86=4,IF('FP-DET'!$H86=AD$6,'FP-DET'!$L86,""),"") ->  | AE80: =IF('FP-DET'!$E86=5,IF('FP-DET'!$H86=AE$6,'FP-DET'!$L86,""),"") ->  | AF80: =IF('FP-DET'!$E86=5,IF('FP-DET'!$H86=AF$6,'FP-DET'!$L86,""),"") ->  | AG80: =IF('FP-DET'!$E86=5,IF('FP-DET'!$H86=AG$6,'FP-DET'!$L86,""),"") ->  | AH80: =IF('FP-DET'!$E86=5,IF('FP-DET'!$H86=AH$6,'FP-DET'!$L86,""),"") ->  | AI80: =IF('FP-DET'!$E86=5,IF('FP-DET'!$H86=AI$6,'FP-DET'!$L86,""),"") -> 
K81: =IF('FP-DET'!$E87=1,IF('FP-DET'!$H87=K$6,'FP-DET'!$L87,""),"") ->  | L81: =IF('FP-DET'!$E87=1,IF('FP-DET'!$H87=L$6,'FP-DET'!$L87,""),"") ->  | M81: =IF('FP-DET'!$E87=1,IF('FP-DET'!$H87=M$6,'FP-DET'!$L87,""),"") ->  | N81: =IF('FP-DET'!$E87=1,IF('FP-DET'!$H87=N$6,'FP-DET'!$L87,""),"") ->  | O81: =IF('FP-DET'!$E87=1,IF('FP-DET'!$H87=O$6,'FP-DET'!$L87,""),"") ->  | P81: =IF('FP-DET'!$E87=2,IF('FP-DET'!$H87=P$6,'FP-DET'!$L87,""),"") ->  | Q81: =IF('FP-DET'!$E87=2,IF('FP-DET'!$H87=Q$6,'FP-DET'!$L87,""),"") ->  | R81: =IF('FP-DET'!$E87=2,IF('FP-DET'!$H87=R$6,'FP-DET'!$L87,""),"") ->  | S81: =IF('FP-DET'!$E87=2,IF('FP-DET'!$H87=S$6,'FP-DET'!$L87,""),"") ->  | T81: =IF('FP-DET'!$E87=2,IF('FP-DET'!$H87=T$6,'FP-DET'!$L87,""),"") ->  | U81: =IF('FP-DET'!$E87=3,IF('FP-DET'!$H87=U$6,'FP-DET'!$L87,""),"") ->  | V81: =IF('FP-DET'!$E87=3,IF('FP-DET'!$H87=V$6,'FP-DET'!$L87,""),"") ->  | W81: =IF('FP-DET'!$E87=3,IF('FP-DET'!$H87=W$6,'FP-DET'!$L87,""),"") ->  | X81: =IF('FP-DET'!$E87=3,IF('FP-DET'!$H87=X$6,'FP-DET'!$L87,""),"") ->  | Y81: =IF('FP-DET'!$E87=3,IF('FP-DET'!$H87=Y$6,'FP-DET'!$L87,""),"") ->  | Z81: =IF('FP-DET'!$E87=4,IF('FP-DET'!$H87=Z$6,'FP-DET'!$L87,""),"") ->  | AA81: =IF('FP-DET'!$E87=4,IF('FP-DET'!$H87=AA$6,'FP-DET'!$L87,""),"") ->  | AB81: =IF('FP-DET'!$E87=4,IF('FP-DET'!$H87=AB$6,'FP-DET'!$L87,""),"") ->  | AC81: =IF('FP-DET'!$E87=4,IF('FP-DET'!$H87=AC$6,'FP-DET'!$L87,""),"") ->  | AD81: =IF('FP-DET'!$E87=4,IF('FP-DET'!$H87=AD$6,'FP-DET'!$L87,""),"") ->  | AE81: =IF('FP-DET'!$E87=5,IF('FP-DET'!$H87=AE$6,'FP-DET'!$L87,""),"") ->  | AF81: =IF('FP-DET'!$E87=5,IF('FP-DET'!$H87=AF$6,'FP-DET'!$L87,""),"") ->  | AG81: =IF('FP-DET'!$E87=5,IF('FP-DET'!$H87=AG$6,'FP-DET'!$L87,""),"") ->  | AH81: =IF('FP-DET'!$E87=5,IF('FP-DET'!$H87=AH$6,'FP-DET'!$L87,""),"") ->  | AI81: =IF('FP-DET'!$E87=5,IF('FP-DET'!$H87=AI$6,'FP-DET'!$L87,""),"") -> 
K82: =IF('FP-DET'!$E88=1,IF('FP-DET'!$H88=K$6,'FP-DET'!$L88,""),"") ->  | L82: =IF('FP-DET'!$E88=1,IF('FP-DET'!$H88=L$6,'FP-DET'!$L88,""),"") ->  | M82: =IF('FP-DET'!$E88=1,IF('FP-DET'!$H88=M$6,'FP-DET'!$L88,""),"") ->  | N82: =IF('FP-DET'!$E88=1,IF('FP-DET'!$H88=N$6,'FP-DET'!$L88,""),"") ->  | O82: =IF('FP-DET'!$E88=1,IF('FP-DET'!$H88=O$6,'FP-DET'!$L88,""),"") ->  | P82: =IF('FP-DET'!$E88=2,IF('FP-DET'!$H88=P$6,'FP-DET'!$L88,""),"") ->  | Q82: =IF('FP-DET'!$E88=2,IF('FP-DET'!$H88=Q$6,'FP-DET'!$L88,""),"") ->  | R82: =IF('FP-DET'!$E88=2,IF('FP-DET'!$H88=R$6,'FP-DET'!$L88,""),"") ->  | S82: =IF('FP-DET'!$E88=2,IF('FP-DET'!$H88=S$6,'FP-DET'!$L88,""),"") ->  | T82: =IF('FP-DET'!$E88=2,IF('FP-DET'!$H88=T$6,'FP-DET'!$L88,""),"") ->  | U82: =IF('FP-DET'!$E88=3,IF('FP-DET'!$H88=U$6,'FP-DET'!$L88,""),"") ->  | V82: =IF('FP-DET'!$E88=3,IF('FP-DET'!$H88=V$6,'FP-DET'!$L88,""),"") ->  | W82: =IF('FP-DET'!$E88=3,IF('FP-DET'!$H88=W$6,'FP-DET'!$L88,""),"") ->  | X82: =IF('FP-DET'!$E88=3,IF('FP-DET'!$H88=X$6,'FP-DET'!$L88,""),"") ->  | Y82: =IF('FP-DET'!$E88=3,IF('FP-DET'!$H88=Y$6,'FP-DET'!$L88,""),"") ->  | Z82: =IF('FP-DET'!$E88=4,IF('FP-DET'!$H88=Z$6,'FP-DET'!$L88,""),"") ->  | AA82: =IF('FP-DET'!$E88=4,IF('FP-DET'!$H88=AA$6,'FP-DET'!$L88,""),"") ->  | AB82: =IF('FP-DET'!$E88=4,IF('FP-DET'!$H88=AB$6,'FP-DET'!$L88,""),"") ->  | AC82: =IF('FP-DET'!$E88=4,IF('FP-DET'!$H88=AC$6,'FP-DET'!$L88,""),"") ->  | AD82: =IF('FP-DET'!$E88=4,IF('FP-DET'!$H88=AD$6,'FP-DET'!$L88,""),"") ->  | AE82: =IF('FP-DET'!$E88=5,IF('FP-DET'!$H88=AE$6,'FP-DET'!$L88,""),"") ->  | AF82: =IF('FP-DET'!$E88=5,IF('FP-DET'!$H88=AF$6,'FP-DET'!$L88,""),"") ->  | AG82: =IF('FP-DET'!$E88=5,IF('FP-DET'!$H88=AG$6,'FP-DET'!$L88,""),"") ->  | AH82: =IF('FP-DET'!$E88=5,IF('FP-DET'!$H88=AH$6,'FP-DET'!$L88,""),"") ->  | AI82: =IF('FP-DET'!$E88=5,IF('FP-DET'!$H88=AI$6,'FP-DET'!$L88,""),"") -> 
K83: =IF('FP-DET'!$E89=1,IF('FP-DET'!$H89=K$6,'FP-DET'!$L89,""),"") ->  | L83: =IF('FP-DET'!$E89=1,IF('FP-DET'!$H89=L$6,'FP-DET'!$L89,""),"") ->  | M83: =IF('FP-DET'!$E89=1,IF('FP-DET'!$H89=M$6,'FP-DET'!$L89,""),"") ->  | N83: =IF('FP-DET'!$E89=1,IF('FP-DET'!$H89=N$6,'FP-DET'!$L89,""),"") ->  | O83: =IF('FP-DET'!$E89=1,IF('FP-DET'!$H89=O$6,'FP-DET'!$L89,""),"") ->  | P83: =IF('FP-DET'!$E89=2,IF('FP-DET'!$H89=P$6,'FP-DET'!$L89,""),"") ->  | Q83: =IF('FP-DET'!$E89=2,IF('FP-DET'!$H89=Q$6,'FP-DET'!$L89,""),"") ->  | R83: =IF('FP-DET'!$E89=2,IF('FP-DET'!$H89=R$6,'FP-DET'!$L89,""),"") ->  | S83: =IF('FP-DET'!$E89=2,IF('FP-DET'!$H89=S$6,'FP-DET'!$L89,""),"") ->  | T83: =IF('FP-DET'!$E89=2,IF('FP-DET'!$H89=T$6,'FP-DET'!$L89,""),"") ->  | U83: =IF('FP-DET'!$E89=3,IF('FP-DET'!$H89=U$6,'FP-DET'!$L89,""),"") ->  | V83: =IF('FP-DET'!$E89=3,IF('FP-DET'!$H89=V$6,'FP-DET'!$L89,""),"") ->  | W83: =IF('FP-DET'!$E89=3,IF('FP-DET'!$H89=W$6,'FP-DET'!$L89,""),"") ->  | X83: =IF('FP-DET'!$E89=3,IF('FP-DET'!$H89=X$6,'FP-DET'!$L89,""),"") ->  | Y83: =IF('FP-DET'!$E89=3,IF('FP-DET'!$H89=Y$6,'FP-DET'!$L89,""),"") ->  | Z83: =IF('FP-DET'!$E89=4,IF('FP-DET'!$H89=Z$6,'FP-DET'!$L89,""),"") ->  | AA83: =IF('FP-DET'!$E89=4,IF('FP-DET'!$H89=AA$6,'FP-DET'!$L89,""),"") ->  | AB83: =IF('FP-DET'!$E89=4,IF('FP-DET'!$H89=AB$6,'FP-DET'!$L89,""),"") ->  | AC83: =IF('FP-DET'!$E89=4,IF('FP-DET'!$H89=AC$6,'FP-DET'!$L89,""),"") ->  | AD83: =IF('FP-DET'!$E89=4,IF('FP-DET'!$H89=AD$6,'FP-DET'!$L89,""),"") ->  | AE83: =IF('FP-DET'!$E89=5,IF('FP-DET'!$H89=AE$6,'FP-DET'!$L89,""),"") ->  | AF83: =IF('FP-DET'!$E89=5,IF('FP-DET'!$H89=AF$6,'FP-DET'!$L89,""),"") ->  | AG83: =IF('FP-DET'!$E89=5,IF('FP-DET'!$H89=AG$6,'FP-DET'!$L89,""),"") ->  | AH83: =IF('FP-DET'!$E89=5,IF('FP-DET'!$H89=AH$6,'FP-DET'!$L89,""),"") ->  | AI83: =IF('FP-DET'!$E89=5,IF('FP-DET'!$H89=AI$6,'FP-DET'!$L89,""),"") -> 
K84: =IF('FP-DET'!$E90=1,IF('FP-DET'!$H90=K$6,'FP-DET'!$L90,""),"") ->  | L84: =IF('FP-DET'!$E90=1,IF('FP-DET'!$H90=L$6,'FP-DET'!$L90,""),"") ->  | M84: =IF('FP-DET'!$E90=1,IF('FP-DET'!$H90=M$6,'FP-DET'!$L90,""),"") ->  | N84: =IF('FP-DET'!$E90=1,IF('FP-DET'!$H90=N$6,'FP-DET'!$L90,""),"") ->  | O84: =IF('FP-DET'!$E90=1,IF('FP-DET'!$H90=O$6,'FP-DET'!$L90,""),"") ->  | P84: =IF('FP-DET'!$E90=2,IF('FP-DET'!$H90=P$6,'FP-DET'!$L90,""),"") ->  | Q84: =IF('FP-DET'!$E90=2,IF('FP-DET'!$H90=Q$6,'FP-DET'!$L90,""),"") ->  | R84: =IF('FP-DET'!$E90=2,IF('FP-DET'!$H90=R$6,'FP-DET'!$L90,""),"") ->  | S84: =IF('FP-DET'!$E90=2,IF('FP-DET'!$H90=S$6,'FP-DET'!$L90,""),"") ->  | T84: =IF('FP-DET'!$E90=2,IF('FP-DET'!$H90=T$6,'FP-DET'!$L90,""),"") ->  | U84: =IF('FP-DET'!$E90=3,IF('FP-DET'!$H90=U$6,'FP-DET'!$L90,""),"") ->  | V84: =IF('FP-DET'!$E90=3,IF('FP-DET'!$H90=V$6,'FP-DET'!$L90,""),"") ->  | W84: =IF('FP-DET'!$E90=3,IF('FP-DET'!$H90=W$6,'FP-DET'!$L90,""),"") ->  | X84: =IF('FP-DET'!$E90=3,IF('FP-DET'!$H90=X$6,'FP-DET'!$L90,""),"") ->  | Y84: =IF('FP-DET'!$E90=3,IF('FP-DET'!$H90=Y$6,'FP-DET'!$L90,""),"") ->  | Z84: =IF('FP-DET'!$E90=4,IF('FP-DET'!$H90=Z$6,'FP-DET'!$L90,""),"") ->  | AA84: =IF('FP-DET'!$E90=4,IF('FP-DET'!$H90=AA$6,'FP-DET'!$L90,""),"") ->  | AB84: =IF('FP-DET'!$E90=4,IF('FP-DET'!$H90=AB$6,'FP-DET'!$L90,""),"") ->  | AC84: =IF('FP-DET'!$E90=4,IF('FP-DET'!$H90=AC$6,'FP-DET'!$L90,""),"") ->  | AD84: =IF('FP-DET'!$E90=4,IF('FP-DET'!$H90=AD$6,'FP-DET'!$L90,""),"") ->  | AE84: =IF('FP-DET'!$E90=5,IF('FP-DET'!$H90=AE$6,'FP-DET'!$L90,""),"") ->  | AF84: =IF('FP-DET'!$E90=5,IF('FP-DET'!$H90=AF$6,'FP-DET'!$L90,""),"") ->  | AG84: =IF('FP-DET'!$E90=5,IF('FP-DET'!$H90=AG$6,'FP-DET'!$L90,""),"") ->  | AH84: =IF('FP-DET'!$E90=5,IF('FP-DET'!$H90=AH$6,'FP-DET'!$L90,""),"") ->  | AI84: =IF('FP-DET'!$E90=5,IF('FP-DET'!$H90=AI$6,'FP-DET'!$L90,""),"") -> 
K85: =IF('FP-DET'!$E91=1,IF('FP-DET'!$H91=K$6,'FP-DET'!$L91,""),"") ->  | L85: =IF('FP-DET'!$E91=1,IF('FP-DET'!$H91=L$6,'FP-DET'!$L91,""),"") ->  | M85: =IF('FP-DET'!$E91=1,IF('FP-DET'!$H91=M$6,'FP-DET'!$L91,""),"") ->  | N85: =IF('FP-DET'!$E91=1,IF('FP-DET'!$H91=N$6,'FP-DET'!$L91,""),"") ->  | O85: =IF('FP-DET'!$E91=1,IF('FP-DET'!$H91=O$6,'FP-DET'!$L91,""),"") ->  | P85: =IF('FP-DET'!$E91=2,IF('FP-DET'!$H91=P$6,'FP-DET'!$L91,""),"") ->  | Q85: =IF('FP-DET'!$E91=2,IF('FP-DET'!$H91=Q$6,'FP-DET'!$L91,""),"") ->  | R85: =IF('FP-DET'!$E91=2,IF('FP-DET'!$H91=R$6,'FP-DET'!$L91,""),"") ->  | S85: =IF('FP-DET'!$E91=2,IF('FP-DET'!$H91=S$6,'FP-DET'!$L91,""),"") ->  | T85: =IF('FP-DET'!$E91=2,IF('FP-DET'!$H91=T$6,'FP-DET'!$L91,""),"") ->  | U85: =IF('FP-DET'!$E91=3,IF('FP-DET'!$H91=U$6,'FP-DET'!$L91,""),"") ->  | V85: =IF('FP-DET'!$E91=3,IF('FP-DET'!$H91=V$6,'FP-DET'!$L91,""),"") ->  | W85: =IF('FP-DET'!$E91=3,IF('FP-DET'!$H91=W$6,'FP-DET'!$L91,""),"") ->  | X85: =IF('FP-DET'!$E91=3,IF('FP-DET'!$H91=X$6,'FP-DET'!$L91,""),"") ->  | Y85: =IF('FP-DET'!$E91=3,IF('FP-DET'!$H91=Y$6,'FP-DET'!$L91,""),"") ->  | Z85: =IF('FP-DET'!$E91=4,IF('FP-DET'!$H91=Z$6,'FP-DET'!$L91,""),"") ->  | AA85: =IF('FP-DET'!$E91=4,IF('FP-DET'!$H91=AA$6,'FP-DET'!$L91,""),"") ->  | AB85: =IF('FP-DET'!$E91=4,IF('FP-DET'!$H91=AB$6,'FP-DET'!$L91,""),"") ->  | AC85: =IF('FP-DET'!$E91=4,IF('FP-DET'!$H91=AC$6,'FP-DET'!$L91,""),"") ->  | AD85: =IF('FP-DET'!$E91=4,IF('FP-DET'!$H91=AD$6,'FP-DET'!$L91,""),"") ->  | AE85: =IF('FP-DET'!$E91=5,IF('FP-DET'!$H91=AE$6,'FP-DET'!$L91,""),"") ->  | AF85: =IF('FP-DET'!$E91=5,IF('FP-DET'!$H91=AF$6,'FP-DET'!$L91,""),"") ->  | AG85: =IF('FP-DET'!$E91=5,IF('FP-DET'!$H91=AG$6,'FP-DET'!$L91,""),"") ->  | AH85: =IF('FP-DET'!$E91=5,IF('FP-DET'!$H91=AH$6,'FP-DET'!$L91,""),"") ->  | AI85: =IF('FP-DET'!$E91=5,IF('FP-DET'!$H91=AI$6,'FP-DET'!$L91,""),"") -> 
K86: =IF('FP-DET'!$E92=1,IF('FP-DET'!$H92=K$6,'FP-DET'!$L92,""),"") ->  | L86: =IF('FP-DET'!$E92=1,IF('FP-DET'!$H92=L$6,'FP-DET'!$L92,""),"") ->  | M86: =IF('FP-DET'!$E92=1,IF('FP-DET'!$H92=M$6,'FP-DET'!$L92,""),"") ->  | N86: =IF('FP-DET'!$E92=1,IF('FP-DET'!$H92=N$6,'FP-DET'!$L92,""),"") ->  | O86: =IF('FP-DET'!$E92=1,IF('FP-DET'!$H92=O$6,'FP-DET'!$L92,""),"") ->  | P86: =IF('FP-DET'!$E92=2,IF('FP-DET'!$H92=P$6,'FP-DET'!$L92,""),"") ->  | Q86: =IF('FP-DET'!$E92=2,IF('FP-DET'!$H92=Q$6,'FP-DET'!$L92,""),"") ->  | R86: =IF('FP-DET'!$E92=2,IF('FP-DET'!$H92=R$6,'FP-DET'!$L92,""),"") ->  | S86: =IF('FP-DET'!$E92=2,IF('FP-DET'!$H92=S$6,'FP-DET'!$L92,""),"") ->  | T86: =IF('FP-DET'!$E92=2,IF('FP-DET'!$H92=T$6,'FP-DET'!$L92,""),"") ->  | U86: =IF('FP-DET'!$E92=3,IF('FP-DET'!$H92=U$6,'FP-DET'!$L92,""),"") ->  | V86: =IF('FP-DET'!$E92=3,IF('FP-DET'!$H92=V$6,'FP-DET'!$L92,""),"") ->  | W86: =IF('FP-DET'!$E92=3,IF('FP-DET'!$H92=W$6,'FP-DET'!$L92,""),"") ->  | X86: =IF('FP-DET'!$E92=3,IF('FP-DET'!$H92=X$6,'FP-DET'!$L92,""),"") ->  | Y86: =IF('FP-DET'!$E92=3,IF('FP-DET'!$H92=Y$6,'FP-DET'!$L92,""),"") ->  | Z86: =IF('FP-DET'!$E92=4,IF('FP-DET'!$H92=Z$6,'FP-DET'!$L92,""),"") ->  | AA86: =IF('FP-DET'!$E92=4,IF('FP-DET'!$H92=AA$6,'FP-DET'!$L92,""),"") ->  | AB86: =IF('FP-DET'!$E92=4,IF('FP-DET'!$H92=AB$6,'FP-DET'!$L92,""),"") ->  | AC86: =IF('FP-DET'!$E92=4,IF('FP-DET'!$H92=AC$6,'FP-DET'!$L92,""),"") ->  | AD86: =IF('FP-DET'!$E92=4,IF('FP-DET'!$H92=AD$6,'FP-DET'!$L92,""),"") ->  | AE86: =IF('FP-DET'!$E92=5,IF('FP-DET'!$H92=AE$6,'FP-DET'!$L92,""),"") ->  | AF86: =IF('FP-DET'!$E92=5,IF('FP-DET'!$H92=AF$6,'FP-DET'!$L92,""),"") ->  | AG86: =IF('FP-DET'!$E92=5,IF('FP-DET'!$H92=AG$6,'FP-DET'!$L92,""),"") ->  | AH86: =IF('FP-DET'!$E92=5,IF('FP-DET'!$H92=AH$6,'FP-DET'!$L92,""),"") ->  | AI86: =IF('FP-DET'!$E92=5,IF('FP-DET'!$H92=AI$6,'FP-DET'!$L92,""),"") -> 
K87: =IF('FP-DET'!$E93=1,IF('FP-DET'!$H93=K$6,'FP-DET'!$L93,""),"") ->  | L87: =IF('FP-DET'!$E93=1,IF('FP-DET'!$H93=L$6,'FP-DET'!$L93,""),"") ->  | M87: =IF('FP-DET'!$E93=1,IF('FP-DET'!$H93=M$6,'FP-DET'!$L93,""),"") ->  | N87: =IF('FP-DET'!$E93=1,IF('FP-DET'!$H93=N$6,'FP-DET'!$L93,""),"") ->  | O87: =IF('FP-DET'!$E93=1,IF('FP-DET'!$H93=O$6,'FP-DET'!$L93,""),"") ->  | P87: =IF('FP-DET'!$E93=2,IF('FP-DET'!$H93=P$6,'FP-DET'!$L93,""),"") ->  | Q87: =IF('FP-DET'!$E93=2,IF('FP-DET'!$H93=Q$6,'FP-DET'!$L93,""),"") ->  | R87: =IF('FP-DET'!$E93=2,IF('FP-DET'!$H93=R$6,'FP-DET'!$L93,""),"") ->  | S87: =IF('FP-DET'!$E93=2,IF('FP-DET'!$H93=S$6,'FP-DET'!$L93,""),"") ->  | T87: =IF('FP-DET'!$E93=2,IF('FP-DET'!$H93=T$6,'FP-DET'!$L93,""),"") ->  | U87: =IF('FP-DET'!$E93=3,IF('FP-DET'!$H93=U$6,'FP-DET'!$L93,""),"") ->  | V87: =IF('FP-DET'!$E93=3,IF('FP-DET'!$H93=V$6,'FP-DET'!$L93,""),"") ->  | W87: =IF('FP-DET'!$E93=3,IF('FP-DET'!$H93=W$6,'FP-DET'!$L93,""),"") ->  | X87: =IF('FP-DET'!$E93=3,IF('FP-DET'!$H93=X$6,'FP-DET'!$L93,""),"") ->  | Y87: =IF('FP-DET'!$E93=3,IF('FP-DET'!$H93=Y$6,'FP-DET'!$L93,""),"") ->  | Z87: =IF('FP-DET'!$E93=4,IF('FP-DET'!$H93=Z$6,'FP-DET'!$L93,""),"") ->  | AA87: =IF('FP-DET'!$E93=4,IF('FP-DET'!$H93=AA$6,'FP-DET'!$L93,""),"") ->  | AB87: =IF('FP-DET'!$E93=4,IF('FP-DET'!$H93=AB$6,'FP-DET'!$L93,""),"") ->  | AC87: =IF('FP-DET'!$E93=4,IF('FP-DET'!$H93=AC$6,'FP-DET'!$L93,""),"") ->  | AD87: =IF('FP-DET'!$E93=4,IF('FP-DET'!$H93=AD$6,'FP-DET'!$L93,""),"") ->  | AE87: =IF('FP-DET'!$E93=5,IF('FP-DET'!$H93=AE$6,'FP-DET'!$L93,""),"") ->  | AF87: =IF('FP-DET'!$E93=5,IF('FP-DET'!$H93=AF$6,'FP-DET'!$L93,""),"") ->  | AG87: =IF('FP-DET'!$E93=5,IF('FP-DET'!$H93=AG$6,'FP-DET'!$L93,""),"") ->  | AH87: =IF('FP-DET'!$E93=5,IF('FP-DET'!$H93=AH$6,'FP-DET'!$L93,""),"") ->  | AI87: =IF('FP-DET'!$E93=5,IF('FP-DET'!$H93=AI$6,'FP-DET'!$L93,""),"") -> 
K88: =IF('FP-DET'!$E94=1,IF('FP-DET'!$H94=K$6,'FP-DET'!$L94,""),"") ->  | L88: =IF('FP-DET'!$E94=1,IF('FP-DET'!$H94=L$6,'FP-DET'!$L94,""),"") ->  | M88: =IF('FP-DET'!$E94=1,IF('FP-DET'!$H94=M$6,'FP-DET'!$L94,""),"") ->  | N88: =IF('FP-DET'!$E94=1,IF('FP-DET'!$H94=N$6,'FP-DET'!$L94,""),"") ->  | O88: =IF('FP-DET'!$E94=1,IF('FP-DET'!$H94=O$6,'FP-DET'!$L94,""),"") ->  | P88: =IF('FP-DET'!$E94=2,IF('FP-DET'!$H94=P$6,'FP-DET'!$L94,""),"") ->  | Q88: =IF('FP-DET'!$E94=2,IF('FP-DET'!$H94=Q$6,'FP-DET'!$L94,""),"") ->  | R88: =IF('FP-DET'!$E94=2,IF('FP-DET'!$H94=R$6,'FP-DET'!$L94,""),"") ->  | S88: =IF('FP-DET'!$E94=2,IF('FP-DET'!$H94=S$6,'FP-DET'!$L94,""),"") ->  | T88: =IF('FP-DET'!$E94=2,IF('FP-DET'!$H94=T$6,'FP-DET'!$L94,""),"") ->  | U88: =IF('FP-DET'!$E94=3,IF('FP-DET'!$H94=U$6,'FP-DET'!$L94,""),"") ->  | V88: =IF('FP-DET'!$E94=3,IF('FP-DET'!$H94=V$6,'FP-DET'!$L94,""),"") ->  | W88: =IF('FP-DET'!$E94=3,IF('FP-DET'!$H94=W$6,'FP-DET'!$L94,""),"") ->  | X88: =IF('FP-DET'!$E94=3,IF('FP-DET'!$H94=X$6,'FP-DET'!$L94,""),"") ->  | Y88: =IF('FP-DET'!$E94=3,IF('FP-DET'!$H94=Y$6,'FP-DET'!$L94,""),"") ->  | Z88: =IF('FP-DET'!$E94=4,IF('FP-DET'!$H94=Z$6,'FP-DET'!$L94,""),"") ->  | AA88: =IF('FP-DET'!$E94=4,IF('FP-DET'!$H94=AA$6,'FP-DET'!$L94,""),"") ->  | AB88: =IF('FP-DET'!$E94=4,IF('FP-DET'!$H94=AB$6,'FP-DET'!$L94,""),"") ->  | AC88: =IF('FP-DET'!$E94=4,IF('FP-DET'!$H94=AC$6,'FP-DET'!$L94,""),"") ->  | AD88: =IF('FP-DET'!$E94=4,IF('FP-DET'!$H94=AD$6,'FP-DET'!$L94,""),"") ->  | AE88: =IF('FP-DET'!$E94=5,IF('FP-DET'!$H94=AE$6,'FP-DET'!$L94,""),"") ->  | AF88: =IF('FP-DET'!$E94=5,IF('FP-DET'!$H94=AF$6,'FP-DET'!$L94,""),"") ->  | AG88: =IF('FP-DET'!$E94=5,IF('FP-DET'!$H94=AG$6,'FP-DET'!$L94,""),"") ->  | AH88: =IF('FP-DET'!$E94=5,IF('FP-DET'!$H94=AH$6,'FP-DET'!$L94,""),"") ->  | AI88: =IF('FP-DET'!$E94=5,IF('FP-DET'!$H94=AI$6,'FP-DET'!$L94,""),"") -> 
K89: =IF('FP-DET'!$E95=1,IF('FP-DET'!$H95=K$6,'FP-DET'!$L95,""),"") ->  | L89: =IF('FP-DET'!$E95=1,IF('FP-DET'!$H95=L$6,'FP-DET'!$L95,""),"") ->  | M89: =IF('FP-DET'!$E95=1,IF('FP-DET'!$H95=M$6,'FP-DET'!$L95,""),"") ->  | N89: =IF('FP-DET'!$E95=1,IF('FP-DET'!$H95=N$6,'FP-DET'!$L95,""),"") ->  | O89: =IF('FP-DET'!$E95=1,IF('FP-DET'!$H95=O$6,'FP-DET'!$L95,""),"") ->  | P89: =IF('FP-DET'!$E95=2,IF('FP-DET'!$H95=P$6,'FP-DET'!$L95,""),"") ->  | Q89: =IF('FP-DET'!$E95=2,IF('FP-DET'!$H95=Q$6,'FP-DET'!$L95,""),"") ->  | R89: =IF('FP-DET'!$E95=2,IF('FP-DET'!$H95=R$6,'FP-DET'!$L95,""),"") ->  | S89: =IF('FP-DET'!$E95=2,IF('FP-DET'!$H95=S$6,'FP-DET'!$L95,""),"") ->  | T89: =IF('FP-DET'!$E95=2,IF('FP-DET'!$H95=T$6,'FP-DET'!$L95,""),"") ->  | U89: =IF('FP-DET'!$E95=3,IF('FP-DET'!$H95=U$6,'FP-DET'!$L95,""),"") ->  | V89: =IF('FP-DET'!$E95=3,IF('FP-DET'!$H95=V$6,'FP-DET'!$L95,""),"") ->  | W89: =IF('FP-DET'!$E95=3,IF('FP-DET'!$H95=W$6,'FP-DET'!$L95,""),"") ->  | X89: =IF('FP-DET'!$E95=3,IF('FP-DET'!$H95=X$6,'FP-DET'!$L95,""),"") ->  | Y89: =IF('FP-DET'!$E95=3,IF('FP-DET'!$H95=Y$6,'FP-DET'!$L95,""),"") ->  | Z89: =IF('FP-DET'!$E95=4,IF('FP-DET'!$H95=Z$6,'FP-DET'!$L95,""),"") ->  | AA89: =IF('FP-DET'!$E95=4,IF('FP-DET'!$H95=AA$6,'FP-DET'!$L95,""),"") ->  | AB89: =IF('FP-DET'!$E95=4,IF('FP-DET'!$H95=AB$6,'FP-DET'!$L95,""),"") ->  | AC89: =IF('FP-DET'!$E95=4,IF('FP-DET'!$H95=AC$6,'FP-DET'!$L95,""),"") ->  | AD89: =IF('FP-DET'!$E95=4,IF('FP-DET'!$H95=AD$6,'FP-DET'!$L95,""),"") ->  | AE89: =IF('FP-DET'!$E95=5,IF('FP-DET'!$H95=AE$6,'FP-DET'!$L95,""),"") ->  | AF89: =IF('FP-DET'!$E95=5,IF('FP-DET'!$H95=AF$6,'FP-DET'!$L95,""),"") ->  | AG89: =IF('FP-DET'!$E95=5,IF('FP-DET'!$H95=AG$6,'FP-DET'!$L95,""),"") ->  | AH89: =IF('FP-DET'!$E95=5,IF('FP-DET'!$H95=AH$6,'FP-DET'!$L95,""),"") ->  | AI89: =IF('FP-DET'!$E95=5,IF('FP-DET'!$H95=AI$6,'FP-DET'!$L95,""),"") -> 
K90: =IF('FP-DET'!$E96=1,IF('FP-DET'!$H96=K$6,'FP-DET'!$L96,""),"") ->  | L90: =IF('FP-DET'!$E96=1,IF('FP-DET'!$H96=L$6,'FP-DET'!$L96,""),"") ->  | M90: =IF('FP-DET'!$E96=1,IF('FP-DET'!$H96=M$6,'FP-DET'!$L96,""),"") ->  | N90: =IF('FP-DET'!$E96=1,IF('FP-DET'!$H96=N$6,'FP-DET'!$L96,""),"") ->  | O90: =IF('FP-DET'!$E96=1,IF('FP-DET'!$H96=O$6,'FP-DET'!$L96,""),"") ->  | P90: =IF('FP-DET'!$E96=2,IF('FP-DET'!$H96=P$6,'FP-DET'!$L96,""),"") ->  | Q90: =IF('FP-DET'!$E96=2,IF('FP-DET'!$H96=Q$6,'FP-DET'!$L96,""),"") ->  | R90: =IF('FP-DET'!$E96=2,IF('FP-DET'!$H96=R$6,'FP-DET'!$L96,""),"") ->  | S90: =IF('FP-DET'!$E96=2,IF('FP-DET'!$H96=S$6,'FP-DET'!$L96,""),"") ->  | T90: =IF('FP-DET'!$E96=2,IF('FP-DET'!$H96=T$6,'FP-DET'!$L96,""),"") ->  | U90: =IF('FP-DET'!$E96=3,IF('FP-DET'!$H96=U$6,'FP-DET'!$L96,""),"") ->  | V90: =IF('FP-DET'!$E96=3,IF('FP-DET'!$H96=V$6,'FP-DET'!$L96,""),"") ->  | W90: =IF('FP-DET'!$E96=3,IF('FP-DET'!$H96=W$6,'FP-DET'!$L96,""),"") ->  | X90: =IF('FP-DET'!$E96=3,IF('FP-DET'!$H96=X$6,'FP-DET'!$L96,""),"") ->  | Y90: =IF('FP-DET'!$E96=3,IF('FP-DET'!$H96=Y$6,'FP-DET'!$L96,""),"") ->  | Z90: =IF('FP-DET'!$E96=4,IF('FP-DET'!$H96=Z$6,'FP-DET'!$L96,""),"") ->  | AA90: =IF('FP-DET'!$E96=4,IF('FP-DET'!$H96=AA$6,'FP-DET'!$L96,""),"") ->  | AB90: =IF('FP-DET'!$E96=4,IF('FP-DET'!$H96=AB$6,'FP-DET'!$L96,""),"") ->  | AC90: =IF('FP-DET'!$E96=4,IF('FP-DET'!$H96=AC$6,'FP-DET'!$L96,""),"") ->  | AD90: =IF('FP-DET'!$E96=4,IF('FP-DET'!$H96=AD$6,'FP-DET'!$L96,""),"") ->  | AE90: =IF('FP-DET'!$E96=5,IF('FP-DET'!$H96=AE$6,'FP-DET'!$L96,""),"") ->  | AF90: =IF('FP-DET'!$E96=5,IF('FP-DET'!$H96=AF$6,'FP-DET'!$L96,""),"") ->  | AG90: =IF('FP-DET'!$E96=5,IF('FP-DET'!$H96=AG$6,'FP-DET'!$L96,""),"") ->  | AH90: =IF('FP-DET'!$E96=5,IF('FP-DET'!$H96=AH$6,'FP-DET'!$L96,""),"") ->  | AI90: =IF('FP-DET'!$E96=5,IF('FP-DET'!$H96=AI$6,'FP-DET'!$L96,""),"") -> 
K91: =IF('FP-DET'!$E97=1,IF('FP-DET'!$H97=K$6,'FP-DET'!$L97,""),"") ->  | L91: =IF('FP-DET'!$E97=1,IF('FP-DET'!$H97=L$6,'FP-DET'!$L97,""),"") ->  | M91: =IF('FP-DET'!$E97=1,IF('FP-DET'!$H97=M$6,'FP-DET'!$L97,""),"") ->  | N91: =IF('FP-DET'!$E97=1,IF('FP-DET'!$H97=N$6,'FP-DET'!$L97,""),"") ->  | O91: =IF('FP-DET'!$E97=1,IF('FP-DET'!$H97=O$6,'FP-DET'!$L97,""),"") ->  | P91: =IF('FP-DET'!$E97=2,IF('FP-DET'!$H97=P$6,'FP-DET'!$L97,""),"") ->  | Q91: =IF('FP-DET'!$E97=2,IF('FP-DET'!$H97=Q$6,'FP-DET'!$L97,""),"") ->  | R91: =IF('FP-DET'!$E97=2,IF('FP-DET'!$H97=R$6,'FP-DET'!$L97,""),"") ->  | S91: =IF('FP-DET'!$E97=2,IF('FP-DET'!$H97=S$6,'FP-DET'!$L97,""),"") ->  | T91: =IF('FP-DET'!$E97=2,IF('FP-DET'!$H97=T$6,'FP-DET'!$L97,""),"") ->  | U91: =IF('FP-DET'!$E97=3,IF('FP-DET'!$H97=U$6,'FP-DET'!$L97,""),"") ->  | V91: =IF('FP-DET'!$E97=3,IF('FP-DET'!$H97=V$6,'FP-DET'!$L97,""),"") ->  | W91: =IF('FP-DET'!$E97=3,IF('FP-DET'!$H97=W$6,'FP-DET'!$L97,""),"") ->  | X91: =IF('FP-DET'!$E97=3,IF('FP-DET'!$H97=X$6,'FP-DET'!$L97,""),"") ->  | Y91: =IF('FP-DET'!$E97=3,IF('FP-DET'!$H97=Y$6,'FP-DET'!$L97,""),"") ->  | Z91: =IF('FP-DET'!$E97=4,IF('FP-DET'!$H97=Z$6,'FP-DET'!$L97,""),"") ->  | AA91: =IF('FP-DET'!$E97=4,IF('FP-DET'!$H97=AA$6,'FP-DET'!$L97,""),"") ->  | AB91: =IF('FP-DET'!$E97=4,IF('FP-DET'!$H97=AB$6,'FP-DET'!$L97,""),"") ->  | AC91: =IF('FP-DET'!$E97=4,IF('FP-DET'!$H97=AC$6,'FP-DET'!$L97,""),"") ->  | AD91: =IF('FP-DET'!$E97=4,IF('FP-DET'!$H97=AD$6,'FP-DET'!$L97,""),"") ->  | AE91: =IF('FP-DET'!$E97=5,IF('FP-DET'!$H97=AE$6,'FP-DET'!$L97,""),"") ->  | AF91: =IF('FP-DET'!$E97=5,IF('FP-DET'!$H97=AF$6,'FP-DET'!$L97,""),"") ->  | AG91: =IF('FP-DET'!$E97=5,IF('FP-DET'!$H97=AG$6,'FP-DET'!$L97,""),"") ->  | AH91: =IF('FP-DET'!$E97=5,IF('FP-DET'!$H97=AH$6,'FP-DET'!$L97,""),"") ->  | AI91: =IF('FP-DET'!$E97=5,IF('FP-DET'!$H97=AI$6,'FP-DET'!$L97,""),"") -> 
K92: =IF('FP-DET'!$E98=1,IF('FP-DET'!$H98=K$6,'FP-DET'!$L98,""),"") ->  | L92: =IF('FP-DET'!$E98=1,IF('FP-DET'!$H98=L$6,'FP-DET'!$L98,""),"") ->  | M92: =IF('FP-DET'!$E98=1,IF('FP-DET'!$H98=M$6,'FP-DET'!$L98,""),"") ->  | N92: =IF('FP-DET'!$E98=1,IF('FP-DET'!$H98=N$6,'FP-DET'!$L98,""),"") ->  | O92: =IF('FP-DET'!$E98=1,IF('FP-DET'!$H98=O$6,'FP-DET'!$L98,""),"") ->  | P92: =IF('FP-DET'!$E98=2,IF('FP-DET'!$H98=P$6,'FP-DET'!$L98,""),"") ->  | Q92: =IF('FP-DET'!$E98=2,IF('FP-DET'!$H98=Q$6,'FP-DET'!$L98,""),"") ->  | R92: =IF('FP-DET'!$E98=2,IF('FP-DET'!$H98=R$6,'FP-DET'!$L98,""),"") ->  | S92: =IF('FP-DET'!$E98=2,IF('FP-DET'!$H98=S$6,'FP-DET'!$L98,""),"") ->  | T92: =IF('FP-DET'!$E98=2,IF('FP-DET'!$H98=T$6,'FP-DET'!$L98,""),"") ->  | U92: =IF('FP-DET'!$E98=3,IF('FP-DET'!$H98=U$6,'FP-DET'!$L98,""),"") ->  | V92: =IF('FP-DET'!$E98=3,IF('FP-DET'!$H98=V$6,'FP-DET'!$L98,""),"") ->  | W92: =IF('FP-DET'!$E98=3,IF('FP-DET'!$H98=W$6,'FP-DET'!$L98,""),"") ->  | X92: =IF('FP-DET'!$E98=3,IF('FP-DET'!$H98=X$6,'FP-DET'!$L98,""),"") ->  | Y92: =IF('FP-DET'!$E98=3,IF('FP-DET'!$H98=Y$6,'FP-DET'!$L98,""),"") ->  | Z92: =IF('FP-DET'!$E98=4,IF('FP-DET'!$H98=Z$6,'FP-DET'!$L98,""),"") ->  | AA92: =IF('FP-DET'!$E98=4,IF('FP-DET'!$H98=AA$6,'FP-DET'!$L98,""),"") ->  | AB92: =IF('FP-DET'!$E98=4,IF('FP-DET'!$H98=AB$6,'FP-DET'!$L98,""),"") ->  | AC92: =IF('FP-DET'!$E98=4,IF('FP-DET'!$H98=AC$6,'FP-DET'!$L98,""),"") ->  | AD92: =IF('FP-DET'!$E98=4,IF('FP-DET'!$H98=AD$6,'FP-DET'!$L98,""),"") ->  | AE92: =IF('FP-DET'!$E98=5,IF('FP-DET'!$H98=AE$6,'FP-DET'!$L98,""),"") ->  | AF92: =IF('FP-DET'!$E98=5,IF('FP-DET'!$H98=AF$6,'FP-DET'!$L98,""),"") ->  | AG92: =IF('FP-DET'!$E98=5,IF('FP-DET'!$H98=AG$6,'FP-DET'!$L98,""),"") ->  | AH92: =IF('FP-DET'!$E98=5,IF('FP-DET'!$H98=AH$6,'FP-DET'!$L98,""),"") ->  | AI92: =IF('FP-DET'!$E98=5,IF('FP-DET'!$H98=AI$6,'FP-DET'!$L98,""),"") -> 
K93: =IF('FP-DET'!$E99=1,IF('FP-DET'!$H99=K$6,'FP-DET'!$L99,""),"") ->  | L93: =IF('FP-DET'!$E99=1,IF('FP-DET'!$H99=L$6,'FP-DET'!$L99,""),"") ->  | M93: =IF('FP-DET'!$E99=1,IF('FP-DET'!$H99=M$6,'FP-DET'!$L99,""),"") ->  | N93: =IF('FP-DET'!$E99=1,IF('FP-DET'!$H99=N$6,'FP-DET'!$L99,""),"") ->  | O93: =IF('FP-DET'!$E99=1,IF('FP-DET'!$H99=O$6,'FP-DET'!$L99,""),"") ->  | P93: =IF('FP-DET'!$E99=2,IF('FP-DET'!$H99=P$6,'FP-DET'!$L99,""),"") ->  | Q93: =IF('FP-DET'!$E99=2,IF('FP-DET'!$H99=Q$6,'FP-DET'!$L99,""),"") ->  | R93: =IF('FP-DET'!$E99=2,IF('FP-DET'!$H99=R$6,'FP-DET'!$L99,""),"") ->  | S93: =IF('FP-DET'!$E99=2,IF('FP-DET'!$H99=S$6,'FP-DET'!$L99,""),"") ->  | T93: =IF('FP-DET'!$E99=2,IF('FP-DET'!$H99=T$6,'FP-DET'!$L99,""),"") ->  | U93: =IF('FP-DET'!$E99=3,IF('FP-DET'!$H99=U$6,'FP-DET'!$L99,""),"") ->  | V93: =IF('FP-DET'!$E99=3,IF('FP-DET'!$H99=V$6,'FP-DET'!$L99,""),"") ->  | W93: =IF('FP-DET'!$E99=3,IF('FP-DET'!$H99=W$6,'FP-DET'!$L99,""),"") ->  | X93: =IF('FP-DET'!$E99=3,IF('FP-DET'!$H99=X$6,'FP-DET'!$L99,""),"") ->  | Y93: =IF('FP-DET'!$E99=3,IF('FP-DET'!$H99=Y$6,'FP-DET'!$L99,""),"") ->  | Z93: =IF('FP-DET'!$E99=4,IF('FP-DET'!$H99=Z$6,'FP-DET'!$L99,""),"") ->  | AA93: =IF('FP-DET'!$E99=4,IF('FP-DET'!$H99=AA$6,'FP-DET'!$L99,""),"") ->  | AB93: =IF('FP-DET'!$E99=4,IF('FP-DET'!$H99=AB$6,'FP-DET'!$L99,""),"") ->  | AC93: =IF('FP-DET'!$E99=4,IF('FP-DET'!$H99=AC$6,'FP-DET'!$L99,""),"") ->  | AD93: =IF('FP-DET'!$E99=4,IF('FP-DET'!$H99=AD$6,'FP-DET'!$L99,""),"") ->  | AE93: =IF('FP-DET'!$E99=5,IF('FP-DET'!$H99=AE$6,'FP-DET'!$L99,""),"") ->  | AF93: =IF('FP-DET'!$E99=5,IF('FP-DET'!$H99=AF$6,'FP-DET'!$L99,""),"") ->  | AG93: =IF('FP-DET'!$E99=5,IF('FP-DET'!$H99=AG$6,'FP-DET'!$L99,""),"") ->  | AH93: =IF('FP-DET'!$E99=5,IF('FP-DET'!$H99=AH$6,'FP-DET'!$L99,""),"") ->  | AI93: =IF('FP-DET'!$E99=5,IF('FP-DET'!$H99=AI$6,'FP-DET'!$L99,""),"") -> 
K94: =IF('FP-DET'!$E100=1,IF('FP-DET'!$H100=K$6,'FP-DET'!$L100,""),"") ->  | L94: =IF('FP-DET'!$E100=1,IF('FP-DET'!$H100=L$6,'FP-DET'!$L100,""),"") ->  | M94: =IF('FP-DET'!$E100=1,IF('FP-DET'!$H100=M$6,'FP-DET'!$L100,""),"") ->  | N94: =IF('FP-DET'!$E100=1,IF('FP-DET'!$H100=N$6,'FP-DET'!$L100,""),"") ->  | O94: =IF('FP-DET'!$E100=1,IF('FP-DET'!$H100=O$6,'FP-DET'!$L100,""),"") ->  | P94: =IF('FP-DET'!$E100=2,IF('FP-DET'!$H100=P$6,'FP-DET'!$L100,""),"") ->  | Q94: =IF('FP-DET'!$E100=2,IF('FP-DET'!$H100=Q$6,'FP-DET'!$L100,""),"") ->  | R94: =IF('FP-DET'!$E100=2,IF('FP-DET'!$H100=R$6,'FP-DET'!$L100,""),"") ->  | S94: =IF('FP-DET'!$E100=2,IF('FP-DET'!$H100=S$6,'FP-DET'!$L100,""),"") ->  | T94: =IF('FP-DET'!$E100=2,IF('FP-DET'!$H100=T$6,'FP-DET'!$L100,""),"") ->  | U94: =IF('FP-DET'!$E100=3,IF('FP-DET'!$H100=U$6,'FP-DET'!$L100,""),"") ->  | V94: =IF('FP-DET'!$E100=3,IF('FP-DET'!$H100=V$6,'FP-DET'!$L100,""),"") ->  | W94: =IF('FP-DET'!$E100=3,IF('FP-DET'!$H100=W$6,'FP-DET'!$L100,""),"") ->  | X94: =IF('FP-DET'!$E100=3,IF('FP-DET'!$H100=X$6,'FP-DET'!$L100,""),"") ->  | Y94: =IF('FP-DET'!$E100=3,IF('FP-DET'!$H100=Y$6,'FP-DET'!$L100,""),"") ->  | Z94: =IF('FP-DET'!$E100=4,IF('FP-DET'!$H100=Z$6,'FP-DET'!$L100,""),"") ->  | AA94: =IF('FP-DET'!$E100=4,IF('FP-DET'!$H100=AA$6,'FP-DET'!$L100,""),"") ->  | AB94: =IF('FP-DET'!$E100=4,IF('FP-DET'!$H100=AB$6,'FP-DET'!$L100,""),"") ->  | AC94: =IF('FP-DET'!$E100=4,IF('FP-DET'!$H100=AC$6,'FP-DET'!$L100,""),"") ->  | AD94: =IF('FP-DET'!$E100=4,IF('FP-DET'!$H100=AD$6,'FP-DET'!$L100,""),"") ->  | AE94: =IF('FP-DET'!$E100=5,IF('FP-DET'!$H100=AE$6,'FP-DET'!$L100,""),"") ->  | AF94: =IF('FP-DET'!$E100=5,IF('FP-DET'!$H100=AF$6,'FP-DET'!$L100,""),"") ->  | AG94: =IF('FP-DET'!$E100=5,IF('FP-DET'!$H100=AG$6,'FP-DET'!$L100,""),"") ->  | AH94: =IF('FP-DET'!$E100=5,IF('FP-DET'!$H100=AH$6,'FP-DET'!$L100,""),"") ->  | AI94: =IF('FP-DET'!$E100=5,IF('FP-DET'!$H100=AI$6,'FP-DET'!$L100,""),"") -> 
K95: =IF('FP-DET'!$E101=1,IF('FP-DET'!$H101=K$6,'FP-DET'!$L101,""),"") ->  | L95: =IF('FP-DET'!$E101=1,IF('FP-DET'!$H101=L$6,'FP-DET'!$L101,""),"") ->  | M95: =IF('FP-DET'!$E101=1,IF('FP-DET'!$H101=M$6,'FP-DET'!$L101,""),"") ->  | N95: =IF('FP-DET'!$E101=1,IF('FP-DET'!$H101=N$6,'FP-DET'!$L101,""),"") ->  | O95: =IF('FP-DET'!$E101=1,IF('FP-DET'!$H101=O$6,'FP-DET'!$L101,""),"") ->  | P95: =IF('FP-DET'!$E101=2,IF('FP-DET'!$H101=P$6,'FP-DET'!$L101,""),"") ->  | Q95: =IF('FP-DET'!$E101=2,IF('FP-DET'!$H101=Q$6,'FP-DET'!$L101,""),"") ->  | R95: =IF('FP-DET'!$E101=2,IF('FP-DET'!$H101=R$6,'FP-DET'!$L101,""),"") ->  | S95: =IF('FP-DET'!$E101=2,IF('FP-DET'!$H101=S$6,'FP-DET'!$L101,""),"") ->  | T95: =IF('FP-DET'!$E101=2,IF('FP-DET'!$H101=T$6,'FP-DET'!$L101,""),"") ->  | U95: =IF('FP-DET'!$E101=3,IF('FP-DET'!$H101=U$6,'FP-DET'!$L101,""),"") ->  | V95: =IF('FP-DET'!$E101=3,IF('FP-DET'!$H101=V$6,'FP-DET'!$L101,""),"") ->  | W95: =IF('FP-DET'!$E101=3,IF('FP-DET'!$H101=W$6,'FP-DET'!$L101,""),"") ->  | X95: =IF('FP-DET'!$E101=3,IF('FP-DET'!$H101=X$6,'FP-DET'!$L101,""),"") ->  | Y95: =IF('FP-DET'!$E101=3,IF('FP-DET'!$H101=Y$6,'FP-DET'!$L101,""),"") ->  | Z95: =IF('FP-DET'!$E101=4,IF('FP-DET'!$H101=Z$6,'FP-DET'!$L101,""),"") ->  | AA95: =IF('FP-DET'!$E101=4,IF('FP-DET'!$H101=AA$6,'FP-DET'!$L101,""),"") ->  | AB95: =IF('FP-DET'!$E101=4,IF('FP-DET'!$H101=AB$6,'FP-DET'!$L101,""),"") ->  | AC95: =IF('FP-DET'!$E101=4,IF('FP-DET'!$H101=AC$6,'FP-DET'!$L101,""),"") ->  | AD95: =IF('FP-DET'!$E101=4,IF('FP-DET'!$H101=AD$6,'FP-DET'!$L101,""),"") ->  | AE95: =IF('FP-DET'!$E101=5,IF('FP-DET'!$H101=AE$6,'FP-DET'!$L101,""),"") ->  | AF95: =IF('FP-DET'!$E101=5,IF('FP-DET'!$H101=AF$6,'FP-DET'!$L101,""),"") ->  | AG95: =IF('FP-DET'!$E101=5,IF('FP-DET'!$H101=AG$6,'FP-DET'!$L101,""),"") ->  | AH95: =IF('FP-DET'!$E101=5,IF('FP-DET'!$H101=AH$6,'FP-DET'!$L101,""),"") ->  | AI95: =IF('FP-DET'!$E101=5,IF('FP-DET'!$H101=AI$6,'FP-DET'!$L101,""),"") -> 
K96: =IF('FP-DET'!$E102=1,IF('FP-DET'!$H102=K$6,'FP-DET'!$L102,""),"") ->  | L96: =IF('FP-DET'!$E102=1,IF('FP-DET'!$H102=L$6,'FP-DET'!$L102,""),"") ->  | M96: =IF('FP-DET'!$E102=1,IF('FP-DET'!$H102=M$6,'FP-DET'!$L102,""),"") ->  | N96: =IF('FP-DET'!$E102=1,IF('FP-DET'!$H102=N$6,'FP-DET'!$L102,""),"") ->  | O96: =IF('FP-DET'!$E102=1,IF('FP-DET'!$H102=O$6,'FP-DET'!$L102,""),"") ->  | P96: =IF('FP-DET'!$E102=2,IF('FP-DET'!$H102=P$6,'FP-DET'!$L102,""),"") ->  | Q96: =IF('FP-DET'!$E102=2,IF('FP-DET'!$H102=Q$6,'FP-DET'!$L102,""),"") ->  | R96: =IF('FP-DET'!$E102=2,IF('FP-DET'!$H102=R$6,'FP-DET'!$L102,""),"") ->  | S96: =IF('FP-DET'!$E102=2,IF('FP-DET'!$H102=S$6,'FP-DET'!$L102,""),"") ->  | T96: =IF('FP-DET'!$E102=2,IF('FP-DET'!$H102=T$6,'FP-DET'!$L102,""),"") ->  | U96: =IF('FP-DET'!$E102=3,IF('FP-DET'!$H102=U$6,'FP-DET'!$L102,""),"") ->  | V96: =IF('FP-DET'!$E102=3,IF('FP-DET'!$H102=V$6,'FP-DET'!$L102,""),"") ->  | W96: =IF('FP-DET'!$E102=3,IF('FP-DET'!$H102=W$6,'FP-DET'!$L102,""),"") ->  | X96: =IF('FP-DET'!$E102=3,IF('FP-DET'!$H102=X$6,'FP-DET'!$L102,""),"") ->  | Y96: =IF('FP-DET'!$E102=3,IF('FP-DET'!$H102=Y$6,'FP-DET'!$L102,""),"") ->  | Z96: =IF('FP-DET'!$E102=4,IF('FP-DET'!$H102=Z$6,'FP-DET'!$L102,""),"") ->  | AA96: =IF('FP-DET'!$E102=4,IF('FP-DET'!$H102=AA$6,'FP-DET'!$L102,""),"") ->  | AB96: =IF('FP-DET'!$E102=4,IF('FP-DET'!$H102=AB$6,'FP-DET'!$L102,""),"") ->  | AC96: =IF('FP-DET'!$E102=4,IF('FP-DET'!$H102=AC$6,'FP-DET'!$L102,""),"") ->  | AD96: =IF('FP-DET'!$E102=4,IF('FP-DET'!$H102=AD$6,'FP-DET'!$L102,""),"") ->  | AE96: =IF('FP-DET'!$E102=5,IF('FP-DET'!$H102=AE$6,'FP-DET'!$L102,""),"") ->  | AF96: =IF('FP-DET'!$E102=5,IF('FP-DET'!$H102=AF$6,'FP-DET'!$L102,""),"") ->  | AG96: =IF('FP-DET'!$E102=5,IF('FP-DET'!$H102=AG$6,'FP-DET'!$L102,""),"") ->  | AH96: =IF('FP-DET'!$E102=5,IF('FP-DET'!$H102=AH$6,'FP-DET'!$L102,""),"") ->  | AI96: =IF('FP-DET'!$E102=5,IF('FP-DET'!$H102=AI$6,'FP-DET'!$L102,""),"") -> 
K97: =IF('FP-DET'!$E103=1,IF('FP-DET'!$H103=K$6,'FP-DET'!$L103,""),"") ->  | L97: =IF('FP-DET'!$E103=1,IF('FP-DET'!$H103=L$6,'FP-DET'!$L103,""),"") ->  | M97: =IF('FP-DET'!$E103=1,IF('FP-DET'!$H103=M$6,'FP-DET'!$L103,""),"") ->  | N97: =IF('FP-DET'!$E103=1,IF('FP-DET'!$H103=N$6,'FP-DET'!$L103,""),"") ->  | O97: =IF('FP-DET'!$E103=1,IF('FP-DET'!$H103=O$6,'FP-DET'!$L103,""),"") ->  | P97: =IF('FP-DET'!$E103=2,IF('FP-DET'!$H103=P$6,'FP-DET'!$L103,""),"") ->  | Q97: =IF('FP-DET'!$E103=2,IF('FP-DET'!$H103=Q$6,'FP-DET'!$L103,""),"") ->  | R97: =IF('FP-DET'!$E103=2,IF('FP-DET'!$H103=R$6,'FP-DET'!$L103,""),"") ->  | S97: =IF('FP-DET'!$E103=2,IF('FP-DET'!$H103=S$6,'FP-DET'!$L103,""),"") ->  | T97: =IF('FP-DET'!$E103=2,IF('FP-DET'!$H103=T$6,'FP-DET'!$L103,""),"") ->  | U97: =IF('FP-DET'!$E103=3,IF('FP-DET'!$H103=U$6,'FP-DET'!$L103,""),"") ->  | V97: =IF('FP-DET'!$E103=3,IF('FP-DET'!$H103=V$6,'FP-DET'!$L103,""),"") ->  | W97: =IF('FP-DET'!$E103=3,IF('FP-DET'!$H103=W$6,'FP-DET'!$L103,""),"") ->  | X97: =IF('FP-DET'!$E103=3,IF('FP-DET'!$H103=X$6,'FP-DET'!$L103,""),"") ->  | Y97: =IF('FP-DET'!$E103=3,IF('FP-DET'!$H103=Y$6,'FP-DET'!$L103,""),"") ->  | Z97: =IF('FP-DET'!$E103=4,IF('FP-DET'!$H103=Z$6,'FP-DET'!$L103,""),"") ->  | AA97: =IF('FP-DET'!$E103=4,IF('FP-DET'!$H103=AA$6,'FP-DET'!$L103,""),"") ->  | AB97: =IF('FP-DET'!$E103=4,IF('FP-DET'!$H103=AB$6,'FP-DET'!$L103,""),"") ->  | AC97: =IF('FP-DET'!$E103=4,IF('FP-DET'!$H103=AC$6,'FP-DET'!$L103,""),"") ->  | AD97: =IF('FP-DET'!$E103=4,IF('FP-DET'!$H103=AD$6,'FP-DET'!$L103,""),"") ->  | AE97: =IF('FP-DET'!$E103=5,IF('FP-DET'!$H103=AE$6,'FP-DET'!$L103,""),"") ->  | AF97: =IF('FP-DET'!$E103=5,IF('FP-DET'!$H103=AF$6,'FP-DET'!$L103,""),"") ->  | AG97: =IF('FP-DET'!$E103=5,IF('FP-DET'!$H103=AG$6,'FP-DET'!$L103,""),"") ->  | AH97: =IF('FP-DET'!$E103=5,IF('FP-DET'!$H103=AH$6,'FP-DET'!$L103,""),"") ->  | AI97: =IF('FP-DET'!$E103=5,IF('FP-DET'!$H103=AI$6,'FP-DET'!$L103,""),"") -> 
K98: =IF('FP-DET'!$E104=1,IF('FP-DET'!$H104=K$6,'FP-DET'!$L104,""),"") ->  | L98: =IF('FP-DET'!$E104=1,IF('FP-DET'!$H104=L$6,'FP-DET'!$L104,""),"") ->  | M98: =IF('FP-DET'!$E104=1,IF('FP-DET'!$H104=M$6,'FP-DET'!$L104,""),"") ->  | N98: =IF('FP-DET'!$E104=1,IF('FP-DET'!$H104=N$6,'FP-DET'!$L104,""),"") ->  | O98: =IF('FP-DET'!$E104=1,IF('FP-DET'!$H104=O$6,'FP-DET'!$L104,""),"") ->  | P98: =IF('FP-DET'!$E104=2,IF('FP-DET'!$H104=P$6,'FP-DET'!$L104,""),"") ->  | Q98: =IF('FP-DET'!$E104=2,IF('FP-DET'!$H104=Q$6,'FP-DET'!$L104,""),"") ->  | R98: =IF('FP-DET'!$E104=2,IF('FP-DET'!$H104=R$6,'FP-DET'!$L104,""),"") ->  | S98: =IF('FP-DET'!$E104=2,IF('FP-DET'!$H104=S$6,'FP-DET'!$L104,""),"") ->  | T98: =IF('FP-DET'!$E104=2,IF('FP-DET'!$H104=T$6,'FP-DET'!$L104,""),"") ->  | U98: =IF('FP-DET'!$E104=3,IF('FP-DET'!$H104=U$6,'FP-DET'!$L104,""),"") ->  | V98: =IF('FP-DET'!$E104=3,IF('FP-DET'!$H104=V$6,'FP-DET'!$L104,""),"") ->  | W98: =IF('FP-DET'!$E104=3,IF('FP-DET'!$H104=W$6,'FP-DET'!$L104,""),"") ->  | X98: =IF('FP-DET'!$E104=3,IF('FP-DET'!$H104=X$6,'FP-DET'!$L104,""),"") ->  | Y98: =IF('FP-DET'!$E104=3,IF('FP-DET'!$H104=Y$6,'FP-DET'!$L104,""),"") ->  | Z98: =IF('FP-DET'!$E104=4,IF('FP-DET'!$H104=Z$6,'FP-DET'!$L104,""),"") ->  | AA98: =IF('FP-DET'!$E104=4,IF('FP-DET'!$H104=AA$6,'FP-DET'!$L104,""),"") ->  | AB98: =IF('FP-DET'!$E104=4,IF('FP-DET'!$H104=AB$6,'FP-DET'!$L104,""),"") ->  | AC98: =IF('FP-DET'!$E104=4,IF('FP-DET'!$H104=AC$6,'FP-DET'!$L104,""),"") ->  | AD98: =IF('FP-DET'!$E104=4,IF('FP-DET'!$H104=AD$6,'FP-DET'!$L104,""),"") ->  | AE98: =IF('FP-DET'!$E104=5,IF('FP-DET'!$H104=AE$6,'FP-DET'!$L104,""),"") ->  | AF98: =IF('FP-DET'!$E104=5,IF('FP-DET'!$H104=AF$6,'FP-DET'!$L104,""),"") ->  | AG98: =IF('FP-DET'!$E104=5,IF('FP-DET'!$H104=AG$6,'FP-DET'!$L104,""),"") ->  | AH98: =IF('FP-DET'!$E104=5,IF('FP-DET'!$H104=AH$6,'FP-DET'!$L104,""),"") ->  | AI98: =IF('FP-DET'!$E104=5,IF('FP-DET'!$H104=AI$6,'FP-DET'!$L104,""),"") -> 
K99: =IF('FP-DET'!$E105=1,IF('FP-DET'!$H105=K$6,'FP-DET'!$L105,""),"") ->  | L99: =IF('FP-DET'!$E105=1,IF('FP-DET'!$H105=L$6,'FP-DET'!$L105,""),"") ->  | M99: =IF('FP-DET'!$E105=1,IF('FP-DET'!$H105=M$6,'FP-DET'!$L105,""),"") ->  | N99: =IF('FP-DET'!$E105=1,IF('FP-DET'!$H105=N$6,'FP-DET'!$L105,""),"") ->  | O99: =IF('FP-DET'!$E105=1,IF('FP-DET'!$H105=O$6,'FP-DET'!$L105,""),"") ->  | P99: =IF('FP-DET'!$E105=2,IF('FP-DET'!$H105=P$6,'FP-DET'!$L105,""),"") ->  | Q99: =IF('FP-DET'!$E105=2,IF('FP-DET'!$H105=Q$6,'FP-DET'!$L105,""),"") ->  | R99: =IF('FP-DET'!$E105=2,IF('FP-DET'!$H105=R$6,'FP-DET'!$L105,""),"") ->  | S99: =IF('FP-DET'!$E105=2,IF('FP-DET'!$H105=S$6,'FP-DET'!$L105,""),"") ->  | T99: =IF('FP-DET'!$E105=2,IF('FP-DET'!$H105=T$6,'FP-DET'!$L105,""),"") ->  | U99: =IF('FP-DET'!$E105=3,IF('FP-DET'!$H105=U$6,'FP-DET'!$L105,""),"") ->  | V99: =IF('FP-DET'!$E105=3,IF('FP-DET'!$H105=V$6,'FP-DET'!$L105,""),"") ->  | W99: =IF('FP-DET'!$E105=3,IF('FP-DET'!$H105=W$6,'FP-DET'!$L105,""),"") ->  | X99: =IF('FP-DET'!$E105=3,IF('FP-DET'!$H105=X$6,'FP-DET'!$L105,""),"") ->  | Y99: =IF('FP-DET'!$E105=3,IF('FP-DET'!$H105=Y$6,'FP-DET'!$L105,""),"") ->  | Z99: =IF('FP-DET'!$E105=4,IF('FP-DET'!$H105=Z$6,'FP-DET'!$L105,""),"") ->  | AA99: =IF('FP-DET'!$E105=4,IF('FP-DET'!$H105=AA$6,'FP-DET'!$L105,""),"") ->  | AB99: =IF('FP-DET'!$E105=4,IF('FP-DET'!$H105=AB$6,'FP-DET'!$L105,""),"") ->  | AC99: =IF('FP-DET'!$E105=4,IF('FP-DET'!$H105=AC$6,'FP-DET'!$L105,""),"") ->  | AD99: =IF('FP-DET'!$E105=4,IF('FP-DET'!$H105=AD$6,'FP-DET'!$L105,""),"") ->  | AE99: =IF('FP-DET'!$E105=5,IF('FP-DET'!$H105=AE$6,'FP-DET'!$L105,""),"") ->  | AF99: =IF('FP-DET'!$E105=5,IF('FP-DET'!$H105=AF$6,'FP-DET'!$L105,""),"") ->  | AG99: =IF('FP-DET'!$E105=5,IF('FP-DET'!$H105=AG$6,'FP-DET'!$L105,""),"") ->  | AH99: =IF('FP-DET'!$E105=5,IF('FP-DET'!$H105=AH$6,'FP-DET'!$L105,""),"") ->  | AI99: =IF('FP-DET'!$E105=5,IF('FP-DET'!$H105=AI$6,'FP-DET'!$L105,""),"") -> 
K100: =IF('FP-DET'!$E106=1,IF('FP-DET'!$H106=K$6,'FP-DET'!$L106,""),"") ->  | L100: =IF('FP-DET'!$E106=1,IF('FP-DET'!$H106=L$6,'FP-DET'!$L106,""),"") ->  | M100: =IF('FP-DET'!$E106=1,IF('FP-DET'!$H106=M$6,'FP-DET'!$L106,""),"") ->  | N100: =IF('FP-DET'!$E106=1,IF('FP-DET'!$H106=N$6,'FP-DET'!$L106,""),"") ->  | O100: =IF('FP-DET'!$E106=1,IF('FP-DET'!$H106=O$6,'FP-DET'!$L106,""),"") ->  | P100: =IF('FP-DET'!$E106=2,IF('FP-DET'!$H106=P$6,'FP-DET'!$L106,""),"") ->  | Q100: =IF('FP-DET'!$E106=2,IF('FP-DET'!$H106=Q$6,'FP-DET'!$L106,""),"") ->  | R100: =IF('FP-DET'!$E106=2,IF('FP-DET'!$H106=R$6,'FP-DET'!$L106,""),"") ->  | S100: =IF('FP-DET'!$E106=2,IF('FP-DET'!$H106=S$6,'FP-DET'!$L106,""),"") ->  | T100: =IF('FP-DET'!$E106=2,IF('FP-DET'!$H106=T$6,'FP-DET'!$L106,""),"") ->  | U100: =IF('FP-DET'!$E106=3,IF('FP-DET'!$H106=U$6,'FP-DET'!$L106,""),"") ->  | V100: =IF('FP-DET'!$E106=3,IF('FP-DET'!$H106=V$6,'FP-DET'!$L106,""),"") ->  | W100: =IF('FP-DET'!$E106=3,IF('FP-DET'!$H106=W$6,'FP-DET'!$L106,""),"") ->  | X100: =IF('FP-DET'!$E106=3,IF('FP-DET'!$H106=X$6,'FP-DET'!$L106,""),"") ->  | Y100: =IF('FP-DET'!$E106=3,IF('FP-DET'!$H106=Y$6,'FP-DET'!$L106,""),"") ->  | Z100: =IF('FP-DET'!$E106=4,IF('FP-DET'!$H106=Z$6,'FP-DET'!$L106,""),"") ->  | AA100: =IF('FP-DET'!$E106=4,IF('FP-DET'!$H106=AA$6,'FP-DET'!$L106,""),"") ->  | AB100: =IF('FP-DET'!$E106=4,IF('FP-DET'!$H106=AB$6,'FP-DET'!$L106,""),"") ->  | AC100: =IF('FP-DET'!$E106=4,IF('FP-DET'!$H106=AC$6,'FP-DET'!$L106,""),"") ->  | AD100: =IF('FP-DET'!$E106=4,IF('FP-DET'!$H106=AD$6,'FP-DET'!$L106,""),"") ->  | AE100: =IF('FP-DET'!$E106=5,IF('FP-DET'!$H106=AE$6,'FP-DET'!$L106,""),"") ->  | AF100: =IF('FP-DET'!$E106=5,IF('FP-DET'!$H106=AF$6,'FP-DET'!$L106,""),"") ->  | AG100: =IF('FP-DET'!$E106=5,IF('FP-DET'!$H106=AG$6,'FP-DET'!$L106,""),"") ->  | AH100: =IF('FP-DET'!$E106=5,IF('FP-DET'!$H106=AH$6,'FP-DET'!$L106,""),"") ->  | AI100: =IF('FP-DET'!$E106=5,IF('FP-DET'!$H106=AI$6,'FP-DET'!$L106,""),"") -> 
K101: =IF('FP-DET'!$E107=1,IF('FP-DET'!$H107=K$6,'FP-DET'!$L107,""),"") ->  | L101: =IF('FP-DET'!$E107=1,IF('FP-DET'!$H107=L$6,'FP-DET'!$L107,""),"") ->  | M101: =IF('FP-DET'!$E107=1,IF('FP-DET'!$H107=M$6,'FP-DET'!$L107,""),"") ->  | N101: =IF('FP-DET'!$E107=1,IF('FP-DET'!$H107=N$6,'FP-DET'!$L107,""),"") ->  | O101: =IF('FP-DET'!$E107=1,IF('FP-DET'!$H107=O$6,'FP-DET'!$L107,""),"") ->  | P101: =IF('FP-DET'!$E107=2,IF('FP-DET'!$H107=P$6,'FP-DET'!$L107,""),"") ->  | Q101: =IF('FP-DET'!$E107=2,IF('FP-DET'!$H107=Q$6,'FP-DET'!$L107,""),"") ->  | R101: =IF('FP-DET'!$E107=2,IF('FP-DET'!$H107=R$6,'FP-DET'!$L107,""),"") ->  | S101: =IF('FP-DET'!$E107=2,IF('FP-DET'!$H107=S$6,'FP-DET'!$L107,""),"") ->  | T101: =IF('FP-DET'!$E107=2,IF('FP-DET'!$H107=T$6,'FP-DET'!$L107,""),"") ->  | U101: =IF('FP-DET'!$E107=3,IF('FP-DET'!$H107=U$6,'FP-DET'!$L107,""),"") ->  | V101: =IF('FP-DET'!$E107=3,IF('FP-DET'!$H107=V$6,'FP-DET'!$L107,""),"") ->  | W101: =IF('FP-DET'!$E107=3,IF('FP-DET'!$H107=W$6,'FP-DET'!$L107,""),"") ->  | X101: =IF('FP-DET'!$E107=3,IF('FP-DET'!$H107=X$6,'FP-DET'!$L107,""),"") ->  | Y101: =IF('FP-DET'!$E107=3,IF('FP-DET'!$H107=Y$6,'FP-DET'!$L107,""),"") ->  | Z101: =IF('FP-DET'!$E107=4,IF('FP-DET'!$H107=Z$6,'FP-DET'!$L107,""),"") ->  | AA101: =IF('FP-DET'!$E107=4,IF('FP-DET'!$H107=AA$6,'FP-DET'!$L107,""),"") ->  | AB101: =IF('FP-DET'!$E107=4,IF('FP-DET'!$H107=AB$6,'FP-DET'!$L107,""),"") ->  | AC101: =IF('FP-DET'!$E107=4,IF('FP-DET'!$H107=AC$6,'FP-DET'!$L107,""),"") ->  | AD101: =IF('FP-DET'!$E107=4,IF('FP-DET'!$H107=AD$6,'FP-DET'!$L107,""),"") ->  | AE101: =IF('FP-DET'!$E107=5,IF('FP-DET'!$H107=AE$6,'FP-DET'!$L107,""),"") ->  | AF101: =IF('FP-DET'!$E107=5,IF('FP-DET'!$H107=AF$6,'FP-DET'!$L107,""),"") ->  | AG101: =IF('FP-DET'!$E107=5,IF('FP-DET'!$H107=AG$6,'FP-DET'!$L107,""),"") ->  | AH101: =IF('FP-DET'!$E107=5,IF('FP-DET'!$H107=AH$6,'FP-DET'!$L107,""),"") ->  | AI101: =IF('FP-DET'!$E107=5,IF('FP-DET'!$H107=AI$6,'FP-DET'!$L107,""),"") -> 
K102: =IF('FP-DET'!$E108=1,IF('FP-DET'!$H108=K$6,'FP-DET'!$L108,""),"") ->  | L102: =IF('FP-DET'!$E108=1,IF('FP-DET'!$H108=L$6,'FP-DET'!$L108,""),"") ->  | M102: =IF('FP-DET'!$E108=1,IF('FP-DET'!$H108=M$6,'FP-DET'!$L108,""),"") ->  | N102: =IF('FP-DET'!$E108=1,IF('FP-DET'!$H108=N$6,'FP-DET'!$L108,""),"") ->  | O102: =IF('FP-DET'!$E108=1,IF('FP-DET'!$H108=O$6,'FP-DET'!$L108,""),"") ->  | P102: =IF('FP-DET'!$E108=2,IF('FP-DET'!$H108=P$6,'FP-DET'!$L108,""),"") ->  | Q102: =IF('FP-DET'!$E108=2,IF('FP-DET'!$H108=Q$6,'FP-DET'!$L108,""),"") ->  | R102: =IF('FP-DET'!$E108=2,IF('FP-DET'!$H108=R$6,'FP-DET'!$L108,""),"") ->  | S102: =IF('FP-DET'!$E108=2,IF('FP-DET'!$H108=S$6,'FP-DET'!$L108,""),"") ->  | T102: =IF('FP-DET'!$E108=2,IF('FP-DET'!$H108=T$6,'FP-DET'!$L108,""),"") ->  | U102: =IF('FP-DET'!$E108=3,IF('FP-DET'!$H108=U$6,'FP-DET'!$L108,""),"") ->  | V102: =IF('FP-DET'!$E108=3,IF('FP-DET'!$H108=V$6,'FP-DET'!$L108,""),"") ->  | W102: =IF('FP-DET'!$E108=3,IF('FP-DET'!$H108=W$6,'FP-DET'!$L108,""),"") ->  | X102: =IF('FP-DET'!$E108=3,IF('FP-DET'!$H108=X$6,'FP-DET'!$L108,""),"") ->  | Y102: =IF('FP-DET'!$E108=3,IF('FP-DET'!$H108=Y$6,'FP-DET'!$L108,""),"") ->  | Z102: =IF('FP-DET'!$E108=4,IF('FP-DET'!$H108=Z$6,'FP-DET'!$L108,""),"") ->  | AA102: =IF('FP-DET'!$E108=4,IF('FP-DET'!$H108=AA$6,'FP-DET'!$L108,""),"") ->  | AB102: =IF('FP-DET'!$E108=4,IF('FP-DET'!$H108=AB$6,'FP-DET'!$L108,""),"") ->  | AC102: =IF('FP-DET'!$E108=4,IF('FP-DET'!$H108=AC$6,'FP-DET'!$L108,""),"") ->  | AD102: =IF('FP-DET'!$E108=4,IF('FP-DET'!$H108=AD$6,'FP-DET'!$L108,""),"") ->  | AE102: =IF('FP-DET'!$E108=5,IF('FP-DET'!$H108=AE$6,'FP-DET'!$L108,""),"") ->  | AF102: =IF('FP-DET'!$E108=5,IF('FP-DET'!$H108=AF$6,'FP-DET'!$L108,""),"") ->  | AG102: =IF('FP-DET'!$E108=5,IF('FP-DET'!$H108=AG$6,'FP-DET'!$L108,""),"") ->  | AH102: =IF('FP-DET'!$E108=5,IF('FP-DET'!$H108=AH$6,'FP-DET'!$L108,""),"") ->  | AI102: =IF('FP-DET'!$E108=5,IF('FP-DET'!$H108=AI$6,'FP-DET'!$L108,""),"") -> 
K103: =IF('FP-DET'!$E109=1,IF('FP-DET'!$H109=K$6,'FP-DET'!$L109,""),"") ->  | L103: =IF('FP-DET'!$E109=1,IF('FP-DET'!$H109=L$6,'FP-DET'!$L109,""),"") ->  | M103: =IF('FP-DET'!$E109=1,IF('FP-DET'!$H109=M$6,'FP-DET'!$L109,""),"") ->  | N103: =IF('FP-DET'!$E109=1,IF('FP-DET'!$H109=N$6,'FP-DET'!$L109,""),"") ->  | O103: =IF('FP-DET'!$E109=1,IF('FP-DET'!$H109=O$6,'FP-DET'!$L109,""),"") ->  | P103: =IF('FP-DET'!$E109=2,IF('FP-DET'!$H109=P$6,'FP-DET'!$L109,""),"") ->  | Q103: =IF('FP-DET'!$E109=2,IF('FP-DET'!$H109=Q$6,'FP-DET'!$L109,""),"") ->  | R103: =IF('FP-DET'!$E109=2,IF('FP-DET'!$H109=R$6,'FP-DET'!$L109,""),"") ->  | S103: =IF('FP-DET'!$E109=2,IF('FP-DET'!$H109=S$6,'FP-DET'!$L109,""),"") ->  | T103: =IF('FP-DET'!$E109=2,IF('FP-DET'!$H109=T$6,'FP-DET'!$L109,""),"") ->  | U103: =IF('FP-DET'!$E109=3,IF('FP-DET'!$H109=U$6,'FP-DET'!$L109,""),"") ->  | V103: =IF('FP-DET'!$E109=3,IF('FP-DET'!$H109=V$6,'FP-DET'!$L109,""),"") ->  | W103: =IF('FP-DET'!$E109=3,IF('FP-DET'!$H109=W$6,'FP-DET'!$L109,""),"") ->  | X103: =IF('FP-DET'!$E109=3,IF('FP-DET'!$H109=X$6,'FP-DET'!$L109,""),"") ->  | Y103: =IF('FP-DET'!$E109=3,IF('FP-DET'!$H109=Y$6,'FP-DET'!$L109,""),"") ->  | Z103: =IF('FP-DET'!$E109=4,IF('FP-DET'!$H109=Z$6,'FP-DET'!$L109,""),"") ->  | AA103: =IF('FP-DET'!$E109=4,IF('FP-DET'!$H109=AA$6,'FP-DET'!$L109,""),"") ->  | AB103: =IF('FP-DET'!$E109=4,IF('FP-DET'!$H109=AB$6,'FP-DET'!$L109,""),"") ->  | AC103: =IF('FP-DET'!$E109=4,IF('FP-DET'!$H109=AC$6,'FP-DET'!$L109,""),"") ->  | AD103: =IF('FP-DET'!$E109=4,IF('FP-DET'!$H109=AD$6,'FP-DET'!$L109,""),"") ->  | AE103: =IF('FP-DET'!$E109=5,IF('FP-DET'!$H109=AE$6,'FP-DET'!$L109,""),"") ->  | AF103: =IF('FP-DET'!$E109=5,IF('FP-DET'!$H109=AF$6,'FP-DET'!$L109,""),"") ->  | AG103: =IF('FP-DET'!$E109=5,IF('FP-DET'!$H109=AG$6,'FP-DET'!$L109,""),"") ->  | AH103: =IF('FP-DET'!$E109=5,IF('FP-DET'!$H109=AH$6,'FP-DET'!$L109,""),"") ->  | AI103: =IF('FP-DET'!$E109=5,IF('FP-DET'!$H109=AI$6,'FP-DET'!$L109,""),"") -> 
K104: =IF('FP-DET'!$E110=1,IF('FP-DET'!$H110=K$6,'FP-DET'!$L110,""),"") ->  | L104: =IF('FP-DET'!$E110=1,IF('FP-DET'!$H110=L$6,'FP-DET'!$L110,""),"") ->  | M104: =IF('FP-DET'!$E110=1,IF('FP-DET'!$H110=M$6,'FP-DET'!$L110,""),"") ->  | N104: =IF('FP-DET'!$E110=1,IF('FP-DET'!$H110=N$6,'FP-DET'!$L110,""),"") ->  | O104: =IF('FP-DET'!$E110=1,IF('FP-DET'!$H110=O$6,'FP-DET'!$L110,""),"") ->  | P104: =IF('FP-DET'!$E110=2,IF('FP-DET'!$H110=P$6,'FP-DET'!$L110,""),"") ->  | Q104: =IF('FP-DET'!$E110=2,IF('FP-DET'!$H110=Q$6,'FP-DET'!$L110,""),"") ->  | R104: =IF('FP-DET'!$E110=2,IF('FP-DET'!$H110=R$6,'FP-DET'!$L110,""),"") ->  | S104: =IF('FP-DET'!$E110=2,IF('FP-DET'!$H110=S$6,'FP-DET'!$L110,""),"") ->  | T104: =IF('FP-DET'!$E110=2,IF('FP-DET'!$H110=T$6,'FP-DET'!$L110,""),"") ->  | U104: =IF('FP-DET'!$E110=3,IF('FP-DET'!$H110=U$6,'FP-DET'!$L110,""),"") ->  | V104: =IF('FP-DET'!$E110=3,IF('FP-DET'!$H110=V$6,'FP-DET'!$L110,""),"") ->  | W104: =IF('FP-DET'!$E110=3,IF('FP-DET'!$H110=W$6,'FP-DET'!$L110,""),"") ->  | X104: =IF('FP-DET'!$E110=3,IF('FP-DET'!$H110=X$6,'FP-DET'!$L110,""),"") ->  | Y104: =IF('FP-DET'!$E110=3,IF('FP-DET'!$H110=Y$6,'FP-DET'!$L110,""),"") ->  | Z104: =IF('FP-DET'!$E110=4,IF('FP-DET'!$H110=Z$6,'FP-DET'!$L110,""),"") ->  | AA104: =IF('FP-DET'!$E110=4,IF('FP-DET'!$H110=AA$6,'FP-DET'!$L110,""),"") ->  | AB104: =IF('FP-DET'!$E110=4,IF('FP-DET'!$H110=AB$6,'FP-DET'!$L110,""),"") ->  | AC104: =IF('FP-DET'!$E110=4,IF('FP-DET'!$H110=AC$6,'FP-DET'!$L110,""),"") ->  | AD104: =IF('FP-DET'!$E110=4,IF('FP-DET'!$H110=AD$6,'FP-DET'!$L110,""),"") ->  | AE104: =IF('FP-DET'!$E110=5,IF('FP-DET'!$H110=AE$6,'FP-DET'!$L110,""),"") ->  | AF104: =IF('FP-DET'!$E110=5,IF('FP-DET'!$H110=AF$6,'FP-DET'!$L110,""),"") ->  | AG104: =IF('FP-DET'!$E110=5,IF('FP-DET'!$H110=AG$6,'FP-DET'!$L110,""),"") ->  | AH104: =IF('FP-DET'!$E110=5,IF('FP-DET'!$H110=AH$6,'FP-DET'!$L110,""),"") ->  | AI104: =IF('FP-DET'!$E110=5,IF('FP-DET'!$H110=AI$6,'FP-DET'!$L110,""),"") -> 
K105: =IF('FP-DET'!$E111=1,IF('FP-DET'!$H111=K$6,'FP-DET'!$L111,""),"") ->  | L105: =IF('FP-DET'!$E111=1,IF('FP-DET'!$H111=L$6,'FP-DET'!$L111,""),"") ->  | M105: =IF('FP-DET'!$E111=1,IF('FP-DET'!$H111=M$6,'FP-DET'!$L111,""),"") ->  | N105: =IF('FP-DET'!$E111=1,IF('FP-DET'!$H111=N$6,'FP-DET'!$L111,""),"") ->  | O105: =IF('FP-DET'!$E111=1,IF('FP-DET'!$H111=O$6,'FP-DET'!$L111,""),"") ->  | P105: =IF('FP-DET'!$E111=2,IF('FP-DET'!$H111=P$6,'FP-DET'!$L111,""),"") ->  | Q105: =IF('FP-DET'!$E111=2,IF('FP-DET'!$H111=Q$6,'FP-DET'!$L111,""),"") ->  | R105: =IF('FP-DET'!$E111=2,IF('FP-DET'!$H111=R$6,'FP-DET'!$L111,""),"") ->  | S105: =IF('FP-DET'!$E111=2,IF('FP-DET'!$H111=S$6,'FP-DET'!$L111,""),"") ->  | T105: =IF('FP-DET'!$E111=2,IF('FP-DET'!$H111=T$6,'FP-DET'!$L111,""),"") ->  | U105: =IF('FP-DET'!$E111=3,IF('FP-DET'!$H111=U$6,'FP-DET'!$L111,""),"") ->  | V105: =IF('FP-DET'!$E111=3,IF('FP-DET'!$H111=V$6,'FP-DET'!$L111,""),"") ->  | W105: =IF('FP-DET'!$E111=3,IF('FP-DET'!$H111=W$6,'FP-DET'!$L111,""),"") ->  | X105: =IF('FP-DET'!$E111=3,IF('FP-DET'!$H111=X$6,'FP-DET'!$L111,""),"") ->  | Y105: =IF('FP-DET'!$E111=3,IF('FP-DET'!$H111=Y$6,'FP-DET'!$L111,""),"") ->  | Z105: =IF('FP-DET'!$E111=4,IF('FP-DET'!$H111=Z$6,'FP-DET'!$L111,""),"") ->  | AA105: =IF('FP-DET'!$E111=4,IF('FP-DET'!$H111=AA$6,'FP-DET'!$L111,""),"") ->  | AB105: =IF('FP-DET'!$E111=4,IF('FP-DET'!$H111=AB$6,'FP-DET'!$L111,""),"") ->  | AC105: =IF('FP-DET'!$E111=4,IF('FP-DET'!$H111=AC$6,'FP-DET'!$L111,""),"") ->  | AD105: =IF('FP-DET'!$E111=4,IF('FP-DET'!$H111=AD$6,'FP-DET'!$L111,""),"") ->  | AE105: =IF('FP-DET'!$E111=5,IF('FP-DET'!$H111=AE$6,'FP-DET'!$L111,""),"") ->  | AF105: =IF('FP-DET'!$E111=5,IF('FP-DET'!$H111=AF$6,'FP-DET'!$L111,""),"") ->  | AG105: =IF('FP-DET'!$E111=5,IF('FP-DET'!$H111=AG$6,'FP-DET'!$L111,""),"") ->  | AH105: =IF('FP-DET'!$E111=5,IF('FP-DET'!$H111=AH$6,'FP-DET'!$L111,""),"") ->  | AI105: =IF('FP-DET'!$E111=5,IF('FP-DET'!$H111=AI$6,'FP-DET'!$L111,""),"") -> 
K106: =IF('FP-DET'!$E112=1,IF('FP-DET'!$H112=K$6,'FP-DET'!$L112,""),"") ->  | L106: =IF('FP-DET'!$E112=1,IF('FP-DET'!$H112=L$6,'FP-DET'!$L112,""),"") ->  | M106: =IF('FP-DET'!$E112=1,IF('FP-DET'!$H112=M$6,'FP-DET'!$L112,""),"") ->  | N106: =IF('FP-DET'!$E112=1,IF('FP-DET'!$H112=N$6,'FP-DET'!$L112,""),"") ->  | O106: =IF('FP-DET'!$E112=1,IF('FP-DET'!$H112=O$6,'FP-DET'!$L112,""),"") ->  | P106: =IF('FP-DET'!$E112=2,IF('FP-DET'!$H112=P$6,'FP-DET'!$L112,""),"") ->  | Q106: =IF('FP-DET'!$E112=2,IF('FP-DET'!$H112=Q$6,'FP-DET'!$L112,""),"") ->  | R106: =IF('FP-DET'!$E112=2,IF('FP-DET'!$H112=R$6,'FP-DET'!$L112,""),"") ->  | S106: =IF('FP-DET'!$E112=2,IF('FP-DET'!$H112=S$6,'FP-DET'!$L112,""),"") ->  | T106: =IF('FP-DET'!$E112=2,IF('FP-DET'!$H112=T$6,'FP-DET'!$L112,""),"") ->  | U106: =IF('FP-DET'!$E112=3,IF('FP-DET'!$H112=U$6,'FP-DET'!$L112,""),"") ->  | V106: =IF('FP-DET'!$E112=3,IF('FP-DET'!$H112=V$6,'FP-DET'!$L112,""),"") ->  | W106: =IF('FP-DET'!$E112=3,IF('FP-DET'!$H112=W$6,'FP-DET'!$L112,""),"") ->  | X106: =IF('FP-DET'!$E112=3,IF('FP-DET'!$H112=X$6,'FP-DET'!$L112,""),"") ->  | Y106: =IF('FP-DET'!$E112=3,IF('FP-DET'!$H112=Y$6,'FP-DET'!$L112,""),"") ->  | Z106: =IF('FP-DET'!$E112=4,IF('FP-DET'!$H112=Z$6,'FP-DET'!$L112,""),"") ->  | AA106: =IF('FP-DET'!$E112=4,IF('FP-DET'!$H112=AA$6,'FP-DET'!$L112,""),"") ->  | AB106: =IF('FP-DET'!$E112=4,IF('FP-DET'!$H112=AB$6,'FP-DET'!$L112,""),"") ->  | AC106: =IF('FP-DET'!$E112=4,IF('FP-DET'!$H112=AC$6,'FP-DET'!$L112,""),"") ->  | AD106: =IF('FP-DET'!$E112=4,IF('FP-DET'!$H112=AD$6,'FP-DET'!$L112,""),"") ->  | AE106: =IF('FP-DET'!$E112=5,IF('FP-DET'!$H112=AE$6,'FP-DET'!$L112,""),"") ->  | AF106: =IF('FP-DET'!$E112=5,IF('FP-DET'!$H112=AF$6,'FP-DET'!$L112,""),"") ->  | AG106: =IF('FP-DET'!$E112=5,IF('FP-DET'!$H112=AG$6,'FP-DET'!$L112,""),"") ->  | AH106: =IF('FP-DET'!$E112=5,IF('FP-DET'!$H112=AH$6,'FP-DET'!$L112,""),"") ->  | AI106: =IF('FP-DET'!$E112=5,IF('FP-DET'!$H112=AI$6,'FP-DET'!$L112,""),"") -> 
K107: =IF('FP-DET'!$E113=1,IF('FP-DET'!$H113=K$6,'FP-DET'!$L113,""),"") ->  | L107: =IF('FP-DET'!$E113=1,IF('FP-DET'!$H113=L$6,'FP-DET'!$L113,""),"") ->  | M107: =IF('FP-DET'!$E113=1,IF('FP-DET'!$H113=M$6,'FP-DET'!$L113,""),"") ->  | N107: =IF('FP-DET'!$E113=1,IF('FP-DET'!$H113=N$6,'FP-DET'!$L113,""),"") ->  | O107: =IF('FP-DET'!$E113=1,IF('FP-DET'!$H113=O$6,'FP-DET'!$L113,""),"") ->  | P107: =IF('FP-DET'!$E113=2,IF('FP-DET'!$H113=P$6,'FP-DET'!$L113,""),"") ->  | Q107: =IF('FP-DET'!$E113=2,IF('FP-DET'!$H113=Q$6,'FP-DET'!$L113,""),"") ->  | R107: =IF('FP-DET'!$E113=2,IF('FP-DET'!$H113=R$6,'FP-DET'!$L113,""),"") ->  | S107: =IF('FP-DET'!$E113=2,IF('FP-DET'!$H113=S$6,'FP-DET'!$L113,""),"") ->  | T107: =IF('FP-DET'!$E113=2,IF('FP-DET'!$H113=T$6,'FP-DET'!$L113,""),"") ->  | U107: =IF('FP-DET'!$E113=3,IF('FP-DET'!$H113=U$6,'FP-DET'!$L113,""),"") ->  | V107: =IF('FP-DET'!$E113=3,IF('FP-DET'!$H113=V$6,'FP-DET'!$L113,""),"") ->  | W107: =IF('FP-DET'!$E113=3,IF('FP-DET'!$H113=W$6,'FP-DET'!$L113,""),"") ->  | X107: =IF('FP-DET'!$E113=3,IF('FP-DET'!$H113=X$6,'FP-DET'!$L113,""),"") ->  | Y107: =IF('FP-DET'!$E113=3,IF('FP-DET'!$H113=Y$6,'FP-DET'!$L113,""),"") ->  | Z107: =IF('FP-DET'!$E113=4,IF('FP-DET'!$H113=Z$6,'FP-DET'!$L113,""),"") ->  | AA107: =IF('FP-DET'!$E113=4,IF('FP-DET'!$H113=AA$6,'FP-DET'!$L113,""),"") ->  | AB107: =IF('FP-DET'!$E113=4,IF('FP-DET'!$H113=AB$6,'FP-DET'!$L113,""),"") ->  | AC107: =IF('FP-DET'!$E113=4,IF('FP-DET'!$H113=AC$6,'FP-DET'!$L113,""),"") ->  | AD107: =IF('FP-DET'!$E113=4,IF('FP-DET'!$H113=AD$6,'FP-DET'!$L113,""),"") ->  | AE107: =IF('FP-DET'!$E113=5,IF('FP-DET'!$H113=AE$6,'FP-DET'!$L113,""),"") ->  | AF107: =IF('FP-DET'!$E113=5,IF('FP-DET'!$H113=AF$6,'FP-DET'!$L113,""),"") ->  | AG107: =IF('FP-DET'!$E113=5,IF('FP-DET'!$H113=AG$6,'FP-DET'!$L113,""),"") ->  | AH107: =IF('FP-DET'!$E113=5,IF('FP-DET'!$H113=AH$6,'FP-DET'!$L113,""),"") ->  | AI107: =IF('FP-DET'!$E113=5,IF('FP-DET'!$H113=AI$6,'FP-DET'!$L113,""),"") -> 
K108: =IF('FP-DET'!$E114=1,IF('FP-DET'!$H114=K$6,'FP-DET'!$L114,""),"") ->  | L108: =IF('FP-DET'!$E114=1,IF('FP-DET'!$H114=L$6,'FP-DET'!$L114,""),"") ->  | M108: =IF('FP-DET'!$E114=1,IF('FP-DET'!$H114=M$6,'FP-DET'!$L114,""),"") ->  | N108: =IF('FP-DET'!$E114=1,IF('FP-DET'!$H114=N$6,'FP-DET'!$L114,""),"") ->  | O108: =IF('FP-DET'!$E114=1,IF('FP-DET'!$H114=O$6,'FP-DET'!$L114,""),"") ->  | P108: =IF('FP-DET'!$E114=2,IF('FP-DET'!$H114=P$6,'FP-DET'!$L114,""),"") ->  | Q108: =IF('FP-DET'!$E114=2,IF('FP-DET'!$H114=Q$6,'FP-DET'!$L114,""),"") ->  | R108: =IF('FP-DET'!$E114=2,IF('FP-DET'!$H114=R$6,'FP-DET'!$L114,""),"") ->  | S108: =IF('FP-DET'!$E114=2,IF('FP-DET'!$H114=S$6,'FP-DET'!$L114,""),"") ->  | T108: =IF('FP-DET'!$E114=2,IF('FP-DET'!$H114=T$6,'FP-DET'!$L114,""),"") ->  | U108: =IF('FP-DET'!$E114=3,IF('FP-DET'!$H114=U$6,'FP-DET'!$L114,""),"") ->  | V108: =IF('FP-DET'!$E114=3,IF('FP-DET'!$H114=V$6,'FP-DET'!$L114,""),"") ->  | W108: =IF('FP-DET'!$E114=3,IF('FP-DET'!$H114=W$6,'FP-DET'!$L114,""),"") ->  | X108: =IF('FP-DET'!$E114=3,IF('FP-DET'!$H114=X$6,'FP-DET'!$L114,""),"") ->  | Y108: =IF('FP-DET'!$E114=3,IF('FP-DET'!$H114=Y$6,'FP-DET'!$L114,""),"") ->  | Z108: =IF('FP-DET'!$E114=4,IF('FP-DET'!$H114=Z$6,'FP-DET'!$L114,""),"") ->  | AA108: =IF('FP-DET'!$E114=4,IF('FP-DET'!$H114=AA$6,'FP-DET'!$L114,""),"") ->  | AB108: =IF('FP-DET'!$E114=4,IF('FP-DET'!$H114=AB$6,'FP-DET'!$L114,""),"") ->  | AC108: =IF('FP-DET'!$E114=4,IF('FP-DET'!$H114=AC$6,'FP-DET'!$L114,""),"") ->  | AD108: =IF('FP-DET'!$E114=4,IF('FP-DET'!$H114=AD$6,'FP-DET'!$L114,""),"") ->  | AE108: =IF('FP-DET'!$E114=5,IF('FP-DET'!$H114=AE$6,'FP-DET'!$L114,""),"") ->  | AF108: =IF('FP-DET'!$E114=5,IF('FP-DET'!$H114=AF$6,'FP-DET'!$L114,""),"") ->  | AG108: =IF('FP-DET'!$E114=5,IF('FP-DET'!$H114=AG$6,'FP-DET'!$L114,""),"") ->  | AH108: =IF('FP-DET'!$E114=5,IF('FP-DET'!$H114=AH$6,'FP-DET'!$L114,""),"") ->  | AI108: =IF('FP-DET'!$E114=5,IF('FP-DET'!$H114=AI$6,'FP-DET'!$L114,""),"") -> 
K109: =IF('FP-DET'!$E115=1,IF('FP-DET'!$H115=K$6,'FP-DET'!$L115,""),"") ->  | L109: =IF('FP-DET'!$E115=1,IF('FP-DET'!$H115=L$6,'FP-DET'!$L115,""),"") ->  | M109: =IF('FP-DET'!$E115=1,IF('FP-DET'!$H115=M$6,'FP-DET'!$L115,""),"") ->  | N109: =IF('FP-DET'!$E115=1,IF('FP-DET'!$H115=N$6,'FP-DET'!$L115,""),"") ->  | O109: =IF('FP-DET'!$E115=1,IF('FP-DET'!$H115=O$6,'FP-DET'!$L115,""),"") ->  | P109: =IF('FP-DET'!$E115=2,IF('FP-DET'!$H115=P$6,'FP-DET'!$L115,""),"") ->  | Q109: =IF('FP-DET'!$E115=2,IF('FP-DET'!$H115=Q$6,'FP-DET'!$L115,""),"") ->  | R109: =IF('FP-DET'!$E115=2,IF('FP-DET'!$H115=R$6,'FP-DET'!$L115,""),"") ->  | S109: =IF('FP-DET'!$E115=2,IF('FP-DET'!$H115=S$6,'FP-DET'!$L115,""),"") ->  | T109: =IF('FP-DET'!$E115=2,IF('FP-DET'!$H115=T$6,'FP-DET'!$L115,""),"") ->  | U109: =IF('FP-DET'!$E115=3,IF('FP-DET'!$H115=U$6,'FP-DET'!$L115,""),"") ->  | V109: =IF('FP-DET'!$E115=3,IF('FP-DET'!$H115=V$6,'FP-DET'!$L115,""),"") ->  | W109: =IF('FP-DET'!$E115=3,IF('FP-DET'!$H115=W$6,'FP-DET'!$L115,""),"") ->  | X109: =IF('FP-DET'!$E115=3,IF('FP-DET'!$H115=X$6,'FP-DET'!$L115,""),"") ->  | Y109: =IF('FP-DET'!$E115=3,IF('FP-DET'!$H115=Y$6,'FP-DET'!$L115,""),"") ->  | Z109: =IF('FP-DET'!$E115=4,IF('FP-DET'!$H115=Z$6,'FP-DET'!$L115,""),"") ->  | AA109: =IF('FP-DET'!$E115=4,IF('FP-DET'!$H115=AA$6,'FP-DET'!$L115,""),"") ->  | AB109: =IF('FP-DET'!$E115=4,IF('FP-DET'!$H115=AB$6,'FP-DET'!$L115,""),"") ->  | AC109: =IF('FP-DET'!$E115=4,IF('FP-DET'!$H115=AC$6,'FP-DET'!$L115,""),"") ->  | AD109: =IF('FP-DET'!$E115=4,IF('FP-DET'!$H115=AD$6,'FP-DET'!$L115,""),"") ->  | AE109: =IF('FP-DET'!$E115=5,IF('FP-DET'!$H115=AE$6,'FP-DET'!$L115,""),"") ->  | AF109: =IF('FP-DET'!$E115=5,IF('FP-DET'!$H115=AF$6,'FP-DET'!$L115,""),"") ->  | AG109: =IF('FP-DET'!$E115=5,IF('FP-DET'!$H115=AG$6,'FP-DET'!$L115,""),"") ->  | AH109: =IF('FP-DET'!$E115=5,IF('FP-DET'!$H115=AH$6,'FP-DET'!$L115,""),"") ->  | AI109: =IF('FP-DET'!$E115=5,IF('FP-DET'!$H115=AI$6,'FP-DET'!$L115,""),"") -> 
K110: =IF('FP-DET'!$E116=1,IF('FP-DET'!$H116=K$6,'FP-DET'!$L116,""),"") ->  | L110: =IF('FP-DET'!$E116=1,IF('FP-DET'!$H116=L$6,'FP-DET'!$L116,""),"") ->  | M110: =IF('FP-DET'!$E116=1,IF('FP-DET'!$H116=M$6,'FP-DET'!$L116,""),"") ->  | N110: =IF('FP-DET'!$E116=1,IF('FP-DET'!$H116=N$6,'FP-DET'!$L116,""),"") ->  | O110: =IF('FP-DET'!$E116=1,IF('FP-DET'!$H116=O$6,'FP-DET'!$L116,""),"") ->  | P110: =IF('FP-DET'!$E116=2,IF('FP-DET'!$H116=P$6,'FP-DET'!$L116,""),"") ->  | Q110: =IF('FP-DET'!$E116=2,IF('FP-DET'!$H116=Q$6,'FP-DET'!$L116,""),"") ->  | R110: =IF('FP-DET'!$E116=2,IF('FP-DET'!$H116=R$6,'FP-DET'!$L116,""),"") ->  | S110: =IF('FP-DET'!$E116=2,IF('FP-DET'!$H116=S$6,'FP-DET'!$L116,""),"") ->  | T110: =IF('FP-DET'!$E116=2,IF('FP-DET'!$H116=T$6,'FP-DET'!$L116,""),"") ->  | U110: =IF('FP-DET'!$E116=3,IF('FP-DET'!$H116=U$6,'FP-DET'!$L116,""),"") ->  | V110: =IF('FP-DET'!$E116=3,IF('FP-DET'!$H116=V$6,'FP-DET'!$L116,""),"") ->  | W110: =IF('FP-DET'!$E116=3,IF('FP-DET'!$H116=W$6,'FP-DET'!$L116,""),"") ->  | X110: =IF('FP-DET'!$E116=3,IF('FP-DET'!$H116=X$6,'FP-DET'!$L116,""),"") ->  | Y110: =IF('FP-DET'!$E116=3,IF('FP-DET'!$H116=Y$6,'FP-DET'!$L116,""),"") ->  | Z110: =IF('FP-DET'!$E116=4,IF('FP-DET'!$H116=Z$6,'FP-DET'!$L116,""),"") ->  | AA110: =IF('FP-DET'!$E116=4,IF('FP-DET'!$H116=AA$6,'FP-DET'!$L116,""),"") ->  | AB110: =IF('FP-DET'!$E116=4,IF('FP-DET'!$H116=AB$6,'FP-DET'!$L116,""),"") ->  | AC110: =IF('FP-DET'!$E116=4,IF('FP-DET'!$H116=AC$6,'FP-DET'!$L116,""),"") ->  | AD110: =IF('FP-DET'!$E116=4,IF('FP-DET'!$H116=AD$6,'FP-DET'!$L116,""),"") ->  | AE110: =IF('FP-DET'!$E116=5,IF('FP-DET'!$H116=AE$6,'FP-DET'!$L116,""),"") ->  | AF110: =IF('FP-DET'!$E116=5,IF('FP-DET'!$H116=AF$6,'FP-DET'!$L116,""),"") ->  | AG110: =IF('FP-DET'!$E116=5,IF('FP-DET'!$H116=AG$6,'FP-DET'!$L116,""),"") ->  | AH110: =IF('FP-DET'!$E116=5,IF('FP-DET'!$H116=AH$6,'FP-DET'!$L116,""),"") ->  | AI110: =IF('FP-DET'!$E116=5,IF('FP-DET'!$H116=AI$6,'FP-DET'!$L116,""),"") -> 
K111: =IF('FP-DET'!$E117=1,IF('FP-DET'!$H117=K$6,'FP-DET'!$L117,""),"") ->  | L111: =IF('FP-DET'!$E117=1,IF('FP-DET'!$H117=L$6,'FP-DET'!$L117,""),"") ->  | M111: =IF('FP-DET'!$E117=1,IF('FP-DET'!$H117=M$6,'FP-DET'!$L117,""),"") ->  | N111: =IF('FP-DET'!$E117=1,IF('FP-DET'!$H117=N$6,'FP-DET'!$L117,""),"") ->  | O111: =IF('FP-DET'!$E117=1,IF('FP-DET'!$H117=O$6,'FP-DET'!$L117,""),"") ->  | P111: =IF('FP-DET'!$E117=2,IF('FP-DET'!$H117=P$6,'FP-DET'!$L117,""),"") ->  | Q111: =IF('FP-DET'!$E117=2,IF('FP-DET'!$H117=Q$6,'FP-DET'!$L117,""),"") ->  | R111: =IF('FP-DET'!$E117=2,IF('FP-DET'!$H117=R$6,'FP-DET'!$L117,""),"") ->  | S111: =IF('FP-DET'!$E117=2,IF('FP-DET'!$H117=S$6,'FP-DET'!$L117,""),"") ->  | T111: =IF('FP-DET'!$E117=2,IF('FP-DET'!$H117=T$6,'FP-DET'!$L117,""),"") ->  | U111: =IF('FP-DET'!$E117=3,IF('FP-DET'!$H117=U$6,'FP-DET'!$L117,""),"") ->  | V111: =IF('FP-DET'!$E117=3,IF('FP-DET'!$H117=V$6,'FP-DET'!$L117,""),"") ->  | W111: =IF('FP-DET'!$E117=3,IF('FP-DET'!$H117=W$6,'FP-DET'!$L117,""),"") ->  | X111: =IF('FP-DET'!$E117=3,IF('FP-DET'!$H117=X$6,'FP-DET'!$L117,""),"") ->  | Y111: =IF('FP-DET'!$E117=3,IF('FP-DET'!$H117=Y$6,'FP-DET'!$L117,""),"") ->  | Z111: =IF('FP-DET'!$E117=4,IF('FP-DET'!$H117=Z$6,'FP-DET'!$L117,""),"") ->  | AA111: =IF('FP-DET'!$E117=4,IF('FP-DET'!$H117=AA$6,'FP-DET'!$L117,""),"") ->  | AB111: =IF('FP-DET'!$E117=4,IF('FP-DET'!$H117=AB$6,'FP-DET'!$L117,""),"") ->  | AC111: =IF('FP-DET'!$E117=4,IF('FP-DET'!$H117=AC$6,'FP-DET'!$L117,""),"") ->  | AD111: =IF('FP-DET'!$E117=4,IF('FP-DET'!$H117=AD$6,'FP-DET'!$L117,""),"") ->  | AE111: =IF('FP-DET'!$E117=5,IF('FP-DET'!$H117=AE$6,'FP-DET'!$L117,""),"") ->  | AF111: =IF('FP-DET'!$E117=5,IF('FP-DET'!$H117=AF$6,'FP-DET'!$L117,""),"") ->  | AG111: =IF('FP-DET'!$E117=5,IF('FP-DET'!$H117=AG$6,'FP-DET'!$L117,""),"") ->  | AH111: =IF('FP-DET'!$E117=5,IF('FP-DET'!$H117=AH$6,'FP-DET'!$L117,""),"") ->  | AI111: =IF('FP-DET'!$E117=5,IF('FP-DET'!$H117=AI$6,'FP-DET'!$L117,""),"") -> 
K112: =IF('FP-DET'!$E118=1,IF('FP-DET'!$H118=K$6,'FP-DET'!$L118,""),"") ->  | L112: =IF('FP-DET'!$E118=1,IF('FP-DET'!$H118=L$6,'FP-DET'!$L118,""),"") ->  | M112: =IF('FP-DET'!$E118=1,IF('FP-DET'!$H118=M$6,'FP-DET'!$L118,""),"") ->  | N112: =IF('FP-DET'!$E118=1,IF('FP-DET'!$H118=N$6,'FP-DET'!$L118,""),"") ->  | O112: =IF('FP-DET'!$E118=1,IF('FP-DET'!$H118=O$6,'FP-DET'!$L118,""),"") ->  | P112: =IF('FP-DET'!$E118=2,IF('FP-DET'!$H118=P$6,'FP-DET'!$L118,""),"") ->  | Q112: =IF('FP-DET'!$E118=2,IF('FP-DET'!$H118=Q$6,'FP-DET'!$L118,""),"") ->  | R112: =IF('FP-DET'!$E118=2,IF('FP-DET'!$H118=R$6,'FP-DET'!$L118,""),"") ->  | S112: =IF('FP-DET'!$E118=2,IF('FP-DET'!$H118=S$6,'FP-DET'!$L118,""),"") ->  | T112: =IF('FP-DET'!$E118=2,IF('FP-DET'!$H118=T$6,'FP-DET'!$L118,""),"") ->  | U112: =IF('FP-DET'!$E118=3,IF('FP-DET'!$H118=U$6,'FP-DET'!$L118,""),"") ->  | V112: =IF('FP-DET'!$E118=3,IF('FP-DET'!$H118=V$6,'FP-DET'!$L118,""),"") ->  | W112: =IF('FP-DET'!$E118=3,IF('FP-DET'!$H118=W$6,'FP-DET'!$L118,""),"") ->  | X112: =IF('FP-DET'!$E118=3,IF('FP-DET'!$H118=X$6,'FP-DET'!$L118,""),"") ->  | Y112: =IF('FP-DET'!$E118=3,IF('FP-DET'!$H118=Y$6,'FP-DET'!$L118,""),"") ->  | Z112: =IF('FP-DET'!$E118=4,IF('FP-DET'!$H118=Z$6,'FP-DET'!$L118,""),"") ->  | AA112: =IF('FP-DET'!$E118=4,IF('FP-DET'!$H118=AA$6,'FP-DET'!$L118,""),"") ->  | AB112: =IF('FP-DET'!$E118=4,IF('FP-DET'!$H118=AB$6,'FP-DET'!$L118,""),"") ->  | AC112: =IF('FP-DET'!$E118=4,IF('FP-DET'!$H118=AC$6,'FP-DET'!$L118,""),"") ->  | AD112: =IF('FP-DET'!$E118=4,IF('FP-DET'!$H118=AD$6,'FP-DET'!$L118,""),"") ->  | AE112: =IF('FP-DET'!$E118=5,IF('FP-DET'!$H118=AE$6,'FP-DET'!$L118,""),"") ->  | AF112: =IF('FP-DET'!$E118=5,IF('FP-DET'!$H118=AF$6,'FP-DET'!$L118,""),"") ->  | AG112: =IF('FP-DET'!$E118=5,IF('FP-DET'!$H118=AG$6,'FP-DET'!$L118,""),"") ->  | AH112: =IF('FP-DET'!$E118=5,IF('FP-DET'!$H118=AH$6,'FP-DET'!$L118,""),"") ->  | AI112: =IF('FP-DET'!$E118=5,IF('FP-DET'!$H118=AI$6,'FP-DET'!$L118,""),"") -> 
K113: =IF('FP-DET'!$E119=1,IF('FP-DET'!$H119=K$6,'FP-DET'!$L119,""),"") ->  | L113: =IF('FP-DET'!$E119=1,IF('FP-DET'!$H119=L$6,'FP-DET'!$L119,""),"") ->  | M113: =IF('FP-DET'!$E119=1,IF('FP-DET'!$H119=M$6,'FP-DET'!$L119,""),"") ->  | N113: =IF('FP-DET'!$E119=1,IF('FP-DET'!$H119=N$6,'FP-DET'!$L119,""),"") ->  | O113: =IF('FP-DET'!$E119=1,IF('FP-DET'!$H119=O$6,'FP-DET'!$L119,""),"") ->  | P113: =IF('FP-DET'!$E119=2,IF('FP-DET'!$H119=P$6,'FP-DET'!$L119,""),"") ->  | Q113: =IF('FP-DET'!$E119=2,IF('FP-DET'!$H119=Q$6,'FP-DET'!$L119,""),"") ->  | R113: =IF('FP-DET'!$E119=2,IF('FP-DET'!$H119=R$6,'FP-DET'!$L119,""),"") ->  | S113: =IF('FP-DET'!$E119=2,IF('FP-DET'!$H119=S$6,'FP-DET'!$L119,""),"") ->  | T113: =IF('FP-DET'!$E119=2,IF('FP-DET'!$H119=T$6,'FP-DET'!$L119,""),"") ->  | U113: =IF('FP-DET'!$E119=3,IF('FP-DET'!$H119=U$6,'FP-DET'!$L119,""),"") ->  | V113: =IF('FP-DET'!$E119=3,IF('FP-DET'!$H119=V$6,'FP-DET'!$L119,""),"") ->  | W113: =IF('FP-DET'!$E119=3,IF('FP-DET'!$H119=W$6,'FP-DET'!$L119,""),"") ->  | X113: =IF('FP-DET'!$E119=3,IF('FP-DET'!$H119=X$6,'FP-DET'!$L119,""),"") ->  | Y113: =IF('FP-DET'!$E119=3,IF('FP-DET'!$H119=Y$6,'FP-DET'!$L119,""),"") ->  | Z113: =IF('FP-DET'!$E119=4,IF('FP-DET'!$H119=Z$6,'FP-DET'!$L119,""),"") ->  | AA113: =IF('FP-DET'!$E119=4,IF('FP-DET'!$H119=AA$6,'FP-DET'!$L119,""),"") ->  | AB113: =IF('FP-DET'!$E119=4,IF('FP-DET'!$H119=AB$6,'FP-DET'!$L119,""),"") ->  | AC113: =IF('FP-DET'!$E119=4,IF('FP-DET'!$H119=AC$6,'FP-DET'!$L119,""),"") ->  | AD113: =IF('FP-DET'!$E119=4,IF('FP-DET'!$H119=AD$6,'FP-DET'!$L119,""),"") ->  | AE113: =IF('FP-DET'!$E119=5,IF('FP-DET'!$H119=AE$6,'FP-DET'!$L119,""),"") ->  | AF113: =IF('FP-DET'!$E119=5,IF('FP-DET'!$H119=AF$6,'FP-DET'!$L119,""),"") ->  | AG113: =IF('FP-DET'!$E119=5,IF('FP-DET'!$H119=AG$6,'FP-DET'!$L119,""),"") ->  | AH113: =IF('FP-DET'!$E119=5,IF('FP-DET'!$H119=AH$6,'FP-DET'!$L119,""),"") ->  | AI113: =IF('FP-DET'!$E119=5,IF('FP-DET'!$H119=AI$6,'FP-DET'!$L119,""),"") -> 
K114: =IF('FP-DET'!$E120=1,IF('FP-DET'!$H120=K$6,'FP-DET'!$L120,""),"") ->  | L114: =IF('FP-DET'!$E120=1,IF('FP-DET'!$H120=L$6,'FP-DET'!$L120,""),"") ->  | M114: =IF('FP-DET'!$E120=1,IF('FP-DET'!$H120=M$6,'FP-DET'!$L120,""),"") ->  | N114: =IF('FP-DET'!$E120=1,IF('FP-DET'!$H120=N$6,'FP-DET'!$L120,""),"") ->  | O114: =IF('FP-DET'!$E120=1,IF('FP-DET'!$H120=O$6,'FP-DET'!$L120,""),"") ->  | P114: =IF('FP-DET'!$E120=2,IF('FP-DET'!$H120=P$6,'FP-DET'!$L120,""),"") ->  | Q114: =IF('FP-DET'!$E120=2,IF('FP-DET'!$H120=Q$6,'FP-DET'!$L120,""),"") ->  | R114: =IF('FP-DET'!$E120=2,IF('FP-DET'!$H120=R$6,'FP-DET'!$L120,""),"") ->  | S114: =IF('FP-DET'!$E120=2,IF('FP-DET'!$H120=S$6,'FP-DET'!$L120,""),"") ->  | T114: =IF('FP-DET'!$E120=2,IF('FP-DET'!$H120=T$6,'FP-DET'!$L120,""),"") ->  | U114: =IF('FP-DET'!$E120=3,IF('FP-DET'!$H120=U$6,'FP-DET'!$L120,""),"") ->  | V114: =IF('FP-DET'!$E120=3,IF('FP-DET'!$H120=V$6,'FP-DET'!$L120,""),"") ->  | W114: =IF('FP-DET'!$E120=3,IF('FP-DET'!$H120=W$6,'FP-DET'!$L120,""),"") ->  | X114: =IF('FP-DET'!$E120=3,IF('FP-DET'!$H120=X$6,'FP-DET'!$L120,""),"") ->  | Y114: =IF('FP-DET'!$E120=3,IF('FP-DET'!$H120=Y$6,'FP-DET'!$L120,""),"") ->  | Z114: =IF('FP-DET'!$E120=4,IF('FP-DET'!$H120=Z$6,'FP-DET'!$L120,""),"") ->  | AA114: =IF('FP-DET'!$E120=4,IF('FP-DET'!$H120=AA$6,'FP-DET'!$L120,""),"") ->  | AB114: =IF('FP-DET'!$E120=4,IF('FP-DET'!$H120=AB$6,'FP-DET'!$L120,""),"") ->  | AC114: =IF('FP-DET'!$E120=4,IF('FP-DET'!$H120=AC$6,'FP-DET'!$L120,""),"") ->  | AD114: =IF('FP-DET'!$E120=4,IF('FP-DET'!$H120=AD$6,'FP-DET'!$L120,""),"") ->  | AE114: =IF('FP-DET'!$E120=5,IF('FP-DET'!$H120=AE$6,'FP-DET'!$L120,""),"") ->  | AF114: =IF('FP-DET'!$E120=5,IF('FP-DET'!$H120=AF$6,'FP-DET'!$L120,""),"") ->  | AG114: =IF('FP-DET'!$E120=5,IF('FP-DET'!$H120=AG$6,'FP-DET'!$L120,""),"") ->  | AH114: =IF('FP-DET'!$E120=5,IF('FP-DET'!$H120=AH$6,'FP-DET'!$L120,""),"") ->  | AI114: =IF('FP-DET'!$E120=5,IF('FP-DET'!$H120=AI$6,'FP-DET'!$L120,""),"") -> 
K115: =IF('FP-DET'!$E121=1,IF('FP-DET'!$H121=K$6,'FP-DET'!$L121,""),"") ->  | L115: =IF('FP-DET'!$E121=1,IF('FP-DET'!$H121=L$6,'FP-DET'!$L121,""),"") ->  | M115: =IF('FP-DET'!$E121=1,IF('FP-DET'!$H121=M$6,'FP-DET'!$L121,""),"") ->  | N115: =IF('FP-DET'!$E121=1,IF('FP-DET'!$H121=N$6,'FP-DET'!$L121,""),"") ->  | O115: =IF('FP-DET'!$E121=1,IF('FP-DET'!$H121=O$6,'FP-DET'!$L121,""),"") ->  | P115: =IF('FP-DET'!$E121=2,IF('FP-DET'!$H121=P$6,'FP-DET'!$L121,""),"") ->  | Q115: =IF('FP-DET'!$E121=2,IF('FP-DET'!$H121=Q$6,'FP-DET'!$L121,""),"") ->  | R115: =IF('FP-DET'!$E121=2,IF('FP-DET'!$H121=R$6,'FP-DET'!$L121,""),"") ->  | S115: =IF('FP-DET'!$E121=2,IF('FP-DET'!$H121=S$6,'FP-DET'!$L121,""),"") ->  | T115: =IF('FP-DET'!$E121=2,IF('FP-DET'!$H121=T$6,'FP-DET'!$L121,""),"") ->  | U115: =IF('FP-DET'!$E121=3,IF('FP-DET'!$H121=U$6,'FP-DET'!$L121,""),"") ->  | V115: =IF('FP-DET'!$E121=3,IF('FP-DET'!$H121=V$6,'FP-DET'!$L121,""),"") ->  | W115: =IF('FP-DET'!$E121=3,IF('FP-DET'!$H121=W$6,'FP-DET'!$L121,""),"") ->  | X115: =IF('FP-DET'!$E121=3,IF('FP-DET'!$H121=X$6,'FP-DET'!$L121,""),"") ->  | Y115: =IF('FP-DET'!$E121=3,IF('FP-DET'!$H121=Y$6,'FP-DET'!$L121,""),"") ->  | Z115: =IF('FP-DET'!$E121=4,IF('FP-DET'!$H121=Z$6,'FP-DET'!$L121,""),"") ->  | AA115: =IF('FP-DET'!$E121=4,IF('FP-DET'!$H121=AA$6,'FP-DET'!$L121,""),"") ->  | AB115: =IF('FP-DET'!$E121=4,IF('FP-DET'!$H121=AB$6,'FP-DET'!$L121,""),"") ->  | AC115: =IF('FP-DET'!$E121=4,IF('FP-DET'!$H121=AC$6,'FP-DET'!$L121,""),"") ->  | AD115: =IF('FP-DET'!$E121=4,IF('FP-DET'!$H121=AD$6,'FP-DET'!$L121,""),"") ->  | AE115: =IF('FP-DET'!$E121=5,IF('FP-DET'!$H121=AE$6,'FP-DET'!$L121,""),"") ->  | AF115: =IF('FP-DET'!$E121=5,IF('FP-DET'!$H121=AF$6,'FP-DET'!$L121,""),"") ->  | AG115: =IF('FP-DET'!$E121=5,IF('FP-DET'!$H121=AG$6,'FP-DET'!$L121,""),"") ->  | AH115: =IF('FP-DET'!$E121=5,IF('FP-DET'!$H121=AH$6,'FP-DET'!$L121,""),"") ->  | AI115: =IF('FP-DET'!$E121=5,IF('FP-DET'!$H121=AI$6,'FP-DET'!$L121,""),"") -> 
K116: =IF('FP-DET'!$E122=1,IF('FP-DET'!$H122=K$6,'FP-DET'!$L122,""),"") ->  | L116: =IF('FP-DET'!$E122=1,IF('FP-DET'!$H122=L$6,'FP-DET'!$L122,""),"") ->  | M116: =IF('FP-DET'!$E122=1,IF('FP-DET'!$H122=M$6,'FP-DET'!$L122,""),"") ->  | N116: =IF('FP-DET'!$E122=1,IF('FP-DET'!$H122=N$6,'FP-DET'!$L122,""),"") ->  | O116: =IF('FP-DET'!$E122=1,IF('FP-DET'!$H122=O$6,'FP-DET'!$L122,""),"") ->  | P116: =IF('FP-DET'!$E122=2,IF('FP-DET'!$H122=P$6,'FP-DET'!$L122,""),"") ->  | Q116: =IF('FP-DET'!$E122=2,IF('FP-DET'!$H122=Q$6,'FP-DET'!$L122,""),"") ->  | R116: =IF('FP-DET'!$E122=2,IF('FP-DET'!$H122=R$6,'FP-DET'!$L122,""),"") ->  | S116: =IF('FP-DET'!$E122=2,IF('FP-DET'!$H122=S$6,'FP-DET'!$L122,""),"") ->  | T116: =IF('FP-DET'!$E122=2,IF('FP-DET'!$H122=T$6,'FP-DET'!$L122,""),"") ->  | U116: =IF('FP-DET'!$E122=3,IF('FP-DET'!$H122=U$6,'FP-DET'!$L122,""),"") ->  | V116: =IF('FP-DET'!$E122=3,IF('FP-DET'!$H122=V$6,'FP-DET'!$L122,""),"") ->  | W116: =IF('FP-DET'!$E122=3,IF('FP-DET'!$H122=W$6,'FP-DET'!$L122,""),"") ->  | X116: =IF('FP-DET'!$E122=3,IF('FP-DET'!$H122=X$6,'FP-DET'!$L122,""),"") ->  | Y116: =IF('FP-DET'!$E122=3,IF('FP-DET'!$H122=Y$6,'FP-DET'!$L122,""),"") ->  | Z116: =IF('FP-DET'!$E122=4,IF('FP-DET'!$H122=Z$6,'FP-DET'!$L122,""),"") ->  | AA116: =IF('FP-DET'!$E122=4,IF('FP-DET'!$H122=AA$6,'FP-DET'!$L122,""),"") ->  | AB116: =IF('FP-DET'!$E122=4,IF('FP-DET'!$H122=AB$6,'FP-DET'!$L122,""),"") ->  | AC116: =IF('FP-DET'!$E122=4,IF('FP-DET'!$H122=AC$6,'FP-DET'!$L122,""),"") ->  | AD116: =IF('FP-DET'!$E122=4,IF('FP-DET'!$H122=AD$6,'FP-DET'!$L122,""),"") ->  | AE116: =IF('FP-DET'!$E122=5,IF('FP-DET'!$H122=AE$6,'FP-DET'!$L122,""),"") ->  | AF116: =IF('FP-DET'!$E122=5,IF('FP-DET'!$H122=AF$6,'FP-DET'!$L122,""),"") ->  | AG116: =IF('FP-DET'!$E122=5,IF('FP-DET'!$H122=AG$6,'FP-DET'!$L122,""),"") ->  | AH116: =IF('FP-DET'!$E122=5,IF('FP-DET'!$H122=AH$6,'FP-DET'!$L122,""),"") ->  | AI116: =IF('FP-DET'!$E122=5,IF('FP-DET'!$H122=AI$6,'FP-DET'!$L122,""),"") -> 
K117: =IF('FP-DET'!$E123=1,IF('FP-DET'!$H123=K$6,'FP-DET'!$L123,""),"") ->  | L117: =IF('FP-DET'!$E123=1,IF('FP-DET'!$H123=L$6,'FP-DET'!$L123,""),"") ->  | M117: =IF('FP-DET'!$E123=1,IF('FP-DET'!$H123=M$6,'FP-DET'!$L123,""),"") ->  | N117: =IF('FP-DET'!$E123=1,IF('FP-DET'!$H123=N$6,'FP-DET'!$L123,""),"") ->  | O117: =IF('FP-DET'!$E123=1,IF('FP-DET'!$H123=O$6,'FP-DET'!$L123,""),"") ->  | P117: =IF('FP-DET'!$E123=2,IF('FP-DET'!$H123=P$6,'FP-DET'!$L123,""),"") ->  | Q117: =IF('FP-DET'!$E123=2,IF('FP-DET'!$H123=Q$6,'FP-DET'!$L123,""),"") ->  | R117: =IF('FP-DET'!$E123=2,IF('FP-DET'!$H123=R$6,'FP-DET'!$L123,""),"") ->  | S117: =IF('FP-DET'!$E123=2,IF('FP-DET'!$H123=S$6,'FP-DET'!$L123,""),"") ->  | T117: =IF('FP-DET'!$E123=2,IF('FP-DET'!$H123=T$6,'FP-DET'!$L123,""),"") ->  | U117: =IF('FP-DET'!$E123=3,IF('FP-DET'!$H123=U$6,'FP-DET'!$L123,""),"") ->  | V117: =IF('FP-DET'!$E123=3,IF('FP-DET'!$H123=V$6,'FP-DET'!$L123,""),"") ->  | W117: =IF('FP-DET'!$E123=3,IF('FP-DET'!$H123=W$6,'FP-DET'!$L123,""),"") ->  | X117: =IF('FP-DET'!$E123=3,IF('FP-DET'!$H123=X$6,'FP-DET'!$L123,""),"") ->  | Y117: =IF('FP-DET'!$E123=3,IF('FP-DET'!$H123=Y$6,'FP-DET'!$L123,""),"") ->  | Z117: =IF('FP-DET'!$E123=4,IF('FP-DET'!$H123=Z$6,'FP-DET'!$L123,""),"") ->  | AA117: =IF('FP-DET'!$E123=4,IF('FP-DET'!$H123=AA$6,'FP-DET'!$L123,""),"") ->  | AB117: =IF('FP-DET'!$E123=4,IF('FP-DET'!$H123=AB$6,'FP-DET'!$L123,""),"") ->  | AC117: =IF('FP-DET'!$E123=4,IF('FP-DET'!$H123=AC$6,'FP-DET'!$L123,""),"") ->  | AD117: =IF('FP-DET'!$E123=4,IF('FP-DET'!$H123=AD$6,'FP-DET'!$L123,""),"") ->  | AE117: =IF('FP-DET'!$E123=5,IF('FP-DET'!$H123=AE$6,'FP-DET'!$L123,""),"") ->  | AF117: =IF('FP-DET'!$E123=5,IF('FP-DET'!$H123=AF$6,'FP-DET'!$L123,""),"") ->  | AG117: =IF('FP-DET'!$E123=5,IF('FP-DET'!$H123=AG$6,'FP-DET'!$L123,""),"") ->  | AH117: =IF('FP-DET'!$E123=5,IF('FP-DET'!$H123=AH$6,'FP-DET'!$L123,""),"") ->  | AI117: =IF('FP-DET'!$E123=5,IF('FP-DET'!$H123=AI$6,'FP-DET'!$L123,""),"") -> 
K118: =IF('FP-DET'!$E124=1,IF('FP-DET'!$H124=K$6,'FP-DET'!$L124,""),"") ->  | L118: =IF('FP-DET'!$E124=1,IF('FP-DET'!$H124=L$6,'FP-DET'!$L124,""),"") ->  | M118: =IF('FP-DET'!$E124=1,IF('FP-DET'!$H124=M$6,'FP-DET'!$L124,""),"") ->  | N118: =IF('FP-DET'!$E124=1,IF('FP-DET'!$H124=N$6,'FP-DET'!$L124,""),"") ->  | O118: =IF('FP-DET'!$E124=1,IF('FP-DET'!$H124=O$6,'FP-DET'!$L124,""),"") ->  | P118: =IF('FP-DET'!$E124=2,IF('FP-DET'!$H124=P$6,'FP-DET'!$L124,""),"") ->  | Q118: =IF('FP-DET'!$E124=2,IF('FP-DET'!$H124=Q$6,'FP-DET'!$L124,""),"") ->  | R118: =IF('FP-DET'!$E124=2,IF('FP-DET'!$H124=R$6,'FP-DET'!$L124,""),"") ->  | S118: =IF('FP-DET'!$E124=2,IF('FP-DET'!$H124=S$6,'FP-DET'!$L124,""),"") ->  | T118: =IF('FP-DET'!$E124=2,IF('FP-DET'!$H124=T$6,'FP-DET'!$L124,""),"") ->  | U118: =IF('FP-DET'!$E124=3,IF('FP-DET'!$H124=U$6,'FP-DET'!$L124,""),"") ->  | V118: =IF('FP-DET'!$E124=3,IF('FP-DET'!$H124=V$6,'FP-DET'!$L124,""),"") ->  | W118: =IF('FP-DET'!$E124=3,IF('FP-DET'!$H124=W$6,'FP-DET'!$L124,""),"") ->  | X118: =IF('FP-DET'!$E124=3,IF('FP-DET'!$H124=X$6,'FP-DET'!$L124,""),"") ->  | Y118: =IF('FP-DET'!$E124=3,IF('FP-DET'!$H124=Y$6,'FP-DET'!$L124,""),"") ->  | Z118: =IF('FP-DET'!$E124=4,IF('FP-DET'!$H124=Z$6,'FP-DET'!$L124,""),"") ->  | AA118: =IF('FP-DET'!$E124=4,IF('FP-DET'!$H124=AA$6,'FP-DET'!$L124,""),"") ->  | AB118: =IF('FP-DET'!$E124=4,IF('FP-DET'!$H124=AB$6,'FP-DET'!$L124,""),"") ->  | AC118: =IF('FP-DET'!$E124=4,IF('FP-DET'!$H124=AC$6,'FP-DET'!$L124,""),"") ->  | AD118: =IF('FP-DET'!$E124=4,IF('FP-DET'!$H124=AD$6,'FP-DET'!$L124,""),"") ->  | AE118: =IF('FP-DET'!$E124=5,IF('FP-DET'!$H124=AE$6,'FP-DET'!$L124,""),"") ->  | AF118: =IF('FP-DET'!$E124=5,IF('FP-DET'!$H124=AF$6,'FP-DET'!$L124,""),"") ->  | AG118: =IF('FP-DET'!$E124=5,IF('FP-DET'!$H124=AG$6,'FP-DET'!$L124,""),"") ->  | AH118: =IF('FP-DET'!$E124=5,IF('FP-DET'!$H124=AH$6,'FP-DET'!$L124,""),"") ->  | AI118: =IF('FP-DET'!$E124=5,IF('FP-DET'!$H124=AI$6,'FP-DET'!$L124,""),"") -> 
K119: =IF('FP-DET'!$E125=1,IF('FP-DET'!$H125=K$6,'FP-DET'!$L125,""),"") ->  | L119: =IF('FP-DET'!$E125=1,IF('FP-DET'!$H125=L$6,'FP-DET'!$L125,""),"") ->  | M119: =IF('FP-DET'!$E125=1,IF('FP-DET'!$H125=M$6,'FP-DET'!$L125,""),"") ->  | N119: =IF('FP-DET'!$E125=1,IF('FP-DET'!$H125=N$6,'FP-DET'!$L125,""),"") ->  | O119: =IF('FP-DET'!$E125=1,IF('FP-DET'!$H125=O$6,'FP-DET'!$L125,""),"") ->  | P119: =IF('FP-DET'!$E125=2,IF('FP-DET'!$H125=P$6,'FP-DET'!$L125,""),"") ->  | Q119: =IF('FP-DET'!$E125=2,IF('FP-DET'!$H125=Q$6,'FP-DET'!$L125,""),"") ->  | R119: =IF('FP-DET'!$E125=2,IF('FP-DET'!$H125=R$6,'FP-DET'!$L125,""),"") ->  | S119: =IF('FP-DET'!$E125=2,IF('FP-DET'!$H125=S$6,'FP-DET'!$L125,""),"") ->  | T119: =IF('FP-DET'!$E125=2,IF('FP-DET'!$H125=T$6,'FP-DET'!$L125,""),"") ->  | U119: =IF('FP-DET'!$E125=3,IF('FP-DET'!$H125=U$6,'FP-DET'!$L125,""),"") ->  | V119: =IF('FP-DET'!$E125=3,IF('FP-DET'!$H125=V$6,'FP-DET'!$L125,""),"") ->  | W119: =IF('FP-DET'!$E125=3,IF('FP-DET'!$H125=W$6,'FP-DET'!$L125,""),"") ->  | X119: =IF('FP-DET'!$E125=3,IF('FP-DET'!$H125=X$6,'FP-DET'!$L125,""),"") ->  | Y119: =IF('FP-DET'!$E125=3,IF('FP-DET'!$H125=Y$6,'FP-DET'!$L125,""),"") ->  | Z119: =IF('FP-DET'!$E125=4,IF('FP-DET'!$H125=Z$6,'FP-DET'!$L125,""),"") ->  | AA119: =IF('FP-DET'!$E125=4,IF('FP-DET'!$H125=AA$6,'FP-DET'!$L125,""),"") ->  | AB119: =IF('FP-DET'!$E125=4,IF('FP-DET'!$H125=AB$6,'FP-DET'!$L125,""),"") ->  | AC119: =IF('FP-DET'!$E125=4,IF('FP-DET'!$H125=AC$6,'FP-DET'!$L125,""),"") ->  | AD119: =IF('FP-DET'!$E125=4,IF('FP-DET'!$H125=AD$6,'FP-DET'!$L125,""),"") ->  | AE119: =IF('FP-DET'!$E125=5,IF('FP-DET'!$H125=AE$6,'FP-DET'!$L125,""),"") ->  | AF119: =IF('FP-DET'!$E125=5,IF('FP-DET'!$H125=AF$6,'FP-DET'!$L125,""),"") ->  | AG119: =IF('FP-DET'!$E125=5,IF('FP-DET'!$H125=AG$6,'FP-DET'!$L125,""),"") ->  | AH119: =IF('FP-DET'!$E125=5,IF('FP-DET'!$H125=AH$6,'FP-DET'!$L125,""),"") ->  | AI119: =IF('FP-DET'!$E125=5,IF('FP-DET'!$H125=AI$6,'FP-DET'!$L125,""),"") -> 
K120: =IF('FP-DET'!$E126=1,IF('FP-DET'!$H126=K$6,'FP-DET'!$L126,""),"") ->  | L120: =IF('FP-DET'!$E126=1,IF('FP-DET'!$H126=L$6,'FP-DET'!$L126,""),"") ->  | M120: =IF('FP-DET'!$E126=1,IF('FP-DET'!$H126=M$6,'FP-DET'!$L126,""),"") ->  | N120: =IF('FP-DET'!$E126=1,IF('FP-DET'!$H126=N$6,'FP-DET'!$L126,""),"") ->  | O120: =IF('FP-DET'!$E126=1,IF('FP-DET'!$H126=O$6,'FP-DET'!$L126,""),"") ->  | P120: =IF('FP-DET'!$E126=2,IF('FP-DET'!$H126=P$6,'FP-DET'!$L126,""),"") ->  | Q120: =IF('FP-DET'!$E126=2,IF('FP-DET'!$H126=Q$6,'FP-DET'!$L126,""),"") ->  | R120: =IF('FP-DET'!$E126=2,IF('FP-DET'!$H126=R$6,'FP-DET'!$L126,""),"") ->  | S120: =IF('FP-DET'!$E126=2,IF('FP-DET'!$H126=S$6,'FP-DET'!$L126,""),"") ->  | T120: =IF('FP-DET'!$E126=2,IF('FP-DET'!$H126=T$6,'FP-DET'!$L126,""),"") ->  | U120: =IF('FP-DET'!$E126=3,IF('FP-DET'!$H126=U$6,'FP-DET'!$L126,""),"") ->  | V120: =IF('FP-DET'!$E126=3,IF('FP-DET'!$H126=V$6,'FP-DET'!$L126,""),"") ->  | W120: =IF('FP-DET'!$E126=3,IF('FP-DET'!$H126=W$6,'FP-DET'!$L126,""),"") ->  | X120: =IF('FP-DET'!$E126=3,IF('FP-DET'!$H126=X$6,'FP-DET'!$L126,""),"") ->  | Y120: =IF('FP-DET'!$E126=3,IF('FP-DET'!$H126=Y$6,'FP-DET'!$L126,""),"") ->  | Z120: =IF('FP-DET'!$E126=4,IF('FP-DET'!$H126=Z$6,'FP-DET'!$L126,""),"") ->  | AA120: =IF('FP-DET'!$E126=4,IF('FP-DET'!$H126=AA$6,'FP-DET'!$L126,""),"") ->  | AB120: =IF('FP-DET'!$E126=4,IF('FP-DET'!$H126=AB$6,'FP-DET'!$L126,""),"") ->  | AC120: =IF('FP-DET'!$E126=4,IF('FP-DET'!$H126=AC$6,'FP-DET'!$L126,""),"") ->  | AD120: =IF('FP-DET'!$E126=4,IF('FP-DET'!$H126=AD$6,'FP-DET'!$L126,""),"") ->  | AE120: =IF('FP-DET'!$E126=5,IF('FP-DET'!$H126=AE$6,'FP-DET'!$L126,""),"") ->  | AF120: =IF('FP-DET'!$E126=5,IF('FP-DET'!$H126=AF$6,'FP-DET'!$L126,""),"") ->  | AG120: =IF('FP-DET'!$E126=5,IF('FP-DET'!$H126=AG$6,'FP-DET'!$L126,""),"") ->  | AH120: =IF('FP-DET'!$E126=5,IF('FP-DET'!$H126=AH$6,'FP-DET'!$L126,""),"") ->  | AI120: =IF('FP-DET'!$E126=5,IF('FP-DET'!$H126=AI$6,'FP-DET'!$L126,""),"") -> 
K121: =IF('FP-DET'!$E127=1,IF('FP-DET'!$H127=K$6,'FP-DET'!$L127,""),"") ->  | L121: =IF('FP-DET'!$E127=1,IF('FP-DET'!$H127=L$6,'FP-DET'!$L127,""),"") ->  | M121: =IF('FP-DET'!$E127=1,IF('FP-DET'!$H127=M$6,'FP-DET'!$L127,""),"") ->  | N121: =IF('FP-DET'!$E127=1,IF('FP-DET'!$H127=N$6,'FP-DET'!$L127,""),"") ->  | O121: =IF('FP-DET'!$E127=1,IF('FP-DET'!$H127=O$6,'FP-DET'!$L127,""),"") ->  | P121: =IF('FP-DET'!$E127=2,IF('FP-DET'!$H127=P$6,'FP-DET'!$L127,""),"") ->  | Q121: =IF('FP-DET'!$E127=2,IF('FP-DET'!$H127=Q$6,'FP-DET'!$L127,""),"") ->  | R121: =IF('FP-DET'!$E127=2,IF('FP-DET'!$H127=R$6,'FP-DET'!$L127,""),"") ->  | S121: =IF('FP-DET'!$E127=2,IF('FP-DET'!$H127=S$6,'FP-DET'!$L127,""),"") ->  | T121: =IF('FP-DET'!$E127=2,IF('FP-DET'!$H127=T$6,'FP-DET'!$L127,""),"") ->  | U121: =IF('FP-DET'!$E127=3,IF('FP-DET'!$H127=U$6,'FP-DET'!$L127,""),"") ->  | V121: =IF('FP-DET'!$E127=3,IF('FP-DET'!$H127=V$6,'FP-DET'!$L127,""),"") ->  | W121: =IF('FP-DET'!$E127=3,IF('FP-DET'!$H127=W$6,'FP-DET'!$L127,""),"") ->  | X121: =IF('FP-DET'!$E127=3,IF('FP-DET'!$H127=X$6,'FP-DET'!$L127,""),"") ->  | Y121: =IF('FP-DET'!$E127=3,IF('FP-DET'!$H127=Y$6,'FP-DET'!$L127,""),"") ->  | Z121: =IF('FP-DET'!$E127=4,IF('FP-DET'!$H127=Z$6,'FP-DET'!$L127,""),"") ->  | AA121: =IF('FP-DET'!$E127=4,IF('FP-DET'!$H127=AA$6,'FP-DET'!$L127,""),"") ->  | AB121: =IF('FP-DET'!$E127=4,IF('FP-DET'!$H127=AB$6,'FP-DET'!$L127,""),"") ->  | AC121: =IF('FP-DET'!$E127=4,IF('FP-DET'!$H127=AC$6,'FP-DET'!$L127,""),"") ->  | AD121: =IF('FP-DET'!$E127=4,IF('FP-DET'!$H127=AD$6,'FP-DET'!$L127,""),"") ->  | AE121: =IF('FP-DET'!$E127=5,IF('FP-DET'!$H127=AE$6,'FP-DET'!$L127,""),"") ->  | AF121: =IF('FP-DET'!$E127=5,IF('FP-DET'!$H127=AF$6,'FP-DET'!$L127,""),"") ->  | AG121: =IF('FP-DET'!$E127=5,IF('FP-DET'!$H127=AG$6,'FP-DET'!$L127,""),"") ->  | AH121: =IF('FP-DET'!$E127=5,IF('FP-DET'!$H127=AH$6,'FP-DET'!$L127,""),"") ->  | AI121: =IF('FP-DET'!$E127=5,IF('FP-DET'!$H127=AI$6,'FP-DET'!$L127,""),"") -> 
K122: =IF('FP-DET'!$E128=1,IF('FP-DET'!$H128=K$6,'FP-DET'!$L128,""),"") ->  | L122: =IF('FP-DET'!$E128=1,IF('FP-DET'!$H128=L$6,'FP-DET'!$L128,""),"") ->  | M122: =IF('FP-DET'!$E128=1,IF('FP-DET'!$H128=M$6,'FP-DET'!$L128,""),"") ->  | N122: =IF('FP-DET'!$E128=1,IF('FP-DET'!$H128=N$6,'FP-DET'!$L128,""),"") ->  | O122: =IF('FP-DET'!$E128=1,IF('FP-DET'!$H128=O$6,'FP-DET'!$L128,""),"") ->  | P122: =IF('FP-DET'!$E128=2,IF('FP-DET'!$H128=P$6,'FP-DET'!$L128,""),"") ->  | Q122: =IF('FP-DET'!$E128=2,IF('FP-DET'!$H128=Q$6,'FP-DET'!$L128,""),"") ->  | R122: =IF('FP-DET'!$E128=2,IF('FP-DET'!$H128=R$6,'FP-DET'!$L128,""),"") ->  | S122: =IF('FP-DET'!$E128=2,IF('FP-DET'!$H128=S$6,'FP-DET'!$L128,""),"") ->  | T122: =IF('FP-DET'!$E128=2,IF('FP-DET'!$H128=T$6,'FP-DET'!$L128,""),"") ->  | U122: =IF('FP-DET'!$E128=3,IF('FP-DET'!$H128=U$6,'FP-DET'!$L128,""),"") ->  | V122: =IF('FP-DET'!$E128=3,IF('FP-DET'!$H128=V$6,'FP-DET'!$L128,""),"") ->  | W122: =IF('FP-DET'!$E128=3,IF('FP-DET'!$H128=W$6,'FP-DET'!$L128,""),"") ->  | X122: =IF('FP-DET'!$E128=3,IF('FP-DET'!$H128=X$6,'FP-DET'!$L128,""),"") ->  | Y122: =IF('FP-DET'!$E128=3,IF('FP-DET'!$H128=Y$6,'FP-DET'!$L128,""),"") ->  | Z122: =IF('FP-DET'!$E128=4,IF('FP-DET'!$H128=Z$6,'FP-DET'!$L128,""),"") ->  | AA122: =IF('FP-DET'!$E128=4,IF('FP-DET'!$H128=AA$6,'FP-DET'!$L128,""),"") ->  | AB122: =IF('FP-DET'!$E128=4,IF('FP-DET'!$H128=AB$6,'FP-DET'!$L128,""),"") ->  | AC122: =IF('FP-DET'!$E128=4,IF('FP-DET'!$H128=AC$6,'FP-DET'!$L128,""),"") ->  | AD122: =IF('FP-DET'!$E128=4,IF('FP-DET'!$H128=AD$6,'FP-DET'!$L128,""),"") ->  | AE122: =IF('FP-DET'!$E128=5,IF('FP-DET'!$H128=AE$6,'FP-DET'!$L128,""),"") ->  | AF122: =IF('FP-DET'!$E128=5,IF('FP-DET'!$H128=AF$6,'FP-DET'!$L128,""),"") ->  | AG122: =IF('FP-DET'!$E128=5,IF('FP-DET'!$H128=AG$6,'FP-DET'!$L128,""),"") ->  | AH122: =IF('FP-DET'!$E128=5,IF('FP-DET'!$H128=AH$6,'FP-DET'!$L128,""),"") ->  | AI122: =IF('FP-DET'!$E128=5,IF('FP-DET'!$H128=AI$6,'FP-DET'!$L128,""),"") -> 
K123: =IF('FP-DET'!$E129=1,IF('FP-DET'!$H129=K$6,'FP-DET'!$L129,""),"") ->  | L123: =IF('FP-DET'!$E129=1,IF('FP-DET'!$H129=L$6,'FP-DET'!$L129,""),"") ->  | M123: =IF('FP-DET'!$E129=1,IF('FP-DET'!$H129=M$6,'FP-DET'!$L129,""),"") ->  | N123: =IF('FP-DET'!$E129=1,IF('FP-DET'!$H129=N$6,'FP-DET'!$L129,""),"") ->  | O123: =IF('FP-DET'!$E129=1,IF('FP-DET'!$H129=O$6,'FP-DET'!$L129,""),"") ->  | P123: =IF('FP-DET'!$E129=2,IF('FP-DET'!$H129=P$6,'FP-DET'!$L129,""),"") ->  | Q123: =IF('FP-DET'!$E129=2,IF('FP-DET'!$H129=Q$6,'FP-DET'!$L129,""),"") ->  | R123: =IF('FP-DET'!$E129=2,IF('FP-DET'!$H129=R$6,'FP-DET'!$L129,""),"") ->  | S123: =IF('FP-DET'!$E129=2,IF('FP-DET'!$H129=S$6,'FP-DET'!$L129,""),"") ->  | T123: =IF('FP-DET'!$E129=2,IF('FP-DET'!$H129=T$6,'FP-DET'!$L129,""),"") ->  | U123: =IF('FP-DET'!$E129=3,IF('FP-DET'!$H129=U$6,'FP-DET'!$L129,""),"") ->  | V123: =IF('FP-DET'!$E129=3,IF('FP-DET'!$H129=V$6,'FP-DET'!$L129,""),"") ->  | W123: =IF('FP-DET'!$E129=3,IF('FP-DET'!$H129=W$6,'FP-DET'!$L129,""),"") ->  | X123: =IF('FP-DET'!$E129=3,IF('FP-DET'!$H129=X$6,'FP-DET'!$L129,""),"") ->  | Y123: =IF('FP-DET'!$E129=3,IF('FP-DET'!$H129=Y$6,'FP-DET'!$L129,""),"") ->  | Z123: =IF('FP-DET'!$E129=4,IF('FP-DET'!$H129=Z$6,'FP-DET'!$L129,""),"") ->  | AA123: =IF('FP-DET'!$E129=4,IF('FP-DET'!$H129=AA$6,'FP-DET'!$L129,""),"") ->  | AB123: =IF('FP-DET'!$E129=4,IF('FP-DET'!$H129=AB$6,'FP-DET'!$L129,""),"") ->  | AC123: =IF('FP-DET'!$E129=4,IF('FP-DET'!$H129=AC$6,'FP-DET'!$L129,""),"") ->  | AD123: =IF('FP-DET'!$E129=4,IF('FP-DET'!$H129=AD$6,'FP-DET'!$L129,""),"") ->  | AE123: =IF('FP-DET'!$E129=5,IF('FP-DET'!$H129=AE$6,'FP-DET'!$L129,""),"") ->  | AF123: =IF('FP-DET'!$E129=5,IF('FP-DET'!$H129=AF$6,'FP-DET'!$L129,""),"") ->  | AG123: =IF('FP-DET'!$E129=5,IF('FP-DET'!$H129=AG$6,'FP-DET'!$L129,""),"") ->  | AH123: =IF('FP-DET'!$E129=5,IF('FP-DET'!$H129=AH$6,'FP-DET'!$L129,""),"") ->  | AI123: =IF('FP-DET'!$E129=5,IF('FP-DET'!$H129=AI$6,'FP-DET'!$L129,""),"") -> 
K124: =IF('FP-DET'!$E130=1,IF('FP-DET'!$H130=K$6,'FP-DET'!$L130,""),"") ->  | L124: =IF('FP-DET'!$E130=1,IF('FP-DET'!$H130=L$6,'FP-DET'!$L130,""),"") ->  | M124: =IF('FP-DET'!$E130=1,IF('FP-DET'!$H130=M$6,'FP-DET'!$L130,""),"") ->  | N124: =IF('FP-DET'!$E130=1,IF('FP-DET'!$H130=N$6,'FP-DET'!$L130,""),"") ->  | O124: =IF('FP-DET'!$E130=1,IF('FP-DET'!$H130=O$6,'FP-DET'!$L130,""),"") ->  | P124: =IF('FP-DET'!$E130=2,IF('FP-DET'!$H130=P$6,'FP-DET'!$L130,""),"") ->  | Q124: =IF('FP-DET'!$E130=2,IF('FP-DET'!$H130=Q$6,'FP-DET'!$L130,""),"") ->  | R124: =IF('FP-DET'!$E130=2,IF('FP-DET'!$H130=R$6,'FP-DET'!$L130,""),"") ->  | S124: =IF('FP-DET'!$E130=2,IF('FP-DET'!$H130=S$6,'FP-DET'!$L130,""),"") ->  | T124: =IF('FP-DET'!$E130=2,IF('FP-DET'!$H130=T$6,'FP-DET'!$L130,""),"") ->  | U124: =IF('FP-DET'!$E130=3,IF('FP-DET'!$H130=U$6,'FP-DET'!$L130,""),"") ->  | V124: =IF('FP-DET'!$E130=3,IF('FP-DET'!$H130=V$6,'FP-DET'!$L130,""),"") ->  | W124: =IF('FP-DET'!$E130=3,IF('FP-DET'!$H130=W$6,'FP-DET'!$L130,""),"") ->  | X124: =IF('FP-DET'!$E130=3,IF('FP-DET'!$H130=X$6,'FP-DET'!$L130,""),"") ->  | Y124: =IF('FP-DET'!$E130=3,IF('FP-DET'!$H130=Y$6,'FP-DET'!$L130,""),"") ->  | Z124: =IF('FP-DET'!$E130=4,IF('FP-DET'!$H130=Z$6,'FP-DET'!$L130,""),"") ->  | AA124: =IF('FP-DET'!$E130=4,IF('FP-DET'!$H130=AA$6,'FP-DET'!$L130,""),"") ->  | AB124: =IF('FP-DET'!$E130=4,IF('FP-DET'!$H130=AB$6,'FP-DET'!$L130,""),"") ->  | AC124: =IF('FP-DET'!$E130=4,IF('FP-DET'!$H130=AC$6,'FP-DET'!$L130,""),"") ->  | AD124: =IF('FP-DET'!$E130=4,IF('FP-DET'!$H130=AD$6,'FP-DET'!$L130,""),"") ->  | AE124: =IF('FP-DET'!$E130=5,IF('FP-DET'!$H130=AE$6,'FP-DET'!$L130,""),"") ->  | AF124: =IF('FP-DET'!$E130=5,IF('FP-DET'!$H130=AF$6,'FP-DET'!$L130,""),"") ->  | AG124: =IF('FP-DET'!$E130=5,IF('FP-DET'!$H130=AG$6,'FP-DET'!$L130,""),"") ->  | AH124: =IF('FP-DET'!$E130=5,IF('FP-DET'!$H130=AH$6,'FP-DET'!$L130,""),"") ->  | AI124: =IF('FP-DET'!$E130=5,IF('FP-DET'!$H130=AI$6,'FP-DET'!$L130,""),"") -> 
K125: =IF('FP-DET'!$E131=1,IF('FP-DET'!$H131=K$6,'FP-DET'!$L131,""),"") ->  | L125: =IF('FP-DET'!$E131=1,IF('FP-DET'!$H131=L$6,'FP-DET'!$L131,""),"") ->  | M125: =IF('FP-DET'!$E131=1,IF('FP-DET'!$H131=M$6,'FP-DET'!$L131,""),"") ->  | N125: =IF('FP-DET'!$E131=1,IF('FP-DET'!$H131=N$6,'FP-DET'!$L131,""),"") ->  | O125: =IF('FP-DET'!$E131=1,IF('FP-DET'!$H131=O$6,'FP-DET'!$L131,""),"") ->  | P125: =IF('FP-DET'!$E131=2,IF('FP-DET'!$H131=P$6,'FP-DET'!$L131,""),"") ->  | Q125: =IF('FP-DET'!$E131=2,IF('FP-DET'!$H131=Q$6,'FP-DET'!$L131,""),"") ->  | R125: =IF('FP-DET'!$E131=2,IF('FP-DET'!$H131=R$6,'FP-DET'!$L131,""),"") ->  | S125: =IF('FP-DET'!$E131=2,IF('FP-DET'!$H131=S$6,'FP-DET'!$L131,""),"") ->  | T125: =IF('FP-DET'!$E131=2,IF('FP-DET'!$H131=T$6,'FP-DET'!$L131,""),"") ->  | U125: =IF('FP-DET'!$E131=3,IF('FP-DET'!$H131=U$6,'FP-DET'!$L131,""),"") ->  | V125: =IF('FP-DET'!$E131=3,IF('FP-DET'!$H131=V$6,'FP-DET'!$L131,""),"") ->  | W125: =IF('FP-DET'!$E131=3,IF('FP-DET'!$H131=W$6,'FP-DET'!$L131,""),"") ->  | X125: =IF('FP-DET'!$E131=3,IF('FP-DET'!$H131=X$6,'FP-DET'!$L131,""),"") ->  | Y125: =IF('FP-DET'!$E131=3,IF('FP-DET'!$H131=Y$6,'FP-DET'!$L131,""),"") ->  | Z125: =IF('FP-DET'!$E131=4,IF('FP-DET'!$H131=Z$6,'FP-DET'!$L131,""),"") ->  | AA125: =IF('FP-DET'!$E131=4,IF('FP-DET'!$H131=AA$6,'FP-DET'!$L131,""),"") ->  | AB125: =IF('FP-DET'!$E131=4,IF('FP-DET'!$H131=AB$6,'FP-DET'!$L131,""),"") ->  | AC125: =IF('FP-DET'!$E131=4,IF('FP-DET'!$H131=AC$6,'FP-DET'!$L131,""),"") ->  | AD125: =IF('FP-DET'!$E131=4,IF('FP-DET'!$H131=AD$6,'FP-DET'!$L131,""),"") ->  | AE125: =IF('FP-DET'!$E131=5,IF('FP-DET'!$H131=AE$6,'FP-DET'!$L131,""),"") ->  | AF125: =IF('FP-DET'!$E131=5,IF('FP-DET'!$H131=AF$6,'FP-DET'!$L131,""),"") ->  | AG125: =IF('FP-DET'!$E131=5,IF('FP-DET'!$H131=AG$6,'FP-DET'!$L131,""),"") ->  | AH125: =IF('FP-DET'!$E131=5,IF('FP-DET'!$H131=AH$6,'FP-DET'!$L131,""),"") ->  | AI125: =IF('FP-DET'!$E131=5,IF('FP-DET'!$H131=AI$6,'FP-DET'!$L131,""),"") -> 
K126: =IF('FP-DET'!$E132=1,IF('FP-DET'!$H132=K$6,'FP-DET'!$L132,""),"") ->  | L126: =IF('FP-DET'!$E132=1,IF('FP-DET'!$H132=L$6,'FP-DET'!$L132,""),"") ->  | M126: =IF('FP-DET'!$E132=1,IF('FP-DET'!$H132=M$6,'FP-DET'!$L132,""),"") ->  | N126: =IF('FP-DET'!$E132=1,IF('FP-DET'!$H132=N$6,'FP-DET'!$L132,""),"") ->  | O126: =IF('FP-DET'!$E132=1,IF('FP-DET'!$H132=O$6,'FP-DET'!$L132,""),"") ->  | P126: =IF('FP-DET'!$E132=2,IF('FP-DET'!$H132=P$6,'FP-DET'!$L132,""),"") ->  | Q126: =IF('FP-DET'!$E132=2,IF('FP-DET'!$H132=Q$6,'FP-DET'!$L132,""),"") ->  | R126: =IF('FP-DET'!$E132=2,IF('FP-DET'!$H132=R$6,'FP-DET'!$L132,""),"") ->  | S126: =IF('FP-DET'!$E132=2,IF('FP-DET'!$H132=S$6,'FP-DET'!$L132,""),"") ->  | T126: =IF('FP-DET'!$E132=2,IF('FP-DET'!$H132=T$6,'FP-DET'!$L132,""),"") ->  | U126: =IF('FP-DET'!$E132=3,IF('FP-DET'!$H132=U$6,'FP-DET'!$L132,""),"") ->  | V126: =IF('FP-DET'!$E132=3,IF('FP-DET'!$H132=V$6,'FP-DET'!$L132,""),"") ->  | W126: =IF('FP-DET'!$E132=3,IF('FP-DET'!$H132=W$6,'FP-DET'!$L132,""),"") ->  | X126: =IF('FP-DET'!$E132=3,IF('FP-DET'!$H132=X$6,'FP-DET'!$L132,""),"") ->  | Y126: =IF('FP-DET'!$E132=3,IF('FP-DET'!$H132=Y$6,'FP-DET'!$L132,""),"") ->  | Z126: =IF('FP-DET'!$E132=4,IF('FP-DET'!$H132=Z$6,'FP-DET'!$L132,""),"") ->  | AA126: =IF('FP-DET'!$E132=4,IF('FP-DET'!$H132=AA$6,'FP-DET'!$L132,""),"") ->  | AB126: =IF('FP-DET'!$E132=4,IF('FP-DET'!$H132=AB$6,'FP-DET'!$L132,""),"") ->  | AC126: =IF('FP-DET'!$E132=4,IF('FP-DET'!$H132=AC$6,'FP-DET'!$L132,""),"") ->  | AD126: =IF('FP-DET'!$E132=4,IF('FP-DET'!$H132=AD$6,'FP-DET'!$L132,""),"") ->  | AE126: =IF('FP-DET'!$E132=5,IF('FP-DET'!$H132=AE$6,'FP-DET'!$L132,""),"") ->  | AF126: =IF('FP-DET'!$E132=5,IF('FP-DET'!$H132=AF$6,'FP-DET'!$L132,""),"") ->  | AG126: =IF('FP-DET'!$E132=5,IF('FP-DET'!$H132=AG$6,'FP-DET'!$L132,""),"") ->  | AH126: =IF('FP-DET'!$E132=5,IF('FP-DET'!$H132=AH$6,'FP-DET'!$L132,""),"") ->  | AI126: =IF('FP-DET'!$E132=5,IF('FP-DET'!$H132=AI$6,'FP-DET'!$L132,""),"") -> 
K127: =IF('FP-DET'!$E133=1,IF('FP-DET'!$H133=K$6,'FP-DET'!$L133,""),"") ->  | L127: =IF('FP-DET'!$E133=1,IF('FP-DET'!$H133=L$6,'FP-DET'!$L133,""),"") ->  | M127: =IF('FP-DET'!$E133=1,IF('FP-DET'!$H133=M$6,'FP-DET'!$L133,""),"") ->  | N127: =IF('FP-DET'!$E133=1,IF('FP-DET'!$H133=N$6,'FP-DET'!$L133,""),"") ->  | O127: =IF('FP-DET'!$E133=1,IF('FP-DET'!$H133=O$6,'FP-DET'!$L133,""),"") ->  | P127: =IF('FP-DET'!$E133=2,IF('FP-DET'!$H133=P$6,'FP-DET'!$L133,""),"") ->  | Q127: =IF('FP-DET'!$E133=2,IF('FP-DET'!$H133=Q$6,'FP-DET'!$L133,""),"") ->  | R127: =IF('FP-DET'!$E133=2,IF('FP-DET'!$H133=R$6,'FP-DET'!$L133,""),"") ->  | S127: =IF('FP-DET'!$E133=2,IF('FP-DET'!$H133=S$6,'FP-DET'!$L133,""),"") ->  | T127: =IF('FP-DET'!$E133=2,IF('FP-DET'!$H133=T$6,'FP-DET'!$L133,""),"") ->  | U127: =IF('FP-DET'!$E133=3,IF('FP-DET'!$H133=U$6,'FP-DET'!$L133,""),"") ->  | V127: =IF('FP-DET'!$E133=3,IF('FP-DET'!$H133=V$6,'FP-DET'!$L133,""),"") ->  | W127: =IF('FP-DET'!$E133=3,IF('FP-DET'!$H133=W$6,'FP-DET'!$L133,""),"") ->  | X127: =IF('FP-DET'!$E133=3,IF('FP-DET'!$H133=X$6,'FP-DET'!$L133,""),"") ->  | Y127: =IF('FP-DET'!$E133=3,IF('FP-DET'!$H133=Y$6,'FP-DET'!$L133,""),"") ->  | Z127: =IF('FP-DET'!$E133=4,IF('FP-DET'!$H133=Z$6,'FP-DET'!$L133,""),"") ->  | AA127: =IF('FP-DET'!$E133=4,IF('FP-DET'!$H133=AA$6,'FP-DET'!$L133,""),"") ->  | AB127: =IF('FP-DET'!$E133=4,IF('FP-DET'!$H133=AB$6,'FP-DET'!$L133,""),"") ->  | AC127: =IF('FP-DET'!$E133=4,IF('FP-DET'!$H133=AC$6,'FP-DET'!$L133,""),"") ->  | AD127: =IF('FP-DET'!$E133=4,IF('FP-DET'!$H133=AD$6,'FP-DET'!$L133,""),"") ->  | AE127: =IF('FP-DET'!$E133=5,IF('FP-DET'!$H133=AE$6,'FP-DET'!$L133,""),"") ->  | AF127: =IF('FP-DET'!$E133=5,IF('FP-DET'!$H133=AF$6,'FP-DET'!$L133,""),"") ->  | AG127: =IF('FP-DET'!$E133=5,IF('FP-DET'!$H133=AG$6,'FP-DET'!$L133,""),"") ->  | AH127: =IF('FP-DET'!$E133=5,IF('FP-DET'!$H133=AH$6,'FP-DET'!$L133,""),"") ->  | AI127: =IF('FP-DET'!$E133=5,IF('FP-DET'!$H133=AI$6,'FP-DET'!$L133,""),"") -> 
K128: =IF('FP-DET'!$E134=1,IF('FP-DET'!$H134=K$6,'FP-DET'!$L134,""),"") ->  | L128: =IF('FP-DET'!$E134=1,IF('FP-DET'!$H134=L$6,'FP-DET'!$L134,""),"") ->  | M128: =IF('FP-DET'!$E134=1,IF('FP-DET'!$H134=M$6,'FP-DET'!$L134,""),"") ->  | N128: =IF('FP-DET'!$E134=1,IF('FP-DET'!$H134=N$6,'FP-DET'!$L134,""),"") ->  | O128: =IF('FP-DET'!$E134=1,IF('FP-DET'!$H134=O$6,'FP-DET'!$L134,""),"") ->  | P128: =IF('FP-DET'!$E134=2,IF('FP-DET'!$H134=P$6,'FP-DET'!$L134,""),"") ->  | Q128: =IF('FP-DET'!$E134=2,IF('FP-DET'!$H134=Q$6,'FP-DET'!$L134,""),"") ->  | R128: =IF('FP-DET'!$E134=2,IF('FP-DET'!$H134=R$6,'FP-DET'!$L134,""),"") ->  | S128: =IF('FP-DET'!$E134=2,IF('FP-DET'!$H134=S$6,'FP-DET'!$L134,""),"") ->  | T128: =IF('FP-DET'!$E134=2,IF('FP-DET'!$H134=T$6,'FP-DET'!$L134,""),"") ->  | U128: =IF('FP-DET'!$E134=3,IF('FP-DET'!$H134=U$6,'FP-DET'!$L134,""),"") ->  | V128: =IF('FP-DET'!$E134=3,IF('FP-DET'!$H134=V$6,'FP-DET'!$L134,""),"") ->  | W128: =IF('FP-DET'!$E134=3,IF('FP-DET'!$H134=W$6,'FP-DET'!$L134,""),"") ->  | X128: =IF('FP-DET'!$E134=3,IF('FP-DET'!$H134=X$6,'FP-DET'!$L134,""),"") ->  | Y128: =IF('FP-DET'!$E134=3,IF('FP-DET'!$H134=Y$6,'FP-DET'!$L134,""),"") ->  | Z128: =IF('FP-DET'!$E134=4,IF('FP-DET'!$H134=Z$6,'FP-DET'!$L134,""),"") ->  | AA128: =IF('FP-DET'!$E134=4,IF('FP-DET'!$H134=AA$6,'FP-DET'!$L134,""),"") ->  | AB128: =IF('FP-DET'!$E134=4,IF('FP-DET'!$H134=AB$6,'FP-DET'!$L134,""),"") ->  | AC128: =IF('FP-DET'!$E134=4,IF('FP-DET'!$H134=AC$6,'FP-DET'!$L134,""),"") ->  | AD128: =IF('FP-DET'!$E134=4,IF('FP-DET'!$H134=AD$6,'FP-DET'!$L134,""),"") ->  | AE128: =IF('FP-DET'!$E134=5,IF('FP-DET'!$H134=AE$6,'FP-DET'!$L134,""),"") ->  | AF128: =IF('FP-DET'!$E134=5,IF('FP-DET'!$H134=AF$6,'FP-DET'!$L134,""),"") ->  | AG128: =IF('FP-DET'!$E134=5,IF('FP-DET'!$H134=AG$6,'FP-DET'!$L134,""),"") ->  | AH128: =IF('FP-DET'!$E134=5,IF('FP-DET'!$H134=AH$6,'FP-DET'!$L134,""),"") ->  | AI128: =IF('FP-DET'!$E134=5,IF('FP-DET'!$H134=AI$6,'FP-DET'!$L134,""),"") -> 
K129: =IF('FP-DET'!$E135=1,IF('FP-DET'!$H135=K$6,'FP-DET'!$L135,""),"") ->  | L129: =IF('FP-DET'!$E135=1,IF('FP-DET'!$H135=L$6,'FP-DET'!$L135,""),"") ->  | M129: =IF('FP-DET'!$E135=1,IF('FP-DET'!$H135=M$6,'FP-DET'!$L135,""),"") ->  | N129: =IF('FP-DET'!$E135=1,IF('FP-DET'!$H135=N$6,'FP-DET'!$L135,""),"") ->  | O129: =IF('FP-DET'!$E135=1,IF('FP-DET'!$H135=O$6,'FP-DET'!$L135,""),"") ->  | P129: =IF('FP-DET'!$E135=2,IF('FP-DET'!$H135=P$6,'FP-DET'!$L135,""),"") ->  | Q129: =IF('FP-DET'!$E135=2,IF('FP-DET'!$H135=Q$6,'FP-DET'!$L135,""),"") ->  | R129: =IF('FP-DET'!$E135=2,IF('FP-DET'!$H135=R$6,'FP-DET'!$L135,""),"") ->  | S129: =IF('FP-DET'!$E135=2,IF('FP-DET'!$H135=S$6,'FP-DET'!$L135,""),"") ->  | T129: =IF('FP-DET'!$E135=2,IF('FP-DET'!$H135=T$6,'FP-DET'!$L135,""),"") ->  | U129: =IF('FP-DET'!$E135=3,IF('FP-DET'!$H135=U$6,'FP-DET'!$L135,""),"") ->  | V129: =IF('FP-DET'!$E135=3,IF('FP-DET'!$H135=V$6,'FP-DET'!$L135,""),"") ->  | W129: =IF('FP-DET'!$E135=3,IF('FP-DET'!$H135=W$6,'FP-DET'!$L135,""),"") ->  | X129: =IF('FP-DET'!$E135=3,IF('FP-DET'!$H135=X$6,'FP-DET'!$L135,""),"") ->  | Y129: =IF('FP-DET'!$E135=3,IF('FP-DET'!$H135=Y$6,'FP-DET'!$L135,""),"") ->  | Z129: =IF('FP-DET'!$E135=4,IF('FP-DET'!$H135=Z$6,'FP-DET'!$L135,""),"") ->  | AA129: =IF('FP-DET'!$E135=4,IF('FP-DET'!$H135=AA$6,'FP-DET'!$L135,""),"") ->  | AB129: =IF('FP-DET'!$E135=4,IF('FP-DET'!$H135=AB$6,'FP-DET'!$L135,""),"") ->  | AC129: =IF('FP-DET'!$E135=4,IF('FP-DET'!$H135=AC$6,'FP-DET'!$L135,""),"") ->  | AD129: =IF('FP-DET'!$E135=4,IF('FP-DET'!$H135=AD$6,'FP-DET'!$L135,""),"") ->  | AE129: =IF('FP-DET'!$E135=5,IF('FP-DET'!$H135=AE$6,'FP-DET'!$L135,""),"") ->  | AF129: =IF('FP-DET'!$E135=5,IF('FP-DET'!$H135=AF$6,'FP-DET'!$L135,""),"") ->  | AG129: =IF('FP-DET'!$E135=5,IF('FP-DET'!$H135=AG$6,'FP-DET'!$L135,""),"") ->  | AH129: =IF('FP-DET'!$E135=5,IF('FP-DET'!$H135=AH$6,'FP-DET'!$L135,""),"") ->  | AI129: =IF('FP-DET'!$E135=5,IF('FP-DET'!$H135=AI$6,'FP-DET'!$L135,""),"") -> 
K130: =IF('FP-DET'!$E136=1,IF('FP-DET'!$H136=K$6,'FP-DET'!$L136,""),"") ->  | L130: =IF('FP-DET'!$E136=1,IF('FP-DET'!$H136=L$6,'FP-DET'!$L136,""),"") ->  | M130: =IF('FP-DET'!$E136=1,IF('FP-DET'!$H136=M$6,'FP-DET'!$L136,""),"") ->  | N130: =IF('FP-DET'!$E136=1,IF('FP-DET'!$H136=N$6,'FP-DET'!$L136,""),"") ->  | O130: =IF('FP-DET'!$E136=1,IF('FP-DET'!$H136=O$6,'FP-DET'!$L136,""),"") ->  | P130: =IF('FP-DET'!$E136=2,IF('FP-DET'!$H136=P$6,'FP-DET'!$L136,""),"") ->  | Q130: =IF('FP-DET'!$E136=2,IF('FP-DET'!$H136=Q$6,'FP-DET'!$L136,""),"") ->  | R130: =IF('FP-DET'!$E136=2,IF('FP-DET'!$H136=R$6,'FP-DET'!$L136,""),"") ->  | S130: =IF('FP-DET'!$E136=2,IF('FP-DET'!$H136=S$6,'FP-DET'!$L136,""),"") ->  | T130: =IF('FP-DET'!$E136=2,IF('FP-DET'!$H136=T$6,'FP-DET'!$L136,""),"") ->  | U130: =IF('FP-DET'!$E136=3,IF('FP-DET'!$H136=U$6,'FP-DET'!$L136,""),"") ->  | V130: =IF('FP-DET'!$E136=3,IF('FP-DET'!$H136=V$6,'FP-DET'!$L136,""),"") ->  | W130: =IF('FP-DET'!$E136=3,IF('FP-DET'!$H136=W$6,'FP-DET'!$L136,""),"") ->  | X130: =IF('FP-DET'!$E136=3,IF('FP-DET'!$H136=X$6,'FP-DET'!$L136,""),"") ->  | Y130: =IF('FP-DET'!$E136=3,IF('FP-DET'!$H136=Y$6,'FP-DET'!$L136,""),"") ->  | Z130: =IF('FP-DET'!$E136=4,IF('FP-DET'!$H136=Z$6,'FP-DET'!$L136,""),"") ->  | AA130: =IF('FP-DET'!$E136=4,IF('FP-DET'!$H136=AA$6,'FP-DET'!$L136,""),"") ->  | AB130: =IF('FP-DET'!$E136=4,IF('FP-DET'!$H136=AB$6,'FP-DET'!$L136,""),"") ->  | AC130: =IF('FP-DET'!$E136=4,IF('FP-DET'!$H136=AC$6,'FP-DET'!$L136,""),"") ->  | AD130: =IF('FP-DET'!$E136=4,IF('FP-DET'!$H136=AD$6,'FP-DET'!$L136,""),"") ->  | AE130: =IF('FP-DET'!$E136=5,IF('FP-DET'!$H136=AE$6,'FP-DET'!$L136,""),"") ->  | AF130: =IF('FP-DET'!$E136=5,IF('FP-DET'!$H136=AF$6,'FP-DET'!$L136,""),"") ->  | AG130: =IF('FP-DET'!$E136=5,IF('FP-DET'!$H136=AG$6,'FP-DET'!$L136,""),"") ->  | AH130: =IF('FP-DET'!$E136=5,IF('FP-DET'!$H136=AH$6,'FP-DET'!$L136,""),"") ->  | AI130: =IF('FP-DET'!$E136=5,IF('FP-DET'!$H136=AI$6,'FP-DET'!$L136,""),"") -> 
K131: =IF('FP-DET'!$E137=1,IF('FP-DET'!$H137=K$6,'FP-DET'!$L137,""),"") ->  | L131: =IF('FP-DET'!$E137=1,IF('FP-DET'!$H137=L$6,'FP-DET'!$L137,""),"") ->  | M131: =IF('FP-DET'!$E137=1,IF('FP-DET'!$H137=M$6,'FP-DET'!$L137,""),"") ->  | N131: =IF('FP-DET'!$E137=1,IF('FP-DET'!$H137=N$6,'FP-DET'!$L137,""),"") ->  | O131: =IF('FP-DET'!$E137=1,IF('FP-DET'!$H137=O$6,'FP-DET'!$L137,""),"") ->  | P131: =IF('FP-DET'!$E137=2,IF('FP-DET'!$H137=P$6,'FP-DET'!$L137,""),"") ->  | Q131: =IF('FP-DET'!$E137=2,IF('FP-DET'!$H137=Q$6,'FP-DET'!$L137,""),"") ->  | R131: =IF('FP-DET'!$E137=2,IF('FP-DET'!$H137=R$6,'FP-DET'!$L137,""),"") ->  | S131: =IF('FP-DET'!$E137=2,IF('FP-DET'!$H137=S$6,'FP-DET'!$L137,""),"") ->  | T131: =IF('FP-DET'!$E137=2,IF('FP-DET'!$H137=T$6,'FP-DET'!$L137,""),"") ->  | U131: =IF('FP-DET'!$E137=3,IF('FP-DET'!$H137=U$6,'FP-DET'!$L137,""),"") ->  | V131: =IF('FP-DET'!$E137=3,IF('FP-DET'!$H137=V$6,'FP-DET'!$L137,""),"") ->  | W131: =IF('FP-DET'!$E137=3,IF('FP-DET'!$H137=W$6,'FP-DET'!$L137,""),"") ->  | X131: =IF('FP-DET'!$E137=3,IF('FP-DET'!$H137=X$6,'FP-DET'!$L137,""),"") ->  | Y131: =IF('FP-DET'!$E137=3,IF('FP-DET'!$H137=Y$6,'FP-DET'!$L137,""),"") ->  | Z131: =IF('FP-DET'!$E137=4,IF('FP-DET'!$H137=Z$6,'FP-DET'!$L137,""),"") ->  | AA131: =IF('FP-DET'!$E137=4,IF('FP-DET'!$H137=AA$6,'FP-DET'!$L137,""),"") ->  | AB131: =IF('FP-DET'!$E137=4,IF('FP-DET'!$H137=AB$6,'FP-DET'!$L137,""),"") ->  | AC131: =IF('FP-DET'!$E137=4,IF('FP-DET'!$H137=AC$6,'FP-DET'!$L137,""),"") ->  | AD131: =IF('FP-DET'!$E137=4,IF('FP-DET'!$H137=AD$6,'FP-DET'!$L137,""),"") ->  | AE131: =IF('FP-DET'!$E137=5,IF('FP-DET'!$H137=AE$6,'FP-DET'!$L137,""),"") ->  | AF131: =IF('FP-DET'!$E137=5,IF('FP-DET'!$H137=AF$6,'FP-DET'!$L137,""),"") ->  | AG131: =IF('FP-DET'!$E137=5,IF('FP-DET'!$H137=AG$6,'FP-DET'!$L137,""),"") ->  | AH131: =IF('FP-DET'!$E137=5,IF('FP-DET'!$H137=AH$6,'FP-DET'!$L137,""),"") ->  | AI131: =IF('FP-DET'!$E137=5,IF('FP-DET'!$H137=AI$6,'FP-DET'!$L137,""),"") -> 
K132: =IF('FP-DET'!$E138=1,IF('FP-DET'!$H138=K$6,'FP-DET'!$L138,""),"") ->  | L132: =IF('FP-DET'!$E138=1,IF('FP-DET'!$H138=L$6,'FP-DET'!$L138,""),"") ->  | M132: =IF('FP-DET'!$E138=1,IF('FP-DET'!$H138=M$6,'FP-DET'!$L138,""),"") ->  | N132: =IF('FP-DET'!$E138=1,IF('FP-DET'!$H138=N$6,'FP-DET'!$L138,""),"") ->  | O132: =IF('FP-DET'!$E138=1,IF('FP-DET'!$H138=O$6,'FP-DET'!$L138,""),"") ->  | P132: =IF('FP-DET'!$E138=2,IF('FP-DET'!$H138=P$6,'FP-DET'!$L138,""),"") ->  | Q132: =IF('FP-DET'!$E138=2,IF('FP-DET'!$H138=Q$6,'FP-DET'!$L138,""),"") ->  | R132: =IF('FP-DET'!$E138=2,IF('FP-DET'!$H138=R$6,'FP-DET'!$L138,""),"") ->  | S132: =IF('FP-DET'!$E138=2,IF('FP-DET'!$H138=S$6,'FP-DET'!$L138,""),"") ->  | T132: =IF('FP-DET'!$E138=2,IF('FP-DET'!$H138=T$6,'FP-DET'!$L138,""),"") ->  | U132: =IF('FP-DET'!$E138=3,IF('FP-DET'!$H138=U$6,'FP-DET'!$L138,""),"") ->  | V132: =IF('FP-DET'!$E138=3,IF('FP-DET'!$H138=V$6,'FP-DET'!$L138,""),"") ->  | W132: =IF('FP-DET'!$E138=3,IF('FP-DET'!$H138=W$6,'FP-DET'!$L138,""),"") ->  | X132: =IF('FP-DET'!$E138=3,IF('FP-DET'!$H138=X$6,'FP-DET'!$L138,""),"") ->  | Y132: =IF('FP-DET'!$E138=3,IF('FP-DET'!$H138=Y$6,'FP-DET'!$L138,""),"") ->  | Z132: =IF('FP-DET'!$E138=4,IF('FP-DET'!$H138=Z$6,'FP-DET'!$L138,""),"") ->  | AA132: =IF('FP-DET'!$E138=4,IF('FP-DET'!$H138=AA$6,'FP-DET'!$L138,""),"") ->  | AB132: =IF('FP-DET'!$E138=4,IF('FP-DET'!$H138=AB$6,'FP-DET'!$L138,""),"") ->  | AC132: =IF('FP-DET'!$E138=4,IF('FP-DET'!$H138=AC$6,'FP-DET'!$L138,""),"") ->  | AD132: =IF('FP-DET'!$E138=4,IF('FP-DET'!$H138=AD$6,'FP-DET'!$L138,""),"") ->  | AE132: =IF('FP-DET'!$E138=5,IF('FP-DET'!$H138=AE$6,'FP-DET'!$L138,""),"") ->  | AF132: =IF('FP-DET'!$E138=5,IF('FP-DET'!$H138=AF$6,'FP-DET'!$L138,""),"") ->  | AG132: =IF('FP-DET'!$E138=5,IF('FP-DET'!$H138=AG$6,'FP-DET'!$L138,""),"") ->  | AH132: =IF('FP-DET'!$E138=5,IF('FP-DET'!$H138=AH$6,'FP-DET'!$L138,""),"") ->  | AI132: =IF('FP-DET'!$E138=5,IF('FP-DET'!$H138=AI$6,'FP-DET'!$L138,""),"") -> 
K133: =IF('FP-DET'!$E139=1,IF('FP-DET'!$H139=K$6,'FP-DET'!$L139,""),"") ->  | L133: =IF('FP-DET'!$E139=1,IF('FP-DET'!$H139=L$6,'FP-DET'!$L139,""),"") ->  | M133: =IF('FP-DET'!$E139=1,IF('FP-DET'!$H139=M$6,'FP-DET'!$L139,""),"") ->  | N133: =IF('FP-DET'!$E139=1,IF('FP-DET'!$H139=N$6,'FP-DET'!$L139,""),"") ->  | O133: =IF('FP-DET'!$E139=1,IF('FP-DET'!$H139=O$6,'FP-DET'!$L139,""),"") ->  | P133: =IF('FP-DET'!$E139=2,IF('FP-DET'!$H139=P$6,'FP-DET'!$L139,""),"") ->  | Q133: =IF('FP-DET'!$E139=2,IF('FP-DET'!$H139=Q$6,'FP-DET'!$L139,""),"") ->  | R133: =IF('FP-DET'!$E139=2,IF('FP-DET'!$H139=R$6,'FP-DET'!$L139,""),"") ->  | S133: =IF('FP-DET'!$E139=2,IF('FP-DET'!$H139=S$6,'FP-DET'!$L139,""),"") ->  | T133: =IF('FP-DET'!$E139=2,IF('FP-DET'!$H139=T$6,'FP-DET'!$L139,""),"") ->  | U133: =IF('FP-DET'!$E139=3,IF('FP-DET'!$H139=U$6,'FP-DET'!$L139,""),"") ->  | V133: =IF('FP-DET'!$E139=3,IF('FP-DET'!$H139=V$6,'FP-DET'!$L139,""),"") ->  | W133: =IF('FP-DET'!$E139=3,IF('FP-DET'!$H139=W$6,'FP-DET'!$L139,""),"") ->  | X133: =IF('FP-DET'!$E139=3,IF('FP-DET'!$H139=X$6,'FP-DET'!$L139,""),"") ->  | Y133: =IF('FP-DET'!$E139=3,IF('FP-DET'!$H139=Y$6,'FP-DET'!$L139,""),"") ->  | Z133: =IF('FP-DET'!$E139=4,IF('FP-DET'!$H139=Z$6,'FP-DET'!$L139,""),"") ->  | AA133: =IF('FP-DET'!$E139=4,IF('FP-DET'!$H139=AA$6,'FP-DET'!$L139,""),"") ->  | AB133: =IF('FP-DET'!$E139=4,IF('FP-DET'!$H139=AB$6,'FP-DET'!$L139,""),"") ->  | AC133: =IF('FP-DET'!$E139=4,IF('FP-DET'!$H139=AC$6,'FP-DET'!$L139,""),"") ->  | AD133: =IF('FP-DET'!$E139=4,IF('FP-DET'!$H139=AD$6,'FP-DET'!$L139,""),"") ->  | AE133: =IF('FP-DET'!$E139=5,IF('FP-DET'!$H139=AE$6,'FP-DET'!$L139,""),"") ->  | AF133: =IF('FP-DET'!$E139=5,IF('FP-DET'!$H139=AF$6,'FP-DET'!$L139,""),"") ->  | AG133: =IF('FP-DET'!$E139=5,IF('FP-DET'!$H139=AG$6,'FP-DET'!$L139,""),"") ->  | AH133: =IF('FP-DET'!$E139=5,IF('FP-DET'!$H139=AH$6,'FP-DET'!$L139,""),"") ->  | AI133: =IF('FP-DET'!$E139=5,IF('FP-DET'!$H139=AI$6,'FP-DET'!$L139,""),"") -> 
K134: =IF('FP-DET'!$E140=1,IF('FP-DET'!$H140=K$6,'FP-DET'!$L140,""),"") ->  | L134: =IF('FP-DET'!$E140=1,IF('FP-DET'!$H140=L$6,'FP-DET'!$L140,""),"") ->  | M134: =IF('FP-DET'!$E140=1,IF('FP-DET'!$H140=M$6,'FP-DET'!$L140,""),"") ->  | N134: =IF('FP-DET'!$E140=1,IF('FP-DET'!$H140=N$6,'FP-DET'!$L140,""),"") ->  | O134: =IF('FP-DET'!$E140=1,IF('FP-DET'!$H140=O$6,'FP-DET'!$L140,""),"") ->  | P134: =IF('FP-DET'!$E140=2,IF('FP-DET'!$H140=P$6,'FP-DET'!$L140,""),"") ->  | Q134: =IF('FP-DET'!$E140=2,IF('FP-DET'!$H140=Q$6,'FP-DET'!$L140,""),"") ->  | R134: =IF('FP-DET'!$E140=2,IF('FP-DET'!$H140=R$6,'FP-DET'!$L140,""),"") ->  | S134: =IF('FP-DET'!$E140=2,IF('FP-DET'!$H140=S$6,'FP-DET'!$L140,""),"") ->  | T134: =IF('FP-DET'!$E140=2,IF('FP-DET'!$H140=T$6,'FP-DET'!$L140,""),"") ->  | U134: =IF('FP-DET'!$E140=3,IF('FP-DET'!$H140=U$6,'FP-DET'!$L140,""),"") ->  | V134: =IF('FP-DET'!$E140=3,IF('FP-DET'!$H140=V$6,'FP-DET'!$L140,""),"") ->  | W134: =IF('FP-DET'!$E140=3,IF('FP-DET'!$H140=W$6,'FP-DET'!$L140,""),"") ->  | X134: =IF('FP-DET'!$E140=3,IF('FP-DET'!$H140=X$6,'FP-DET'!$L140,""),"") ->  | Y134: =IF('FP-DET'!$E140=3,IF('FP-DET'!$H140=Y$6,'FP-DET'!$L140,""),"") ->  | Z134: =IF('FP-DET'!$E140=4,IF('FP-DET'!$H140=Z$6,'FP-DET'!$L140,""),"") ->  | AA134: =IF('FP-DET'!$E140=4,IF('FP-DET'!$H140=AA$6,'FP-DET'!$L140,""),"") ->  | AB134: =IF('FP-DET'!$E140=4,IF('FP-DET'!$H140=AB$6,'FP-DET'!$L140,""),"") ->  | AC134: =IF('FP-DET'!$E140=4,IF('FP-DET'!$H140=AC$6,'FP-DET'!$L140,""),"") ->  | AD134: =IF('FP-DET'!$E140=4,IF('FP-DET'!$H140=AD$6,'FP-DET'!$L140,""),"") ->  | AE134: =IF('FP-DET'!$E140=5,IF('FP-DET'!$H140=AE$6,'FP-DET'!$L140,""),"") ->  | AF134: =IF('FP-DET'!$E140=5,IF('FP-DET'!$H140=AF$6,'FP-DET'!$L140,""),"") ->  | AG134: =IF('FP-DET'!$E140=5,IF('FP-DET'!$H140=AG$6,'FP-DET'!$L140,""),"") ->  | AH134: =IF('FP-DET'!$E140=5,IF('FP-DET'!$H140=AH$6,'FP-DET'!$L140,""),"") ->  | AI134: =IF('FP-DET'!$E140=5,IF('FP-DET'!$H140=AI$6,'FP-DET'!$L140,""),"") -> 
